Workbook

Sheet Inputs
B2: Fase (C = Construção; O = Operação) | C2: =IF(C3<=Premissas!$C$74,"C",IF(C3="-","-","O")) -> C | D2: =IF(D3<=Premissas!$C$74,"C",IF(D3="-","-","O")) -> O | E2: =IF(E3<=Premissas!$C$74,"C",IF(E3="-","-","O")) -> O | F2: =IF(F3<=Premissas!$C$74,"C",IF(F3="-","-","O")) -> O | G2: =IF(G3<=Premissas!$C$74,"C",IF(G3="-","-","O")) -> O | H2: =IF(H3<=Premissas!$C$74,"C",IF(H3="-","-","O")) -> O | I2: =IF(I3<=Premissas!$C$74,"C",IF(I3="-","-","O")) -> O | J2: =IF(J3<=Premissas!$C$74,"C",IF(J3="-","-","O")) -> O | K2: =IF(K3<=Premissas!$C$74,"C",IF(K3="-","-","O")) -> O | L2: =IF(L3<=Premissas!$C$74,"C",IF(L3="-","-","O")) -> O | M2: =IF(M3<=Premissas!$C$74,"C",IF(M3="-","-","O")) -> O | N2: =IF(N3<=Premissas!$C$74,"C",IF(N3="-","-","O")) -> O | O2: =IF(O3<=Premissas!$C$74,"C",IF(O3="-","-","O")) -> O | P2: =IF(P3<=Premissas!$C$74,"C",IF(P3="-","-","O")) -> O | Q2: =IF(Q3<=Premissas!$C$74,"C",IF(Q3="-","-","O")) -> O | R2: =IF(R3<=Premissas!$C$74,"C",IF(R3="-","-","O")) -> O | S2: =IF(S3<=Premissas!$C$74,"C",IF(S3="-","-","O")) -> O | T2: =IF(T3<=Premissas!$C$74,"C",IF(T3="-","-","O")) -> O | U2: =IF(U3<=Premissas!$C$74,"C",IF(U3="-","-","O")) -> O | V2: =IF(V3<=Premissas!$C$74,"C",IF(V3="-","-","O")) -> O | W2: =IF(W3<=Premissas!$C$74,"C",IF(W3="-","-","O")) -> O | X2: =IF(X3<=Premissas!$C$74,"C",IF(X3="-","-","O")) -> O | Y2: =IF(Y3<=Premissas!$C$74,"C",IF(Y3="-","-","O")) -> O | Z2: =IF(Z3<=Premissas!$C$74,"C",IF(Z3="-","-","O")) -> O | AA2: =IF(AA3<=Premissas!$C$74,"C",IF(AA3="-","-","O")) -> O | AB2: =IF(AB3<=Premissas!$C$74,"C",IF(AB3="-","-","O")) -> O | AC2: =IF(AC3<=Premissas!$C$74,"C",IF(AC3="-","-","O")) -> O | AD2: =IF(AD3<=Premissas!$C$74,"C",IF(AD3="-","-","O")) -> O | AE2: =IF(AE3<=Premissas!$C$74,"C",IF(AE3="-","-","O")) -> O | AF2: =IF(AF3<=Premissas!$C$74,"C",IF(AF3="-","-","O")) -> O | AG2: =IF(AG3<=Premissas!$C$74,"C",IF(AG3="-","-","O")) -> O | AH2: =IF(AH3<=Premissas!$C$74,"C",IF(AH3="-","-","O")) -> - | AI2: =IF(AI3<=Premissas!$C$74,"C",IF(AI3="-","-","O")) -> - | AJ2: =IF(AJ3<=Premissas!$C$74,"C",IF(AJ3="-","-","O")) -> - | AK2: =IF(AK3<=Premissas!$C$74,"C",IF(AK3="-","-","O")) -> - | AL2: =IF(AL3<=Premissas!$C$74,"C",IF(AL3="-","-","O")) -> - | AM2: =IF(AM3<=Premissas!$C$74,"C",IF(AM3="-","-","O")) -> - | AN2: =IF(AN3<=Premissas!$C$74,"C",IF(AN3="-","-","O")) -> - | AO2: =IF(AO3<=Premissas!$C$74,"C",IF(AO3="-","-","O")) -> - | AP2: =IF(AP3<=Premissas!$C$74,"C",IF(AP3="-","-","O")) -> - | AQ2: =IF(AQ3<=Premissas!$C$74,"C",IF(AQ3="-","-","O")) -> - | AR2: =IF(AR3<=Premissas!$C$74,"C",IF(AR3="-","-","O")) -> - | AS2: =IF(AS3<=Premissas!$C$74,"C",IF(AS3="-","-","O")) -> - | AT2: =IF(AT3<=Premissas!$C$74,"C",IF(AT3="-","-","O")) -> - | AU2: =IF(AU3<=Premissas!$C$74,"C",IF(AU3="-","-","O")) -> - | AV2: =IF(AV3<=Premissas!$C$74,"C",IF(AV3="-","-","O")) -> - | AW2: =IF(AW3<=Premissas!$C$74,"C",IF(AW3="-","-","O")) -> - | AX2: =IF(AX3<=Premissas!$C$74,"C",IF(AX3="-","-","O")) -> - | AY2: =IF(AY3<=Premissas!$C$74,"C",IF(AY3="-","-","O")) -> - | AZ2: =IF(AZ3<=Premissas!$C$74,"C",IF(AZ3="-","-","O")) -> - | BA2: =IF(BA3<=Premissas!$C$74,"C",IF(BA3="-","-","O")) -> - | BB2: =IF(BB3<=Premissas!$C$74,"C",IF(BB3="-","-","O")) -> - | BC2: =IF(BC3<=Premissas!$C$74,"C",IF(BC3="-","-","O")) -> - | BD2: =IF(BD3<=Premissas!$C$74,"C",IF(BD3="-","-","O")) -> - | BE2: =IF(BE3<=Premissas!$C$74,"C",IF(BE3="-","-","O")) -> - | BF2: =IF(BF3<=Premissas!$C$74,"C",IF(BF3="-","-","O")) -> - | BG2: =IF(BG3<=Premissas!$C$74,"C",IF(BG3="-","-","O")) -> - | BH2: =IF(BH3<=Premissas!$C$74,"C",IF(BH3="-","-","O")) -> - | BI2: =IF(BI3<=Premissas!$C$74,"C",IF(BI3="-","-","O")) -> - | BJ2: =IF(BJ3<=Premissas!$C$74,"C",IF(BJ3="-","-","O")) -> - | BK2: =IF(BK3<=Premissas!$C$74,"C",IF(BK3="-","-","O")) -> - | BL2: =IF(BL3<=Premissas!$C$74,"C",IF(BL3="-","-","O")) -> - | BM2: =IF(BM3<=Premissas!$C$74,"C",IF(BM3="-","-","O")) -> - | BN2: =IF(BN3<=Premissas!$C$74,"C",IF(BN3="-","-","O")) -> - | BO2: =IF(BO3<=Premissas!$C$74,"C",IF(BO3="-","-","O")) -> - | BP2: =IF(BP3<=Premissas!$C$74,"C",IF(BP3="-","-","O")) -> - | BQ2: =IF(BQ3<=Premissas!$C$74,"C",IF(BQ3="-","-","O")) -> - | BR2: =IF(BR3<=Premissas!$C$74,"C",IF(BR3="-","-","O")) -> - | BS2: =IF(BS3<=Premissas!$C$74,"C",IF(BS3="-","-","O")) -> - | BT2: =IF(BT3<=Premissas!$C$74,"C",IF(BT3="-","-","O")) -> - | BU2: =IF(BU3<=Premissas!$C$74,"C",IF(BU3="-","-","O")) -> - | BV2: =IF(BV3<=Premissas!$C$74,"C",IF(BV3="-","-","O")) -> - | BW2: =IF(BW3<=Premissas!$C$74,"C",IF(BW3="-","-","O")) -> - | BX2: =IF(BX3<=Premissas!$C$74,"C",IF(BX3="-","-","O")) -> - | BY2: =IF(BY3<=Premissas!$C$74,"C",IF(BY3="-","-","O")) -> - | BZ2: =IF(BZ3<=Premissas!$C$74,"C",IF(BZ3="-","-","O")) -> - | CA2: =IF(CA3<=Premissas!$C$74,"C",IF(CA3="-","-","O")) -> - | CB2: =IF(CB3<=Premissas!$C$74,"C",IF(CB3="-","-","O")) -> - | CC2: =IF(CC3<=Premissas!$C$74,"C",IF(CC3="-","-","O")) -> - | CD2: =IF(CD3<=Premissas!$C$74,"C",IF(CD3="-","-","O")) -> - | CE2: =IF(CE3<=Premissas!$C$74,"C",IF(CE3="-","-","O")) -> - | CF2: =IF(CF3<=Premissas!$C$74,"C",IF(CF3="-","-","O")) -> - | CG2: =IF(CG3<=Premissas!$C$74,"C",IF(CG3="-","-","O")) -> - | CH2: =IF(CH3<=Premissas!$C$74,"C",IF(CH3="-","-","O")) -> - | CI2: =IF(CI3<=Premissas!$C$74,"C",IF(CI3="-","-","O")) -> - | CJ2: =IF(CJ3<=Premissas!$C$74,"C",IF(CJ3="-","-","O")) -> - | CK2: =IF(CK3<=Premissas!$C$74,"C",IF(CK3="-","-","O")) -> - | CL2: =IF(CL3<=Premissas!$C$74,"C",IF(CL3="-","-","O")) -> - | CM2: =IF(CM3<=Premissas!$C$74,"C",IF(CM3="-","-","O")) -> - | CN2: =IF(CN3<=Premissas!$C$74,"C",IF(CN3="-","-","O")) -> - | CO2: =IF(CO3<=Premissas!$C$74,"C",IF(CO3="-","-","O")) -> - | CP2: =IF(CP3<=Premissas!$C$74,"C",IF(CP3="-","-","O")) -> - | CQ2: =IF(CQ3<=Premissas!$C$74,"C",IF(CQ3="-","-","O")) -> - | CR2: =IF(CR3<=Premissas!$C$74,"C",IF(CR3="-","-","O")) -> - | CS2: =IF(CS3<=Premissas!$C$74,"C",IF(CS3="-","-","O")) -> - | CT2: =IF(CT3<=Premissas!$C$74,"C",IF(CT3="-","-","O")) -> - | CU2: =IF(CU3<=Premissas!$C$74,"C",IF(CU3="-","-","O")) -> - | CV2: =IF(CV3<=Premissas!$C$74,"C",IF(CV3="-","-","O")) -> - | CW2: =IF(CW3<=Premissas!$C$74,"C",IF(CW3="-","-","O")) -> - | CX2: =IF(CX3<=Premissas!$C$74,"C",IF(CX3="-","-","O")) -> - | CY2: =IF(CY3<=Premissas!$C$74,"C",IF(CY3="-","-","O")) -> - | CZ2: =IF(CZ3<=Premissas!$C$74,"C",IF(CZ3="-","-","O")) -> - | DA2: =IF(DA3<=Premissas!$C$74,"C",IF(DA3="-","-","O")) -> - | DB2: =IF(DB3<=Premissas!$C$74,"C",IF(DB3="-","-","O")) -> - | DC2: =IF(DC3<=Premissas!$C$74,"C",IF(DC3="-","-","O")) -> - | DD2: =IF(DD3<=Premissas!$C$74,"C",IF(DD3="-","-","O")) -> - | DE2: =IF(DE3<=Premissas!$C$74,"C",IF(DE3="-","-","O")) -> - | DF2: =IF(DF3<=Premissas!$C$74,"C",IF(DF3="-","-","O")) -> - | DG2: =IF(DG3<=Premissas!$C$74,"C",IF(DG3="-","-","O")) -> - | DH2: =IF(DH3<=Premissas!$C$74,"C",IF(DH3="-","-","O")) -> - | DI2: =IF(DI3<=Premissas!$C$74,"C",IF(DI3="-","-","O")) -> - | DJ2: =IF(DJ3<=Premissas!$C$74,"C",IF(DJ3="-","-","O")) -> - | DK2: =IF(DK3<=Premissas!$C$74,"C",IF(DK3="-","-","O")) -> - | DL2: =IF(DL3<=Premissas!$C$74,"C",IF(DL3="-","-","O")) -> - | DM2: =IF(DM3<=Premissas!$C$74,"C",IF(DM3="-","-","O")) -> - | DN2: =IF(DN3<=Premissas!$C$74,"C",IF(DN3="-","-","O")) -> - | DO2: =IF(DO3<=Premissas!$C$74,"C",IF(DO3="-","-","O")) -> - | DP2: =IF(DP3<=Premissas!$C$74,"C",IF(DP3="-","-","O")) -> - | DQ2: =IF(DQ3<=Premissas!$C$74,"C",IF(DQ3="-","-","O")) -> - | DR2: =IF(DR3<=Premissas!$C$74,"C",IF(DR3="-","-","O")) -> - | DS2: =IF(DS3<=Premissas!$C$74,"C",IF(DS3="-","-","O")) -> - | DT2: =IF(DT3<=Premissas!$C$74,"C",IF(DT3="-","-","O")) -> - | DU2: =IF(DU3<=Premissas!$C$74,"C",IF(DU3="-","-","O")) -> - | DV2: =IF(DV3<=Premissas!$C$74,"C",IF(DV3="-","-","O")) -> - | DW2: =IF(DW3<=Premissas!$C$74,"C",IF(DW3="-","-","O")) -> - | DX2: =IF(DX3<=Premissas!$C$74,"C",IF(DX3="-","-","O")) -> - | DY2: =IF(DY3<=Premissas!$C$74,"C",IF(DY3="-","-","O")) -> - | DZ2: =IF(DZ3<=Premissas!$C$74,"C",IF(DZ3="-","-","O")) -> - | EA2: =IF(EA3<=Premissas!$C$74,"C",IF(EA3="-","-","O")) -> - | EB2: =IF(EB3<=Premissas!$C$74,"C",IF(EB3="-","-","O")) -> - | EC2: =IF(EC3<=Premissas!$C$74,"C",IF(EC3="-","-","O")) -> - | ED2: =IF(ED3<=Premissas!$C$74,"C",IF(ED3="-","-","O")) -> - | EE2: =IF(EE3<=Premissas!$C$74,"C",IF(EE3="-","-","O")) -> - | EF2: =IF(EF3<=Premissas!$C$74,"C",IF(EF3="-","-","O")) -> - | EG2: =IF(EG3<=Premissas!$C$74,"C",IF(EG3="-","-","O")) -> - | EH2: =IF(EH3<=Premissas!$C$74,"C",IF(EH3="-","-","O")) -> - | EI2: =IF(EI3<=Premissas!$C$74,"C",IF(EI3="-","-","O")) -> - | EJ2: =IF(EJ3<=Premissas!$C$74,"C",IF(EJ3="-","-","O")) -> - | EK2: =IF(EK3<=Premissas!$C$74,"C",IF(EK3="-","-","O")) -> - | EL2: =IF(EL3<=Premissas!$C$74,"C",IF(EL3="-","-","O")) -> - | EM2: =IF(EM3<=Premissas!$C$74,"C",IF(EM3="-","-","O")) -> - | EN2: =IF(EN3<=Premissas!$C$74,"C",IF(EN3="-","-","O")) -> - | EO2: =IF(EO3<=Premissas!$C$74,"C",IF(EO3="-","-","O")) -> - | EP2: =IF(EP3<=Premissas!$C$74,"C",IF(EP3="-","-","O")) -> - | EQ2: =IF(EQ3<=Premissas!$C$74,"C",IF(EQ3="-","-","O")) -> - | ER2: =IF(ER3<=Premissas!$C$74,"C",IF(ER3="-","-","O")) -> - | ES2: =IF(ES3<=Premissas!$C$74,"C",IF(ES3="-","-","O")) -> - | ET2: =IF(ET3<=Premissas!$C$74,"C",IF(ET3="-","-","O")) -> - | EU2: =IF(EU3<=Premissas!$C$74,"C",IF(EU3="-","-","O")) -> - | EV2: =IF(EV3<=Premissas!$C$74,"C",IF(EV3="-","-","O")) -> - | EW2: =IF(EW3<=Premissas!$C$74,"C",IF(EW3="-","-","O")) -> - | EX2: =IF(EX3<=Premissas!$C$74,"C",IF(EX3="-","-","O")) -> - | EY2: =IF(EY3<=Premissas!$C$74,"C",IF(EY3="-","-","O")) -> - | EZ2: =IF(EZ3<=Premissas!$C$74,"C",IF(EZ3="-","-","O")) -> - | FA2: =IF(FA3<=Premissas!$C$74,"C",IF(FA3="-","-","O")) -> - | FB2: =IF(FB3<=Premissas!$C$74,"C",IF(FB3="-","-","O")) -> - | FC2: =IF(FC3<=Premissas!$C$74,"C",IF(FC3="-","-","O")) -> - | FD2: =IF(FD3<=Premissas!$C$74,"C",IF(FD3="-","-","O")) -> - | FE2: =IF(FE3<=Premissas!$C$74,"C",IF(FE3="-","-","O")) -> - | FF2: =IF(FF3<=Premissas!$C$74,"C",IF(FF3="-","-","O")) -> - | FG2: =IF(FG3<=Premissas!$C$74,"C",IF(FG3="-","-","O")) -> - | FH2: =IF(FH3<=Premissas!$C$74,"C",IF(FH3="-","-","O")) -> - | FI2: =IF(FI3<=Premissas!$C$74,"C",IF(FI3="-","-","O")) -> - | FJ2: =IF(FJ3<=Premissas!$C$74,"C",IF(FJ3="-","-","O")) -> - | FK2: =IF(FK3<=Premissas!$C$74,"C",IF(FK3="-","-","O")) -> - | FL2: =IF(FL3<=Premissas!$C$74,"C",IF(FL3="-","-","O")) -> - | FM2: =IF(FM3<=Premissas!$C$74,"C",IF(FM3="-","-","O")) -> - | FN2: =IF(FN3<=Premissas!$C$74,"C",IF(FN3="-","-","O")) -> - | FO2: =IF(FO3<=Premissas!$C$74,"C",IF(FO3="-","-","O")) -> - | FP2: =IF(FP3<=Premissas!$C$74,"C",IF(FP3="-","-","O")) -> - | FQ2: =IF(FQ3<=Premissas!$C$74,"C",IF(FQ3="-","-","O")) -> - | FR2: =IF(FR3<=Premissas!$C$74,"C",IF(FR3="-","-","O")) -> - | FS2: =IF(FS3<=Premissas!$C$74,"C",IF(FS3="-","-","O")) -> - | FT2: =IF(FT3<=Premissas!$C$74,"C",IF(FT3="-","-","O")) -> - | FU2: =IF(FU3<=Premissas!$C$74,"C",IF(FU3="-","-","O")) -> - | FV2: =IF(FV3<=Premissas!$C$74,"C",IF(FV3="-","-","O")) -> - | FW2: =IF(FW3<=Premissas!$C$74,"C",IF(FW3="-","-","O")) -> - | FX2: =IF(FX3<=Premissas!$C$74,"C",IF(FX3="-","-","O")) -> - | FY2: =IF(FY3<=Premissas!$C$74,"C",IF(FY3="-","-","O")) -> - | FZ2: =IF(FZ3<=Premissas!$C$74,"C",IF(FZ3="-","-","O")) -> - | GA2: =IF(GA3<=Premissas!$C$74,"C",IF(GA3="-","-","O")) -> - | GB2: =IF(GB3<=Premissas!$C$74,"C",IF(GB3="-","-","O")) -> - | GC2: =IF(GC3<=Premissas!$C$74,"C",IF(GC3="-","-","O")) -> - | GD2: =IF(GD3<=Premissas!$C$74,"C",IF(GD3="-","-","O")) -> - | GE2: =IF(GE3<=Premissas!$C$74,"C",IF(GE3="-","-","O")) -> - | GF2: =IF(GF3<=Premissas!$C$74,"C",IF(GF3="-","-","O")) -> - | GG2: =IF(GG3<=Premissas!$C$74,"C",IF(GG3="-","-","O")) -> - | GH2: =IF(GH3<=Premissas!$C$74,"C",IF(GH3="-","-","O")) -> - | GI2: =IF(GI3<=Premissas!$C$74,"C",IF(GI3="-","-","O")) -> - | GJ2: =IF(GJ3<=Premissas!$C$74,"C",IF(GJ3="-","-","O")) -> - | GK2: =IF(GK3<=Premissas!$C$74,"C",IF(GK3="-","-","O")) -> - | GL2: =IF(GL3<=Premissas!$C$74,"C",IF(GL3="-","-","O")) -> - | GM2: =IF(GM3<=Premissas!$C$74,"C",IF(GM3="-","-","O")) -> - | GN2: =IF(GN3<=Premissas!$C$74,"C",IF(GN3="-","-","O")) -> - | GO2: =IF(GO3<=Premissas!$C$74,"C",IF(GO3="-","-","O")) -> - | GP2: =IF(GP3<=Premissas!$C$74,"C",IF(GP3="-","-","O")) -> - | GQ2: =IF(GQ3<=Premissas!$C$74,"C",IF(GQ3="-","-","O")) -> - | GR2: =IF(GR3<=Premissas!$C$74,"C",IF(GR3="-","-","O")) -> - | GS2: =IF(GS3<=Premissas!$C$74,"C",IF(GS3="-","-","O")) -> - | GT2: =IF(GT3<=Premissas!$C$74,"C",IF(GT3="-","-","O")) -> - | GU2: =IF(GU3<=Premissas!$C$74,"C",IF(GU3="-","-","O")) -> - | GV2: =IF(GV3<=Premissas!$C$74,"C",IF(GV3="-","-","O")) -> - | GW2: =IF(GW3<=Premissas!$C$74,"C",IF(GW3="-","-","O")) -> - | GX2: =IF(GX3<=Premissas!$C$74,"C",IF(GX3="-","-","O")) -> - | GY2: =IF(GY3<=Premissas!$C$74,"C",IF(GY3="-","-","O")) -> - | GZ2: =IF(GZ3<=Premissas!$C$74,"C",IF(GZ3="-","-","O")) -> - | HA2: =IF(HA3<=Premissas!$C$74,"C",IF(HA3="-","-","O")) -> - | HB2: =IF(HB3<=Premissas!$C$74,"C",IF(HB3="-","-","O")) -> - | HC2: =IF(HC3<=Premissas!$C$74,"C",IF(HC3="-","-","O")) -> - | HD2: =IF(HD3<=Premissas!$C$74,"C",IF(HD3="-","-","O")) -> - | HE2: =IF(HE3<=Premissas!$C$74,"C",IF(HE3="-","-","O")) -> - | HF2: =IF(HF3<=Premissas!$C$74,"C",IF(HF3="-","-","O")) -> - | HG2: =IF(HG3<=Premissas!$C$74,"C",IF(HG3="-","-","O")) -> - | HH2: =IF(HH3<=Premissas!$C$74,"C",IF(HH3="-","-","O")) -> - | HI2: =IF(HI3<=Premissas!$C$74,"C",IF(HI3="-","-","O")) -> - | HJ2: =IF(HJ3<=Premissas!$C$74,"C",IF(HJ3="-","-","O")) -> - | HK2: =IF(HK3<=Premissas!$C$74,"C",IF(HK3="-","-","O")) -> - | HL2: =IF(HL3<=Premissas!$C$74,"C",IF(HL3="-","-","O")) -> - | HM2: =IF(HM3<=Premissas!$C$74,"C",IF(HM3="-","-","O")) -> - | HN2: =IF(HN3<=Premissas!$C$74,"C",IF(HN3="-","-","O")) -> - | HO2: =IF(HO3<=Premissas!$C$74,"C",IF(HO3="-","-","O")) -> - | HP2: =IF(HP3<=Premissas!$C$74,"C",IF(HP3="-","-","O")) -> - | HQ2: =IF(HQ3<=Premissas!$C$74,"C",IF(HQ3="-","-","O")) -> - | HR2: =IF(HR3<=Premissas!$C$74,"C",IF(HR3="-","-","O")) -> - | HS2: =IF(HS3<=Premissas!$C$74,"C",IF(HS3="-","-","O")) -> - | HT2: =IF(HT3<=Premissas!$C$74,"C",IF(HT3="-","-","O")) -> - | HU2: =IF(HU3<=Premissas!$C$74,"C",IF(HU3="-","-","O")) -> - | HV2: =IF(HV3<=Premissas!$C$74,"C",IF(HV3="-","-","O")) -> - | HW2: =IF(HW3<=Premissas!$C$74,"C",IF(HW3="-","-","O")) -> - | HX2: =IF(HX3<=Premissas!$C$74,"C",IF(HX3="-","-","O")) -> - | HY2: =IF(HY3<=Premissas!$C$74,"C",IF(HY3="-","-","O")) -> - | HZ2: =IF(HZ3<=Premissas!$C$74,"C",IF(HZ3="-","-","O")) -> - | IA2: =IF(IA3<=Premissas!$C$74,"C",IF(IA3="-","-","O")) -> - | IB2: =IF(IB3<=Premissas!$C$74,"C",IF(IB3="-","-","O")) -> - | IC2: =IF(IC3<=Premissas!$C$74,"C",IF(IC3="-","-","O")) -> - | ID2: =IF(ID3<=Premissas!$C$74,"C",IF(ID3="-","-","O")) -> - | IE2: =IF(IE3<=Premissas!$C$74,"C",IF(IE3="-","-","O")) -> - | IF2: =IF(IF3<=Premissas!$C$74,"C",IF(IF3="-","-","O")) -> - | IG2: =IF(IG3<=Premissas!$C$74,"C",IF(IG3="-","-","O")) -> - | IH2: =IF(IH3<=Premissas!$C$74,"C",IF(IH3="-","-","O")) -> - | II2: =IF(II3<=Premissas!$C$74,"C",IF(II3="-","-","O")) -> - | IJ2: =IF(IJ3<=Premissas!$C$74,"C",IF(IJ3="-","-","O")) -> - | IK2: =IF(IK3<=Premissas!$C$74,"C",IF(IK3="-","-","O")) -> - | IL2: =IF(IL3<=Premissas!$C$74,"C",IF(IL3="-","-","O")) -> - | IM2: =IF(IM3<=Premissas!$C$74,"C",IF(IM3="-","-","O")) -> - | IN2: =IF(IN3<=Premissas!$C$74,"C",IF(IN3="-","-","O")) -> - | IO2: =IF(IO3<=Premissas!$C$74,"C",IF(IO3="-","-","O")) -> - | IP2: =IF(IP3<=Premissas!$C$74,"C",IF(IP3="-","-","O")) -> - | IQ2: =IF(IQ3<=Premissas!$C$74,"C",IF(IQ3="-","-","O")) -> - | IR2: =IF(IR3<=Premissas!$C$74,"C",IF(IR3="-","-","O")) -> - | IS2: =IF(IS3<=Premissas!$C$74,"C",IF(IS3="-","-","O")) -> - | IT2: =IF(IT3<=Premissas!$C$74,"C",IF(IT3="-","-","O")) -> - | IU2: =IF(IU3<=Premissas!$C$74,"C",IF(IU3="-","-","O")) -> - | IV2: =IF(IV3<=Premissas!$C$74,"C",IF(IV3="-","-","O")) -> - | IW2: =IF(IW3<=Premissas!$C$74,"C",IF(IW3="-","-","O")) -> - | IX2: =IF(IX3<=Premissas!$C$74,"C",IF(IX3="-","-","O")) -> - | IY2: =IF(IY3<=Premissas!$C$74,"C",IF(IY3="-","-","O")) -> - | IZ2: =IF(IZ3<=Premissas!$C$74,"C",IF(IZ3="-","-","O")) -> - | JA2: =IF(JA3<=Premissas!$C$74,"C",IF(JA3="-","-","O")) -> - | JB2: =IF(JB3<=Premissas!$C$74,"C",IF(JB3="-","-","O")) -> - | JC2: =IF(JC3<=Premissas!$C$74,"C",IF(JC3="-","-","O")) -> - | JD2: =IF(JD3<=Premissas!$C$74,"C",IF(JD3="-","-","O")) -> - | JE2: =IF(JE3<=Premissas!$C$74,"C",IF(JE3="-","-","O")) -> - | JF2: =IF(JF3<=Premissas!$C$74,"C",IF(JF3="-","-","O")) -> - | JG2: =IF(JG3<=Premissas!$C$74,"C",IF(JG3="-","-","O")) -> - | JH2: =IF(JH3<=Premissas!$C$74,"C",IF(JH3="-","-","O")) -> - | JI2: =IF(JI3<=Premissas!$C$74,"C",IF(JI3="-","-","O")) -> - | JJ2: =IF(JJ3<=Premissas!$C$74,"C",IF(JJ3="-","-","O")) -> - | JK2: =IF(JK3<=Premissas!$C$74,"C",IF(JK3="-","-","O")) -> - | JL2: =IF(JL3<=Premissas!$C$74,"C",IF(JL3="-","-","O")) -> - | JM2: =IF(JM3<=Premissas!$C$74,"C",IF(JM3="-","-","O")) -> - | JN2: =IF(JN3<=Premissas!$C$74,"C",IF(JN3="-","-","O")) -> - | JO2: =IF(JO3<=Premissas!$C$74,"C",IF(JO3="-","-","O")) -> - | JP2: =IF(JP3<=Premissas!$C$74,"C",IF(JP3="-","-","O")) -> - | JQ2: =IF(JQ3<=Premissas!$C$74,"C",IF(JQ3="-","-","O")) -> - | JR2: =IF(JR3<=Premissas!$C$74,"C",IF(JR3="-","-","O")) -> - | JS2: =IF(JS3<=Premissas!$C$74,"C",IF(JS3="-","-","O")) -> - | JT2: =IF(JT3<=Premissas!$C$74,"C",IF(JT3="-","-","O")) -> - | JU2: =IF(JU3<=Premissas!$C$74,"C",IF(JU3="-","-","O")) -> - | JV2: =IF(JV3<=Premissas!$C$74,"C",IF(JV3="-","-","O")) -> - | JW2: =IF(JW3<=Premissas!$C$74,"C",IF(JW3="-","-","O")) -> - | JX2: =IF(JX3<=Premissas!$C$74,"C",IF(JX3="-","-","O")) -> - | JY2: =IF(JY3<=Premissas!$C$74,"C",IF(JY3="-","-","O")) -> - | JZ2: =IF(JZ3<=Premissas!$C$74,"C",IF(JZ3="-","-","O")) -> - | KA2: =IF(KA3<=Premissas!$C$74,"C",IF(KA3="-","-","O")) -> - | KB2: =IF(KB3<=Premissas!$C$74,"C",IF(KB3="-","-","O")) -> - | KC2: =IF(KC3<=Premissas!$C$74,"C",IF(KC3="-","-","O")) -> - | KD2: =IF(KD3<=Premissas!$C$74,"C",IF(KD3="-","-","O")) -> - | KE2: =IF(KE3<=Premissas!$C$74,"C",IF(KE3="-","-","O")) -> - | KF2: =IF(KF3<=Premissas!$C$74,"C",IF(KF3="-","-","O")) -> - | KG2: =IF(KG3<=Premissas!$C$74,"C",IF(KG3="-","-","O")) -> - | KH2: =IF(KH3<=Premissas!$C$74,"C",IF(KH3="-","-","O")) -> - | KI2: =IF(KI3<=Premissas!$C$74,"C",IF(KI3="-","-","O")) -> - | KJ2: =IF(KJ3<=Premissas!$C$74,"C",IF(KJ3="-","-","O")) -> - | KK2: =IF(KK3<=Premissas!$C$74,"C",IF(KK3="-","-","O")) -> - | KL2: =IF(KL3<=Premissas!$C$74,"C",IF(KL3="-","-","O")) -> - | KM2: =IF(KM3<=Premissas!$C$74,"C",IF(KM3="-","-","O")) -> - | KN2: =IF(KN3<=Premissas!$C$74,"C",IF(KN3="-","-","O")) -> - | KO2: =IF(KO3<=Premissas!$C$74,"C",IF(KO3="-","-","O")) -> - | KP2: =IF(KP3<=Premissas!$C$74,"C",IF(KP3="-","-","O")) -> - | KQ2: =IF(KQ3<=Premissas!$C$74,"C",IF(KQ3="-","-","O")) -> - | KR2: =IF(KR3<=Premissas!$C$74,"C",IF(KR3="-","-","O")) -> - | KS2: =IF(KS3<=Premissas!$C$74,"C",IF(KS3="-","-","O")) -> - | KT2: =IF(KT3<=Premissas!$C$74,"C",IF(KT3="-","-","O")) -> - | KU2: =IF(KU3<=Premissas!$C$74,"C",IF(KU3="-","-","O")) -> - | KV2: =IF(KV3<=Premissas!$C$74,"C",IF(KV3="-","-","O")) -> - | KW2: =IF(KW3<=Premissas!$C$74,"C",IF(KW3="-","-","O")) -> - | KX2: =IF(KX3<=Premissas!$C$74,"C",IF(KX3="-","-","O")) -> - | KY2: =IF(KY3<=Premissas!$C$74,"C",IF(KY3="-","-","O")) -> - | KZ2: =IF(KZ3<=Premissas!$C$74,"C",IF(KZ3="-","-","O")) -> - | LA2: =IF(LA3<=Premissas!$C$74,"C",IF(LA3="-","-","O")) -> - | LB2: =IF(LB3<=Premissas!$C$74,"C",IF(LB3="-","-","O")) -> - | LC2: =IF(LC3<=Premissas!$C$74,"C",IF(LC3="-","-","O")) -> - | LD2: =IF(LD3<=Premissas!$C$74,"C",IF(LD3="-","-","O")) -> - | LE2: =IF(LE3<=Premissas!$C$74,"C",IF(LE3="-","-","O")) -> - | LF2: =IF(LF3<=Premissas!$C$74,"C",IF(LF3="-","-","O")) -> - | LG2: =IF(LG3<=Premissas!$C$74,"C",IF(LG3="-","-","O")) -> - | LH2: =IF(LH3<=Premissas!$C$74,"C",IF(LH3="-","-","O")) -> - | LI2: =IF(LI3<=Premissas!$C$74,"C",IF(LI3="-","-","O")) -> - | LJ2: =IF(LJ3<=Premissas!$C$74,"C",IF(LJ3="-","-","O")) -> - | LK2: =IF(LK3<=Premissas!$C$74,"C",IF(LK3="-","-","O")) -> - | LL2: =IF(LL3<=Premissas!$C$74,"C",IF(LL3="-","-","O")) -> - | LM2: =IF(LM3<=Premissas!$C$74,"C",IF(LM3="-","-","O")) -> - | LN2: =IF(LN3<=Premissas!$C$74,"C",IF(LN3="-","-","O")) -> - | LO2: =IF(LO3<=Premissas!$C$74,"C",IF(LO3="-","-","O")) -> - | LP2: =IF(LP3<=Premissas!$C$74,"C",IF(LP3="-","-","O")) -> - | LQ2: =IF(LQ3<=Premissas!$C$74,"C",IF(LQ3="-","-","O")) -> - | LR2: =IF(LR3<=Premissas!$C$74,"C",IF(LR3="-","-","O")) -> - | LS2: =IF(LS3<=Premissas!$C$74,"C",IF(LS3="-","-","O")) -> - | LT2: =IF(LT3<=Premissas!$C$74,"C",IF(LT3="-","-","O")) -> - | LU2: =IF(LU3<=Premissas!$C$74,"C",IF(LU3="-","-","O")) -> - | LV2: =IF(LV3<=Premissas!$C$74,"C",IF(LV3="-","-","O")) -> - | LW2: =IF(LW3<=Premissas!$C$74,"C",IF(LW3="-","-","O")) -> - | LX2: =IF(LX3<=Premissas!$C$74,"C",IF(LX3="-","-","O")) -> - | LY2: =IF(LY3<=Premissas!$C$74,"C",IF(LY3="-","-","O")) -> - | LZ2: =IF(LZ3<=Premissas!$C$74,"C",IF(LZ3="-","-","O")) -> - | MA2: =IF(MA3<=Premissas!$C$74,"C",IF(MA3="-","-","O")) -> - | MB2: =IF(MB3<=Premissas!$C$74,"C",IF(MB3="-","-","O")) -> - | MC2: =IF(MC3<=Premissas!$C$74,"C",IF(MC3="-","-","O")) -> - | MD2: =IF(MD3<=Premissas!$C$74,"C",IF(MD3="-","-","O")) -> - | ME2: =IF(ME3<=Premissas!$C$74,"C",IF(ME3="-","-","O")) -> - | MF2: =IF(MF3<=Premissas!$C$74,"C",IF(MF3="-","-","O")) -> - | MG2: =IF(MG3<=Premissas!$C$74,"C",IF(MG3="-","-","O")) -> - | MH2: =IF(MH3<=Premissas!$C$74,"C",IF(MH3="-","-","O")) -> - | MI2: =IF(MI3<=Premissas!$C$74,"C",IF(MI3="-","-","O")) -> - | MJ2: =IF(MJ3<=Premissas!$C$74,"C",IF(MJ3="-","-","O")) -> - | MK2: =IF(MK3<=Premissas!$C$74,"C",IF(MK3="-","-","O")) -> - | ML2: =IF(ML3<=Premissas!$C$74,"C",IF(ML3="-","-","O")) -> - | MM2: =IF(MM3<=Premissas!$C$74,"C",IF(MM3="-","-","O")) -> - | MN2: =IF(MN3<=Premissas!$C$74,"C",IF(MN3="-","-","O")) -> - | MO2: =IF(MO3<=Premissas!$C$74,"C",IF(MO3="-","-","O")) -> - | MP2: =IF(MP3<=Premissas!$C$74,"C",IF(MP3="-","-","O")) -> - | MQ2: =IF(MQ3<=Premissas!$C$74,"C",IF(MQ3="-","-","O")) -> - | MR2: =IF(MR3<=Premissas!$C$74,"C",IF(MR3="-","-","O")) -> - | MS2: =IF(MS3<=Premissas!$C$74,"C",IF(MS3="-","-","O")) -> - | MT2: =IF(MT3<=Premissas!$C$74,"C",IF(MT3="-","-","O")) -> - | MU2: =IF(MU3<=Premissas!$C$74,"C",IF(MU3="-","-","O")) -> - | MV2: =IF(MV3<=Premissas!$C$74,"C",IF(MV3="-","-","O")) -> - | MW2: =IF(MW3<=Premissas!$C$74,"C",IF(MW3="-","-","O")) -> - | MX2: =IF(MX3<=Premissas!$C$74,"C",IF(MX3="-","-","O")) -> - | MY2: =IF(MY3<=Premissas!$C$74,"C",IF(MY3="-","-","O")) -> - | MZ2: =IF(MZ3<=Premissas!$C$74,"C",IF(MZ3="-","-","O")) -> - | NA2: =IF(NA3<=Premissas!$C$74,"C",IF(NA3="-","-","O")) -> - | NB2: =IF(NB3<=Premissas!$C$74,"C",IF(NB3="-","-","O")) -> - | NC2: =IF(NC3<=Premissas!$C$74,"C",IF(NC3="-","-","O")) -> - | ND2: =IF(ND3<=Premissas!$C$74,"C",IF(ND3="-","-","O")) -> - | NE2: =IF(NE3<=Premissas!$C$74,"C",IF(NE3="-","-","O")) -> - | NF2: =IF(NF3<=Premissas!$C$74,"C",IF(NF3="-","-","O")) -> - | NG2: =IF(NG3<=Premissas!$C$74,"C",IF(NG3="-","-","O")) -> - | NH2: =IF(NH3<=Premissas!$C$74,"C",IF(NH3="-","-","O")) -> - | NI2: =IF(NI3<=Premissas!$C$74,"C",IF(NI3="-","-","O")) -> - | NJ2: =IF(NJ3<=Premissas!$C$74,"C",IF(NJ3="-","-","O")) -> - | NK2: =IF(NK3<=Premissas!$C$74,"C",IF(NK3="-","-","O")) -> - | NL2: =IF(NL3<=Premissas!$C$74,"C",IF(NL3="-","-","O")) -> - | NM2: =IF(NM3<=Premissas!$C$74,"C",IF(NM3="-","-","O")) -> - | NN2: =IF(NN3<=Premissas!$C$74,"C",IF(NN3="-","-","O")) -> - | NO2: =IF(NO3<=Premissas!$C$74,"C",IF(NO3="-","-","O")) -> - | NP2: =IF(NP3<=Premissas!$C$74,"C",IF(NP3="-","-","O")) -> - | NQ2: =IF(NQ3<=Premissas!$C$74,"C",IF(NQ3="-","-","O")) -> - | NR2: =IF(NR3<=Premissas!$C$74,"C",IF(NR3="-","-","O")) -> - | NS2: =IF(NS3<=Premissas!$C$74,"C",IF(NS3="-","-","O")) -> - | NT2: =IF(NT3<=Premissas!$C$74,"C",IF(NT3="-","-","O")) -> - | NU2: =IF(NU3<=Premissas!$C$74,"C",IF(NU3="-","-","O")) -> - | NV2: =IF(NV3<=Premissas!$C$74,"C",IF(NV3="-","-","O")) -> - | NW2: =IF(NW3<=Premissas!$C$74,"C",IF(NW3="-","-","O")) -> - | NX2: =IF(NX3<=Premissas!$C$74,"C",IF(NX3="-","-","O")) -> - | NY2: =IF(NY3<=Premissas!$C$74,"C",IF(NY3="-","-","O")) -> - | NZ2: =IF(NZ3<=Premissas!$C$74,"C",IF(NZ3="-","-","O")) -> - | OA2: =IF(OA3<=Premissas!$C$74,"C",IF(OA3="-","-","O")) -> - | OB2: =IF(OB3<=Premissas!$C$74,"C",IF(OB3="-","-","O")) -> - | OC2: =IF(OC3<=Premissas!$C$74,"C",IF(OC3="-","-","O")) -> - | OD2: =IF(OD3<=Premissas!$C$74,"C",IF(OD3="-","-","O")) -> - | OE2: =IF(OE3<=Premissas!$C$74,"C",IF(OE3="-","-","O")) -> - | OF2: =IF(OF3<=Premissas!$C$74,"C",IF(OF3="-","-","O")) -> - | OG2: =IF(OG3<=Premissas!$C$74,"C",IF(OG3="-","-","O")) -> - | OH2: =IF(OH3<=Premissas!$C$74,"C",IF(OH3="-","-","O")) -> - | OI2: =IF(OI3<=Premissas!$C$74,"C",IF(OI3="-","-","O")) -> - | OJ2: =IF(OJ3<=Premissas!$C$74,"C",IF(OJ3="-","-","O")) -> - | OK2: =IF(OK3<=Premissas!$C$74,"C",IF(OK3="-","-","O")) -> - | OL2: =IF(OL3<=Premissas!$C$74,"C",IF(OL3="-","-","O")) -> - | OM2: =IF(OM3<=Premissas!$C$74,"C",IF(OM3="-","-","O")) -> - | ON2: =IF(ON3<=Premissas!$C$74,"C",IF(ON3="-","-","O")) -> - | OO2: =IF(OO3<=Premissas!$C$74,"C",IF(OO3="-","-","O")) -> - | OP2: =IF(OP3<=Premissas!$C$74,"C",IF(OP3="-","-","O")) -> - | OQ2: =IF(OQ3<=Premissas!$C$74,"C",IF(OQ3="-","-","O")) -> - | OR2: =IF(OR3<=Premissas!$C$74,"C",IF(OR3="-","-","O")) -> - | OS2: =IF(OS3<=Premissas!$C$74,"C",IF(OS3="-","-","O")) -> - | OT2: =IF(OT3<=Premissas!$C$74,"C",IF(OT3="-","-","O")) -> - | OU2: =IF(OU3<=Premissas!$C$74,"C",IF(OU3="-","-","O")) -> - | OV2: =IF(OV3<=Premissas!$C$74,"C",IF(OV3="-","-","O")) -> - | OW2: =IF(OW3<=Premissas!$C$74,"C",IF(OW3="-","-","O")) -> - | OX2: =IF(OX3<=Premissas!$C$74,"C",IF(OX3="-","-","O")) -> - | OY2: =IF(OY3<=Premissas!$C$74,"C",IF(OY3="-","-","O")) -> - | OZ2: =IF(OZ3<=Premissas!$C$74,"C",IF(OZ3="-","-","O")) -> - | PA2: =IF(PA3<=Premissas!$C$74,"C",IF(PA3="-","-","O")) -> - | PB2: =IF(PB3<=Premissas!$C$74,"C",IF(PB3="-","-","O")) -> - | PC2: =IF(PC3<=Premissas!$C$74,"C",IF(PC3="-","-","O")) -> - | PD2: =IF(PD3<=Premissas!$C$74,"C",IF(PD3="-","-","O")) -> - | PE2: =IF(PE3<=Premissas!$C$74,"C",IF(PE3="-","-","O")) -> - | PF2: =IF(PF3<=Premissas!$C$74,"C",IF(PF3="-","-","O")) -> - | PG2: =IF(PG3<=Premissas!$C$74,"C",IF(PG3="-","-","O")) -> - | PH2: =IF(PH3<=Premissas!$C$74,"C",IF(PH3="-","-","O")) -> - | PI2: =IF(PI3<=Premissas!$C$74,"C",IF(PI3="-","-","O")) -> - | PJ2: =IF(PJ3<=Premissas!$C$74,"C",IF(PJ3="-","-","O")) -> - | PK2: =IF(PK3<=Premissas!$C$74,"C",IF(PK3="-","-","O")) -> - | PL2: =IF(PL3<=Premissas!$C$74,"C",IF(PL3="-","-","O")) -> - | PM2: =IF(PM3<=Premissas!$C$74,"C",IF(PM3="-","-","O")) -> - | PN2: =IF(PN3<=Premissas!$C$74,"C",IF(PN3="-","-","O")) -> - | PO2: =IF(PO3<=Premissas!$C$74,"C",IF(PO3="-","-","O")) -> - | PP2: =IF(PP3<=Premissas!$C$74,"C",IF(PP3="-","-","O")) -> - | PQ2: =IF(PQ3<=Premissas!$C$74,"C",IF(PQ3="-","-","O")) -> - | PR2: =IF(PR3<=Premissas!$C$74,"C",IF(PR3="-","-","O")) -> - | PS2: =IF(PS3<=Premissas!$C$74,"C",IF(PS3="-","-","O")) -> - | PT2: =IF(PT3<=Premissas!$C$74,"C",IF(PT3="-","-","O")) -> - | PU2: =IF(PU3<=Premissas!$C$74,"C",IF(PU3="-","-","O")) -> - | PV2: =IF(PV3<=Premissas!$C$74,"C",IF(PV3="-","-","O")) -> - | PW2: =IF(PW3<=Premissas!$C$74,"C",IF(PW3="-","-","O")) -> - | PX2: =IF(PX3<=Premissas!$C$74,"C",IF(PX3="-","-","O")) -> - | PY2: =IF(PY3<=Premissas!$C$74,"C",IF(PY3="-","-","O")) -> - | PZ2: =IF(PZ3<=Premissas!$C$74,"C",IF(PZ3="-","-","O")) -> - | QA2: =IF(QA3<=Premissas!$C$74,"C",IF(QA3="-","-","O")) -> - | QB2: =IF(QB3<=Premissas!$C$74,"C",IF(QB3="-","-","O")) -> - | QC2: =IF(QC3<=Premissas!$C$74,"C",IF(QC3="-","-","O")) -> - | QD2: =IF(QD3<=Premissas!$C$74,"C",IF(QD3="-","-","O")) -> - | QE2: =IF(QE3<=Premissas!$C$74,"C",IF(QE3="-","-","O")) -> - | QF2: =IF(QF3<=Premissas!$C$74,"C",IF(QF3="-","-","O")) -> - | QG2: =IF(QG3<=Premissas!$C$74,"C",IF(QG3="-","-","O")) -> - | QH2: =IF(QH3<=Premissas!$C$74,"C",IF(QH3="-","-","O")) -> - | QI2: =IF(QI3<=Premissas!$C$74,"C",IF(QI3="-","-","O")) -> - | QJ2: =IF(QJ3<=Premissas!$C$74,"C",IF(QJ3="-","-","O")) -> - | QK2: =IF(QK3<=Premissas!$C$74,"C",IF(QK3="-","-","O")) -> - | QL2: =IF(QL3<=Premissas!$C$74,"C",IF(QL3="-","-","O")) -> - | QM2: =IF(QM3<=Premissas!$C$74,"C",IF(QM3="-","-","O")) -> - | QN2: =IF(QN3<=Premissas!$C$74,"C",IF(QN3="-","-","O")) -> - | QO2: =IF(QO3<=Premissas!$C$74,"C",IF(QO3="-","-","O")) -> - | QP2: =IF(QP3<=Premissas!$C$74,"C",IF(QP3="-","-","O")) -> - | QQ2: =IF(QQ3<=Premissas!$C$74,"C",IF(QQ3="-","-","O")) -> - | QR2: =IF(QR3<=Premissas!$C$74,"C",IF(QR3="-","-","O")) -> - | QS2: =IF(QS3<=Premissas!$C$74,"C",IF(QS3="-","-","O")) -> - | QT2: =IF(QT3<=Premissas!$C$74,"C",IF(QT3="-","-","O")) -> - | QU2: =IF(QU3<=Premissas!$C$74,"C",IF(QU3="-","-","O")) -> - | QV2: =IF(QV3<=Premissas!$C$74,"C",IF(QV3="-","-","O")) -> - | QW2: =IF(QW3<=Premissas!$C$74,"C",IF(QW3="-","-","O")) -> - | QX2: =IF(QX3<=Premissas!$C$74,"C",IF(QX3="-","-","O")) -> - | QY2: =IF(QY3<=Premissas!$C$74,"C",IF(QY3="-","-","O")) -> - | QZ2: =IF(QZ3<=Premissas!$C$74,"C",IF(QZ3="-","-","O")) -> - | RA2: =IF(RA3<=Premissas!$C$74,"C",IF(RA3="-","-","O")) -> - | RB2: =IF(RB3<=Premissas!$C$74,"C",IF(RB3="-","-","O")) -> - | RC2: =IF(RC3<=Premissas!$C$74,"C",IF(RC3="-","-","O")) -> - | RD2: =IF(RD3<=Premissas!$C$74,"C",IF(RD3="-","-","O")) -> - | RE2: =IF(RE3<=Premissas!$C$74,"C",IF(RE3="-","-","O")) -> - | RF2: =IF(RF3<=Premissas!$C$74,"C",IF(RF3="-","-","O")) -> - | RG2: =IF(RG3<=Premissas!$C$74,"C",IF(RG3="-","-","O")) -> - | RH2: =IF(RH3<=Premissas!$C$74,"C",IF(RH3="-","-","O")) -> - | RI2: =IF(RI3<=Premissas!$C$74,"C",IF(RI3="-","-","O")) -> - | RJ2: =IF(RJ3<=Premissas!$C$74,"C",IF(RJ3="-","-","O")) -> - | RK2: =IF(RK3<=Premissas!$C$74,"C",IF(RK3="-","-","O")) -> - | RL2: =IF(RL3<=Premissas!$C$74,"C",IF(RL3="-","-","O")) -> - | RM2: =IF(RM3<=Premissas!$C$74,"C",IF(RM3="-","-","O")) -> - | RN2: =IF(RN3<=Premissas!$C$74,"C",IF(RN3="-","-","O")) -> - | RO2: =IF(RO3<=Premissas!$C$74,"C",IF(RO3="-","-","O")) -> - | RP2: =IF(RP3<=Premissas!$C$74,"C",IF(RP3="-","-","O")) -> - | RQ2: =IF(RQ3<=Premissas!$C$74,"C",IF(RQ3="-","-","O")) -> - | RR2: =IF(RR3<=Premissas!$C$74,"C",IF(RR3="-","-","O")) -> - | RS2: =IF(RS3<=Premissas!$C$74,"C",IF(RS3="-","-","O")) -> - | RT2: =IF(RT3<=Premissas!$C$74,"C",IF(RT3="-","-","O")) -> - | RU2: =IF(RU3<=Premissas!$C$74,"C",IF(RU3="-","-","O")) -> - | RV2: =IF(RV3<=Premissas!$C$74,"C",IF(RV3="-","-","O")) -> - | RW2: =IF(RW3<=Premissas!$C$74,"C",IF(RW3="-","-","O")) -> - | RX2: =IF(RX3<=Premissas!$C$74,"C",IF(RX3="-","-","O")) -> - | RY2: =IF(RY3<=Premissas!$C$74,"C",IF(RY3="-","-","O")) -> - | RZ2: =IF(RZ3<=Premissas!$C$74,"C",IF(RZ3="-","-","O")) -> - | SA2: =IF(SA3<=Premissas!$C$74,"C",IF(SA3="-","-","O")) -> - | SB2: =IF(SB3<=Premissas!$C$74,"C",IF(SB3="-","-","O")) -> - | SC2: =IF(SC3<=Premissas!$C$74,"C",IF(SC3="-","-","O")) -> - | SD2: =IF(SD3<=Premissas!$C$74,"C",IF(SD3="-","-","O")) -> - | SE2: =IF(SE3<=Premissas!$C$74,"C",IF(SE3="-","-","O")) -> - | SF2: =IF(SF3<=Premissas!$C$74,"C",IF(SF3="-","-","O")) -> - | SG2: =IF(SG3<=Premissas!$C$74,"C",IF(SG3="-","-","O")) -> - | SH2: =IF(SH3<=Premissas!$C$74,"C",IF(SH3="-","-","O")) -> - | SI2: =IF(SI3<=Premissas!$C$74,"C",IF(SI3="-","-","O")) -> - | SJ2: =IF(SJ3<=Premissas!$C$74,"C",IF(SJ3="-","-","O")) -> - | SK2: =IF(SK3<=Premissas!$C$74,"C",IF(SK3="-","-","O")) -> - | SL2: =IF(SL3<=Premissas!$C$74,"C",IF(SL3="-","-","O")) -> - | SM2: =IF(SM3<=Premissas!$C$74,"C",IF(SM3="-","-","O")) -> - | SN2: =IF(SN3<=Premissas!$C$74,"C",IF(SN3="-","-","O")) -> - | SO2: =IF(SO3<=Premissas!$C$74,"C",IF(SO3="-","-","O")) -> - | SP2: =IF(SP3<=Premissas!$C$74,"C",IF(SP3="-","-","O")) -> - | SQ2: =IF(SQ3<=Premissas!$C$74,"C",IF(SQ3="-","-","O")) -> - | SR2: =IF(SR3<=Premissas!$C$74,"C",IF(SR3="-","-","O")) -> - | SS2: =IF(SS3<=Premissas!$C$74,"C",IF(SS3="-","-","O")) -> - | ST2: =IF(ST3<=Premissas!$C$74,"C",IF(ST3="-","-","O")) -> - | SU2: =IF(SU3<=Premissas!$C$74,"C",IF(SU3="-","-","O")) -> - | SV2: =IF(SV3<=Premissas!$C$74,"C",IF(SV3="-","-","O")) -> - | SW2: =IF(SW3<=Premissas!$C$74,"C",IF(SW3="-","-","O")) -> - | SX2: =IF(SX3<=Premissas!$C$74,"C",IF(SX3="-","-","O")) -> - | SY2: =IF(SY3<=Premissas!$C$74,"C",IF(SY3="-","-","O")) -> - | SZ2: =IF(SZ3<=Premissas!$C$74,"C",IF(SZ3="-","-","O")) -> - | TA2: =IF(TA3<=Premissas!$C$74,"C",IF(TA3="-","-","O")) -> - | TB2: =IF(TB3<=Premissas!$C$74,"C",IF(TB3="-","-","O")) -> - | TC2: =IF(TC3<=Premissas!$C$74,"C",IF(TC3="-","-","O")) -> - | TD2: =IF(TD3<=Premissas!$C$74,"C",IF(TD3="-","-","O")) -> - | TE2: =IF(TE3<=Premissas!$C$74,"C",IF(TE3="-","-","O")) -> - | TF2: =IF(TF3<=Premissas!$C$74,"C",IF(TF3="-","-","O")) -> - | TG2: =IF(TG3<=Premissas!$C$74,"C",IF(TG3="-","-","O")) -> - | TH2: =IF(TH3<=Premissas!$C$74,"C",IF(TH3="-","-","O")) -> - | TI2: =IF(TI3<=Premissas!$C$74,"C",IF(TI3="-","-","O")) -> - | TJ2: =IF(TJ3<=Premissas!$C$74,"C",IF(TJ3="-","-","O")) -> - | TK2: =IF(TK3<=Premissas!$C$74,"C",IF(TK3="-","-","O")) -> - | TL2: =IF(TL3<=Premissas!$C$74,"C",IF(TL3="-","-","O")) -> - | TM2: =IF(TM3<=Premissas!$C$74,"C",IF(TM3="-","-","O")) -> - | TN2: =IF(TN3<=Premissas!$C$74,"C",IF(TN3="-","-","O")) -> - | TO2: =IF(TO3<=Premissas!$C$74,"C",IF(TO3="-","-","O")) -> - | TP2: =IF(TP3<=Premissas!$C$74,"C",IF(TP3="-","-","O")) -> - | TQ2: =IF(TQ3<=Premissas!$C$74,"C",IF(TQ3="-","-","O")) -> - | TR2: =IF(TR3<=Premissas!$C$74,"C",IF(TR3="-","-","O")) -> - | TS2: =IF(TS3<=Premissas!$C$74,"C",IF(TS3="-","-","O")) -> - | TT2: =IF(TT3<=Premissas!$C$74,"C",IF(TT3="-","-","O")) -> - | TU2: =IF(TU3<=Premissas!$C$74,"C",IF(TU3="-","-","O")) -> - | TV2: =IF(TV3<=Premissas!$C$74,"C",IF(TV3="-","-","O")) -> - | TW2: =IF(TW3<=Premissas!$C$74,"C",IF(TW3="-","-","O")) -> - | TX2: =IF(TX3<=Premissas!$C$74,"C",IF(TX3="-","-","O")) -> - | TY2: =IF(TY3<=Premissas!$C$74,"C",IF(TY3="-","-","O")) -> - | TZ2: =IF(TZ3<=Premissas!$C$74,"C",IF(TZ3="-","-","O")) -> - | UA2: =IF(UA3<=Premissas!$C$74,"C",IF(UA3="-","-","O")) -> - | UB2: =IF(UB3<=Premissas!$C$74,"C",IF(UB3="-","-","O")) -> - | UC2: =IF(UC3<=Premissas!$C$74,"C",IF(UC3="-","-","O")) -> - | UD2: =IF(UD3<=Premissas!$C$74,"C",IF(UD3="-","-","O")) -> - | UE2: =IF(UE3<=Premissas!$C$74,"C",IF(UE3="-","-","O")) -> - | UF2: =IF(UF3<=Premissas!$C$74,"C",IF(UF3="-","-","O")) -> - | UG2: =IF(UG3<=Premissas!$C$74,"C",IF(UG3="-","-","O")) -> - | UH2: =IF(UH3<=Premissas!$C$74,"C",IF(UH3="-","-","O")) -> - | UI2: =IF(UI3<=Premissas!$C$74,"C",IF(UI3="-","-","O")) -> - | UJ2: =IF(UJ3<=Premissas!$C$74,"C",IF(UJ3="-","-","O")) -> - | UK2: =IF(UK3<=Premissas!$C$74,"C",IF(UK3="-","-","O")) -> - | UL2: =IF(UL3<=Premissas!$C$74,"C",IF(UL3="-","-","O")) -> - | UM2: =IF(UM3<=Premissas!$C$74,"C",IF(UM3="-","-","O")) -> - | UN2: =IF(UN3<=Premissas!$C$74,"C",IF(UN3="-","-","O")) -> - | UO2: =IF(UO3<=Premissas!$C$74,"C",IF(UO3="-","-","O")) -> - | UP2: =IF(UP3<=Premissas!$C$74,"C",IF(UP3="-","-","O")) -> - | UQ2: =IF(UQ3<=Premissas!$C$74,"C",IF(UQ3="-","-","O")) -> - | UR2: =IF(UR3<=Premissas!$C$74,"C",IF(UR3="-","-","O")) -> - | US2: =IF(US3<=Premissas!$C$74,"C",IF(US3="-","-","O")) -> - | UT2: =IF(UT3<=Premissas!$C$74,"C",IF(UT3="-","-","O")) -> - | UU2: =IF(UU3<=Premissas!$C$74,"C",IF(UU3="-","-","O")) -> - | UV2: =IF(UV3<=Premissas!$C$74,"C",IF(UV3="-","-","O")) -> - | UW2: =IF(UW3<=Premissas!$C$74,"C",IF(UW3="-","-","O")) -> - | UX2: =IF(UX3<=Premissas!$C$74,"C",IF(UX3="-","-","O")) -> - | UY2: =IF(UY3<=Premissas!$C$74,"C",IF(UY3="-","-","O")) -> - | UZ2: =IF(UZ3<=Premissas!$C$74,"C",IF(UZ3="-","-","O")) -> - | VA2: =IF(VA3<=Premissas!$C$74,"C",IF(VA3="-","-","O")) -> - | VB2: =IF(VB3<=Premissas!$C$74,"C",IF(VB3="-","-","O")) -> - | VC2: =IF(VC3<=Premissas!$C$74,"C",IF(VC3="-","-","O")) -> - | VD2: =IF(VD3<=Premissas!$C$74,"C",IF(VD3="-","-","O")) -> - | VE2: =IF(VE3<=Premissas!$C$74,"C",IF(VE3="-","-","O")) -> - | VF2: =IF(VF3<=Premissas!$C$74,"C",IF(VF3="-","-","O")) -> - | VG2: =IF(VG3<=Premissas!$C$74,"C",IF(VG3="-","-","O")) -> - | VH2: =IF(VH3<=Premissas!$C$74,"C",IF(VH3="-","-","O")) -> - | VI2: =IF(VI3<=Premissas!$C$74,"C",IF(VI3="-","-","O")) -> - | VJ2: =IF(VJ3<=Premissas!$C$74,"C",IF(VJ3="-","-","O")) -> - | VK2: =IF(VK3<=Premissas!$C$74,"C",IF(VK3="-","-","O")) -> - | VL2: =IF(VL3<=Premissas!$C$74,"C",IF(VL3="-","-","O")) -> - | VM2: =IF(VM3<=Premissas!$C$74,"C",IF(VM3="-","-","O")) -> - | VN2: =IF(VN3<=Premissas!$C$74,"C",IF(VN3="-","-","O")) -> - | VO2: =IF(VO3<=Premissas!$C$74,"C",IF(VO3="-","-","O")) -> - | VP2: =IF(VP3<=Premissas!$C$74,"C",IF(VP3="-","-","O")) -> - | VQ2: =IF(VQ3<=Premissas!$C$74,"C",IF(VQ3="-","-","O")) -> - | VR2: =IF(VR3<=Premissas!$C$74,"C",IF(VR3="-","-","O")) -> - | VS2: =IF(VS3<=Premissas!$C$74,"C",IF(VS3="-","-","O")) -> - | VT2: =IF(VT3<=Premissas!$C$74,"C",IF(VT3="-","-","O")) -> - | VU2: =IF(VU3<=Premissas!$C$74,"C",IF(VU3="-","-","O")) -> - | VV2: =IF(VV3<=Premissas!$C$74,"C",IF(VV3="-","-","O")) -> - | VW2: =IF(VW3<=Premissas!$C$74,"C",IF(VW3="-","-","O")) -> - | VX2: =IF(VX3<=Premissas!$C$74,"C",IF(VX3="-","-","O")) -> - | VY2: =IF(VY3<=Premissas!$C$74,"C",IF(VY3="-","-","O")) -> - | VZ2: =IF(VZ3<=Premissas!$C$74,"C",IF(VZ3="-","-","O")) -> - | WA2: =IF(WA3<=Premissas!$C$74,"C",IF(WA3="-","-","O")) -> - | WB2: =IF(WB3<=Premissas!$C$74,"C",IF(WB3="-","-","O")) -> - | WC2: =IF(WC3<=Premissas!$C$74,"C",IF(WC3="-","-","O")) -> - | WD2: =IF(WD3<=Premissas!$C$74,"C",IF(WD3="-","-","O")) -> -
B3: PERÍODO ABSOLUTO | C3: 1 | D3: =IF(C3="-","-",IF(C3+1>Premissas!$C$72,"-",C3+1)) -> 2 | E3: =IF(D3="-","-",IF(D3+1>Premissas!$C$72,"-",D3+1)) -> 3 | F3: =IF(E3="-","-",IF(E3+1>Premissas!$C$72,"-",E3+1)) -> 4 | G3: =IF(F3="-","-",IF(F3+1>Premissas!$C$72,"-",F3+1)) -> 5 | H3: =IF(G3="-","-",IF(G3+1>Premissas!$C$72,"-",G3+1)) -> 6 | I3: =IF(H3="-","-",IF(H3+1>Premissas!$C$72,"-",H3+1)) -> 7 | J3: =IF(I3="-","-",IF(I3+1>Premissas!$C$72,"-",I3+1)) -> 8 | K3: =IF(J3="-","-",IF(J3+1>Premissas!$C$72,"-",J3+1)) -> 9 | L3: =IF(K3="-","-",IF(K3+1>Premissas!$C$72,"-",K3+1)) -> 10 | M3: =IF(L3="-","-",IF(L3+1>Premissas!$C$72,"-",L3+1)) -> 11 | N3: =IF(M3="-","-",IF(M3+1>Premissas!$C$72,"-",M3+1)) -> 12 | O3: =IF(N3="-","-",IF(N3+1>Premissas!$C$72,"-",N3+1)) -> 13 | P3: =IF(O3="-","-",IF(O3+1>Premissas!$C$72,"-",O3+1)) -> 14 | Q3: =IF(P3="-","-",IF(P3+1>Premissas!$C$72,"-",P3+1)) -> 15 | R3: =IF(Q3="-","-",IF(Q3+1>Premissas!$C$72,"-",Q3+1)) -> 16 | S3: =IF(R3="-","-",IF(R3+1>Premissas!$C$72,"-",R3+1)) -> 17 | T3: =IF(S3="-","-",IF(S3+1>Premissas!$C$72,"-",S3+1)) -> 18 | U3: =IF(T3="-","-",IF(T3+1>Premissas!$C$72,"-",T3+1)) -> 19 | V3: =IF(U3="-","-",IF(U3+1>Premissas!$C$72,"-",U3+1)) -> 20 | W3: =IF(V3="-","-",IF(V3+1>Premissas!$C$72,"-",V3+1)) -> 21 | X3: =IF(W3="-","-",IF(W3+1>Premissas!$C$72,"-",W3+1)) -> 22 | Y3: =IF(X3="-","-",IF(X3+1>Premissas!$C$72,"-",X3+1)) -> 23 | Z3: =IF(Y3="-","-",IF(Y3+1>Premissas!$C$72,"-",Y3+1)) -> 24 | AA3: =IF(Z3="-","-",IF(Z3+1>Premissas!$C$72,"-",Z3+1)) -> 25 | AB3: =IF(AA3="-","-",IF(AA3+1>Premissas!$C$72,"-",AA3+1)) -> 26 | AC3: =IF(AB3="-","-",IF(AB3+1>Premissas!$C$72,"-",AB3+1)) -> 27 | AD3: =IF(AC3="-","-",IF(AC3+1>Premissas!$C$72,"-",AC3+1)) -> 28 | AE3: =IF(AD3="-","-",IF(AD3+1>Premissas!$C$72,"-",AD3+1)) -> 29 | AF3: =IF(AE3="-","-",IF(AE3+1>Premissas!$C$72,"-",AE3+1)) -> 30 | AG3: =IF(AF3="-","-",IF(AF3+1>Premissas!$C$72,"-",AF3+1)) -> 31 | AH3: =IF(AG3="-","-",IF(AG3+1>Premissas!$C$72,"-",AG3+1)) -> - | AI3: =IF(AH3="-","-",IF(AH3+1>Premissas!$C$72,"-",AH3+1)) -> - | AJ3: =IF(AI3="-","-",IF(AI3+1>Premissas!$C$72,"-",AI3+1)) -> - | AK3: =IF(AJ3="-","-",IF(AJ3+1>Premissas!$C$72,"-",AJ3+1)) -> - | AL3: =IF(AK3="-","-",IF(AK3+1>Premissas!$C$72,"-",AK3+1)) -> - | AM3: =IF(AL3="-","-",IF(AL3+1>Premissas!$C$72,"-",AL3+1)) -> - | AN3: =IF(AM3="-","-",IF(AM3+1>Premissas!$C$72,"-",AM3+1)) -> - | AO3: =IF(AN3="-","-",IF(AN3+1>Premissas!$C$72,"-",AN3+1)) -> - | AP3: =IF(AO3="-","-",IF(AO3+1>Premissas!$C$72,"-",AO3+1)) -> - | AQ3: =IF(AP3="-","-",IF(AP3+1>Premissas!$C$72,"-",AP3+1)) -> - | AR3: =IF(AQ3="-","-",IF(AQ3+1>Premissas!$C$72,"-",AQ3+1)) -> - | AS3: =IF(AR3="-","-",IF(AR3+1>Premissas!$C$72,"-",AR3+1)) -> - | AT3: =IF(AS3="-","-",IF(AS3+1>Premissas!$C$72,"-",AS3+1)) -> - | AU3: =IF(AT3="-","-",IF(AT3+1>Premissas!$C$72,"-",AT3+1)) -> - | AV3: =IF(AU3="-","-",IF(AU3+1>Premissas!$C$72,"-",AU3+1)) -> - | AW3: =IF(AV3="-","-",IF(AV3+1>Premissas!$C$72,"-",AV3+1)) -> - | AX3: =IF(AW3="-","-",IF(AW3+1>Premissas!$C$72,"-",AW3+1)) -> - | AY3: =IF(AX3="-","-",IF(AX3+1>Premissas!$C$72,"-",AX3+1)) -> - | AZ3: =IF(AY3="-","-",IF(AY3+1>Premissas!$C$72,"-",AY3+1)) -> - | BA3: =IF(AZ3="-","-",IF(AZ3+1>Premissas!$C$72,"-",AZ3+1)) -> - | BB3: =IF(BA3="-","-",IF(BA3+1>Premissas!$C$72,"-",BA3+1)) -> - | BC3: =IF(BB3="-","-",IF(BB3+1>Premissas!$C$72,"-",BB3+1)) -> - | BD3: =IF(BC3="-","-",IF(BC3+1>Premissas!$C$72,"-",BC3+1)) -> - | BE3: =IF(BD3="-","-",IF(BD3+1>Premissas!$C$72,"-",BD3+1)) -> - | BF3: =IF(BE3="-","-",IF(BE3+1>Premissas!$C$72,"-",BE3+1)) -> - | BG3: =IF(BF3="-","-",IF(BF3+1>Premissas!$C$72,"-",BF3+1)) -> - | BH3: =IF(BG3="-","-",IF(BG3+1>Premissas!$C$72,"-",BG3+1)) -> - | BI3: =IF(BH3="-","-",IF(BH3+1>Premissas!$C$72,"-",BH3+1)) -> - | BJ3: =IF(BI3="-","-",IF(BI3+1>Premissas!$C$72,"-",BI3+1)) -> - | BK3: =IF(BJ3="-","-",IF(BJ3+1>Premissas!$C$72,"-",BJ3+1)) -> - | BL3: =IF(BK3="-","-",IF(BK3+1>Premissas!$C$72,"-",BK3+1)) -> - | BM3: =IF(BL3="-","-",IF(BL3+1>Premissas!$C$72,"-",BL3+1)) -> - | BN3: =IF(BM3="-","-",IF(BM3+1>Premissas!$C$72,"-",BM3+1)) -> - | BO3: =IF(BN3="-","-",IF(BN3+1>Premissas!$C$72,"-",BN3+1)) -> - | BP3: =IF(BO3="-","-",IF(BO3+1>Premissas!$C$72,"-",BO3+1)) -> - | BQ3: =IF(BP3="-","-",IF(BP3+1>Premissas!$C$72,"-",BP3+1)) -> - | BR3: =IF(BQ3="-","-",IF(BQ3+1>Premissas!$C$72,"-",BQ3+1)) -> - | BS3: =IF(BR3="-","-",IF(BR3+1>Premissas!$C$72,"-",BR3+1)) -> - | BT3: =IF(BS3="-","-",IF(BS3+1>Premissas!$C$72,"-",BS3+1)) -> - | BU3: =IF(BT3="-","-",IF(BT3+1>Premissas!$C$72,"-",BT3+1)) -> - | BV3: =IF(BU3="-","-",IF(BU3+1>Premissas!$C$72,"-",BU3+1)) -> - | BW3: =IF(BV3="-","-",IF(BV3+1>Premissas!$C$72,"-",BV3+1)) -> - | BX3: =IF(BW3="-","-",IF(BW3+1>Premissas!$C$72,"-",BW3+1)) -> - | BY3: =IF(BX3="-","-",IF(BX3+1>Premissas!$C$72,"-",BX3+1)) -> - | BZ3: =IF(BY3="-","-",IF(BY3+1>Premissas!$C$72,"-",BY3+1)) -> - | CA3: =IF(BZ3="-","-",IF(BZ3+1>Premissas!$C$72,"-",BZ3+1)) -> - | CB3: =IF(CA3="-","-",IF(CA3+1>Premissas!$C$72,"-",CA3+1)) -> - | CC3: =IF(CB3="-","-",IF(CB3+1>Premissas!$C$72,"-",CB3+1)) -> - | CD3: =IF(CC3="-","-",IF(CC3+1>Premissas!$C$72,"-",CC3+1)) -> - | CE3: =IF(CD3="-","-",IF(CD3+1>Premissas!$C$72,"-",CD3+1)) -> - | CF3: =IF(CE3="-","-",IF(CE3+1>Premissas!$C$72,"-",CE3+1)) -> - | CG3: =IF(CF3="-","-",IF(CF3+1>Premissas!$C$72,"-",CF3+1)) -> - | CH3: =IF(CG3="-","-",IF(CG3+1>Premissas!$C$72,"-",CG3+1)) -> - | CI3: =IF(CH3="-","-",IF(CH3+1>Premissas!$C$72,"-",CH3+1)) -> - | CJ3: =IF(CI3="-","-",IF(CI3+1>Premissas!$C$72,"-",CI3+1)) -> - | CK3: =IF(CJ3="-","-",IF(CJ3+1>Premissas!$C$72,"-",CJ3+1)) -> - | CL3: =IF(CK3="-","-",IF(CK3+1>Premissas!$C$72,"-",CK3+1)) -> - | CM3: =IF(CL3="-","-",IF(CL3+1>Premissas!$C$72,"-",CL3+1)) -> - | CN3: =IF(CM3="-","-",IF(CM3+1>Premissas!$C$72,"-",CM3+1)) -> - | CO3: =IF(CN3="-","-",IF(CN3+1>Premissas!$C$72,"-",CN3+1)) -> - | CP3: =IF(CO3="-","-",IF(CO3+1>Premissas!$C$72,"-",CO3+1)) -> - | CQ3: =IF(CP3="-","-",IF(CP3+1>Premissas!$C$72,"-",CP3+1)) -> - | CR3: =IF(CQ3="-","-",IF(CQ3+1>Premissas!$C$72,"-",CQ3+1)) -> - | CS3: =IF(CR3="-","-",IF(CR3+1>Premissas!$C$72,"-",CR3+1)) -> - | CT3: =IF(CS3="-","-",IF(CS3+1>Premissas!$C$72,"-",CS3+1)) -> - | CU3: =IF(CT3="-","-",IF(CT3+1>Premissas!$C$72,"-",CT3+1)) -> - | CV3: =IF(CU3="-","-",IF(CU3+1>Premissas!$C$72,"-",CU3+1)) -> - | CW3: =IF(CV3="-","-",IF(CV3+1>Premissas!$C$72,"-",CV3+1)) -> - | CX3: =IF(CW3="-","-",IF(CW3+1>Premissas!$C$72,"-",CW3+1)) -> - | CY3: =IF(CX3="-","-",IF(CX3+1>Premissas!$C$72,"-",CX3+1)) -> - | CZ3: =IF(CY3="-","-",IF(CY3+1>Premissas!$C$72,"-",CY3+1)) -> - | DA3: =IF(CZ3="-","-",IF(CZ3+1>Premissas!$C$72,"-",CZ3+1)) -> - | DB3: =IF(DA3="-","-",IF(DA3+1>Premissas!$C$72,"-",DA3+1)) -> - | DC3: =IF(DB3="-","-",IF(DB3+1>Premissas!$C$72,"-",DB3+1)) -> - | DD3: =IF(DC3="-","-",IF(DC3+1>Premissas!$C$72,"-",DC3+1)) -> - | DE3: =IF(DD3="-","-",IF(DD3+1>Premissas!$C$72,"-",DD3+1)) -> - | DF3: =IF(DE3="-","-",IF(DE3+1>Premissas!$C$72,"-",DE3+1)) -> - | DG3: =IF(DF3="-","-",IF(DF3+1>Premissas!$C$72,"-",DF3+1)) -> - | DH3: =IF(DG3="-","-",IF(DG3+1>Premissas!$C$72,"-",DG3+1)) -> - | DI3: =IF(DH3="-","-",IF(DH3+1>Premissas!$C$72,"-",DH3+1)) -> - | DJ3: =IF(DI3="-","-",IF(DI3+1>Premissas!$C$72,"-",DI3+1)) -> - | DK3: =IF(DJ3="-","-",IF(DJ3+1>Premissas!$C$72,"-",DJ3+1)) -> - | DL3: =IF(DK3="-","-",IF(DK3+1>Premissas!$C$72,"-",DK3+1)) -> - | DM3: =IF(DL3="-","-",IF(DL3+1>Premissas!$C$72,"-",DL3+1)) -> - | DN3: =IF(DM3="-","-",IF(DM3+1>Premissas!$C$72,"-",DM3+1)) -> - | DO3: =IF(DN3="-","-",IF(DN3+1>Premissas!$C$72,"-",DN3+1)) -> - | DP3: =IF(DO3="-","-",IF(DO3+1>Premissas!$C$72,"-",DO3+1)) -> - | DQ3: =IF(DP3="-","-",IF(DP3+1>Premissas!$C$72,"-",DP3+1)) -> - | DR3: =IF(DQ3="-","-",IF(DQ3+1>Premissas!$C$72,"-",DQ3+1)) -> - | DS3: =IF(DR3="-","-",IF(DR3+1>Premissas!$C$72,"-",DR3+1)) -> - | DT3: =IF(DS3="-","-",IF(DS3+1>Premissas!$C$72,"-",DS3+1)) -> - | DU3: =IF(DT3="-","-",IF(DT3+1>Premissas!$C$72,"-",DT3+1)) -> - | DV3: =IF(DU3="-","-",IF(DU3+1>Premissas!$C$72,"-",DU3+1)) -> - | DW3: =IF(DV3="-","-",IF(DV3+1>Premissas!$C$72,"-",DV3+1)) -> - | DX3: =IF(DW3="-","-",IF(DW3+1>Premissas!$C$72,"-",DW3+1)) -> - | DY3: =IF(DX3="-","-",IF(DX3+1>Premissas!$C$72,"-",DX3+1)) -> - | DZ3: =IF(DY3="-","-",IF(DY3+1>Premissas!$C$72,"-",DY3+1)) -> - | EA3: =IF(DZ3="-","-",IF(DZ3+1>Premissas!$C$72,"-",DZ3+1)) -> - | EB3: =IF(EA3="-","-",IF(EA3+1>Premissas!$C$72,"-",EA3+1)) -> - | EC3: =IF(EB3="-","-",IF(EB3+1>Premissas!$C$72,"-",EB3+1)) -> - | ED3: =IF(EC3="-","-",IF(EC3+1>Premissas!$C$72,"-",EC3+1)) -> - | EE3: =IF(ED3="-","-",IF(ED3+1>Premissas!$C$72,"-",ED3+1)) -> - | EF3: =IF(EE3="-","-",IF(EE3+1>Premissas!$C$72,"-",EE3+1)) -> - | EG3: =IF(EF3="-","-",IF(EF3+1>Premissas!$C$72,"-",EF3+1)) -> - | EH3: =IF(EG3="-","-",IF(EG3+1>Premissas!$C$72,"-",EG3+1)) -> - | EI3: =IF(EH3="-","-",IF(EH3+1>Premissas!$C$72,"-",EH3+1)) -> - | EJ3: =IF(EI3="-","-",IF(EI3+1>Premissas!$C$72,"-",EI3+1)) -> - | EK3: =IF(EJ3="-","-",IF(EJ3+1>Premissas!$C$72,"-",EJ3+1)) -> - | EL3: =IF(EK3="-","-",IF(EK3+1>Premissas!$C$72,"-",EK3+1)) -> - | EM3: =IF(EL3="-","-",IF(EL3+1>Premissas!$C$72,"-",EL3+1)) -> - | EN3: =IF(EM3="-","-",IF(EM3+1>Premissas!$C$72,"-",EM3+1)) -> - | EO3: =IF(EN3="-","-",IF(EN3+1>Premissas!$C$72,"-",EN3+1)) -> - | EP3: =IF(EO3="-","-",IF(EO3+1>Premissas!$C$72,"-",EO3+1)) -> - | EQ3: =IF(EP3="-","-",IF(EP3+1>Premissas!$C$72,"-",EP3+1)) -> - | ER3: =IF(EQ3="-","-",IF(EQ3+1>Premissas!$C$72,"-",EQ3+1)) -> - | ES3: =IF(ER3="-","-",IF(ER3+1>Premissas!$C$72,"-",ER3+1)) -> - | ET3: =IF(ES3="-","-",IF(ES3+1>Premissas!$C$72,"-",ES3+1)) -> - | EU3: =IF(ET3="-","-",IF(ET3+1>Premissas!$C$72,"-",ET3+1)) -> - | EV3: =IF(EU3="-","-",IF(EU3+1>Premissas!$C$72,"-",EU3+1)) -> - | EW3: =IF(EV3="-","-",IF(EV3+1>Premissas!$C$72,"-",EV3+1)) -> - | EX3: =IF(EW3="-","-",IF(EW3+1>Premissas!$C$72,"-",EW3+1)) -> - | EY3: =IF(EX3="-","-",IF(EX3+1>Premissas!$C$72,"-",EX3+1)) -> - | EZ3: =IF(EY3="-","-",IF(EY3+1>Premissas!$C$72,"-",EY3+1)) -> - | FA3: =IF(EZ3="-","-",IF(EZ3+1>Premissas!$C$72,"-",EZ3+1)) -> - | FB3: =IF(FA3="-","-",IF(FA3+1>Premissas!$C$72,"-",FA3+1)) -> - | FC3: =IF(FB3="-","-",IF(FB3+1>Premissas!$C$72,"-",FB3+1)) -> - | FD3: =IF(FC3="-","-",IF(FC3+1>Premissas!$C$72,"-",FC3+1)) -> - | FE3: =IF(FD3="-","-",IF(FD3+1>Premissas!$C$72,"-",FD3+1)) -> - | FF3: =IF(FE3="-","-",IF(FE3+1>Premissas!$C$72,"-",FE3+1)) -> - | FG3: =IF(FF3="-","-",IF(FF3+1>Premissas!$C$72,"-",FF3+1)) -> - | FH3: =IF(FG3="-","-",IF(FG3+1>Premissas!$C$72,"-",FG3+1)) -> - | FI3: =IF(FH3="-","-",IF(FH3+1>Premissas!$C$72,"-",FH3+1)) -> - | FJ3: =IF(FI3="-","-",IF(FI3+1>Premissas!$C$72,"-",FI3+1)) -> - | FK3: =IF(FJ3="-","-",IF(FJ3+1>Premissas!$C$72,"-",FJ3+1)) -> - | FL3: =IF(FK3="-","-",IF(FK3+1>Premissas!$C$72,"-",FK3+1)) -> - | FM3: =IF(FL3="-","-",IF(FL3+1>Premissas!$C$72,"-",FL3+1)) -> - | FN3: =IF(FM3="-","-",IF(FM3+1>Premissas!$C$72,"-",FM3+1)) -> - | FO3: =IF(FN3="-","-",IF(FN3+1>Premissas!$C$72,"-",FN3+1)) -> - | FP3: =IF(FO3="-","-",IF(FO3+1>Premissas!$C$72,"-",FO3+1)) -> - | FQ3: =IF(FP3="-","-",IF(FP3+1>Premissas!$C$72,"-",FP3+1)) -> - | FR3: =IF(FQ3="-","-",IF(FQ3+1>Premissas!$C$72,"-",FQ3+1)) -> - | FS3: =IF(FR3="-","-",IF(FR3+1>Premissas!$C$72,"-",FR3+1)) -> - | FT3: =IF(FS3="-","-",IF(FS3+1>Premissas!$C$72,"-",FS3+1)) -> - | FU3: =IF(FT3="-","-",IF(FT3+1>Premissas!$C$72,"-",FT3+1)) -> - | FV3: =IF(FU3="-","-",IF(FU3+1>Premissas!$C$72,"-",FU3+1)) -> - | FW3: =IF(FV3="-","-",IF(FV3+1>Premissas!$C$72,"-",FV3+1)) -> - | FX3: =IF(FW3="-","-",IF(FW3+1>Premissas!$C$72,"-",FW3+1)) -> - | FY3: =IF(FX3="-","-",IF(FX3+1>Premissas!$C$72,"-",FX3+1)) -> - | FZ3: =IF(FY3="-","-",IF(FY3+1>Premissas!$C$72,"-",FY3+1)) -> - | GA3: =IF(FZ3="-","-",IF(FZ3+1>Premissas!$C$72,"-",FZ3+1)) -> - | GB3: =IF(GA3="-","-",IF(GA3+1>Premissas!$C$72,"-",GA3+1)) -> - | GC3: =IF(GB3="-","-",IF(GB3+1>Premissas!$C$72,"-",GB3+1)) -> - | GD3: =IF(GC3="-","-",IF(GC3+1>Premissas!$C$72,"-",GC3+1)) -> - | GE3: =IF(GD3="-","-",IF(GD3+1>Premissas!$C$72,"-",GD3+1)) -> - | GF3: =IF(GE3="-","-",IF(GE3+1>Premissas!$C$72,"-",GE3+1)) -> - | GG3: =IF(GF3="-","-",IF(GF3+1>Premissas!$C$72,"-",GF3+1)) -> - | GH3: =IF(GG3="-","-",IF(GG3+1>Premissas!$C$72,"-",GG3+1)) -> - | GI3: =IF(GH3="-","-",IF(GH3+1>Premissas!$C$72,"-",GH3+1)) -> - | GJ3: =IF(GI3="-","-",IF(GI3+1>Premissas!$C$72,"-",GI3+1)) -> - | GK3: =IF(GJ3="-","-",IF(GJ3+1>Premissas!$C$72,"-",GJ3+1)) -> - | GL3: =IF(GK3="-","-",IF(GK3+1>Premissas!$C$72,"-",GK3+1)) -> - | GM3: =IF(GL3="-","-",IF(GL3+1>Premissas!$C$72,"-",GL3+1)) -> - | GN3: =IF(GM3="-","-",IF(GM3+1>Premissas!$C$72,"-",GM3+1)) -> - | GO3: =IF(GN3="-","-",IF(GN3+1>Premissas!$C$72,"-",GN3+1)) -> - | GP3: =IF(GO3="-","-",IF(GO3+1>Premissas!$C$72,"-",GO3+1)) -> - | GQ3: =IF(GP3="-","-",IF(GP3+1>Premissas!$C$72,"-",GP3+1)) -> - | GR3: =IF(GQ3="-","-",IF(GQ3+1>Premissas!$C$72,"-",GQ3+1)) -> - | GS3: =IF(GR3="-","-",IF(GR3+1>Premissas!$C$72,"-",GR3+1)) -> - | GT3: =IF(GS3="-","-",IF(GS3+1>Premissas!$C$72,"-",GS3+1)) -> - | GU3: =IF(GT3="-","-",IF(GT3+1>Premissas!$C$72,"-",GT3+1)) -> - | GV3: =IF(GU3="-","-",IF(GU3+1>Premissas!$C$72,"-",GU3+1)) -> - | GW3: =IF(GV3="-","-",IF(GV3+1>Premissas!$C$72,"-",GV3+1)) -> - | GX3: =IF(GW3="-","-",IF(GW3+1>Premissas!$C$72,"-",GW3+1)) -> - | GY3: =IF(GX3="-","-",IF(GX3+1>Premissas!$C$72,"-",GX3+1)) -> - | GZ3: =IF(GY3="-","-",IF(GY3+1>Premissas!$C$72,"-",GY3+1)) -> - | HA3: =IF(GZ3="-","-",IF(GZ3+1>Premissas!$C$72,"-",GZ3+1)) -> - | HB3: =IF(HA3="-","-",IF(HA3+1>Premissas!$C$72,"-",HA3+1)) -> - | HC3: =IF(HB3="-","-",IF(HB3+1>Premissas!$C$72,"-",HB3+1)) -> - | HD3: =IF(HC3="-","-",IF(HC3+1>Premissas!$C$72,"-",HC3+1)) -> - | HE3: =IF(HD3="-","-",IF(HD3+1>Premissas!$C$72,"-",HD3+1)) -> - | HF3: =IF(HE3="-","-",IF(HE3+1>Premissas!$C$72,"-",HE3+1)) -> - | HG3: =IF(HF3="-","-",IF(HF3+1>Premissas!$C$72,"-",HF3+1)) -> - | HH3: =IF(HG3="-","-",IF(HG3+1>Premissas!$C$72,"-",HG3+1)) -> - | HI3: =IF(HH3="-","-",IF(HH3+1>Premissas!$C$72,"-",HH3+1)) -> - | HJ3: =IF(HI3="-","-",IF(HI3+1>Premissas!$C$72,"-",HI3+1)) -> - | HK3: =IF(HJ3="-","-",IF(HJ3+1>Premissas!$C$72,"-",HJ3+1)) -> - | HL3: =IF(HK3="-","-",IF(HK3+1>Premissas!$C$72,"-",HK3+1)) -> - | HM3: =IF(HL3="-","-",IF(HL3+1>Premissas!$C$72,"-",HL3+1)) -> - | HN3: =IF(HM3="-","-",IF(HM3+1>Premissas!$C$72,"-",HM3+1)) -> - | HO3: =IF(HN3="-","-",IF(HN3+1>Premissas!$C$72,"-",HN3+1)) -> - | HP3: =IF(HO3="-","-",IF(HO3+1>Premissas!$C$72,"-",HO3+1)) -> - | HQ3: =IF(HP3="-","-",IF(HP3+1>Premissas!$C$72,"-",HP3+1)) -> - | HR3: =IF(HQ3="-","-",IF(HQ3+1>Premissas!$C$72,"-",HQ3+1)) -> - | HS3: =IF(HR3="-","-",IF(HR3+1>Premissas!$C$72,"-",HR3+1)) -> - | HT3: =IF(HS3="-","-",IF(HS3+1>Premissas!$C$72,"-",HS3+1)) -> - | HU3: =IF(HT3="-","-",IF(HT3+1>Premissas!$C$72,"-",HT3+1)) -> - | HV3: =IF(HU3="-","-",IF(HU3+1>Premissas!$C$72,"-",HU3+1)) -> - | HW3: =IF(HV3="-","-",IF(HV3+1>Premissas!$C$72,"-",HV3+1)) -> - | HX3: =IF(HW3="-","-",IF(HW3+1>Premissas!$C$72,"-",HW3+1)) -> - | HY3: =IF(HX3="-","-",IF(HX3+1>Premissas!$C$72,"-",HX3+1)) -> - | HZ3: =IF(HY3="-","-",IF(HY3+1>Premissas!$C$72,"-",HY3+1)) -> - | IA3: =IF(HZ3="-","-",IF(HZ3+1>Premissas!$C$72,"-",HZ3+1)) -> - | IB3: =IF(IA3="-","-",IF(IA3+1>Premissas!$C$72,"-",IA3+1)) -> - | IC3: =IF(IB3="-","-",IF(IB3+1>Premissas!$C$72,"-",IB3+1)) -> - | ID3: =IF(IC3="-","-",IF(IC3+1>Premissas!$C$72,"-",IC3+1)) -> - | IE3: =IF(ID3="-","-",IF(ID3+1>Premissas!$C$72,"-",ID3+1)) -> - | IF3: =IF(IE3="-","-",IF(IE3+1>Premissas!$C$72,"-",IE3+1)) -> - | IG3: =IF(IF3="-","-",IF(IF3+1>Premissas!$C$72,"-",IF3+1)) -> - | IH3: =IF(IG3="-","-",IF(IG3+1>Premissas!$C$72,"-",IG3+1)) -> - | II3: =IF(IH3="-","-",IF(IH3+1>Premissas!$C$72,"-",IH3+1)) -> - | IJ3: =IF(II3="-","-",IF(II3+1>Premissas!$C$72,"-",II3+1)) -> - | IK3: =IF(IJ3="-","-",IF(IJ3+1>Premissas!$C$72,"-",IJ3+1)) -> - | IL3: =IF(IK3="-","-",IF(IK3+1>Premissas!$C$72,"-",IK3+1)) -> - | IM3: =IF(IL3="-","-",IF(IL3+1>Premissas!$C$72,"-",IL3+1)) -> - | IN3: =IF(IM3="-","-",IF(IM3+1>Premissas!$C$72,"-",IM3+1)) -> - | IO3: =IF(IN3="-","-",IF(IN3+1>Premissas!$C$72,"-",IN3+1)) -> - | IP3: =IF(IO3="-","-",IF(IO3+1>Premissas!$C$72,"-",IO3+1)) -> - | IQ3: =IF(IP3="-","-",IF(IP3+1>Premissas!$C$72,"-",IP3+1)) -> - | IR3: =IF(IQ3="-","-",IF(IQ3+1>Premissas!$C$72,"-",IQ3+1)) -> - | IS3: =IF(IR3="-","-",IF(IR3+1>Premissas!$C$72,"-",IR3+1)) -> - | IT3: =IF(IS3="-","-",IF(IS3+1>Premissas!$C$72,"-",IS3+1)) -> - | IU3: =IF(IT3="-","-",IF(IT3+1>Premissas!$C$72,"-",IT3+1)) -> - | IV3: =IF(IU3="-","-",IF(IU3+1>Premissas!$C$72,"-",IU3+1)) -> - | IW3: =IF(IV3="-","-",IF(IV3+1>Premissas!$C$72,"-",IV3+1)) -> - | IX3: =IF(IW3="-","-",IF(IW3+1>Premissas!$C$72,"-",IW3+1)) -> - | IY3: =IF(IX3="-","-",IF(IX3+1>Premissas!$C$72,"-",IX3+1)) -> - | IZ3: =IF(IY3="-","-",IF(IY3+1>Premissas!$C$72,"-",IY3+1)) -> - | JA3: =IF(IZ3="-","-",IF(IZ3+1>Premissas!$C$72,"-",IZ3+1)) -> - | JB3: =IF(JA3="-","-",IF(JA3+1>Premissas!$C$72,"-",JA3+1)) -> - | JC3: =IF(JB3="-","-",IF(JB3+1>Premissas!$C$72,"-",JB3+1)) -> - | JD3: =IF(JC3="-","-",IF(JC3+1>Premissas!$C$72,"-",JC3+1)) -> - | JE3: =IF(JD3="-","-",IF(JD3+1>Premissas!$C$72,"-",JD3+1)) -> - | JF3: =IF(JE3="-","-",IF(JE3+1>Premissas!$C$72,"-",JE3+1)) -> - | JG3: =IF(JF3="-","-",IF(JF3+1>Premissas!$C$72,"-",JF3+1)) -> - | JH3: =IF(JG3="-","-",IF(JG3+1>Premissas!$C$72,"-",JG3+1)) -> - | JI3: =IF(JH3="-","-",IF(JH3+1>Premissas!$C$72,"-",JH3+1)) -> - | JJ3: =IF(JI3="-","-",IF(JI3+1>Premissas!$C$72,"-",JI3+1)) -> - | JK3: =IF(JJ3="-","-",IF(JJ3+1>Premissas!$C$72,"-",JJ3+1)) -> - | JL3: =IF(JK3="-","-",IF(JK3+1>Premissas!$C$72,"-",JK3+1)) -> - | JM3: =IF(JL3="-","-",IF(JL3+1>Premissas!$C$72,"-",JL3+1)) -> - | JN3: =IF(JM3="-","-",IF(JM3+1>Premissas!$C$72,"-",JM3+1)) -> - | JO3: =IF(JN3="-","-",IF(JN3+1>Premissas!$C$72,"-",JN3+1)) -> - | JP3: =IF(JO3="-","-",IF(JO3+1>Premissas!$C$72,"-",JO3+1)) -> - | JQ3: =IF(JP3="-","-",IF(JP3+1>Premissas!$C$72,"-",JP3+1)) -> - | JR3: =IF(JQ3="-","-",IF(JQ3+1>Premissas!$C$72,"-",JQ3+1)) -> - | JS3: =IF(JR3="-","-",IF(JR3+1>Premissas!$C$72,"-",JR3+1)) -> - | JT3: =IF(JS3="-","-",IF(JS3+1>Premissas!$C$72,"-",JS3+1)) -> - | JU3: =IF(JT3="-","-",IF(JT3+1>Premissas!$C$72,"-",JT3+1)) -> - | JV3: =IF(JU3="-","-",IF(JU3+1>Premissas!$C$72,"-",JU3+1)) -> - | JW3: =IF(JV3="-","-",IF(JV3+1>Premissas!$C$72,"-",JV3+1)) -> - | JX3: =IF(JW3="-","-",IF(JW3+1>Premissas!$C$72,"-",JW3+1)) -> - | JY3: =IF(JX3="-","-",IF(JX3+1>Premissas!$C$72,"-",JX3+1)) -> - | JZ3: =IF(JY3="-","-",IF(JY3+1>Premissas!$C$72,"-",JY3+1)) -> - | KA3: =IF(JZ3="-","-",IF(JZ3+1>Premissas!$C$72,"-",JZ3+1)) -> - | KB3: =IF(KA3="-","-",IF(KA3+1>Premissas!$C$72,"-",KA3+1)) -> - | KC3: =IF(KB3="-","-",IF(KB3+1>Premissas!$C$72,"-",KB3+1)) -> - | KD3: =IF(KC3="-","-",IF(KC3+1>Premissas!$C$72,"-",KC3+1)) -> - | KE3: =IF(KD3="-","-",IF(KD3+1>Premissas!$C$72,"-",KD3+1)) -> - | KF3: =IF(KE3="-","-",IF(KE3+1>Premissas!$C$72,"-",KE3+1)) -> - | KG3: =IF(KF3="-","-",IF(KF3+1>Premissas!$C$72,"-",KF3+1)) -> - | KH3: =IF(KG3="-","-",IF(KG3+1>Premissas!$C$72,"-",KG3+1)) -> - | KI3: =IF(KH3="-","-",IF(KH3+1>Premissas!$C$72,"-",KH3+1)) -> - | KJ3: =IF(KI3="-","-",IF(KI3+1>Premissas!$C$72,"-",KI3+1)) -> - | KK3: =IF(KJ3="-","-",IF(KJ3+1>Premissas!$C$72,"-",KJ3+1)) -> - | KL3: =IF(KK3="-","-",IF(KK3+1>Premissas!$C$72,"-",KK3+1)) -> - | KM3: =IF(KL3="-","-",IF(KL3+1>Premissas!$C$72,"-",KL3+1)) -> - | KN3: =IF(KM3="-","-",IF(KM3+1>Premissas!$C$72,"-",KM3+1)) -> - | KO3: =IF(KN3="-","-",IF(KN3+1>Premissas!$C$72,"-",KN3+1)) -> - | KP3: =IF(KO3="-","-",IF(KO3+1>Premissas!$C$72,"-",KO3+1)) -> - | KQ3: =IF(KP3="-","-",IF(KP3+1>Premissas!$C$72,"-",KP3+1)) -> - | KR3: =IF(KQ3="-","-",IF(KQ3+1>Premissas!$C$72,"-",KQ3+1)) -> - | KS3: =IF(KR3="-","-",IF(KR3+1>Premissas!$C$72,"-",KR3+1)) -> - | KT3: =IF(KS3="-","-",IF(KS3+1>Premissas!$C$72,"-",KS3+1)) -> - | KU3: =IF(KT3="-","-",IF(KT3+1>Premissas!$C$72,"-",KT3+1)) -> - | KV3: =IF(KU3="-","-",IF(KU3+1>Premissas!$C$72,"-",KU3+1)) -> - | KW3: =IF(KV3="-","-",IF(KV3+1>Premissas!$C$72,"-",KV3+1)) -> - | KX3: =IF(KW3="-","-",IF(KW3+1>Premissas!$C$72,"-",KW3+1)) -> - | KY3: =IF(KX3="-","-",IF(KX3+1>Premissas!$C$72,"-",KX3+1)) -> - | KZ3: =IF(KY3="-","-",IF(KY3+1>Premissas!$C$72,"-",KY3+1)) -> - | LA3: =IF(KZ3="-","-",IF(KZ3+1>Premissas!$C$72,"-",KZ3+1)) -> - | LB3: =IF(LA3="-","-",IF(LA3+1>Premissas!$C$72,"-",LA3+1)) -> - | LC3: =IF(LB3="-","-",IF(LB3+1>Premissas!$C$72,"-",LB3+1)) -> - | LD3: =IF(LC3="-","-",IF(LC3+1>Premissas!$C$72,"-",LC3+1)) -> - | LE3: =IF(LD3="-","-",IF(LD3+1>Premissas!$C$72,"-",LD3+1)) -> - | LF3: =IF(LE3="-","-",IF(LE3+1>Premissas!$C$72,"-",LE3+1)) -> - | LG3: =IF(LF3="-","-",IF(LF3+1>Premissas!$C$72,"-",LF3+1)) -> - | LH3: =IF(LG3="-","-",IF(LG3+1>Premissas!$C$72,"-",LG3+1)) -> - | LI3: =IF(LH3="-","-",IF(LH3+1>Premissas!$C$72,"-",LH3+1)) -> - | LJ3: =IF(LI3="-","-",IF(LI3+1>Premissas!$C$72,"-",LI3+1)) -> - | LK3: =IF(LJ3="-","-",IF(LJ3+1>Premissas!$C$72,"-",LJ3+1)) -> - | LL3: =IF(LK3="-","-",IF(LK3+1>Premissas!$C$72,"-",LK3+1)) -> - | LM3: =IF(LL3="-","-",IF(LL3+1>Premissas!$C$72,"-",LL3+1)) -> - | LN3: =IF(LM3="-","-",IF(LM3+1>Premissas!$C$72,"-",LM3+1)) -> - | LO3: =IF(LN3="-","-",IF(LN3+1>Premissas!$C$72,"-",LN3+1)) -> - | LP3: =IF(LO3="-","-",IF(LO3+1>Premissas!$C$72,"-",LO3+1)) -> - | LQ3: =IF(LP3="-","-",IF(LP3+1>Premissas!$C$72,"-",LP3+1)) -> - | LR3: =IF(LQ3="-","-",IF(LQ3+1>Premissas!$C$72,"-",LQ3+1)) -> - | LS3: =IF(LR3="-","-",IF(LR3+1>Premissas!$C$72,"-",LR3+1)) -> - | LT3: =IF(LS3="-","-",IF(LS3+1>Premissas!$C$72,"-",LS3+1)) -> - | LU3: =IF(LT3="-","-",IF(LT3+1>Premissas!$C$72,"-",LT3+1)) -> - | LV3: =IF(LU3="-","-",IF(LU3+1>Premissas!$C$72,"-",LU3+1)) -> - | LW3: =IF(LV3="-","-",IF(LV3+1>Premissas!$C$72,"-",LV3+1)) -> - | LX3: =IF(LW3="-","-",IF(LW3+1>Premissas!$C$72,"-",LW3+1)) -> - | LY3: =IF(LX3="-","-",IF(LX3+1>Premissas!$C$72,"-",LX3+1)) -> - | LZ3: =IF(LY3="-","-",IF(LY3+1>Premissas!$C$72,"-",LY3+1)) -> - | MA3: =IF(LZ3="-","-",IF(LZ3+1>Premissas!$C$72,"-",LZ3+1)) -> - | MB3: =IF(MA3="-","-",IF(MA3+1>Premissas!$C$72,"-",MA3+1)) -> - | MC3: =IF(MB3="-","-",IF(MB3+1>Premissas!$C$72,"-",MB3+1)) -> - | MD3: =IF(MC3="-","-",IF(MC3+1>Premissas!$C$72,"-",MC3+1)) -> - | ME3: =IF(MD3="-","-",IF(MD3+1>Premissas!$C$72,"-",MD3+1)) -> - | MF3: =IF(ME3="-","-",IF(ME3+1>Premissas!$C$72,"-",ME3+1)) -> - | MG3: =IF(MF3="-","-",IF(MF3+1>Premissas!$C$72,"-",MF3+1)) -> - | MH3: =IF(MG3="-","-",IF(MG3+1>Premissas!$C$72,"-",MG3+1)) -> - | MI3: =IF(MH3="-","-",IF(MH3+1>Premissas!$C$72,"-",MH3+1)) -> - | MJ3: =IF(MI3="-","-",IF(MI3+1>Premissas!$C$72,"-",MI3+1)) -> - | MK3: =IF(MJ3="-","-",IF(MJ3+1>Premissas!$C$72,"-",MJ3+1)) -> - | ML3: =IF(MK3="-","-",IF(MK3+1>Premissas!$C$72,"-",MK3+1)) -> - | MM3: =IF(ML3="-","-",IF(ML3+1>Premissas!$C$72,"-",ML3+1)) -> - | MN3: =IF(MM3="-","-",IF(MM3+1>Premissas!$C$72,"-",MM3+1)) -> - | MO3: =IF(MN3="-","-",IF(MN3+1>Premissas!$C$72,"-",MN3+1)) -> - | MP3: =IF(MO3="-","-",IF(MO3+1>Premissas!$C$72,"-",MO3+1)) -> - | MQ3: =IF(MP3="-","-",IF(MP3+1>Premissas!$C$72,"-",MP3+1)) -> - | MR3: =IF(MQ3="-","-",IF(MQ3+1>Premissas!$C$72,"-",MQ3+1)) -> - | MS3: =IF(MR3="-","-",IF(MR3+1>Premissas!$C$72,"-",MR3+1)) -> - | MT3: =IF(MS3="-","-",IF(MS3+1>Premissas!$C$72,"-",MS3+1)) -> - | MU3: =IF(MT3="-","-",IF(MT3+1>Premissas!$C$72,"-",MT3+1)) -> - | MV3: =IF(MU3="-","-",IF(MU3+1>Premissas!$C$72,"-",MU3+1)) -> - | MW3: =IF(MV3="-","-",IF(MV3+1>Premissas!$C$72,"-",MV3+1)) -> - | MX3: =IF(MW3="-","-",IF(MW3+1>Premissas!$C$72,"-",MW3+1)) -> - | MY3: =IF(MX3="-","-",IF(MX3+1>Premissas!$C$72,"-",MX3+1)) -> - | MZ3: =IF(MY3="-","-",IF(MY3+1>Premissas!$C$72,"-",MY3+1)) -> - | NA3: =IF(MZ3="-","-",IF(MZ3+1>Premissas!$C$72,"-",MZ3+1)) -> - | NB3: =IF(NA3="-","-",IF(NA3+1>Premissas!$C$72,"-",NA3+1)) -> - | NC3: =IF(NB3="-","-",IF(NB3+1>Premissas!$C$72,"-",NB3+1)) -> - | ND3: =IF(NC3="-","-",IF(NC3+1>Premissas!$C$72,"-",NC3+1)) -> - | NE3: =IF(ND3="-","-",IF(ND3+1>Premissas!$C$72,"-",ND3+1)) -> - | NF3: =IF(NE3="-","-",IF(NE3+1>Premissas!$C$72,"-",NE3+1)) -> - | NG3: =IF(NF3="-","-",IF(NF3+1>Premissas!$C$72,"-",NF3+1)) -> - | NH3: =IF(NG3="-","-",IF(NG3+1>Premissas!$C$72,"-",NG3+1)) -> - | NI3: =IF(NH3="-","-",IF(NH3+1>Premissas!$C$72,"-",NH3+1)) -> - | NJ3: =IF(NI3="-","-",IF(NI3+1>Premissas!$C$72,"-",NI3+1)) -> - | NK3: =IF(NJ3="-","-",IF(NJ3+1>Premissas!$C$72,"-",NJ3+1)) -> - | NL3: =IF(NK3="-","-",IF(NK3+1>Premissas!$C$72,"-",NK3+1)) -> - | NM3: =IF(NL3="-","-",IF(NL3+1>Premissas!$C$72,"-",NL3+1)) -> - | NN3: =IF(NM3="-","-",IF(NM3+1>Premissas!$C$72,"-",NM3+1)) -> - | NO3: =IF(NN3="-","-",IF(NN3+1>Premissas!$C$72,"-",NN3+1)) -> - | NP3: =IF(NO3="-","-",IF(NO3+1>Premissas!$C$72,"-",NO3+1)) -> - | NQ3: =IF(NP3="-","-",IF(NP3+1>Premissas!$C$72,"-",NP3+1)) -> - | NR3: =IF(NQ3="-","-",IF(NQ3+1>Premissas!$C$72,"-",NQ3+1)) -> - | NS3: =IF(NR3="-","-",IF(NR3+1>Premissas!$C$72,"-",NR3+1)) -> - | NT3: =IF(NS3="-","-",IF(NS3+1>Premissas!$C$72,"-",NS3+1)) -> - | NU3: =IF(NT3="-","-",IF(NT3+1>Premissas!$C$72,"-",NT3+1)) -> - | NV3: =IF(NU3="-","-",IF(NU3+1>Premissas!$C$72,"-",NU3+1)) -> - | NW3: =IF(NV3="-","-",IF(NV3+1>Premissas!$C$72,"-",NV3+1)) -> - | NX3: =IF(NW3="-","-",IF(NW3+1>Premissas!$C$72,"-",NW3+1)) -> - | NY3: =IF(NX3="-","-",IF(NX3+1>Premissas!$C$72,"-",NX3+1)) -> - | NZ3: =IF(NY3="-","-",IF(NY3+1>Premissas!$C$72,"-",NY3+1)) -> - | OA3: =IF(NZ3="-","-",IF(NZ3+1>Premissas!$C$72,"-",NZ3+1)) -> - | OB3: =IF(OA3="-","-",IF(OA3+1>Premissas!$C$72,"-",OA3+1)) -> - | OC3: =IF(OB3="-","-",IF(OB3+1>Premissas!$C$72,"-",OB3+1)) -> - | OD3: =IF(OC3="-","-",IF(OC3+1>Premissas!$C$72,"-",OC3+1)) -> - | OE3: =IF(OD3="-","-",IF(OD3+1>Premissas!$C$72,"-",OD3+1)) -> - | OF3: =IF(OE3="-","-",IF(OE3+1>Premissas!$C$72,"-",OE3+1)) -> - | OG3: =IF(OF3="-","-",IF(OF3+1>Premissas!$C$72,"-",OF3+1)) -> - | OH3: =IF(OG3="-","-",IF(OG3+1>Premissas!$C$72,"-",OG3+1)) -> - | OI3: =IF(OH3="-","-",IF(OH3+1>Premissas!$C$72,"-",OH3+1)) -> - | OJ3: =IF(OI3="-","-",IF(OI3+1>Premissas!$C$72,"-",OI3+1)) -> - | OK3: =IF(OJ3="-","-",IF(OJ3+1>Premissas!$C$72,"-",OJ3+1)) -> - | OL3: =IF(OK3="-","-",IF(OK3+1>Premissas!$C$72,"-",OK3+1)) -> - | OM3: =IF(OL3="-","-",IF(OL3+1>Premissas!$C$72,"-",OL3+1)) -> - | ON3: =IF(OM3="-","-",IF(OM3+1>Premissas!$C$72,"-",OM3+1)) -> - | OO3: =IF(ON3="-","-",IF(ON3+1>Premissas!$C$72,"-",ON3+1)) -> - | OP3: =IF(OO3="-","-",IF(OO3+1>Premissas!$C$72,"-",OO3+1)) -> - | OQ3: =IF(OP3="-","-",IF(OP3+1>Premissas!$C$72,"-",OP3+1)) -> - | OR3: =IF(OQ3="-","-",IF(OQ3+1>Premissas!$C$72,"-",OQ3+1)) -> - | OS3: =IF(OR3="-","-",IF(OR3+1>Premissas!$C$72,"-",OR3+1)) -> - | OT3: =IF(OS3="-","-",IF(OS3+1>Premissas!$C$72,"-",OS3+1)) -> - | OU3: =IF(OT3="-","-",IF(OT3+1>Premissas!$C$72,"-",OT3+1)) -> - | OV3: =IF(OU3="-","-",IF(OU3+1>Premissas!$C$72,"-",OU3+1)) -> - | OW3: =IF(OV3="-","-",IF(OV3+1>Premissas!$C$72,"-",OV3+1)) -> - | OX3: =IF(OW3="-","-",IF(OW3+1>Premissas!$C$72,"-",OW3+1)) -> - | OY3: =IF(OX3="-","-",IF(OX3+1>Premissas!$C$72,"-",OX3+1)) -> - | OZ3: =IF(OY3="-","-",IF(OY3+1>Premissas!$C$72,"-",OY3+1)) -> - | PA3: =IF(OZ3="-","-",IF(OZ3+1>Premissas!$C$72,"-",OZ3+1)) -> - | PB3: =IF(PA3="-","-",IF(PA3+1>Premissas!$C$72,"-",PA3+1)) -> - | PC3: =IF(PB3="-","-",IF(PB3+1>Premissas!$C$72,"-",PB3+1)) -> - | PD3: =IF(PC3="-","-",IF(PC3+1>Premissas!$C$72,"-",PC3+1)) -> - | PE3: =IF(PD3="-","-",IF(PD3+1>Premissas!$C$72,"-",PD3+1)) -> - | PF3: =IF(PE3="-","-",IF(PE3+1>Premissas!$C$72,"-",PE3+1)) -> - | PG3: =IF(PF3="-","-",IF(PF3+1>Premissas!$C$72,"-",PF3+1)) -> - | PH3: =IF(PG3="-","-",IF(PG3+1>Premissas!$C$72,"-",PG3+1)) -> - | PI3: =IF(PH3="-","-",IF(PH3+1>Premissas!$C$72,"-",PH3+1)) -> - | PJ3: =IF(PI3="-","-",IF(PI3+1>Premissas!$C$72,"-",PI3+1)) -> - | PK3: =IF(PJ3="-","-",IF(PJ3+1>Premissas!$C$72,"-",PJ3+1)) -> - | PL3: =IF(PK3="-","-",IF(PK3+1>Premissas!$C$72,"-",PK3+1)) -> - | PM3: =IF(PL3="-","-",IF(PL3+1>Premissas!$C$72,"-",PL3+1)) -> - | PN3: =IF(PM3="-","-",IF(PM3+1>Premissas!$C$72,"-",PM3+1)) -> - | PO3: =IF(PN3="-","-",IF(PN3+1>Premissas!$C$72,"-",PN3+1)) -> - | PP3: =IF(PO3="-","-",IF(PO3+1>Premissas!$C$72,"-",PO3+1)) -> - | PQ3: =IF(PP3="-","-",IF(PP3+1>Premissas!$C$72,"-",PP3+1)) -> - | PR3: =IF(PQ3="-","-",IF(PQ3+1>Premissas!$C$72,"-",PQ3+1)) -> - | PS3: =IF(PR3="-","-",IF(PR3+1>Premissas!$C$72,"-",PR3+1)) -> - | PT3: =IF(PS3="-","-",IF(PS3+1>Premissas!$C$72,"-",PS3+1)) -> - | PU3: =IF(PT3="-","-",IF(PT3+1>Premissas!$C$72,"-",PT3+1)) -> - | PV3: =IF(PU3="-","-",IF(PU3+1>Premissas!$C$72,"-",PU3+1)) -> - | PW3: =IF(PV3="-","-",IF(PV3+1>Premissas!$C$72,"-",PV3+1)) -> - | PX3: =IF(PW3="-","-",IF(PW3+1>Premissas!$C$72,"-",PW3+1)) -> - | PY3: =IF(PX3="-","-",IF(PX3+1>Premissas!$C$72,"-",PX3+1)) -> - | PZ3: =IF(PY3="-","-",IF(PY3+1>Premissas!$C$72,"-",PY3+1)) -> - | QA3: =IF(PZ3="-","-",IF(PZ3+1>Premissas!$C$72,"-",PZ3+1)) -> - | QB3: =IF(QA3="-","-",IF(QA3+1>Premissas!$C$72,"-",QA3+1)) -> - | QC3: =IF(QB3="-","-",IF(QB3+1>Premissas!$C$72,"-",QB3+1)) -> - | QD3: =IF(QC3="-","-",IF(QC3+1>Premissas!$C$72,"-",QC3+1)) -> - | QE3: =IF(QD3="-","-",IF(QD3+1>Premissas!$C$72,"-",QD3+1)) -> - | QF3: =IF(QE3="-","-",IF(QE3+1>Premissas!$C$72,"-",QE3+1)) -> - | QG3: =IF(QF3="-","-",IF(QF3+1>Premissas!$C$72,"-",QF3+1)) -> - | QH3: =IF(QG3="-","-",IF(QG3+1>Premissas!$C$72,"-",QG3+1)) -> - | QI3: =IF(QH3="-","-",IF(QH3+1>Premissas!$C$72,"-",QH3+1)) -> - | QJ3: =IF(QI3="-","-",IF(QI3+1>Premissas!$C$72,"-",QI3+1)) -> - | QK3: =IF(QJ3="-","-",IF(QJ3+1>Premissas!$C$72,"-",QJ3+1)) -> - | QL3: =IF(QK3="-","-",IF(QK3+1>Premissas!$C$72,"-",QK3+1)) -> - | QM3: =IF(QL3="-","-",IF(QL3+1>Premissas!$C$72,"-",QL3+1)) -> - | QN3: =IF(QM3="-","-",IF(QM3+1>Premissas!$C$72,"-",QM3+1)) -> - | QO3: =IF(QN3="-","-",IF(QN3+1>Premissas!$C$72,"-",QN3+1)) -> - | QP3: =IF(QO3="-","-",IF(QO3+1>Premissas!$C$72,"-",QO3+1)) -> - | QQ3: =IF(QP3="-","-",IF(QP3+1>Premissas!$C$72,"-",QP3+1)) -> - | QR3: =IF(QQ3="-","-",IF(QQ3+1>Premissas!$C$72,"-",QQ3+1)) -> - | QS3: =IF(QR3="-","-",IF(QR3+1>Premissas!$C$72,"-",QR3+1)) -> - | QT3: =IF(QS3="-","-",IF(QS3+1>Premissas!$C$72,"-",QS3+1)) -> - | QU3: =IF(QT3="-","-",IF(QT3+1>Premissas!$C$72,"-",QT3+1)) -> - | QV3: =IF(QU3="-","-",IF(QU3+1>Premissas!$C$72,"-",QU3+1)) -> - | QW3: =IF(QV3="-","-",IF(QV3+1>Premissas!$C$72,"-",QV3+1)) -> - | QX3: =IF(QW3="-","-",IF(QW3+1>Premissas!$C$72,"-",QW3+1)) -> - | QY3: =IF(QX3="-","-",IF(QX3+1>Premissas!$C$72,"-",QX3+1)) -> - | QZ3: =IF(QY3="-","-",IF(QY3+1>Premissas!$C$72,"-",QY3+1)) -> - | RA3: =IF(QZ3="-","-",IF(QZ3+1>Premissas!$C$72,"-",QZ3+1)) -> - | RB3: =IF(RA3="-","-",IF(RA3+1>Premissas!$C$72,"-",RA3+1)) -> - | RC3: =IF(RB3="-","-",IF(RB3+1>Premissas!$C$72,"-",RB3+1)) -> - | RD3: =IF(RC3="-","-",IF(RC3+1>Premissas!$C$72,"-",RC3+1)) -> - | RE3: =IF(RD3="-","-",IF(RD3+1>Premissas!$C$72,"-",RD3+1)) -> - | RF3: =IF(RE3="-","-",IF(RE3+1>Premissas!$C$72,"-",RE3+1)) -> - | RG3: =IF(RF3="-","-",IF(RF3+1>Premissas!$C$72,"-",RF3+1)) -> - | RH3: =IF(RG3="-","-",IF(RG3+1>Premissas!$C$72,"-",RG3+1)) -> - | RI3: =IF(RH3="-","-",IF(RH3+1>Premissas!$C$72,"-",RH3+1)) -> - | RJ3: =IF(RI3="-","-",IF(RI3+1>Premissas!$C$72,"-",RI3+1)) -> - | RK3: =IF(RJ3="-","-",IF(RJ3+1>Premissas!$C$72,"-",RJ3+1)) -> - | RL3: =IF(RK3="-","-",IF(RK3+1>Premissas!$C$72,"-",RK3+1)) -> - | RM3: =IF(RL3="-","-",IF(RL3+1>Premissas!$C$72,"-",RL3+1)) -> - | RN3: =IF(RM3="-","-",IF(RM3+1>Premissas!$C$72,"-",RM3+1)) -> - | RO3: =IF(RN3="-","-",IF(RN3+1>Premissas!$C$72,"-",RN3+1)) -> - | RP3: =IF(RO3="-","-",IF(RO3+1>Premissas!$C$72,"-",RO3+1)) -> - | RQ3: =IF(RP3="-","-",IF(RP3+1>Premissas!$C$72,"-",RP3+1)) -> - | RR3: =IF(RQ3="-","-",IF(RQ3+1>Premissas!$C$72,"-",RQ3+1)) -> - | RS3: =IF(RR3="-","-",IF(RR3+1>Premissas!$C$72,"-",RR3+1)) -> - | RT3: =IF(RS3="-","-",IF(RS3+1>Premissas!$C$72,"-",RS3+1)) -> - | RU3: =IF(RT3="-","-",IF(RT3+1>Premissas!$C$72,"-",RT3+1)) -> - | RV3: =IF(RU3="-","-",IF(RU3+1>Premissas!$C$72,"-",RU3+1)) -> - | RW3: =IF(RV3="-","-",IF(RV3+1>Premissas!$C$72,"-",RV3+1)) -> - | RX3: =IF(RW3="-","-",IF(RW3+1>Premissas!$C$72,"-",RW3+1)) -> - | RY3: =IF(RX3="-","-",IF(RX3+1>Premissas!$C$72,"-",RX3+1)) -> - | RZ3: =IF(RY3="-","-",IF(RY3+1>Premissas!$C$72,"-",RY3+1)) -> - | SA3: =IF(RZ3="-","-",IF(RZ3+1>Premissas!$C$72,"-",RZ3+1)) -> - | SB3: =IF(SA3="-","-",IF(SA3+1>Premissas!$C$72,"-",SA3+1)) -> - | SC3: =IF(SB3="-","-",IF(SB3+1>Premissas!$C$72,"-",SB3+1)) -> - | SD3: =IF(SC3="-","-",IF(SC3+1>Premissas!$C$72,"-",SC3+1)) -> - | SE3: =IF(SD3="-","-",IF(SD3+1>Premissas!$C$72,"-",SD3+1)) -> - | SF3: =IF(SE3="-","-",IF(SE3+1>Premissas!$C$72,"-",SE3+1)) -> - | SG3: =IF(SF3="-","-",IF(SF3+1>Premissas!$C$72,"-",SF3+1)) -> - | SH3: =IF(SG3="-","-",IF(SG3+1>Premissas!$C$72,"-",SG3+1)) -> - | SI3: =IF(SH3="-","-",IF(SH3+1>Premissas!$C$72,"-",SH3+1)) -> - | SJ3: =IF(SI3="-","-",IF(SI3+1>Premissas!$C$72,"-",SI3+1)) -> - | SK3: =IF(SJ3="-","-",IF(SJ3+1>Premissas!$C$72,"-",SJ3+1)) -> - | SL3: =IF(SK3="-","-",IF(SK3+1>Premissas!$C$72,"-",SK3+1)) -> - | SM3: =IF(SL3="-","-",IF(SL3+1>Premissas!$C$72,"-",SL3+1)) -> - | SN3: =IF(SM3="-","-",IF(SM3+1>Premissas!$C$72,"-",SM3+1)) -> - | SO3: =IF(SN3="-","-",IF(SN3+1>Premissas!$C$72,"-",SN3+1)) -> - | SP3: =IF(SO3="-","-",IF(SO3+1>Premissas!$C$72,"-",SO3+1)) -> - | SQ3: =IF(SP3="-","-",IF(SP3+1>Premissas!$C$72,"-",SP3+1)) -> - | SR3: =IF(SQ3="-","-",IF(SQ3+1>Premissas!$C$72,"-",SQ3+1)) -> - | SS3: =IF(SR3="-","-",IF(SR3+1>Premissas!$C$72,"-",SR3+1)) -> - | ST3: =IF(SS3="-","-",IF(SS3+1>Premissas!$C$72,"-",SS3+1)) -> - | SU3: =IF(ST3="-","-",IF(ST3+1>Premissas!$C$72,"-",ST3+1)) -> - | SV3: =IF(SU3="-","-",IF(SU3+1>Premissas!$C$72,"-",SU3+1)) -> - | SW3: =IF(SV3="-","-",IF(SV3+1>Premissas!$C$72,"-",SV3+1)) -> - | SX3: =IF(SW3="-","-",IF(SW3+1>Premissas!$C$72,"-",SW3+1)) -> - | SY3: =IF(SX3="-","-",IF(SX3+1>Premissas!$C$72,"-",SX3+1)) -> - | SZ3: =IF(SY3="-","-",IF(SY3+1>Premissas!$C$72,"-",SY3+1)) -> - | TA3: =IF(SZ3="-","-",IF(SZ3+1>Premissas!$C$72,"-",SZ3+1)) -> - | TB3: =IF(TA3="-","-",IF(TA3+1>Premissas!$C$72,"-",TA3+1)) -> - | TC3: =IF(TB3="-","-",IF(TB3+1>Premissas!$C$72,"-",TB3+1)) -> - | TD3: =IF(TC3="-","-",IF(TC3+1>Premissas!$C$72,"-",TC3+1)) -> - | TE3: =IF(TD3="-","-",IF(TD3+1>Premissas!$C$72,"-",TD3+1)) -> - | TF3: =IF(TE3="-","-",IF(TE3+1>Premissas!$C$72,"-",TE3+1)) -> - | TG3: =IF(TF3="-","-",IF(TF3+1>Premissas!$C$72,"-",TF3+1)) -> - | TH3: =IF(TG3="-","-",IF(TG3+1>Premissas!$C$72,"-",TG3+1)) -> - | TI3: =IF(TH3="-","-",IF(TH3+1>Premissas!$C$72,"-",TH3+1)) -> - | TJ3: =IF(TI3="-","-",IF(TI3+1>Premissas!$C$72,"-",TI3+1)) -> - | TK3: =IF(TJ3="-","-",IF(TJ3+1>Premissas!$C$72,"-",TJ3+1)) -> - | TL3: =IF(TK3="-","-",IF(TK3+1>Premissas!$C$72,"-",TK3+1)) -> - | TM3: =IF(TL3="-","-",IF(TL3+1>Premissas!$C$72,"-",TL3+1)) -> - | TN3: =IF(TM3="-","-",IF(TM3+1>Premissas!$C$72,"-",TM3+1)) -> - | TO3: =IF(TN3="-","-",IF(TN3+1>Premissas!$C$72,"-",TN3+1)) -> - | TP3: =IF(TO3="-","-",IF(TO3+1>Premissas!$C$72,"-",TO3+1)) -> - | TQ3: =IF(TP3="-","-",IF(TP3+1>Premissas!$C$72,"-",TP3+1)) -> - | TR3: =IF(TQ3="-","-",IF(TQ3+1>Premissas!$C$72,"-",TQ3+1)) -> - | TS3: =IF(TR3="-","-",IF(TR3+1>Premissas!$C$72,"-",TR3+1)) -> - | TT3: =IF(TS3="-","-",IF(TS3+1>Premissas!$C$72,"-",TS3+1)) -> - | TU3: =IF(TT3="-","-",IF(TT3+1>Premissas!$C$72,"-",TT3+1)) -> - | TV3: =IF(TU3="-","-",IF(TU3+1>Premissas!$C$72,"-",TU3+1)) -> - | TW3: =IF(TV3="-","-",IF(TV3+1>Premissas!$C$72,"-",TV3+1)) -> - | TX3: =IF(TW3="-","-",IF(TW3+1>Premissas!$C$72,"-",TW3+1)) -> - | TY3: =IF(TX3="-","-",IF(TX3+1>Premissas!$C$72,"-",TX3+1)) -> - | TZ3: =IF(TY3="-","-",IF(TY3+1>Premissas!$C$72,"-",TY3+1)) -> - | UA3: =IF(TZ3="-","-",IF(TZ3+1>Premissas!$C$72,"-",TZ3+1)) -> - | UB3: =IF(UA3="-","-",IF(UA3+1>Premissas!$C$72,"-",UA3+1)) -> - | UC3: =IF(UB3="-","-",IF(UB3+1>Premissas!$C$72,"-",UB3+1)) -> - | UD3: =IF(UC3="-","-",IF(UC3+1>Premissas!$C$72,"-",UC3+1)) -> - | UE3: =IF(UD3="-","-",IF(UD3+1>Premissas!$C$72,"-",UD3+1)) -> - | UF3: =IF(UE3="-","-",IF(UE3+1>Premissas!$C$72,"-",UE3+1)) -> - | UG3: =IF(UF3="-","-",IF(UF3+1>Premissas!$C$72,"-",UF3+1)) -> - | UH3: =IF(UG3="-","-",IF(UG3+1>Premissas!$C$72,"-",UG3+1)) -> - | UI3: =IF(UH3="-","-",IF(UH3+1>Premissas!$C$72,"-",UH3+1)) -> - | UJ3: =IF(UI3="-","-",IF(UI3+1>Premissas!$C$72,"-",UI3+1)) -> - | UK3: =IF(UJ3="-","-",IF(UJ3+1>Premissas!$C$72,"-",UJ3+1)) -> - | UL3: =IF(UK3="-","-",IF(UK3+1>Premissas!$C$72,"-",UK3+1)) -> - | UM3: =IF(UL3="-","-",IF(UL3+1>Premissas!$C$72,"-",UL3+1)) -> - | UN3: =IF(UM3="-","-",IF(UM3+1>Premissas!$C$72,"-",UM3+1)) -> - | UO3: =IF(UN3="-","-",IF(UN3+1>Premissas!$C$72,"-",UN3+1)) -> - | UP3: =IF(UO3="-","-",IF(UO3+1>Premissas!$C$72,"-",UO3+1)) -> - | UQ3: =IF(UP3="-","-",IF(UP3+1>Premissas!$C$72,"-",UP3+1)) -> - | UR3: =IF(UQ3="-","-",IF(UQ3+1>Premissas!$C$72,"-",UQ3+1)) -> - | US3: =IF(UR3="-","-",IF(UR3+1>Premissas!$C$72,"-",UR3+1)) -> - | UT3: =IF(US3="-","-",IF(US3+1>Premissas!$C$72,"-",US3+1)) -> - | UU3: =IF(UT3="-","-",IF(UT3+1>Premissas!$C$72,"-",UT3+1)) -> - | UV3: =IF(UU3="-","-",IF(UU3+1>Premissas!$C$72,"-",UU3+1)) -> - | UW3: =IF(UV3="-","-",IF(UV3+1>Premissas!$C$72,"-",UV3+1)) -> - | UX3: =IF(UW3="-","-",IF(UW3+1>Premissas!$C$72,"-",UW3+1)) -> - | UY3: =IF(UX3="-","-",IF(UX3+1>Premissas!$C$72,"-",UX3+1)) -> - | UZ3: =IF(UY3="-","-",IF(UY3+1>Premissas!$C$72,"-",UY3+1)) -> - | VA3: =IF(UZ3="-","-",IF(UZ3+1>Premissas!$C$72,"-",UZ3+1)) -> - | VB3: =IF(VA3="-","-",IF(VA3+1>Premissas!$C$72,"-",VA3+1)) -> - | VC3: =IF(VB3="-","-",IF(VB3+1>Premissas!$C$72,"-",VB3+1)) -> - | VD3: =IF(VC3="-","-",IF(VC3+1>Premissas!$C$72,"-",VC3+1)) -> - | VE3: =IF(VD3="-","-",IF(VD3+1>Premissas!$C$72,"-",VD3+1)) -> - | VF3: =IF(VE3="-","-",IF(VE3+1>Premissas!$C$72,"-",VE3+1)) -> - | VG3: =IF(VF3="-","-",IF(VF3+1>Premissas!$C$72,"-",VF3+1)) -> - | VH3: =IF(VG3="-","-",IF(VG3+1>Premissas!$C$72,"-",VG3+1)) -> - | VI3: =IF(VH3="-","-",IF(VH3+1>Premissas!$C$72,"-",VH3+1)) -> - | VJ3: =IF(VI3="-","-",IF(VI3+1>Premissas!$C$72,"-",VI3+1)) -> - | VK3: =IF(VJ3="-","-",IF(VJ3+1>Premissas!$C$72,"-",VJ3+1)) -> - | VL3: =IF(VK3="-","-",IF(VK3+1>Premissas!$C$72,"-",VK3+1)) -> - | VM3: =IF(VL3="-","-",IF(VL3+1>Premissas!$C$72,"-",VL3+1)) -> - | VN3: =IF(VM3="-","-",IF(VM3+1>Premissas!$C$72,"-",VM3+1)) -> - | VO3: =IF(VN3="-","-",IF(VN3+1>Premissas!$C$72,"-",VN3+1)) -> - | VP3: =IF(VO3="-","-",IF(VO3+1>Premissas!$C$72,"-",VO3+1)) -> - | VQ3: =IF(VP3="-","-",IF(VP3+1>Premissas!$C$72,"-",VP3+1)) -> - | VR3: =IF(VQ3="-","-",IF(VQ3+1>Premissas!$C$72,"-",VQ3+1)) -> - | VS3: =IF(VR3="-","-",IF(VR3+1>Premissas!$C$72,"-",VR3+1)) -> - | VT3: =IF(VS3="-","-",IF(VS3+1>Premissas!$C$72,"-",VS3+1)) -> - | VU3: =IF(VT3="-","-",IF(VT3+1>Premissas!$C$72,"-",VT3+1)) -> - | VV3: =IF(VU3="-","-",IF(VU3+1>Premissas!$C$72,"-",VU3+1)) -> - | VW3: =IF(VV3="-","-",IF(VV3+1>Premissas!$C$72,"-",VV3+1)) -> - | VX3: =IF(VW3="-","-",IF(VW3+1>Premissas!$C$72,"-",VW3+1)) -> - | VY3: =IF(VX3="-","-",IF(VX3+1>Premissas!$C$72,"-",VX3+1)) -> - | VZ3: =IF(VY3="-","-",IF(VY3+1>Premissas!$C$72,"-",VY3+1)) -> - | WA3: =IF(VZ3="-","-",IF(VZ3+1>Premissas!$C$72,"-",VZ3+1)) -> - | WB3: =IF(WA3="-","-",IF(WA3+1>Premissas!$C$72,"-",WA3+1)) -> - | WC3: =IF(WB3="-","-",IF(WB3+1>Premissas!$C$72,"-",WB3+1)) -> - | WD3: =IF(WC3="-","-",IF(WC3+1>Premissas!$C$72,"-",WC3+1)) -> -
B4: ANO | C4: 2024 | D4: =IF(D2="-","-",IF(D5=1,C4+1,C4)) -> 2025 | E4: =IF(E2="-","-",IF(E5=1,D4+1,D4)) -> 2026 | F4: 2027 | G4: 2028 | H4: 2029 | I4: 2030 | J4: 2031 | K4: 2032 | L4: 2033 | M4: 2034 | N4: 2035 | O4: 2036 | P4: 2037 | Q4: 2038 | R4: 2039 | S4: 2040 | T4: 2041 | U4: 2042 | V4: 2043 | W4: 2044 | X4: 2045 | Y4: 2046 | Z4: 2047 | AA4: 2048 | AB4: 2049 | AC4: 2050 | AD4: 2051 | AE4: 2052 | AF4: 2053 | AG4: 2054 | AH4: - | AI4: - | AJ4: - | AK4: - | AL4: - | AM4: - | AN4: - | AO4: - | AP4: - | AQ4: - | AR4: - | AS4: - | AT4: - | AU4: - | AV4: - | AW4: - | AX4: - | AY4: - | AZ4: - | BA4: - | BB4: - | BC4: - | BD4: - | BE4: - | BF4: - | BG4: - | BH4: - | BI4: - | BJ4: - | BK4: - | BL4: - | BM4: - | BN4: - | BO4: - | BP4: - | BQ4: =IF(BQ2="-","-",IF(BQ5=1,BP4+1,BP4)) -> - | BR4: - | BS4: - | BT4: - | BU4: - | BV4: - | BW4: - | BX4: - | BY4: - | BZ4: - | CA4: - | CB4: - | CC4: - | CD4: - | CE4: - | CF4: - | CG4: - | CH4: - | CI4: - | CJ4: - | CK4: - | CL4: - | CM4: - | CN4: - | CO4: - | CP4: - | CQ4: - | CR4: - | CS4: - | CT4: - | CU4: - | CV4: - | CW4: - | CX4: - | CY4: - | CZ4: - | DA4: - | DB4: - | DC4: - | DD4: - | DE4: - | DF4: - | DG4: - | DH4: - | DI4: - | DJ4: - | DK4: - | DL4: - | DM4: - | DN4: - | DO4: - | DP4: - | DQ4: - | DR4: - | DS4: - | DT4: - | DU4: - | DV4: - | DW4: - | DX4: - | DY4: - | DZ4: - | EA4: - | EB4: - | EC4: =IF(EC2="-","-",IF(EC5=1,EB4+1,EB4)) -> - | ED4: - | EE4: - | EF4: - | EG4: - | EH4: - | EI4: - | EJ4: - | EK4: - | EL4: - | EM4: - | EN4: - | EO4: - | EP4: - | EQ4: - | ER4: - | ES4: - | ET4: - | EU4: - | EV4: - | EW4: - | EX4: - | EY4: - | EZ4: - | FA4: - | FB4: - | FC4: - | FD4: - | FE4: - | FF4: - | FG4: - | FH4: - | FI4: - | FJ4: - | FK4: - | FL4: - | FM4: - | FN4: - | FO4: - | FP4: - | FQ4: - | FR4: - | FS4: - | FT4: - | FU4: - | FV4: - | FW4: - | FX4: - | FY4: - | FZ4: - | GA4: - | GB4: - | GC4: - | GD4: - | GE4: - | GF4: - | GG4: - | GH4: - | GI4: - | GJ4: - | GK4: - | GL4: - | GM4: - | GN4: - | GO4: =IF(GO2="-","-",IF(GO5=1,GN4+1,GN4)) -> - | GP4: - | GQ4: - | GR4: - | GS4: - | GT4: - | GU4: - | GV4: - | GW4: - | GX4: - | GY4: - | GZ4: - | HA4: - | HB4: - | HC4: - | HD4: - | HE4: - | HF4: - | HG4: - | HH4: - | HI4: - | HJ4: - | HK4: - | HL4: - | HM4: - | HN4: - | HO4: - | HP4: - | HQ4: - | HR4: - | HS4: - | HT4: - | HU4: - | HV4: - | HW4: - | HX4: - | HY4: - | HZ4: - | IA4: - | IB4: - | IC4: - | ID4: - | IE4: - | IF4: - | IG4: - | IH4: - | II4: - | IJ4: - | IK4: - | IL4: - | IM4: - | IN4: - | IO4: - | IP4: - | IQ4: - | IR4: - | IS4: - | IT4: - | IU4: - | IV4: - | IW4: - | IX4: - | IY4: - | IZ4: - | JA4: =IF(JA2="-","-",IF(JA5=1,IZ4+1,IZ4)) -> - | JB4: - | JC4: - | JD4: - | JE4: - | JF4: - | JG4: - | JH4: - | JI4: - | JJ4: - | JK4: - | JL4: - | JM4: - | JN4: - | JO4: - | JP4: - | JQ4: - | JR4: - | JS4: - | JT4: - | JU4: - | JV4: - | JW4: - | JX4: - | JY4: - | JZ4: - | KA4: - | KB4: - | KC4: - | KD4: - | KE4: - | KF4: - | KG4: - | KH4: - | KI4: - | KJ4: - | KK4: - | KL4: - | KM4: - | KN4: - | KO4: - | KP4: - | KQ4: - | KR4: - | KS4: - | KT4: - | KU4: - | KV4: - | KW4: - | KX4: - | KY4: - | KZ4: - | LA4: - | LB4: - | LC4: - | LD4: - | LE4: - | LF4: - | LG4: - | LH4: - | LI4: - | LJ4: - | LK4: - | LL4: - | LM4: =IF(LM2="-","-",IF(LM5=1,LL4+1,LL4)) -> - | LN4: - | LO4: - | LP4: - | LQ4: - | LR4: - | LS4: - | LT4: - | LU4: - | LV4: - | LW4: - | LX4: - | LY4: - | LZ4: - | MA4: - | MB4: - | MC4: - | MD4: - | ME4: - | MF4: - | MG4: - | MH4: - | MI4: - | MJ4: - | MK4: - | ML4: - | MM4: - | MN4: - | MO4: - | MP4: - | MQ4: - | MR4: - | MS4: - | MT4: - | MU4: - | MV4: - | MW4: - | MX4: - | MY4: - | MZ4: - | NA4: - | NB4: - | NC4: - | ND4: - | NE4: - | NF4: - | NG4: - | NH4: - | NI4: - | NJ4: - | NK4: - | NL4: - | NM4: - | NN4: - | NO4: - | NP4: - | NQ4: - | NR4: - | NS4: - | NT4: - | NU4: - | NV4: - | NW4: - | NX4: - | NY4: =IF(NY2="-","-",IF(NY5=1,NX4+1,NX4)) -> - | NZ4: - | OA4: - | OB4: - | OC4: - | OD4: - | OE4: - | OF4: - | OG4: - | OH4: - | OI4: - | OJ4: - | OK4: - | OL4: - | OM4: - | ON4: - | OO4: - | OP4: - | OQ4: - | OR4: - | OS4: - | OT4: - | OU4: - | OV4: - | OW4: - | OX4: - | OY4: - | OZ4: - | PA4: - | PB4: - | PC4: - | PD4: - | PE4: - | PF4: - | PG4: - | PH4: - | PI4: - | PJ4: - | PK4: - | PL4: - | PM4: - | PN4: - | PO4: - | PP4: - | PQ4: - | PR4: - | PS4: - | PT4: - | PU4: - | PV4: - | PW4: - | PX4: - | PY4: - | PZ4: - | QA4: - | QB4: - | QC4: - | QD4: - | QE4: - | QF4: - | QG4: - | QH4: - | QI4: - | QJ4: - | QK4: =IF(QK2="-","-",IF(QK5=1,QJ4+1,QJ4)) -> - | QL4: - | QM4: - | QN4: - | QO4: - | QP4: - | QQ4: - | QR4: - | QS4: - | QT4: - | QU4: - | QV4: - | QW4: - | QX4: - | QY4: - | QZ4: - | RA4: - | RB4: - | RC4: - | RD4: - | RE4: - | RF4: - | RG4: - | RH4: - | RI4: - | RJ4: - | RK4: - | RL4: - | RM4: - | RN4: - | RO4: - | RP4: - | RQ4: - | RR4: - | RS4: - | RT4: - | RU4: - | RV4: - | RW4: - | RX4: - | RY4: - | RZ4: - | SA4: - | SB4: - | SC4: - | SD4: - | SE4: - | SF4: - | SG4: - | SH4: - | SI4: - | SJ4: - | SK4: - | SL4: - | SM4: - | SN4: - | SO4: - | SP4: - | SQ4: - | SR4: - | SS4: - | ST4: - | SU4: - | SV4: - | SW4: =IF(SW2="-","-",IF(SW5=1,SV4+1,SV4)) -> - | SX4: - | SY4: - | SZ4: - | TA4: - | TB4: - | TC4: - | TD4: - | TE4: - | TF4: - | TG4: - | TH4: - | TI4: - | TJ4: - | TK4: - | TL4: - | TM4: - | TN4: - | TO4: - | TP4: - | TQ4: - | TR4: - | TS4: - | TT4: - | TU4: - | TV4: - | TW4: - | TX4: - | TY4: - | TZ4: - | UA4: - | UB4: - | UC4: - | UD4: - | UE4: - | UF4: - | UG4: - | UH4: - | UI4: - | UJ4: - | UK4: - | UL4: - | UM4: - | UN4: - | UO4: - | UP4: - | UQ4: - | UR4: - | US4: - | UT4: - | UU4: - | UV4: - | UW4: - | UX4: - | UY4: - | UZ4: - | VA4: - | VB4: - | VC4: - | VD4: - | VE4: - | VF4: - | VG4: - | VH4: - | VI4: =IF(VI2="-","-",IF(VI5=1,VH4+1,VH4)) -> - | VJ4: - | VK4: - | VL4: - | VM4: - | VN4: - | VO4: - | VP4: - | VQ4: - | VR4: - | VS4: - | VT4: - | VU4: - | VV4: - | VW4: - | VX4: - | VY4: - | VZ4: - | WA4: - | WB4: - | WC4: - | WD4: -
B5: PERÍODO DO ANO | C5: 1 | D5: 1 | E5: 1 | F5: 1 | G5: 1 | H5: 1 | I5: 1 | J5: 1 | K5: 1 | L5: 1 | M5: 1 | N5: 1 | O5: 1 | P5: 1 | Q5: 1 | R5: 1 | S5: 1 | T5: 1 | U5: 1 | V5: 1 | W5: 1 | X5: 1 | Y5: 1 | Z5: 1 | AA5: 1 | AB5: 1 | AC5: 1 | AD5: 1 | AE5: 1 | AF5: 1 | AG5: 1 | AH5: 1 | AI5: 1 | AJ5: 1 | AK5: 1 | AL5: 1 | AM5: 1 | AN5: 1 | AO5: 1 | AP5: 1 | AQ5: 1 | AR5: 1 | AS5: 1 | AT5: 1 | AU5: 1 | AV5: 1 | AW5: 1 | AX5: 1 | AY5: 1 | AZ5: 1 | BA5: 1 | BB5: 1 | BC5: 1 | BD5: 1 | BE5: 1 | BF5: 1 | BG5: 1 | BH5: 1 | BI5: 1 | BJ5: 1 | BK5: 1 | BL5: 1 | BM5: 1 | BN5: 1 | BO5: 1 | BP5: 1 | BQ5: 1 | BR5: 1 | BS5: 1 | BT5: 1 | BU5: 1 | BV5: 1 | BW5: 1 | BX5: 1 | BY5: 1 | BZ5: 1 | CA5: 1 | CB5: 1 | CC5: 1 | CD5: 1 | CE5: 1 | CF5: 1 | CG5: 1 | CH5: 1 | CI5: 1 | CJ5: 1 | CK5: 1 | CL5: 1 | CM5: 1 | CN5: 1 | CO5: 1 | CP5: 1 | CQ5: 1 | CR5: 1 | CS5: 1 | CT5: 1 | CU5: 1 | CV5: 1 | CW5: 1 | CX5: 1 | CY5: 1 | CZ5: 1 | DA5: 1 | DB5: 1 | DC5: 1 | DD5: 1 | DE5: 1 | DF5: 1 | DG5: 1 | DH5: 1 | DI5: 1 | DJ5: 1 | DK5: 1 | DL5: 1 | DM5: 1 | DN5: 1 | DO5: 1 | DP5: 1 | DQ5: 1 | DR5: 1 | DS5: 1 | DT5: 1 | DU5: 1 | DV5: 1 | DW5: 1 | DX5: 1 | DY5: 1 | DZ5: 1 | EA5: 1 | EB5: 1 | EC5: 1 | ED5: 1 | EE5: 1 | EF5: 1 | EG5: 1 | EH5: 1 | EI5: 1 | EJ5: 1 | EK5: 1 | EL5: 1 | EM5: 1 | EN5: 1 | EO5: 1 | EP5: 1 | EQ5: 1 | ER5: 1 | ES5: 1 | ET5: 1 | EU5: 1 | EV5: 1 | EW5: 1 | EX5: 1 | EY5: 1 | EZ5: 1 | FA5: 1 | FB5: 1 | FC5: 1 | FD5: 1 | FE5: 1 | FF5: 1 | FG5: 1 | FH5: 1 | FI5: 1 | FJ5: 1 | FK5: 1 | FL5: 1 | FM5: 1 | FN5: 1 | FO5: 1 | FP5: 1 | FQ5: 1 | FR5: 1 | FS5: 1 | FT5: 1 | FU5: 1 | FV5: 1 | FW5: 1 | FX5: 1 | FY5: 1 | FZ5: 1 | GA5: 1 | GB5: 1 | GC5: 1 | GD5: 1 | GE5: 1 | GF5: 1 | GG5: 1 | GH5: 1 | GI5: 1 | GJ5: 1 | GK5: 1 | GL5: 1 | GM5: 1 | GN5: 1 | GO5: 1 | GP5: 1 | GQ5: 1 | GR5: 1 | GS5: 1 | GT5: 1 | GU5: 1 | GV5: 1 | GW5: 1 | GX5: 1 | GY5: 1 | GZ5: 1 | HA5: 1 | HB5: 1 | HC5: 1 | HD5: 1 | HE5: 1 | HF5: 1 | HG5: 1 | HH5: 1 | HI5: 1 | HJ5: 1 | HK5: 1 | HL5: 1 | HM5: 1 | HN5: 1 | HO5: 1 | HP5: 1 | HQ5: 1 | HR5: 1 | HS5: 1 | HT5: 1 | HU5: 1 | HV5: 1 | HW5: 1 | HX5: 1 | HY5: 1 | HZ5: 1 | IA5: 1 | IB5: 1 | IC5: 1 | ID5: 1 | IE5: 1 | IF5: 1 | IG5: 1 | IH5: 1 | II5: 1 | IJ5: 1 | IK5: 1 | IL5: 1 | IM5: 1 | IN5: 1 | IO5: 1 | IP5: 1 | IQ5: 1 | IR5: 1 | IS5: 1 | IT5: 1 | IU5: 1 | IV5: 1 | IW5: 1 | IX5: 1 | IY5: 1 | IZ5: 1 | JA5: 1 | JB5: 1 | JC5: 1 | JD5: 1 | JE5: 1 | JF5: 1 | JG5: 1 | JH5: 1 | JI5: 1 | JJ5: 1 | JK5: 1 | JL5: 1 | JM5: 1 | JN5: 1 | JO5: 1 | JP5: 1 | JQ5: 1 | JR5: 1 | JS5: 1 | JT5: 1 | JU5: 1 | JV5: 1 | JW5: 1 | JX5: 1 | JY5: 1 | JZ5: 1 | KA5: 1 | KB5: 1 | KC5: 1 | KD5: 1 | KE5: 1 | KF5: 1 | KG5: 1 | KH5: 1 | KI5: 1 | KJ5: 1 | KK5: 1 | KL5: 1 | KM5: 1 | KN5: 1 | KO5: 1 | KP5: 1 | KQ5: 1 | KR5: 1 | KS5: 1 | KT5: 1 | KU5: 1 | KV5: 1 | KW5: 1 | KX5: 1 | KY5: 1 | KZ5: 1 | LA5: 1 | LB5: 1 | LC5: 1 | LD5: 1 | LE5: 1 | LF5: 1 | LG5: 1 | LH5: 1 | LI5: 1 | LJ5: 1 | LK5: 1 | LL5: 1 | LM5: 1 | LN5: 1 | LO5: 1 | LP5: 1 | LQ5: 1 | LR5: 1 | LS5: 1 | LT5: 1 | LU5: 1 | LV5: 1 | LW5: 1 | LX5: 1 | LY5: 1 | LZ5: 1 | MA5: 1 | MB5: 1 | MC5: 1 | MD5: 1 | ME5: 1 | MF5: 1 | MG5: 1 | MH5: 1 | MI5: 1 | MJ5: 1 | MK5: 1 | ML5: 1 | MM5: 1 | MN5: 1 | MO5: 1 | MP5: 1 | MQ5: 1 | MR5: 1 | MS5: 1 | MT5: 1 | MU5: 1 | MV5: 1 | MW5: 1 | MX5: 1 | MY5: 1 | MZ5: 1 | NA5: 1 | NB5: 1 | NC5: 1 | ND5: 1 | NE5: 1 | NF5: 1 | NG5: 1 | NH5: 1 | NI5: 1 | NJ5: 1 | NK5: 1 | NL5: 1 | NM5: 1 | NN5: 1 | NO5: 1 | NP5: 1 | NQ5: 1 | NR5: 1 | NS5: 1 | NT5: 1 | NU5: 1 | NV5: 1 | NW5: 1 | NX5: 1 | NY5: 1 | NZ5: 1 | OA5: 1 | OB5: 1 | OC5: 1 | OD5: 1 | OE5: 1 | OF5: 1 | OG5: 1 | OH5: 1 | OI5: 1 | OJ5: 1 | OK5: 1 | OL5: 1 | OM5: 1 | ON5: 1 | OO5: 1 | OP5: 1 | OQ5: 1 | OR5: 1 | OS5: 1 | OT5: 1 | OU5: 1 | OV5: 1 | OW5: 1 | OX5: 1 | OY5: 1 | OZ5: 1 | PA5: 1 | PB5: 1 | PC5: 1 | PD5: 1 | PE5: 1 | PF5: 1 | PG5: 1 | PH5: 1 | PI5: 1 | PJ5: 1 | PK5: 1 | PL5: 1 | PM5: 1 | PN5: 1 | PO5: 1 | PP5: 1 | PQ5: 1 | PR5: 1 | PS5: 1 | PT5: 1 | PU5: 1 | PV5: 1 | PW5: 1 | PX5: 1 | PY5: 1 | PZ5: 1 | QA5: 1 | QB5: 1 | QC5: 1 | QD5: 1 | QE5: 1 | QF5: 1 | QG5: 1 | QH5: 1 | QI5: 1 | QJ5: 1 | QK5: 1 | QL5: 1 | QM5: 1 | QN5: 1 | QO5: 1 | QP5: 1 | QQ5: 1 | QR5: 1 | QS5: 1 | QT5: 1 | QU5: 1 | QV5: 1 | QW5: 1 | QX5: 1 | QY5: 1 | QZ5: 1 | RA5: 1 | RB5: 1 | RC5: 1 | RD5: 1 | RE5: 1 | RF5: 1 | RG5: 1 | RH5: 1 | RI5: 1 | RJ5: 1 | RK5: 1 | RL5: 1 | RM5: 1 | RN5: 1 | RO5: 1 | RP5: 1 | RQ5: 1 | RR5: 1 | RS5: 1 | RT5: 1 | RU5: 1 | RV5: 1 | RW5: 1 | RX5: 1 | RY5: 1 | RZ5: 1 | SA5: 1 | SB5: 1 | SC5: 1 | SD5: 1 | SE5: 1 | SF5: 1 | SG5: 1 | SH5: 1 | SI5: 1 | SJ5: 1 | SK5: 1 | SL5: 1 | SM5: 1 | SN5: 1 | SO5: 1 | SP5: 1 | SQ5: 1 | SR5: 1 | SS5: 1 | ST5: 1 | SU5: 1 | SV5: 1 | SW5: 1 | SX5: 1 | SY5: 1 | SZ5: 1 | TA5: 1 | TB5: 1 | TC5: 1 | TD5: 1 | TE5: 1 | TF5: 1 | TG5: 1 | TH5: 1 | TI5: 1 | TJ5: 1 | TK5: 1 | TL5: 1 | TM5: 1 | TN5: 1 | TO5: 1 | TP5: 1 | TQ5: 1 | TR5: 1 | TS5: 1 | TT5: 1 | TU5: 1 | TV5: 1 | TW5: 1 | TX5: 1 | TY5: 1 | TZ5: 1 | UA5: 1 | UB5: 1 | UC5: 1 | UD5: 1 | UE5: 1 | UF5: 1 | UG5: 1 | UH5: 1 | UI5: 1 | UJ5: 1 | UK5: 1 | UL5: 1 | UM5: 1 | UN5: 1 | UO5: 1 | UP5: 1 | UQ5: 1 | UR5: 1 | US5: 1 | UT5: 1 | UU5: 1 | UV5: 1 | UW5: 1 | UX5: 1 | UY5: 1 | UZ5: 1 | VA5: 1 | VB5: 1 | VC5: 1 | VD5: 1 | VE5: 1 | VF5: 1 | VG5: 1 | VH5: 1 | VI5: 1 | VJ5: 1 | VK5: 1 | VL5: 1 | VM5: 1 | VN5: 1 | VO5: 1 | VP5: 1 | VQ5: 1 | VR5: 1 | VS5: 1 | VT5: 1 | VU5: 1 | VV5: 1 | VW5: 1 | VX5: 1 | VY5: 1 | VZ5: 1 | WA5: 1 | WB5: 1 | WC5: 1 | WD5: 1
B7: Premissas Operacionais, Capex e Opex
B9: Nome do Ativo
B10: Processamento
B12: Investimento Inicial
B13: Base Regulatória de Ativos (BRA) (US$ mi) | C13: 1
B14: Fator de localização dos custos | C14: 1.5
B16: Opex
B17: Opex Fixo (US$ mi)
B18: Opex Variável (US$ mi)
B20: Capacidade
B21: Capacidade Output GNS (Mm3/dia) | C21: 1 | D21: 1 | E21: 1 | F21: 1 | G21: 1 | H21: 1 | I21: 1 | J21: 1 | K21: 1 | L21: 1 | M21: 1 | N21: 1 | O21: 1 | P21: 1 | Q21: 1 | R21: 1 | S21: 1 | T21: 1 | U21: 1 | V21: 1 | W21: 1 | X21: 1 | Y21: 1 | Z21: 1 | AA21: 1 | AB21: 1 | AC21: 1 | AD21: 1 | AE21: 1 | AF21: 1 | AG21: 1 | AH21: 1 | AI21: 1 | AJ21: 1 | AK21: 1 | AL21: 1 | AM21: 1 | AN21: 1 | AO21: 1 | AP21: 1 | AQ21: 1 | AR21: 1 | AS21: 1 | AT21: 1 | AU21: 1 | AV21: 1 | AW21: 1 | AX21: 1 | AY21: 1 | AZ21: 1 | BA21: 1 | BB21: 1 | BC21: 1 | BD21: 1 | BE21: 1 | BF21: 1 | BG21: 1 | BH21: 1 | BI21: 1 | BJ21: 1 | BK21: 1 | BL21: 1 | BM21: 1 | BN21: 1 | BO21: 1 | BP21: 1 | BQ21: 1 | BR21: 1 | BS21: 1 | BT21: 1 | BU21: 1 | BV21: 1 | BW21: 1 | BX21: 1 | BY21: 1 | BZ21: 1 | CA21: 1 | CB21: 1 | CC21: 1 | CD21: 1 | CE21: 1 | CF21: 1 | CG21: 1 | CH21: 1 | CI21: 1
B22: Capacidade Input UPGN (Mm3/dia) | C22: 1.1 | D22: 1.1 | E22: 1.1 | F22: 1.1 | G22: 1.1 | H22: 1.1 | I22: 1.1 | J22: 1.1 | K22: 1.1 | L22: 1.1 | M22: 1.1 | N22: 1.1 | O22: 1.1 | P22: 1.1 | Q22: 1.1 | R22: 1.1 | S22: 1.1 | T22: 1.1 | U22: 1.1 | V22: 1.1 | W22: 1.1 | X22: 1.1 | Y22: 1.1 | Z22: 1.1 | AA22: 1.1 | AB22: 1.1 | AC22: 1.1 | AD22: 1.1 | AE22: 1.1 | AF22: 1.1 | AG22: 1.1 | AH22: 1.1 | AI22: 1.1 | AJ22: 1.1 | AK22: 1.1 | AL22: 1.1 | AM22: 1.1 | AN22: 1.1 | AO22: 1.1 | AP22: 1.1 | AQ22: 1.1 | AR22: 1.1 | AS22: 1.1 | AT22: 1.1 | AU22: 1.1 | AV22: 1.1 | AW22: 1.1 | AX22: 1.1 | AY22: 1.1 | AZ22: 1.1 | BA22: 1.1 | BB22: 1.1 | BC22: 1.1 | BD22: 1.1 | BE22: 1.1 | BF22: 1.1 | BG22: 1.1 | BH22: 1.1 | BI22: 1.1 | BJ22: 1.1 | BK22: 1.1 | BL22: 1.1 | BM22: 1.1 | BN22: 1.1 | BO22: 1.1 | BP22: 1.1 | BQ22: 1.1 | BR22: 1.1 | BS22: 1.1 | BT22: 1.1 | BU22: 1.1 | BV22: 1.1 | BW22: 1.1 | BX22: 1.1 | BY22: 1.1 | BZ22: 1.1 | CA22: 1.1 | CB22: 1.1 | CC22: 1.1 | CD22: 1.1 | CE22: 1.1 | CF22: 1.1 | CG22: 1.1 | CH22: 1.1 | CI22: 1.1
B23: Produção GLP (mil m3/dia)
B24: Produção C5+ (mil m3/dia)
B26: Prazos Operação
B27: Vida Útil de Operação (anos) | C27: 30
B28: Ano Base da BRA (anos) | C28: 1
B29: Vida Útil de Operação + Ano Base (anos) | C29: =C27+C28 -> 31
B31: Custo de Capital Próprio, Custo de Capital de Terceiros e Custo Médio Ponderado de Capital
B33: Total da Dívida/Capital Total [D/(D+E)] | C33: 0.3
B35: Modelo Real (R) ou Nominal (N) | C35: R
B36: Custo da Divida | C36: =7.89/100 -> 0.0789
B37: Custo do Capital Próprio | C37: =9.64/100 -> 0.0964
B38: Custo Médio Ponderado de Capital, em termos reais (% a.a.) | C38: =((1-C33)*C37)+(C33*C36*(1-34%)) -> 0.0831022

Sheet Premissas
B1: =Inputs!B10 -> Processamento | F1: Input | G1: Fórmulas | H1: Sensibilidade
B2: Fase (C = Construção; O = Operação) | C2: =IF(C3<=Premissas!$C$74,"C",IF(C3="-","-","O")) -> C | D2: =IF(D3<=Premissas!$C$74,"C",IF(D3="-","-","O")) -> O | E2: =IF(E3<=Premissas!$C$74,"C",IF(E3="-","-","O")) -> O | F2: =IF(F3<=Premissas!$C$74,"C",IF(F3="-","-","O")) -> O | G2: =IF(G3<=Premissas!$C$74,"C",IF(G3="-","-","O")) -> O | H2: =IF(H3<=Premissas!$C$74,"C",IF(H3="-","-","O")) -> O | I2: =IF(I3<=Premissas!$C$74,"C",IF(I3="-","-","O")) -> O | J2: =IF(J3<=Premissas!$C$74,"C",IF(J3="-","-","O")) -> O | K2: =IF(K3<=Premissas!$C$74,"C",IF(K3="-","-","O")) -> O | L2: =IF(L3<=Premissas!$C$74,"C",IF(L3="-","-","O")) -> O | M2: =IF(M3<=Premissas!$C$74,"C",IF(M3="-","-","O")) -> O | N2: =IF(N3<=Premissas!$C$74,"C",IF(N3="-","-","O")) -> O | O2: =IF(O3<=Premissas!$C$74,"C",IF(O3="-","-","O")) -> O | P2: =IF(P3<=Premissas!$C$74,"C",IF(P3="-","-","O")) -> O | Q2: =IF(Q3<=Premissas!$C$74,"C",IF(Q3="-","-","O")) -> O | R2: =IF(R3<=Premissas!$C$74,"C",IF(R3="-","-","O")) -> O | S2: =IF(S3<=Premissas!$C$74,"C",IF(S3="-","-","O")) -> O | T2: =IF(T3<=Premissas!$C$74,"C",IF(T3="-","-","O")) -> O | U2: =IF(U3<=Premissas!$C$74,"C",IF(U3="-","-","O")) -> O | V2: =IF(V3<=Premissas!$C$74,"C",IF(V3="-","-","O")) -> O | W2: =IF(W3<=Premissas!$C$74,"C",IF(W3="-","-","O")) -> O | X2: =IF(X3<=Premissas!$C$74,"C",IF(X3="-","-","O")) -> O | Y2: =IF(Y3<=Premissas!$C$74,"C",IF(Y3="-","-","O")) -> O | Z2: =IF(Z3<=Premissas!$C$74,"C",IF(Z3="-","-","O")) -> O | AA2: =IF(AA3<=Premissas!$C$74,"C",IF(AA3="-","-","O")) -> O | AB2: =IF(AB3<=Premissas!$C$74,"C",IF(AB3="-","-","O")) -> O | AC2: =IF(AC3<=Premissas!$C$74,"C",IF(AC3="-","-","O")) -> O | AD2: =IF(AD3<=Premissas!$C$74,"C",IF(AD3="-","-","O")) -> O | AE2: =IF(AE3<=Premissas!$C$74,"C",IF(AE3="-","-","O")) -> O | AF2: =IF(AF3<=Premissas!$C$74,"C",IF(AF3="-","-","O")) -> O | AG2: =IF(AG3<=Premissas!$C$74,"C",IF(AG3="-","-","O")) -> O | AH2: =IF(AH3<=Premissas!$C$74,"C",IF(AH3="-","-","O")) -> - | AI2: =IF(AI3<=Premissas!$C$74,"C",IF(AI3="-","-","O")) -> - | AJ2: =IF(AJ3<=Premissas!$C$74,"C",IF(AJ3="-","-","O")) -> - | AK2: =IF(AK3<=Premissas!$C$74,"C",IF(AK3="-","-","O")) -> - | AL2: =IF(AL3<=Premissas!$C$74,"C",IF(AL3="-","-","O")) -> - | AM2: =IF(AM3<=Premissas!$C$74,"C",IF(AM3="-","-","O")) -> - | AN2: =IF(AN3<=Premissas!$C$74,"C",IF(AN3="-","-","O")) -> - | AO2: =IF(AO3<=Premissas!$C$74,"C",IF(AO3="-","-","O")) -> - | AP2: =IF(AP3<=Premissas!$C$74,"C",IF(AP3="-","-","O")) -> - | AQ2: =IF(AQ3<=Premissas!$C$74,"C",IF(AQ3="-","-","O")) -> - | AR2: =IF(AR3<=Premissas!$C$74,"C",IF(AR3="-","-","O")) -> - | AS2: =IF(AS3<=Premissas!$C$74,"C",IF(AS3="-","-","O")) -> - | AT2: =IF(AT3<=Premissas!$C$74,"C",IF(AT3="-","-","O")) -> - | AU2: =IF(AU3<=Premissas!$C$74,"C",IF(AU3="-","-","O")) -> - | AV2: =IF(AV3<=Premissas!$C$74,"C",IF(AV3="-","-","O")) -> - | AW2: =IF(AW3<=Premissas!$C$74,"C",IF(AW3="-","-","O")) -> - | AX2: =IF(AX3<=Premissas!$C$74,"C",IF(AX3="-","-","O")) -> - | AY2: =IF(AY3<=Premissas!$C$74,"C",IF(AY3="-","-","O")) -> - | AZ2: =IF(AZ3<=Premissas!$C$74,"C",IF(AZ3="-","-","O")) -> - | BA2: =IF(BA3<=Premissas!$C$74,"C",IF(BA3="-","-","O")) -> - | BB2: =IF(BB3<=Premissas!$C$74,"C",IF(BB3="-","-","O")) -> - | BC2: =IF(BC3<=Premissas!$C$74,"C",IF(BC3="-","-","O")) -> - | BD2: =IF(BD3<=Premissas!$C$74,"C",IF(BD3="-","-","O")) -> - | BE2: =IF(BE3<=Premissas!$C$74,"C",IF(BE3="-","-","O")) -> - | BF2: =IF(BF3<=Premissas!$C$74,"C",IF(BF3="-","-","O")) -> - | BG2: =IF(BG3<=Premissas!$C$74,"C",IF(BG3="-","-","O")) -> - | BH2: =IF(BH3<=Premissas!$C$74,"C",IF(BH3="-","-","O")) -> - | BI2: =IF(BI3<=Premissas!$C$74,"C",IF(BI3="-","-","O")) -> - | BJ2: =IF(BJ3<=Premissas!$C$74,"C",IF(BJ3="-","-","O")) -> - | BK2: =IF(BK3<=Premissas!$C$74,"C",IF(BK3="-","-","O")) -> - | BL2: =IF(BL3<=Premissas!$C$74,"C",IF(BL3="-","-","O")) -> - | BM2: =IF(BM3<=Premissas!$C$74,"C",IF(BM3="-","-","O")) -> - | BN2: =IF(BN3<=Premissas!$C$74,"C",IF(BN3="-","-","O")) -> - | BO2: =IF(BO3<=Premissas!$C$74,"C",IF(BO3="-","-","O")) -> - | BP2: =IF(BP3<=Premissas!$C$74,"C",IF(BP3="-","-","O")) -> - | BQ2: =IF(BQ3<=Premissas!$C$74,"C",IF(BQ3="-","-","O")) -> - | BR2: =IF(BR3<=Premissas!$C$74,"C",IF(BR3="-","-","O")) -> - | BS2: =IF(BS3<=Premissas!$C$74,"C",IF(BS3="-","-","O")) -> - | BT2: =IF(BT3<=Premissas!$C$74,"C",IF(BT3="-","-","O")) -> - | BU2: =IF(BU3<=Premissas!$C$74,"C",IF(BU3="-","-","O")) -> - | BV2: =IF(BV3<=Premissas!$C$74,"C",IF(BV3="-","-","O")) -> - | BW2: =IF(BW3<=Premissas!$C$74,"C",IF(BW3="-","-","O")) -> - | BX2: =IF(BX3<=Premissas!$C$74,"C",IF(BX3="-","-","O")) -> - | BY2: =IF(BY3<=Premissas!$C$74,"C",IF(BY3="-","-","O")) -> - | BZ2: =IF(BZ3<=Premissas!$C$74,"C",IF(BZ3="-","-","O")) -> - | CA2: =IF(CA3<=Premissas!$C$74,"C",IF(CA3="-","-","O")) -> - | CB2: =IF(CB3<=Premissas!$C$74,"C",IF(CB3="-","-","O")) -> - | CC2: =IF(CC3<=Premissas!$C$74,"C",IF(CC3="-","-","O")) -> - | CD2: =IF(CD3<=Premissas!$C$74,"C",IF(CD3="-","-","O")) -> - | CE2: =IF(CE3<=Premissas!$C$74,"C",IF(CE3="-","-","O")) -> - | CF2: =IF(CF3<=Premissas!$C$74,"C",IF(CF3="-","-","O")) -> - | CG2: =IF(CG3<=Premissas!$C$74,"C",IF(CG3="-","-","O")) -> - | CH2: =IF(CH3<=Premissas!$C$74,"C",IF(CH3="-","-","O")) -> - | CI2: =IF(CI3<=Premissas!$C$74,"C",IF(CI3="-","-","O")) -> - | CJ2: =IF(CJ3<=Premissas!$C$74,"C",IF(CJ3="-","-","O")) -> - | CK2: =IF(CK3<=Premissas!$C$74,"C",IF(CK3="-","-","O")) -> - | CL2: =IF(CL3<=Premissas!$C$74,"C",IF(CL3="-","-","O")) -> - | CM2: =IF(CM3<=Premissas!$C$74,"C",IF(CM3="-","-","O")) -> - | CN2: =IF(CN3<=Premissas!$C$74,"C",IF(CN3="-","-","O")) -> - | CO2: =IF(CO3<=Premissas!$C$74,"C",IF(CO3="-","-","O")) -> - | CP2: =IF(CP3<=Premissas!$C$74,"C",IF(CP3="-","-","O")) -> - | CQ2: =IF(CQ3<=Premissas!$C$74,"C",IF(CQ3="-","-","O")) -> - | CR2: =IF(CR3<=Premissas!$C$74,"C",IF(CR3="-","-","O")) -> - | CS2: =IF(CS3<=Premissas!$C$74,"C",IF(CS3="-","-","O")) -> - | CT2: =IF(CT3<=Premissas!$C$74,"C",IF(CT3="-","-","O")) -> - | CU2: =IF(CU3<=Premissas!$C$74,"C",IF(CU3="-","-","O")) -> - | CV2: =IF(CV3<=Premissas!$C$74,"C",IF(CV3="-","-","O")) -> - | CW2: =IF(CW3<=Premissas!$C$74,"C",IF(CW3="-","-","O")) -> - | CX2: =IF(CX3<=Premissas!$C$74,"C",IF(CX3="-","-","O")) -> - | CY2: =IF(CY3<=Premissas!$C$74,"C",IF(CY3="-","-","O")) -> - | CZ2: =IF(CZ3<=Premissas!$C$74,"C",IF(CZ3="-","-","O")) -> - | DA2: =IF(DA3<=Premissas!$C$74,"C",IF(DA3="-","-","O")) -> - | DB2: =IF(DB3<=Premissas!$C$74,"C",IF(DB3="-","-","O")) -> - | DC2: =IF(DC3<=Premissas!$C$74,"C",IF(DC3="-","-","O")) -> - | DD2: =IF(DD3<=Premissas!$C$74,"C",IF(DD3="-","-","O")) -> - | DE2: =IF(DE3<=Premissas!$C$74,"C",IF(DE3="-","-","O")) -> - | DF2: =IF(DF3<=Premissas!$C$74,"C",IF(DF3="-","-","O")) -> - | DG2: =IF(DG3<=Premissas!$C$74,"C",IF(DG3="-","-","O")) -> - | DH2: =IF(DH3<=Premissas!$C$74,"C",IF(DH3="-","-","O")) -> - | DI2: =IF(DI3<=Premissas!$C$74,"C",IF(DI3="-","-","O")) -> - | DJ2: =IF(DJ3<=Premissas!$C$74,"C",IF(DJ3="-","-","O")) -> - | DK2: =IF(DK3<=Premissas!$C$74,"C",IF(DK3="-","-","O")) -> - | DL2: =IF(DL3<=Premissas!$C$74,"C",IF(DL3="-","-","O")) -> - | DM2: =IF(DM3<=Premissas!$C$74,"C",IF(DM3="-","-","O")) -> - | DN2: =IF(DN3<=Premissas!$C$74,"C",IF(DN3="-","-","O")) -> - | DO2: =IF(DO3<=Premissas!$C$74,"C",IF(DO3="-","-","O")) -> - | DP2: =IF(DP3<=Premissas!$C$74,"C",IF(DP3="-","-","O")) -> - | DQ2: =IF(DQ3<=Premissas!$C$74,"C",IF(DQ3="-","-","O")) -> - | DR2: =IF(DR3<=Premissas!$C$74,"C",IF(DR3="-","-","O")) -> - | DS2: =IF(DS3<=Premissas!$C$74,"C",IF(DS3="-","-","O")) -> - | DT2: =IF(DT3<=Premissas!$C$74,"C",IF(DT3="-","-","O")) -> - | DU2: =IF(DU3<=Premissas!$C$74,"C",IF(DU3="-","-","O")) -> - | DV2: =IF(DV3<=Premissas!$C$74,"C",IF(DV3="-","-","O")) -> - | DW2: =IF(DW3<=Premissas!$C$74,"C",IF(DW3="-","-","O")) -> - | DX2: =IF(DX3<=Premissas!$C$74,"C",IF(DX3="-","-","O")) -> - | DY2: =IF(DY3<=Premissas!$C$74,"C",IF(DY3="-","-","O")) -> - | DZ2: =IF(DZ3<=Premissas!$C$74,"C",IF(DZ3="-","-","O")) -> - | EA2: =IF(EA3<=Premissas!$C$74,"C",IF(EA3="-","-","O")) -> - | EB2: =IF(EB3<=Premissas!$C$74,"C",IF(EB3="-","-","O")) -> - | EC2: =IF(EC3<=Premissas!$C$74,"C",IF(EC3="-","-","O")) -> - | ED2: =IF(ED3<=Premissas!$C$74,"C",IF(ED3="-","-","O")) -> - | EE2: =IF(EE3<=Premissas!$C$74,"C",IF(EE3="-","-","O")) -> - | EF2: =IF(EF3<=Premissas!$C$74,"C",IF(EF3="-","-","O")) -> - | EG2: =IF(EG3<=Premissas!$C$74,"C",IF(EG3="-","-","O")) -> - | EH2: =IF(EH3<=Premissas!$C$74,"C",IF(EH3="-","-","O")) -> - | EI2: =IF(EI3<=Premissas!$C$74,"C",IF(EI3="-","-","O")) -> - | EJ2: =IF(EJ3<=Premissas!$C$74,"C",IF(EJ3="-","-","O")) -> - | EK2: =IF(EK3<=Premissas!$C$74,"C",IF(EK3="-","-","O")) -> - | EL2: =IF(EL3<=Premissas!$C$74,"C",IF(EL3="-","-","O")) -> - | EM2: =IF(EM3<=Premissas!$C$74,"C",IF(EM3="-","-","O")) -> - | EN2: =IF(EN3<=Premissas!$C$74,"C",IF(EN3="-","-","O")) -> - | EO2: =IF(EO3<=Premissas!$C$74,"C",IF(EO3="-","-","O")) -> - | EP2: =IF(EP3<=Premissas!$C$74,"C",IF(EP3="-","-","O")) -> - | EQ2: =IF(EQ3<=Premissas!$C$74,"C",IF(EQ3="-","-","O")) -> - | ER2: =IF(ER3<=Premissas!$C$74,"C",IF(ER3="-","-","O")) -> - | ES2: =IF(ES3<=Premissas!$C$74,"C",IF(ES3="-","-","O")) -> - | ET2: =IF(ET3<=Premissas!$C$74,"C",IF(ET3="-","-","O")) -> - | EU2: =IF(EU3<=Premissas!$C$74,"C",IF(EU3="-","-","O")) -> - | EV2: =IF(EV3<=Premissas!$C$74,"C",IF(EV3="-","-","O")) -> - | EW2: =IF(EW3<=Premissas!$C$74,"C",IF(EW3="-","-","O")) -> - | EX2: =IF(EX3<=Premissas!$C$74,"C",IF(EX3="-","-","O")) -> - | EY2: =IF(EY3<=Premissas!$C$74,"C",IF(EY3="-","-","O")) -> - | EZ2: =IF(EZ3<=Premissas!$C$74,"C",IF(EZ3="-","-","O")) -> - | FA2: =IF(FA3<=Premissas!$C$74,"C",IF(FA3="-","-","O")) -> - | FB2: =IF(FB3<=Premissas!$C$74,"C",IF(FB3="-","-","O")) -> - | FC2: =IF(FC3<=Premissas!$C$74,"C",IF(FC3="-","-","O")) -> - | FD2: =IF(FD3<=Premissas!$C$74,"C",IF(FD3="-","-","O")) -> - | FE2: =IF(FE3<=Premissas!$C$74,"C",IF(FE3="-","-","O")) -> - | FF2: =IF(FF3<=Premissas!$C$74,"C",IF(FF3="-","-","O")) -> - | FG2: =IF(FG3<=Premissas!$C$74,"C",IF(FG3="-","-","O")) -> - | FH2: =IF(FH3<=Premissas!$C$74,"C",IF(FH3="-","-","O")) -> - | FI2: =IF(FI3<=Premissas!$C$74,"C",IF(FI3="-","-","O")) -> - | FJ2: =IF(FJ3<=Premissas!$C$74,"C",IF(FJ3="-","-","O")) -> - | FK2: =IF(FK3<=Premissas!$C$74,"C",IF(FK3="-","-","O")) -> - | FL2: =IF(FL3<=Premissas!$C$74,"C",IF(FL3="-","-","O")) -> - | FM2: =IF(FM3<=Premissas!$C$74,"C",IF(FM3="-","-","O")) -> - | FN2: =IF(FN3<=Premissas!$C$74,"C",IF(FN3="-","-","O")) -> - | FO2: =IF(FO3<=Premissas!$C$74,"C",IF(FO3="-","-","O")) -> - | FP2: =IF(FP3<=Premissas!$C$74,"C",IF(FP3="-","-","O")) -> - | FQ2: =IF(FQ3<=Premissas!$C$74,"C",IF(FQ3="-","-","O")) -> - | FR2: =IF(FR3<=Premissas!$C$74,"C",IF(FR3="-","-","O")) -> - | FS2: =IF(FS3<=Premissas!$C$74,"C",IF(FS3="-","-","O")) -> - | FT2: =IF(FT3<=Premissas!$C$74,"C",IF(FT3="-","-","O")) -> - | FU2: =IF(FU3<=Premissas!$C$74,"C",IF(FU3="-","-","O")) -> - | FV2: =IF(FV3<=Premissas!$C$74,"C",IF(FV3="-","-","O")) -> - | FW2: =IF(FW3<=Premissas!$C$74,"C",IF(FW3="-","-","O")) -> - | FX2: =IF(FX3<=Premissas!$C$74,"C",IF(FX3="-","-","O")) -> - | FY2: =IF(FY3<=Premissas!$C$74,"C",IF(FY3="-","-","O")) -> - | FZ2: =IF(FZ3<=Premissas!$C$74,"C",IF(FZ3="-","-","O")) -> - | GA2: =IF(GA3<=Premissas!$C$74,"C",IF(GA3="-","-","O")) -> - | GB2: =IF(GB3<=Premissas!$C$74,"C",IF(GB3="-","-","O")) -> - | GC2: =IF(GC3<=Premissas!$C$74,"C",IF(GC3="-","-","O")) -> - | GD2: =IF(GD3<=Premissas!$C$74,"C",IF(GD3="-","-","O")) -> - | GE2: =IF(GE3<=Premissas!$C$74,"C",IF(GE3="-","-","O")) -> - | GF2: =IF(GF3<=Premissas!$C$74,"C",IF(GF3="-","-","O")) -> - | GG2: =IF(GG3<=Premissas!$C$74,"C",IF(GG3="-","-","O")) -> - | GH2: =IF(GH3<=Premissas!$C$74,"C",IF(GH3="-","-","O")) -> - | GI2: =IF(GI3<=Premissas!$C$74,"C",IF(GI3="-","-","O")) -> - | GJ2: =IF(GJ3<=Premissas!$C$74,"C",IF(GJ3="-","-","O")) -> - | GK2: =IF(GK3<=Premissas!$C$74,"C",IF(GK3="-","-","O")) -> - | GL2: =IF(GL3<=Premissas!$C$74,"C",IF(GL3="-","-","O")) -> - | GM2: =IF(GM3<=Premissas!$C$74,"C",IF(GM3="-","-","O")) -> - | GN2: =IF(GN3<=Premissas!$C$74,"C",IF(GN3="-","-","O")) -> - | GO2: =IF(GO3<=Premissas!$C$74,"C",IF(GO3="-","-","O")) -> - | GP2: =IF(GP3<=Premissas!$C$74,"C",IF(GP3="-","-","O")) -> - | GQ2: =IF(GQ3<=Premissas!$C$74,"C",IF(GQ3="-","-","O")) -> - | GR2: =IF(GR3<=Premissas!$C$74,"C",IF(GR3="-","-","O")) -> - | GS2: =IF(GS3<=Premissas!$C$74,"C",IF(GS3="-","-","O")) -> - | GT2: =IF(GT3<=Premissas!$C$74,"C",IF(GT3="-","-","O")) -> - | GU2: =IF(GU3<=Premissas!$C$74,"C",IF(GU3="-","-","O")) -> - | GV2: =IF(GV3<=Premissas!$C$74,"C",IF(GV3="-","-","O")) -> - | GW2: =IF(GW3<=Premissas!$C$74,"C",IF(GW3="-","-","O")) -> - | GX2: =IF(GX3<=Premissas!$C$74,"C",IF(GX3="-","-","O")) -> - | GY2: =IF(GY3<=Premissas!$C$74,"C",IF(GY3="-","-","O")) -> - | GZ2: =IF(GZ3<=Premissas!$C$74,"C",IF(GZ3="-","-","O")) -> - | HA2: =IF(HA3<=Premissas!$C$74,"C",IF(HA3="-","-","O")) -> - | HB2: =IF(HB3<=Premissas!$C$74,"C",IF(HB3="-","-","O")) -> - | HC2: =IF(HC3<=Premissas!$C$74,"C",IF(HC3="-","-","O")) -> - | HD2: =IF(HD3<=Premissas!$C$74,"C",IF(HD3="-","-","O")) -> - | HE2: =IF(HE3<=Premissas!$C$74,"C",IF(HE3="-","-","O")) -> - | HF2: =IF(HF3<=Premissas!$C$74,"C",IF(HF3="-","-","O")) -> - | HG2: =IF(HG3<=Premissas!$C$74,"C",IF(HG3="-","-","O")) -> - | HH2: =IF(HH3<=Premissas!$C$74,"C",IF(HH3="-","-","O")) -> - | HI2: =IF(HI3<=Premissas!$C$74,"C",IF(HI3="-","-","O")) -> - | HJ2: =IF(HJ3<=Premissas!$C$74,"C",IF(HJ3="-","-","O")) -> - | HK2: =IF(HK3<=Premissas!$C$74,"C",IF(HK3="-","-","O")) -> - | HL2: =IF(HL3<=Premissas!$C$74,"C",IF(HL3="-","-","O")) -> - | HM2: =IF(HM3<=Premissas!$C$74,"C",IF(HM3="-","-","O")) -> - | HN2: =IF(HN3<=Premissas!$C$74,"C",IF(HN3="-","-","O")) -> - | HO2: =IF(HO3<=Premissas!$C$74,"C",IF(HO3="-","-","O")) -> - | HP2: =IF(HP3<=Premissas!$C$74,"C",IF(HP3="-","-","O")) -> - | HQ2: =IF(HQ3<=Premissas!$C$74,"C",IF(HQ3="-","-","O")) -> - | HR2: =IF(HR3<=Premissas!$C$74,"C",IF(HR3="-","-","O")) -> - | HS2: =IF(HS3<=Premissas!$C$74,"C",IF(HS3="-","-","O")) -> - | HT2: =IF(HT3<=Premissas!$C$74,"C",IF(HT3="-","-","O")) -> - | HU2: =IF(HU3<=Premissas!$C$74,"C",IF(HU3="-","-","O")) -> - | HV2: =IF(HV3<=Premissas!$C$74,"C",IF(HV3="-","-","O")) -> - | HW2: =IF(HW3<=Premissas!$C$74,"C",IF(HW3="-","-","O")) -> - | HX2: =IF(HX3<=Premissas!$C$74,"C",IF(HX3="-","-","O")) -> - | HY2: =IF(HY3<=Premissas!$C$74,"C",IF(HY3="-","-","O")) -> - | HZ2: =IF(HZ3<=Premissas!$C$74,"C",IF(HZ3="-","-","O")) -> - | IA2: =IF(IA3<=Premissas!$C$74,"C",IF(IA3="-","-","O")) -> - | IB2: =IF(IB3<=Premissas!$C$74,"C",IF(IB3="-","-","O")) -> - | IC2: =IF(IC3<=Premissas!$C$74,"C",IF(IC3="-","-","O")) -> - | ID2: =IF(ID3<=Premissas!$C$74,"C",IF(ID3="-","-","O")) -> - | IE2: =IF(IE3<=Premissas!$C$74,"C",IF(IE3="-","-","O")) -> - | IF2: =IF(IF3<=Premissas!$C$74,"C",IF(IF3="-","-","O")) -> - | IG2: =IF(IG3<=Premissas!$C$74,"C",IF(IG3="-","-","O")) -> - | IH2: =IF(IH3<=Premissas!$C$74,"C",IF(IH3="-","-","O")) -> - | II2: =IF(II3<=Premissas!$C$74,"C",IF(II3="-","-","O")) -> - | IJ2: =IF(IJ3<=Premissas!$C$74,"C",IF(IJ3="-","-","O")) -> - | IK2: =IF(IK3<=Premissas!$C$74,"C",IF(IK3="-","-","O")) -> - | IL2: =IF(IL3<=Premissas!$C$74,"C",IF(IL3="-","-","O")) -> - | IM2: =IF(IM3<=Premissas!$C$74,"C",IF(IM3="-","-","O")) -> - | IN2: =IF(IN3<=Premissas!$C$74,"C",IF(IN3="-","-","O")) -> - | IO2: =IF(IO3<=Premissas!$C$74,"C",IF(IO3="-","-","O")) -> - | IP2: =IF(IP3<=Premissas!$C$74,"C",IF(IP3="-","-","O")) -> - | IQ2: =IF(IQ3<=Premissas!$C$74,"C",IF(IQ3="-","-","O")) -> - | IR2: =IF(IR3<=Premissas!$C$74,"C",IF(IR3="-","-","O")) -> - | IS2: =IF(IS3<=Premissas!$C$74,"C",IF(IS3="-","-","O")) -> - | IT2: =IF(IT3<=Premissas!$C$74,"C",IF(IT3="-","-","O")) -> - | IU2: =IF(IU3<=Premissas!$C$74,"C",IF(IU3="-","-","O")) -> - | IV2: =IF(IV3<=Premissas!$C$74,"C",IF(IV3="-","-","O")) -> - | IW2: =IF(IW3<=Premissas!$C$74,"C",IF(IW3="-","-","O")) -> - | IX2: =IF(IX3<=Premissas!$C$74,"C",IF(IX3="-","-","O")) -> - | IY2: =IF(IY3<=Premissas!$C$74,"C",IF(IY3="-","-","O")) -> - | IZ2: =IF(IZ3<=Premissas!$C$74,"C",IF(IZ3="-","-","O")) -> - | JA2: =IF(JA3<=Premissas!$C$74,"C",IF(JA3="-","-","O")) -> - | JB2: =IF(JB3<=Premissas!$C$74,"C",IF(JB3="-","-","O")) -> - | JC2: =IF(JC3<=Premissas!$C$74,"C",IF(JC3="-","-","O")) -> - | JD2: =IF(JD3<=Premissas!$C$74,"C",IF(JD3="-","-","O")) -> - | JE2: =IF(JE3<=Premissas!$C$74,"C",IF(JE3="-","-","O")) -> - | JF2: =IF(JF3<=Premissas!$C$74,"C",IF(JF3="-","-","O")) -> - | JG2: =IF(JG3<=Premissas!$C$74,"C",IF(JG3="-","-","O")) -> - | JH2: =IF(JH3<=Premissas!$C$74,"C",IF(JH3="-","-","O")) -> - | JI2: =IF(JI3<=Premissas!$C$74,"C",IF(JI3="-","-","O")) -> - | JJ2: =IF(JJ3<=Premissas!$C$74,"C",IF(JJ3="-","-","O")) -> - | JK2: =IF(JK3<=Premissas!$C$74,"C",IF(JK3="-","-","O")) -> - | JL2: =IF(JL3<=Premissas!$C$74,"C",IF(JL3="-","-","O")) -> - | JM2: =IF(JM3<=Premissas!$C$74,"C",IF(JM3="-","-","O")) -> - | JN2: =IF(JN3<=Premissas!$C$74,"C",IF(JN3="-","-","O")) -> - | JO2: =IF(JO3<=Premissas!$C$74,"C",IF(JO3="-","-","O")) -> - | JP2: =IF(JP3<=Premissas!$C$74,"C",IF(JP3="-","-","O")) -> - | JQ2: =IF(JQ3<=Premissas!$C$74,"C",IF(JQ3="-","-","O")) -> - | JR2: =IF(JR3<=Premissas!$C$74,"C",IF(JR3="-","-","O")) -> - | JS2: =IF(JS3<=Premissas!$C$74,"C",IF(JS3="-","-","O")) -> - | JT2: =IF(JT3<=Premissas!$C$74,"C",IF(JT3="-","-","O")) -> - | JU2: =IF(JU3<=Premissas!$C$74,"C",IF(JU3="-","-","O")) -> - | JV2: =IF(JV3<=Premissas!$C$74,"C",IF(JV3="-","-","O")) -> - | JW2: =IF(JW3<=Premissas!$C$74,"C",IF(JW3="-","-","O")) -> - | JX2: =IF(JX3<=Premissas!$C$74,"C",IF(JX3="-","-","O")) -> - | JY2: =IF(JY3<=Premissas!$C$74,"C",IF(JY3="-","-","O")) -> - | JZ2: =IF(JZ3<=Premissas!$C$74,"C",IF(JZ3="-","-","O")) -> - | KA2: =IF(KA3<=Premissas!$C$74,"C",IF(KA3="-","-","O")) -> - | KB2: =IF(KB3<=Premissas!$C$74,"C",IF(KB3="-","-","O")) -> - | KC2: =IF(KC3<=Premissas!$C$74,"C",IF(KC3="-","-","O")) -> - | KD2: =IF(KD3<=Premissas!$C$74,"C",IF(KD3="-","-","O")) -> - | KE2: =IF(KE3<=Premissas!$C$74,"C",IF(KE3="-","-","O")) -> - | KF2: =IF(KF3<=Premissas!$C$74,"C",IF(KF3="-","-","O")) -> - | KG2: =IF(KG3<=Premissas!$C$74,"C",IF(KG3="-","-","O")) -> - | KH2: =IF(KH3<=Premissas!$C$74,"C",IF(KH3="-","-","O")) -> - | KI2: =IF(KI3<=Premissas!$C$74,"C",IF(KI3="-","-","O")) -> - | KJ2: =IF(KJ3<=Premissas!$C$74,"C",IF(KJ3="-","-","O")) -> - | KK2: =IF(KK3<=Premissas!$C$74,"C",IF(KK3="-","-","O")) -> - | KL2: =IF(KL3<=Premissas!$C$74,"C",IF(KL3="-","-","O")) -> - | KM2: =IF(KM3<=Premissas!$C$74,"C",IF(KM3="-","-","O")) -> - | KN2: =IF(KN3<=Premissas!$C$74,"C",IF(KN3="-","-","O")) -> - | KO2: =IF(KO3<=Premissas!$C$74,"C",IF(KO3="-","-","O")) -> - | KP2: =IF(KP3<=Premissas!$C$74,"C",IF(KP3="-","-","O")) -> - | KQ2: =IF(KQ3<=Premissas!$C$74,"C",IF(KQ3="-","-","O")) -> - | KR2: =IF(KR3<=Premissas!$C$74,"C",IF(KR3="-","-","O")) -> - | KS2: =IF(KS3<=Premissas!$C$74,"C",IF(KS3="-","-","O")) -> - | KT2: =IF(KT3<=Premissas!$C$74,"C",IF(KT3="-","-","O")) -> - | KU2: =IF(KU3<=Premissas!$C$74,"C",IF(KU3="-","-","O")) -> - | KV2: =IF(KV3<=Premissas!$C$74,"C",IF(KV3="-","-","O")) -> - | KW2: =IF(KW3<=Premissas!$C$74,"C",IF(KW3="-","-","O")) -> - | KX2: =IF(KX3<=Premissas!$C$74,"C",IF(KX3="-","-","O")) -> - | KY2: =IF(KY3<=Premissas!$C$74,"C",IF(KY3="-","-","O")) -> - | KZ2: =IF(KZ3<=Premissas!$C$74,"C",IF(KZ3="-","-","O")) -> - | LA2: =IF(LA3<=Premissas!$C$74,"C",IF(LA3="-","-","O")) -> - | LB2: =IF(LB3<=Premissas!$C$74,"C",IF(LB3="-","-","O")) -> - | LC2: =IF(LC3<=Premissas!$C$74,"C",IF(LC3="-","-","O")) -> - | LD2: =IF(LD3<=Premissas!$C$74,"C",IF(LD3="-","-","O")) -> - | LE2: =IF(LE3<=Premissas!$C$74,"C",IF(LE3="-","-","O")) -> - | LF2: =IF(LF3<=Premissas!$C$74,"C",IF(LF3="-","-","O")) -> - | LG2: =IF(LG3<=Premissas!$C$74,"C",IF(LG3="-","-","O")) -> - | LH2: =IF(LH3<=Premissas!$C$74,"C",IF(LH3="-","-","O")) -> - | LI2: =IF(LI3<=Premissas!$C$74,"C",IF(LI3="-","-","O")) -> - | LJ2: =IF(LJ3<=Premissas!$C$74,"C",IF(LJ3="-","-","O")) -> - | LK2: =IF(LK3<=Premissas!$C$74,"C",IF(LK3="-","-","O")) -> - | LL2: =IF(LL3<=Premissas!$C$74,"C",IF(LL3="-","-","O")) -> - | LM2: =IF(LM3<=Premissas!$C$74,"C",IF(LM3="-","-","O")) -> - | LN2: =IF(LN3<=Premissas!$C$74,"C",IF(LN3="-","-","O")) -> - | LO2: =IF(LO3<=Premissas!$C$74,"C",IF(LO3="-","-","O")) -> - | LP2: =IF(LP3<=Premissas!$C$74,"C",IF(LP3="-","-","O")) -> - | LQ2: =IF(LQ3<=Premissas!$C$74,"C",IF(LQ3="-","-","O")) -> - | LR2: =IF(LR3<=Premissas!$C$74,"C",IF(LR3="-","-","O")) -> - | LS2: =IF(LS3<=Premissas!$C$74,"C",IF(LS3="-","-","O")) -> - | LT2: =IF(LT3<=Premissas!$C$74,"C",IF(LT3="-","-","O")) -> - | LU2: =IF(LU3<=Premissas!$C$74,"C",IF(LU3="-","-","O")) -> - | LV2: =IF(LV3<=Premissas!$C$74,"C",IF(LV3="-","-","O")) -> - | LW2: =IF(LW3<=Premissas!$C$74,"C",IF(LW3="-","-","O")) -> - | LX2: =IF(LX3<=Premissas!$C$74,"C",IF(LX3="-","-","O")) -> - | LY2: =IF(LY3<=Premissas!$C$74,"C",IF(LY3="-","-","O")) -> - | LZ2: =IF(LZ3<=Premissas!$C$74,"C",IF(LZ3="-","-","O")) -> - | MA2: =IF(MA3<=Premissas!$C$74,"C",IF(MA3="-","-","O")) -> - | MB2: =IF(MB3<=Premissas!$C$74,"C",IF(MB3="-","-","O")) -> - | MC2: =IF(MC3<=Premissas!$C$74,"C",IF(MC3="-","-","O")) -> - | MD2: =IF(MD3<=Premissas!$C$74,"C",IF(MD3="-","-","O")) -> - | ME2: =IF(ME3<=Premissas!$C$74,"C",IF(ME3="-","-","O")) -> - | MF2: =IF(MF3<=Premissas!$C$74,"C",IF(MF3="-","-","O")) -> - | MG2: =IF(MG3<=Premissas!$C$74,"C",IF(MG3="-","-","O")) -> - | MH2: =IF(MH3<=Premissas!$C$74,"C",IF(MH3="-","-","O")) -> - | MI2: =IF(MI3<=Premissas!$C$74,"C",IF(MI3="-","-","O")) -> - | MJ2: =IF(MJ3<=Premissas!$C$74,"C",IF(MJ3="-","-","O")) -> - | MK2: =IF(MK3<=Premissas!$C$74,"C",IF(MK3="-","-","O")) -> - | ML2: =IF(ML3<=Premissas!$C$74,"C",IF(ML3="-","-","O")) -> - | MM2: =IF(MM3<=Premissas!$C$74,"C",IF(MM3="-","-","O")) -> - | MN2: =IF(MN3<=Premissas!$C$74,"C",IF(MN3="-","-","O")) -> - | MO2: =IF(MO3<=Premissas!$C$74,"C",IF(MO3="-","-","O")) -> - | MP2: =IF(MP3<=Premissas!$C$74,"C",IF(MP3="-","-","O")) -> - | MQ2: =IF(MQ3<=Premissas!$C$74,"C",IF(MQ3="-","-","O")) -> - | MR2: =IF(MR3<=Premissas!$C$74,"C",IF(MR3="-","-","O")) -> - | MS2: =IF(MS3<=Premissas!$C$74,"C",IF(MS3="-","-","O")) -> - | MT2: =IF(MT3<=Premissas!$C$74,"C",IF(MT3="-","-","O")) -> - | MU2: =IF(MU3<=Premissas!$C$74,"C",IF(MU3="-","-","O")) -> - | MV2: =IF(MV3<=Premissas!$C$74,"C",IF(MV3="-","-","O")) -> - | MW2: =IF(MW3<=Premissas!$C$74,"C",IF(MW3="-","-","O")) -> - | MX2: =IF(MX3<=Premissas!$C$74,"C",IF(MX3="-","-","O")) -> - | MY2: =IF(MY3<=Premissas!$C$74,"C",IF(MY3="-","-","O")) -> - | MZ2: =IF(MZ3<=Premissas!$C$74,"C",IF(MZ3="-","-","O")) -> - | NA2: =IF(NA3<=Premissas!$C$74,"C",IF(NA3="-","-","O")) -> - | NB2: =IF(NB3<=Premissas!$C$74,"C",IF(NB3="-","-","O")) -> - | NC2: =IF(NC3<=Premissas!$C$74,"C",IF(NC3="-","-","O")) -> - | ND2: =IF(ND3<=Premissas!$C$74,"C",IF(ND3="-","-","O")) -> - | NE2: =IF(NE3<=Premissas!$C$74,"C",IF(NE3="-","-","O")) -> - | NF2: =IF(NF3<=Premissas!$C$74,"C",IF(NF3="-","-","O")) -> - | NG2: =IF(NG3<=Premissas!$C$74,"C",IF(NG3="-","-","O")) -> - | NH2: =IF(NH3<=Premissas!$C$74,"C",IF(NH3="-","-","O")) -> - | NI2: =IF(NI3<=Premissas!$C$74,"C",IF(NI3="-","-","O")) -> - | NJ2: =IF(NJ3<=Premissas!$C$74,"C",IF(NJ3="-","-","O")) -> - | NK2: =IF(NK3<=Premissas!$C$74,"C",IF(NK3="-","-","O")) -> - | NL2: =IF(NL3<=Premissas!$C$74,"C",IF(NL3="-","-","O")) -> - | NM2: =IF(NM3<=Premissas!$C$74,"C",IF(NM3="-","-","O")) -> - | NN2: =IF(NN3<=Premissas!$C$74,"C",IF(NN3="-","-","O")) -> - | NO2: =IF(NO3<=Premissas!$C$74,"C",IF(NO3="-","-","O")) -> - | NP2: =IF(NP3<=Premissas!$C$74,"C",IF(NP3="-","-","O")) -> - | NQ2: =IF(NQ3<=Premissas!$C$74,"C",IF(NQ3="-","-","O")) -> - | NR2: =IF(NR3<=Premissas!$C$74,"C",IF(NR3="-","-","O")) -> - | NS2: =IF(NS3<=Premissas!$C$74,"C",IF(NS3="-","-","O")) -> - | NT2: =IF(NT3<=Premissas!$C$74,"C",IF(NT3="-","-","O")) -> - | NU2: =IF(NU3<=Premissas!$C$74,"C",IF(NU3="-","-","O")) -> - | NV2: =IF(NV3<=Premissas!$C$74,"C",IF(NV3="-","-","O")) -> - | NW2: =IF(NW3<=Premissas!$C$74,"C",IF(NW3="-","-","O")) -> - | NX2: =IF(NX3<=Premissas!$C$74,"C",IF(NX3="-","-","O")) -> - | NY2: =IF(NY3<=Premissas!$C$74,"C",IF(NY3="-","-","O")) -> - | NZ2: =IF(NZ3<=Premissas!$C$74,"C",IF(NZ3="-","-","O")) -> - | OA2: =IF(OA3<=Premissas!$C$74,"C",IF(OA3="-","-","O")) -> - | OB2: =IF(OB3<=Premissas!$C$74,"C",IF(OB3="-","-","O")) -> - | OC2: =IF(OC3<=Premissas!$C$74,"C",IF(OC3="-","-","O")) -> - | OD2: =IF(OD3<=Premissas!$C$74,"C",IF(OD3="-","-","O")) -> - | OE2: =IF(OE3<=Premissas!$C$74,"C",IF(OE3="-","-","O")) -> - | OF2: =IF(OF3<=Premissas!$C$74,"C",IF(OF3="-","-","O")) -> - | OG2: =IF(OG3<=Premissas!$C$74,"C",IF(OG3="-","-","O")) -> - | OH2: =IF(OH3<=Premissas!$C$74,"C",IF(OH3="-","-","O")) -> - | OI2: =IF(OI3<=Premissas!$C$74,"C",IF(OI3="-","-","O")) -> - | OJ2: =IF(OJ3<=Premissas!$C$74,"C",IF(OJ3="-","-","O")) -> - | OK2: =IF(OK3<=Premissas!$C$74,"C",IF(OK3="-","-","O")) -> - | OL2: =IF(OL3<=Premissas!$C$74,"C",IF(OL3="-","-","O")) -> - | OM2: =IF(OM3<=Premissas!$C$74,"C",IF(OM3="-","-","O")) -> - | ON2: =IF(ON3<=Premissas!$C$74,"C",IF(ON3="-","-","O")) -> - | OO2: =IF(OO3<=Premissas!$C$74,"C",IF(OO3="-","-","O")) -> - | OP2: =IF(OP3<=Premissas!$C$74,"C",IF(OP3="-","-","O")) -> - | OQ2: =IF(OQ3<=Premissas!$C$74,"C",IF(OQ3="-","-","O")) -> - | OR2: =IF(OR3<=Premissas!$C$74,"C",IF(OR3="-","-","O")) -> - | OS2: =IF(OS3<=Premissas!$C$74,"C",IF(OS3="-","-","O")) -> - | OT2: =IF(OT3<=Premissas!$C$74,"C",IF(OT3="-","-","O")) -> - | OU2: =IF(OU3<=Premissas!$C$74,"C",IF(OU3="-","-","O")) -> - | OV2: =IF(OV3<=Premissas!$C$74,"C",IF(OV3="-","-","O")) -> - | OW2: =IF(OW3<=Premissas!$C$74,"C",IF(OW3="-","-","O")) -> - | OX2: =IF(OX3<=Premissas!$C$74,"C",IF(OX3="-","-","O")) -> - | OY2: =IF(OY3<=Premissas!$C$74,"C",IF(OY3="-","-","O")) -> - | OZ2: =IF(OZ3<=Premissas!$C$74,"C",IF(OZ3="-","-","O")) -> - | PA2: =IF(PA3<=Premissas!$C$74,"C",IF(PA3="-","-","O")) -> - | PB2: =IF(PB3<=Premissas!$C$74,"C",IF(PB3="-","-","O")) -> - | PC2: =IF(PC3<=Premissas!$C$74,"C",IF(PC3="-","-","O")) -> - | PD2: =IF(PD3<=Premissas!$C$74,"C",IF(PD3="-","-","O")) -> - | PE2: =IF(PE3<=Premissas!$C$74,"C",IF(PE3="-","-","O")) -> - | PF2: =IF(PF3<=Premissas!$C$74,"C",IF(PF3="-","-","O")) -> - | PG2: =IF(PG3<=Premissas!$C$74,"C",IF(PG3="-","-","O")) -> - | PH2: =IF(PH3<=Premissas!$C$74,"C",IF(PH3="-","-","O")) -> - | PI2: =IF(PI3<=Premissas!$C$74,"C",IF(PI3="-","-","O")) -> - | PJ2: =IF(PJ3<=Premissas!$C$74,"C",IF(PJ3="-","-","O")) -> - | PK2: =IF(PK3<=Premissas!$C$74,"C",IF(PK3="-","-","O")) -> - | PL2: =IF(PL3<=Premissas!$C$74,"C",IF(PL3="-","-","O")) -> - | PM2: =IF(PM3<=Premissas!$C$74,"C",IF(PM3="-","-","O")) -> - | PN2: =IF(PN3<=Premissas!$C$74,"C",IF(PN3="-","-","O")) -> - | PO2: =IF(PO3<=Premissas!$C$74,"C",IF(PO3="-","-","O")) -> - | PP2: =IF(PP3<=Premissas!$C$74,"C",IF(PP3="-","-","O")) -> - | PQ2: =IF(PQ3<=Premissas!$C$74,"C",IF(PQ3="-","-","O")) -> - | PR2: =IF(PR3<=Premissas!$C$74,"C",IF(PR3="-","-","O")) -> - | PS2: =IF(PS3<=Premissas!$C$74,"C",IF(PS3="-","-","O")) -> - | PT2: =IF(PT3<=Premissas!$C$74,"C",IF(PT3="-","-","O")) -> - | PU2: =IF(PU3<=Premissas!$C$74,"C",IF(PU3="-","-","O")) -> - | PV2: =IF(PV3<=Premissas!$C$74,"C",IF(PV3="-","-","O")) -> - | PW2: =IF(PW3<=Premissas!$C$74,"C",IF(PW3="-","-","O")) -> - | PX2: =IF(PX3<=Premissas!$C$74,"C",IF(PX3="-","-","O")) -> - | PY2: =IF(PY3<=Premissas!$C$74,"C",IF(PY3="-","-","O")) -> - | PZ2: =IF(PZ3<=Premissas!$C$74,"C",IF(PZ3="-","-","O")) -> - | QA2: =IF(QA3<=Premissas!$C$74,"C",IF(QA3="-","-","O")) -> - | QB2: =IF(QB3<=Premissas!$C$74,"C",IF(QB3="-","-","O")) -> - | QC2: =IF(QC3<=Premissas!$C$74,"C",IF(QC3="-","-","O")) -> - | QD2: =IF(QD3<=Premissas!$C$74,"C",IF(QD3="-","-","O")) -> - | QE2: =IF(QE3<=Premissas!$C$74,"C",IF(QE3="-","-","O")) -> - | QF2: =IF(QF3<=Premissas!$C$74,"C",IF(QF3="-","-","O")) -> - | QG2: =IF(QG3<=Premissas!$C$74,"C",IF(QG3="-","-","O")) -> - | QH2: =IF(QH3<=Premissas!$C$74,"C",IF(QH3="-","-","O")) -> - | QI2: =IF(QI3<=Premissas!$C$74,"C",IF(QI3="-","-","O")) -> - | QJ2: =IF(QJ3<=Premissas!$C$74,"C",IF(QJ3="-","-","O")) -> - | QK2: =IF(QK3<=Premissas!$C$74,"C",IF(QK3="-","-","O")) -> - | QL2: =IF(QL3<=Premissas!$C$74,"C",IF(QL3="-","-","O")) -> - | QM2: =IF(QM3<=Premissas!$C$74,"C",IF(QM3="-","-","O")) -> - | QN2: =IF(QN3<=Premissas!$C$74,"C",IF(QN3="-","-","O")) -> - | QO2: =IF(QO3<=Premissas!$C$74,"C",IF(QO3="-","-","O")) -> - | QP2: =IF(QP3<=Premissas!$C$74,"C",IF(QP3="-","-","O")) -> - | QQ2: =IF(QQ3<=Premissas!$C$74,"C",IF(QQ3="-","-","O")) -> - | QR2: =IF(QR3<=Premissas!$C$74,"C",IF(QR3="-","-","O")) -> - | QS2: =IF(QS3<=Premissas!$C$74,"C",IF(QS3="-","-","O")) -> - | QT2: =IF(QT3<=Premissas!$C$74,"C",IF(QT3="-","-","O")) -> - | QU2: =IF(QU3<=Premissas!$C$74,"C",IF(QU3="-","-","O")) -> - | QV2: =IF(QV3<=Premissas!$C$74,"C",IF(QV3="-","-","O")) -> - | QW2: =IF(QW3<=Premissas!$C$74,"C",IF(QW3="-","-","O")) -> - | QX2: =IF(QX3<=Premissas!$C$74,"C",IF(QX3="-","-","O")) -> - | QY2: =IF(QY3<=Premissas!$C$74,"C",IF(QY3="-","-","O")) -> - | QZ2: =IF(QZ3<=Premissas!$C$74,"C",IF(QZ3="-","-","O")) -> - | RA2: =IF(RA3<=Premissas!$C$74,"C",IF(RA3="-","-","O")) -> - | RB2: =IF(RB3<=Premissas!$C$74,"C",IF(RB3="-","-","O")) -> - | RC2: =IF(RC3<=Premissas!$C$74,"C",IF(RC3="-","-","O")) -> - | RD2: =IF(RD3<=Premissas!$C$74,"C",IF(RD3="-","-","O")) -> - | RE2: =IF(RE3<=Premissas!$C$74,"C",IF(RE3="-","-","O")) -> - | RF2: =IF(RF3<=Premissas!$C$74,"C",IF(RF3="-","-","O")) -> - | RG2: =IF(RG3<=Premissas!$C$74,"C",IF(RG3="-","-","O")) -> - | RH2: =IF(RH3<=Premissas!$C$74,"C",IF(RH3="-","-","O")) -> - | RI2: =IF(RI3<=Premissas!$C$74,"C",IF(RI3="-","-","O")) -> - | RJ2: =IF(RJ3<=Premissas!$C$74,"C",IF(RJ3="-","-","O")) -> - | RK2: =IF(RK3<=Premissas!$C$74,"C",IF(RK3="-","-","O")) -> - | RL2: =IF(RL3<=Premissas!$C$74,"C",IF(RL3="-","-","O")) -> - | RM2: =IF(RM3<=Premissas!$C$74,"C",IF(RM3="-","-","O")) -> - | RN2: =IF(RN3<=Premissas!$C$74,"C",IF(RN3="-","-","O")) -> - | RO2: =IF(RO3<=Premissas!$C$74,"C",IF(RO3="-","-","O")) -> - | RP2: =IF(RP3<=Premissas!$C$74,"C",IF(RP3="-","-","O")) -> - | RQ2: =IF(RQ3<=Premissas!$C$74,"C",IF(RQ3="-","-","O")) -> - | RR2: =IF(RR3<=Premissas!$C$74,"C",IF(RR3="-","-","O")) -> - | RS2: =IF(RS3<=Premissas!$C$74,"C",IF(RS3="-","-","O")) -> - | RT2: =IF(RT3<=Premissas!$C$74,"C",IF(RT3="-","-","O")) -> - | RU2: =IF(RU3<=Premissas!$C$74,"C",IF(RU3="-","-","O")) -> - | RV2: =IF(RV3<=Premissas!$C$74,"C",IF(RV3="-","-","O")) -> - | RW2: =IF(RW3<=Premissas!$C$74,"C",IF(RW3="-","-","O")) -> - | RX2: =IF(RX3<=Premissas!$C$74,"C",IF(RX3="-","-","O")) -> - | RY2: =IF(RY3<=Premissas!$C$74,"C",IF(RY3="-","-","O")) -> - | RZ2: =IF(RZ3<=Premissas!$C$74,"C",IF(RZ3="-","-","O")) -> - | SA2: =IF(SA3<=Premissas!$C$74,"C",IF(SA3="-","-","O")) -> - | SB2: =IF(SB3<=Premissas!$C$74,"C",IF(SB3="-","-","O")) -> - | SC2: =IF(SC3<=Premissas!$C$74,"C",IF(SC3="-","-","O")) -> - | SD2: =IF(SD3<=Premissas!$C$74,"C",IF(SD3="-","-","O")) -> - | SE2: =IF(SE3<=Premissas!$C$74,"C",IF(SE3="-","-","O")) -> - | SF2: =IF(SF3<=Premissas!$C$74,"C",IF(SF3="-","-","O")) -> - | SG2: =IF(SG3<=Premissas!$C$74,"C",IF(SG3="-","-","O")) -> - | SH2: =IF(SH3<=Premissas!$C$74,"C",IF(SH3="-","-","O")) -> - | SI2: =IF(SI3<=Premissas!$C$74,"C",IF(SI3="-","-","O")) -> - | SJ2: =IF(SJ3<=Premissas!$C$74,"C",IF(SJ3="-","-","O")) -> - | SK2: =IF(SK3<=Premissas!$C$74,"C",IF(SK3="-","-","O")) -> - | SL2: =IF(SL3<=Premissas!$C$74,"C",IF(SL3="-","-","O")) -> - | SM2: =IF(SM3<=Premissas!$C$74,"C",IF(SM3="-","-","O")) -> - | SN2: =IF(SN3<=Premissas!$C$74,"C",IF(SN3="-","-","O")) -> - | SO2: =IF(SO3<=Premissas!$C$74,"C",IF(SO3="-","-","O")) -> - | SP2: =IF(SP3<=Premissas!$C$74,"C",IF(SP3="-","-","O")) -> - | SQ2: =IF(SQ3<=Premissas!$C$74,"C",IF(SQ3="-","-","O")) -> - | SR2: =IF(SR3<=Premissas!$C$74,"C",IF(SR3="-","-","O")) -> - | SS2: =IF(SS3<=Premissas!$C$74,"C",IF(SS3="-","-","O")) -> - | ST2: =IF(ST3<=Premissas!$C$74,"C",IF(ST3="-","-","O")) -> - | SU2: =IF(SU3<=Premissas!$C$74,"C",IF(SU3="-","-","O")) -> - | SV2: =IF(SV3<=Premissas!$C$74,"C",IF(SV3="-","-","O")) -> - | SW2: =IF(SW3<=Premissas!$C$74,"C",IF(SW3="-","-","O")) -> - | SX2: =IF(SX3<=Premissas!$C$74,"C",IF(SX3="-","-","O")) -> - | SY2: =IF(SY3<=Premissas!$C$74,"C",IF(SY3="-","-","O")) -> - | SZ2: =IF(SZ3<=Premissas!$C$74,"C",IF(SZ3="-","-","O")) -> - | TA2: =IF(TA3<=Premissas!$C$74,"C",IF(TA3="-","-","O")) -> - | TB2: =IF(TB3<=Premissas!$C$74,"C",IF(TB3="-","-","O")) -> - | TC2: =IF(TC3<=Premissas!$C$74,"C",IF(TC3="-","-","O")) -> - | TD2: =IF(TD3<=Premissas!$C$74,"C",IF(TD3="-","-","O")) -> - | TE2: =IF(TE3<=Premissas!$C$74,"C",IF(TE3="-","-","O")) -> - | TF2: =IF(TF3<=Premissas!$C$74,"C",IF(TF3="-","-","O")) -> - | TG2: =IF(TG3<=Premissas!$C$74,"C",IF(TG3="-","-","O")) -> - | TH2: =IF(TH3<=Premissas!$C$74,"C",IF(TH3="-","-","O")) -> - | TI2: =IF(TI3<=Premissas!$C$74,"C",IF(TI3="-","-","O")) -> - | TJ2: =IF(TJ3<=Premissas!$C$74,"C",IF(TJ3="-","-","O")) -> - | TK2: =IF(TK3<=Premissas!$C$74,"C",IF(TK3="-","-","O")) -> - | TL2: =IF(TL3<=Premissas!$C$74,"C",IF(TL3="-","-","O")) -> - | TM2: =IF(TM3<=Premissas!$C$74,"C",IF(TM3="-","-","O")) -> - | TN2: =IF(TN3<=Premissas!$C$74,"C",IF(TN3="-","-","O")) -> - | TO2: =IF(TO3<=Premissas!$C$74,"C",IF(TO3="-","-","O")) -> - | TP2: =IF(TP3<=Premissas!$C$74,"C",IF(TP3="-","-","O")) -> - | TQ2: =IF(TQ3<=Premissas!$C$74,"C",IF(TQ3="-","-","O")) -> - | TR2: =IF(TR3<=Premissas!$C$74,"C",IF(TR3="-","-","O")) -> - | TS2: =IF(TS3<=Premissas!$C$74,"C",IF(TS3="-","-","O")) -> - | TT2: =IF(TT3<=Premissas!$C$74,"C",IF(TT3="-","-","O")) -> - | TU2: =IF(TU3<=Premissas!$C$74,"C",IF(TU3="-","-","O")) -> - | TV2: =IF(TV3<=Premissas!$C$74,"C",IF(TV3="-","-","O")) -> - | TW2: =IF(TW3<=Premissas!$C$74,"C",IF(TW3="-","-","O")) -> - | TX2: =IF(TX3<=Premissas!$C$74,"C",IF(TX3="-","-","O")) -> - | TY2: =IF(TY3<=Premissas!$C$74,"C",IF(TY3="-","-","O")) -> - | TZ2: =IF(TZ3<=Premissas!$C$74,"C",IF(TZ3="-","-","O")) -> - | UA2: =IF(UA3<=Premissas!$C$74,"C",IF(UA3="-","-","O")) -> - | UB2: =IF(UB3<=Premissas!$C$74,"C",IF(UB3="-","-","O")) -> - | UC2: =IF(UC3<=Premissas!$C$74,"C",IF(UC3="-","-","O")) -> - | UD2: =IF(UD3<=Premissas!$C$74,"C",IF(UD3="-","-","O")) -> - | UE2: =IF(UE3<=Premissas!$C$74,"C",IF(UE3="-","-","O")) -> - | UF2: =IF(UF3<=Premissas!$C$74,"C",IF(UF3="-","-","O")) -> - | UG2: =IF(UG3<=Premissas!$C$74,"C",IF(UG3="-","-","O")) -> - | UH2: =IF(UH3<=Premissas!$C$74,"C",IF(UH3="-","-","O")) -> - | UI2: =IF(UI3<=Premissas!$C$74,"C",IF(UI3="-","-","O")) -> - | UJ2: =IF(UJ3<=Premissas!$C$74,"C",IF(UJ3="-","-","O")) -> - | UK2: =IF(UK3<=Premissas!$C$74,"C",IF(UK3="-","-","O")) -> - | UL2: =IF(UL3<=Premissas!$C$74,"C",IF(UL3="-","-","O")) -> - | UM2: =IF(UM3<=Premissas!$C$74,"C",IF(UM3="-","-","O")) -> - | UN2: =IF(UN3<=Premissas!$C$74,"C",IF(UN3="-","-","O")) -> - | UO2: =IF(UO3<=Premissas!$C$74,"C",IF(UO3="-","-","O")) -> - | UP2: =IF(UP3<=Premissas!$C$74,"C",IF(UP3="-","-","O")) -> - | UQ2: =IF(UQ3<=Premissas!$C$74,"C",IF(UQ3="-","-","O")) -> - | UR2: =IF(UR3<=Premissas!$C$74,"C",IF(UR3="-","-","O")) -> - | US2: =IF(US3<=Premissas!$C$74,"C",IF(US3="-","-","O")) -> - | UT2: =IF(UT3<=Premissas!$C$74,"C",IF(UT3="-","-","O")) -> - | UU2: =IF(UU3<=Premissas!$C$74,"C",IF(UU3="-","-","O")) -> - | UV2: =IF(UV3<=Premissas!$C$74,"C",IF(UV3="-","-","O")) -> - | UW2: =IF(UW3<=Premissas!$C$74,"C",IF(UW3="-","-","O")) -> - | UX2: =IF(UX3<=Premissas!$C$74,"C",IF(UX3="-","-","O")) -> - | UY2: =IF(UY3<=Premissas!$C$74,"C",IF(UY3="-","-","O")) -> - | UZ2: =IF(UZ3<=Premissas!$C$74,"C",IF(UZ3="-","-","O")) -> - | VA2: =IF(VA3<=Premissas!$C$74,"C",IF(VA3="-","-","O")) -> - | VB2: =IF(VB3<=Premissas!$C$74,"C",IF(VB3="-","-","O")) -> - | VC2: =IF(VC3<=Premissas!$C$74,"C",IF(VC3="-","-","O")) -> - | VD2: =IF(VD3<=Premissas!$C$74,"C",IF(VD3="-","-","O")) -> - | VE2: =IF(VE3<=Premissas!$C$74,"C",IF(VE3="-","-","O")) -> - | VF2: =IF(VF3<=Premissas!$C$74,"C",IF(VF3="-","-","O")) -> - | VG2: =IF(VG3<=Premissas!$C$74,"C",IF(VG3="-","-","O")) -> - | VH2: =IF(VH3<=Premissas!$C$74,"C",IF(VH3="-","-","O")) -> - | VI2: =IF(VI3<=Premissas!$C$74,"C",IF(VI3="-","-","O")) -> - | VJ2: =IF(VJ3<=Premissas!$C$74,"C",IF(VJ3="-","-","O")) -> - | VK2: =IF(VK3<=Premissas!$C$74,"C",IF(VK3="-","-","O")) -> - | VL2: =IF(VL3<=Premissas!$C$74,"C",IF(VL3="-","-","O")) -> - | VM2: =IF(VM3<=Premissas!$C$74,"C",IF(VM3="-","-","O")) -> - | VN2: =IF(VN3<=Premissas!$C$74,"C",IF(VN3="-","-","O")) -> - | VO2: =IF(VO3<=Premissas!$C$74,"C",IF(VO3="-","-","O")) -> - | VP2: =IF(VP3<=Premissas!$C$74,"C",IF(VP3="-","-","O")) -> - | VQ2: =IF(VQ3<=Premissas!$C$74,"C",IF(VQ3="-","-","O")) -> - | VR2: =IF(VR3<=Premissas!$C$74,"C",IF(VR3="-","-","O")) -> - | VS2: =IF(VS3<=Premissas!$C$74,"C",IF(VS3="-","-","O")) -> - | VT2: =IF(VT3<=Premissas!$C$74,"C",IF(VT3="-","-","O")) -> - | VU2: =IF(VU3<=Premissas!$C$74,"C",IF(VU3="-","-","O")) -> - | VV2: =IF(VV3<=Premissas!$C$74,"C",IF(VV3="-","-","O")) -> - | VW2: =IF(VW3<=Premissas!$C$74,"C",IF(VW3="-","-","O")) -> - | VX2: =IF(VX3<=Premissas!$C$74,"C",IF(VX3="-","-","O")) -> - | VY2: =IF(VY3<=Premissas!$C$74,"C",IF(VY3="-","-","O")) -> - | VZ2: =IF(VZ3<=Premissas!$C$74,"C",IF(VZ3="-","-","O")) -> - | WA2: =IF(WA3<=Premissas!$C$74,"C",IF(WA3="-","-","O")) -> - | WB2: =IF(WB3<=Premissas!$C$74,"C",IF(WB3="-","-","O")) -> - | WC2: =IF(WC3<=Premissas!$C$74,"C",IF(WC3="-","-","O")) -> - | WD2: =IF(WD3<=Premissas!$C$74,"C",IF(WD3="-","-","O")) -> -
B3: PERÍODO ABSOLUTO | C3: 1 | D3: =IF(C3="-","-",IF(C3+1>Premissas!$C$72,"-",C3+1)) -> 2 | E3: =IF(D3="-","-",IF(D3+1>Premissas!$C$72,"-",D3+1)) -> 3 | F3: =IF(E3="-","-",IF(E3+1>Premissas!$C$72,"-",E3+1)) -> 4 | G3: =IF(F3="-","-",IF(F3+1>Premissas!$C$72,"-",F3+1)) -> 5 | H3: =IF(G3="-","-",IF(G3+1>Premissas!$C$72,"-",G3+1)) -> 6 | I3: =IF(H3="-","-",IF(H3+1>Premissas!$C$72,"-",H3+1)) -> 7 | J3: =IF(I3="-","-",IF(I3+1>Premissas!$C$72,"-",I3+1)) -> 8 | K3: =IF(J3="-","-",IF(J3+1>Premissas!$C$72,"-",J3+1)) -> 9 | L3: =IF(K3="-","-",IF(K3+1>Premissas!$C$72,"-",K3+1)) -> 10 | M3: =IF(L3="-","-",IF(L3+1>Premissas!$C$72,"-",L3+1)) -> 11 | N3: =IF(M3="-","-",IF(M3+1>Premissas!$C$72,"-",M3+1)) -> 12 | O3: =IF(N3="-","-",IF(N3+1>Premissas!$C$72,"-",N3+1)) -> 13 | P3: =IF(O3="-","-",IF(O3+1>Premissas!$C$72,"-",O3+1)) -> 14 | Q3: =IF(P3="-","-",IF(P3+1>Premissas!$C$72,"-",P3+1)) -> 15 | R3: =IF(Q3="-","-",IF(Q3+1>Premissas!$C$72,"-",Q3+1)) -> 16 | S3: =IF(R3="-","-",IF(R3+1>Premissas!$C$72,"-",R3+1)) -> 17 | T3: =IF(S3="-","-",IF(S3+1>Premissas!$C$72,"-",S3+1)) -> 18 | U3: =IF(T3="-","-",IF(T3+1>Premissas!$C$72,"-",T3+1)) -> 19 | V3: =IF(U3="-","-",IF(U3+1>Premissas!$C$72,"-",U3+1)) -> 20 | W3: =IF(V3="-","-",IF(V3+1>Premissas!$C$72,"-",V3+1)) -> 21 | X3: =IF(W3="-","-",IF(W3+1>Premissas!$C$72,"-",W3+1)) -> 22 | Y3: =IF(X3="-","-",IF(X3+1>Premissas!$C$72,"-",X3+1)) -> 23 | Z3: =IF(Y3="-","-",IF(Y3+1>Premissas!$C$72,"-",Y3+1)) -> 24 | AA3: =IF(Z3="-","-",IF(Z3+1>Premissas!$C$72,"-",Z3+1)) -> 25 | AB3: =IF(AA3="-","-",IF(AA3+1>Premissas!$C$72,"-",AA3+1)) -> 26 | AC3: =IF(AB3="-","-",IF(AB3+1>Premissas!$C$72,"-",AB3+1)) -> 27 | AD3: =IF(AC3="-","-",IF(AC3+1>Premissas!$C$72,"-",AC3+1)) -> 28 | AE3: =IF(AD3="-","-",IF(AD3+1>Premissas!$C$72,"-",AD3+1)) -> 29 | AF3: =IF(AE3="-","-",IF(AE3+1>Premissas!$C$72,"-",AE3+1)) -> 30 | AG3: =IF(AF3="-","-",IF(AF3+1>Premissas!$C$72,"-",AF3+1)) -> 31 | AH3: =IF(AG3="-","-",IF(AG3+1>Premissas!$C$72,"-",AG3+1)) -> - | AI3: =IF(AH3="-","-",IF(AH3+1>Premissas!$C$72,"-",AH3+1)) -> - | AJ3: =IF(AI3="-","-",IF(AI3+1>Premissas!$C$72,"-",AI3+1)) -> - | AK3: =IF(AJ3="-","-",IF(AJ3+1>Premissas!$C$72,"-",AJ3+1)) -> - | AL3: =IF(AK3="-","-",IF(AK3+1>Premissas!$C$72,"-",AK3+1)) -> - | AM3: =IF(AL3="-","-",IF(AL3+1>Premissas!$C$72,"-",AL3+1)) -> - | AN3: =IF(AM3="-","-",IF(AM3+1>Premissas!$C$72,"-",AM3+1)) -> - | AO3: =IF(AN3="-","-",IF(AN3+1>Premissas!$C$72,"-",AN3+1)) -> - | AP3: =IF(AO3="-","-",IF(AO3+1>Premissas!$C$72,"-",AO3+1)) -> - | AQ3: =IF(AP3="-","-",IF(AP3+1>Premissas!$C$72,"-",AP3+1)) -> - | AR3: =IF(AQ3="-","-",IF(AQ3+1>Premissas!$C$72,"-",AQ3+1)) -> - | AS3: =IF(AR3="-","-",IF(AR3+1>Premissas!$C$72,"-",AR3+1)) -> - | AT3: =IF(AS3="-","-",IF(AS3+1>Premissas!$C$72,"-",AS3+1)) -> - | AU3: =IF(AT3="-","-",IF(AT3+1>Premissas!$C$72,"-",AT3+1)) -> - | AV3: =IF(AU3="-","-",IF(AU3+1>Premissas!$C$72,"-",AU3+1)) -> - | AW3: =IF(AV3="-","-",IF(AV3+1>Premissas!$C$72,"-",AV3+1)) -> - | AX3: =IF(AW3="-","-",IF(AW3+1>Premissas!$C$72,"-",AW3+1)) -> - | AY3: =IF(AX3="-","-",IF(AX3+1>Premissas!$C$72,"-",AX3+1)) -> - | AZ3: =IF(AY3="-","-",IF(AY3+1>Premissas!$C$72,"-",AY3+1)) -> - | BA3: =IF(AZ3="-","-",IF(AZ3+1>Premissas!$C$72,"-",AZ3+1)) -> - | BB3: =IF(BA3="-","-",IF(BA3+1>Premissas!$C$72,"-",BA3+1)) -> - | BC3: =IF(BB3="-","-",IF(BB3+1>Premissas!$C$72,"-",BB3+1)) -> - | BD3: =IF(BC3="-","-",IF(BC3+1>Premissas!$C$72,"-",BC3+1)) -> - | BE3: =IF(BD3="-","-",IF(BD3+1>Premissas!$C$72,"-",BD3+1)) -> - | BF3: =IF(BE3="-","-",IF(BE3+1>Premissas!$C$72,"-",BE3+1)) -> - | BG3: =IF(BF3="-","-",IF(BF3+1>Premissas!$C$72,"-",BF3+1)) -> - | BH3: =IF(BG3="-","-",IF(BG3+1>Premissas!$C$72,"-",BG3+1)) -> - | BI3: =IF(BH3="-","-",IF(BH3+1>Premissas!$C$72,"-",BH3+1)) -> - | BJ3: =IF(BI3="-","-",IF(BI3+1>Premissas!$C$72,"-",BI3+1)) -> - | BK3: =IF(BJ3="-","-",IF(BJ3+1>Premissas!$C$72,"-",BJ3+1)) -> - | BL3: =IF(BK3="-","-",IF(BK3+1>Premissas!$C$72,"-",BK3+1)) -> - | BM3: =IF(BL3="-","-",IF(BL3+1>Premissas!$C$72,"-",BL3+1)) -> - | BN3: =IF(BM3="-","-",IF(BM3+1>Premissas!$C$72,"-",BM3+1)) -> - | BO3: =IF(BN3="-","-",IF(BN3+1>Premissas!$C$72,"-",BN3+1)) -> - | BP3: =IF(BO3="-","-",IF(BO3+1>Premissas!$C$72,"-",BO3+1)) -> - | BQ3: =IF(BP3="-","-",IF(BP3+1>Premissas!$C$72,"-",BP3+1)) -> - | BR3: =IF(BQ3="-","-",IF(BQ3+1>Premissas!$C$72,"-",BQ3+1)) -> - | BS3: =IF(BR3="-","-",IF(BR3+1>Premissas!$C$72,"-",BR3+1)) -> - | BT3: =IF(BS3="-","-",IF(BS3+1>Premissas!$C$72,"-",BS3+1)) -> - | BU3: =IF(BT3="-","-",IF(BT3+1>Premissas!$C$72,"-",BT3+1)) -> - | BV3: =IF(BU3="-","-",IF(BU3+1>Premissas!$C$72,"-",BU3+1)) -> - | BW3: =IF(BV3="-","-",IF(BV3+1>Premissas!$C$72,"-",BV3+1)) -> - | BX3: =IF(BW3="-","-",IF(BW3+1>Premissas!$C$72,"-",BW3+1)) -> - | BY3: =IF(BX3="-","-",IF(BX3+1>Premissas!$C$72,"-",BX3+1)) -> - | BZ3: =IF(BY3="-","-",IF(BY3+1>Premissas!$C$72,"-",BY3+1)) -> - | CA3: =IF(BZ3="-","-",IF(BZ3+1>Premissas!$C$72,"-",BZ3+1)) -> - | CB3: =IF(CA3="-","-",IF(CA3+1>Premissas!$C$72,"-",CA3+1)) -> - | CC3: =IF(CB3="-","-",IF(CB3+1>Premissas!$C$72,"-",CB3+1)) -> - | CD3: =IF(CC3="-","-",IF(CC3+1>Premissas!$C$72,"-",CC3+1)) -> - | CE3: =IF(CD3="-","-",IF(CD3+1>Premissas!$C$72,"-",CD3+1)) -> - | CF3: =IF(CE3="-","-",IF(CE3+1>Premissas!$C$72,"-",CE3+1)) -> - | CG3: =IF(CF3="-","-",IF(CF3+1>Premissas!$C$72,"-",CF3+1)) -> - | CH3: =IF(CG3="-","-",IF(CG3+1>Premissas!$C$72,"-",CG3+1)) -> - | CI3: =IF(CH3="-","-",IF(CH3+1>Premissas!$C$72,"-",CH3+1)) -> - | CJ3: =IF(CI3="-","-",IF(CI3+1>Premissas!$C$72,"-",CI3+1)) -> - | CK3: =IF(CJ3="-","-",IF(CJ3+1>Premissas!$C$72,"-",CJ3+1)) -> - | CL3: =IF(CK3="-","-",IF(CK3+1>Premissas!$C$72,"-",CK3+1)) -> - | CM3: =IF(CL3="-","-",IF(CL3+1>Premissas!$C$72,"-",CL3+1)) -> - | CN3: =IF(CM3="-","-",IF(CM3+1>Premissas!$C$72,"-",CM3+1)) -> - | CO3: =IF(CN3="-","-",IF(CN3+1>Premissas!$C$72,"-",CN3+1)) -> - | CP3: =IF(CO3="-","-",IF(CO3+1>Premissas!$C$72,"-",CO3+1)) -> - | CQ3: =IF(CP3="-","-",IF(CP3+1>Premissas!$C$72,"-",CP3+1)) -> - | CR3: =IF(CQ3="-","-",IF(CQ3+1>Premissas!$C$72,"-",CQ3+1)) -> - | CS3: =IF(CR3="-","-",IF(CR3+1>Premissas!$C$72,"-",CR3+1)) -> - | CT3: =IF(CS3="-","-",IF(CS3+1>Premissas!$C$72,"-",CS3+1)) -> - | CU3: =IF(CT3="-","-",IF(CT3+1>Premissas!$C$72,"-",CT3+1)) -> - | CV3: =IF(CU3="-","-",IF(CU3+1>Premissas!$C$72,"-",CU3+1)) -> - | CW3: =IF(CV3="-","-",IF(CV3+1>Premissas!$C$72,"-",CV3+1)) -> - | CX3: =IF(CW3="-","-",IF(CW3+1>Premissas!$C$72,"-",CW3+1)) -> - | CY3: =IF(CX3="-","-",IF(CX3+1>Premissas!$C$72,"-",CX3+1)) -> - | CZ3: =IF(CY3="-","-",IF(CY3+1>Premissas!$C$72,"-",CY3+1)) -> - | DA3: =IF(CZ3="-","-",IF(CZ3+1>Premissas!$C$72,"-",CZ3+1)) -> - | DB3: =IF(DA3="-","-",IF(DA3+1>Premissas!$C$72,"-",DA3+1)) -> - | DC3: =IF(DB3="-","-",IF(DB3+1>Premissas!$C$72,"-",DB3+1)) -> - | DD3: =IF(DC3="-","-",IF(DC3+1>Premissas!$C$72,"-",DC3+1)) -> - | DE3: =IF(DD3="-","-",IF(DD3+1>Premissas!$C$72,"-",DD3+1)) -> - | DF3: =IF(DE3="-","-",IF(DE3+1>Premissas!$C$72,"-",DE3+1)) -> - | DG3: =IF(DF3="-","-",IF(DF3+1>Premissas!$C$72,"-",DF3+1)) -> - | DH3: =IF(DG3="-","-",IF(DG3+1>Premissas!$C$72,"-",DG3+1)) -> - | DI3: =IF(DH3="-","-",IF(DH3+1>Premissas!$C$72,"-",DH3+1)) -> - | DJ3: =IF(DI3="-","-",IF(DI3+1>Premissas!$C$72,"-",DI3+1)) -> - | DK3: =IF(DJ3="-","-",IF(DJ3+1>Premissas!$C$72,"-",DJ3+1)) -> - | DL3: =IF(DK3="-","-",IF(DK3+1>Premissas!$C$72,"-",DK3+1)) -> - | DM3: =IF(DL3="-","-",IF(DL3+1>Premissas!$C$72,"-",DL3+1)) -> - | DN3: =IF(DM3="-","-",IF(DM3+1>Premissas!$C$72,"-",DM3+1)) -> - | DO3: =IF(DN3="-","-",IF(DN3+1>Premissas!$C$72,"-",DN3+1)) -> - | DP3: =IF(DO3="-","-",IF(DO3+1>Premissas!$C$72,"-",DO3+1)) -> - | DQ3: =IF(DP3="-","-",IF(DP3+1>Premissas!$C$72,"-",DP3+1)) -> - | DR3: =IF(DQ3="-","-",IF(DQ3+1>Premissas!$C$72,"-",DQ3+1)) -> - | DS3: =IF(DR3="-","-",IF(DR3+1>Premissas!$C$72,"-",DR3+1)) -> - | DT3: =IF(DS3="-","-",IF(DS3+1>Premissas!$C$72,"-",DS3+1)) -> - | DU3: =IF(DT3="-","-",IF(DT3+1>Premissas!$C$72,"-",DT3+1)) -> - | DV3: =IF(DU3="-","-",IF(DU3+1>Premissas!$C$72,"-",DU3+1)) -> - | DW3: =IF(DV3="-","-",IF(DV3+1>Premissas!$C$72,"-",DV3+1)) -> - | DX3: =IF(DW3="-","-",IF(DW3+1>Premissas!$C$72,"-",DW3+1)) -> - | DY3: =IF(DX3="-","-",IF(DX3+1>Premissas!$C$72,"-",DX3+1)) -> - | DZ3: =IF(DY3="-","-",IF(DY3+1>Premissas!$C$72,"-",DY3+1)) -> - | EA3: =IF(DZ3="-","-",IF(DZ3+1>Premissas!$C$72,"-",DZ3+1)) -> - | EB3: =IF(EA3="-","-",IF(EA3+1>Premissas!$C$72,"-",EA3+1)) -> - | EC3: =IF(EB3="-","-",IF(EB3+1>Premissas!$C$72,"-",EB3+1)) -> - | ED3: =IF(EC3="-","-",IF(EC3+1>Premissas!$C$72,"-",EC3+1)) -> - | EE3: =IF(ED3="-","-",IF(ED3+1>Premissas!$C$72,"-",ED3+1)) -> - | EF3: =IF(EE3="-","-",IF(EE3+1>Premissas!$C$72,"-",EE3+1)) -> - | EG3: =IF(EF3="-","-",IF(EF3+1>Premissas!$C$72,"-",EF3+1)) -> - | EH3: =IF(EG3="-","-",IF(EG3+1>Premissas!$C$72,"-",EG3+1)) -> - | EI3: =IF(EH3="-","-",IF(EH3+1>Premissas!$C$72,"-",EH3+1)) -> - | EJ3: =IF(EI3="-","-",IF(EI3+1>Premissas!$C$72,"-",EI3+1)) -> - | EK3: =IF(EJ3="-","-",IF(EJ3+1>Premissas!$C$72,"-",EJ3+1)) -> - | EL3: =IF(EK3="-","-",IF(EK3+1>Premissas!$C$72,"-",EK3+1)) -> - | EM3: =IF(EL3="-","-",IF(EL3+1>Premissas!$C$72,"-",EL3+1)) -> - | EN3: =IF(EM3="-","-",IF(EM3+1>Premissas!$C$72,"-",EM3+1)) -> - | EO3: =IF(EN3="-","-",IF(EN3+1>Premissas!$C$72,"-",EN3+1)) -> - | EP3: =IF(EO3="-","-",IF(EO3+1>Premissas!$C$72,"-",EO3+1)) -> - | EQ3: =IF(EP3="-","-",IF(EP3+1>Premissas!$C$72,"-",EP3+1)) -> - | ER3: =IF(EQ3="-","-",IF(EQ3+1>Premissas!$C$72,"-",EQ3+1)) -> - | ES3: =IF(ER3="-","-",IF(ER3+1>Premissas!$C$72,"-",ER3+1)) -> - | ET3: =IF(ES3="-","-",IF(ES3+1>Premissas!$C$72,"-",ES3+1)) -> - | EU3: =IF(ET3="-","-",IF(ET3+1>Premissas!$C$72,"-",ET3+1)) -> - | EV3: =IF(EU3="-","-",IF(EU3+1>Premissas!$C$72,"-",EU3+1)) -> - | EW3: =IF(EV3="-","-",IF(EV3+1>Premissas!$C$72,"-",EV3+1)) -> - | EX3: =IF(EW3="-","-",IF(EW3+1>Premissas!$C$72,"-",EW3+1)) -> - | EY3: =IF(EX3="-","-",IF(EX3+1>Premissas!$C$72,"-",EX3+1)) -> - | EZ3: =IF(EY3="-","-",IF(EY3+1>Premissas!$C$72,"-",EY3+1)) -> - | FA3: =IF(EZ3="-","-",IF(EZ3+1>Premissas!$C$72,"-",EZ3+1)) -> - | FB3: =IF(FA3="-","-",IF(FA3+1>Premissas!$C$72,"-",FA3+1)) -> - | FC3: =IF(FB3="-","-",IF(FB3+1>Premissas!$C$72,"-",FB3+1)) -> - | FD3: =IF(FC3="-","-",IF(FC3+1>Premissas!$C$72,"-",FC3+1)) -> - | FE3: =IF(FD3="-","-",IF(FD3+1>Premissas!$C$72,"-",FD3+1)) -> - | FF3: =IF(FE3="-","-",IF(FE3+1>Premissas!$C$72,"-",FE3+1)) -> - | FG3: =IF(FF3="-","-",IF(FF3+1>Premissas!$C$72,"-",FF3+1)) -> - | FH3: =IF(FG3="-","-",IF(FG3+1>Premissas!$C$72,"-",FG3+1)) -> - | FI3: =IF(FH3="-","-",IF(FH3+1>Premissas!$C$72,"-",FH3+1)) -> - | FJ3: =IF(FI3="-","-",IF(FI3+1>Premissas!$C$72,"-",FI3+1)) -> - | FK3: =IF(FJ3="-","-",IF(FJ3+1>Premissas!$C$72,"-",FJ3+1)) -> - | FL3: =IF(FK3="-","-",IF(FK3+1>Premissas!$C$72,"-",FK3+1)) -> - | FM3: =IF(FL3="-","-",IF(FL3+1>Premissas!$C$72,"-",FL3+1)) -> - | FN3: =IF(FM3="-","-",IF(FM3+1>Premissas!$C$72,"-",FM3+1)) -> - | FO3: =IF(FN3="-","-",IF(FN3+1>Premissas!$C$72,"-",FN3+1)) -> - | FP3: =IF(FO3="-","-",IF(FO3+1>Premissas!$C$72,"-",FO3+1)) -> - | FQ3: =IF(FP3="-","-",IF(FP3+1>Premissas!$C$72,"-",FP3+1)) -> - | FR3: =IF(FQ3="-","-",IF(FQ3+1>Premissas!$C$72,"-",FQ3+1)) -> - | FS3: =IF(FR3="-","-",IF(FR3+1>Premissas!$C$72,"-",FR3+1)) -> - | FT3: =IF(FS3="-","-",IF(FS3+1>Premissas!$C$72,"-",FS3+1)) -> - | FU3: =IF(FT3="-","-",IF(FT3+1>Premissas!$C$72,"-",FT3+1)) -> - | FV3: =IF(FU3="-","-",IF(FU3+1>Premissas!$C$72,"-",FU3+1)) -> - | FW3: =IF(FV3="-","-",IF(FV3+1>Premissas!$C$72,"-",FV3+1)) -> - | FX3: =IF(FW3="-","-",IF(FW3+1>Premissas!$C$72,"-",FW3+1)) -> - | FY3: =IF(FX3="-","-",IF(FX3+1>Premissas!$C$72,"-",FX3+1)) -> - | FZ3: =IF(FY3="-","-",IF(FY3+1>Premissas!$C$72,"-",FY3+1)) -> - | GA3: =IF(FZ3="-","-",IF(FZ3+1>Premissas!$C$72,"-",FZ3+1)) -> - | GB3: =IF(GA3="-","-",IF(GA3+1>Premissas!$C$72,"-",GA3+1)) -> - | GC3: =IF(GB3="-","-",IF(GB3+1>Premissas!$C$72,"-",GB3+1)) -> - | GD3: =IF(GC3="-","-",IF(GC3+1>Premissas!$C$72,"-",GC3+1)) -> - | GE3: =IF(GD3="-","-",IF(GD3+1>Premissas!$C$72,"-",GD3+1)) -> - | GF3: =IF(GE3="-","-",IF(GE3+1>Premissas!$C$72,"-",GE3+1)) -> - | GG3: =IF(GF3="-","-",IF(GF3+1>Premissas!$C$72,"-",GF3+1)) -> - | GH3: =IF(GG3="-","-",IF(GG3+1>Premissas!$C$72,"-",GG3+1)) -> - | GI3: =IF(GH3="-","-",IF(GH3+1>Premissas!$C$72,"-",GH3+1)) -> - | GJ3: =IF(GI3="-","-",IF(GI3+1>Premissas!$C$72,"-",GI3+1)) -> - | GK3: =IF(GJ3="-","-",IF(GJ3+1>Premissas!$C$72,"-",GJ3+1)) -> - | GL3: =IF(GK3="-","-",IF(GK3+1>Premissas!$C$72,"-",GK3+1)) -> - | GM3: =IF(GL3="-","-",IF(GL3+1>Premissas!$C$72,"-",GL3+1)) -> - | GN3: =IF(GM3="-","-",IF(GM3+1>Premissas!$C$72,"-",GM3+1)) -> - | GO3: =IF(GN3="-","-",IF(GN3+1>Premissas!$C$72,"-",GN3+1)) -> - | GP3: =IF(GO3="-","-",IF(GO3+1>Premissas!$C$72,"-",GO3+1)) -> - | GQ3: =IF(GP3="-","-",IF(GP3+1>Premissas!$C$72,"-",GP3+1)) -> - | GR3: =IF(GQ3="-","-",IF(GQ3+1>Premissas!$C$72,"-",GQ3+1)) -> - | GS3: =IF(GR3="-","-",IF(GR3+1>Premissas!$C$72,"-",GR3+1)) -> - | GT3: =IF(GS3="-","-",IF(GS3+1>Premissas!$C$72,"-",GS3+1)) -> - | GU3: =IF(GT3="-","-",IF(GT3+1>Premissas!$C$72,"-",GT3+1)) -> - | GV3: =IF(GU3="-","-",IF(GU3+1>Premissas!$C$72,"-",GU3+1)) -> - | GW3: =IF(GV3="-","-",IF(GV3+1>Premissas!$C$72,"-",GV3+1)) -> - | GX3: =IF(GW3="-","-",IF(GW3+1>Premissas!$C$72,"-",GW3+1)) -> - | GY3: =IF(GX3="-","-",IF(GX3+1>Premissas!$C$72,"-",GX3+1)) -> - | GZ3: =IF(GY3="-","-",IF(GY3+1>Premissas!$C$72,"-",GY3+1)) -> - | HA3: =IF(GZ3="-","-",IF(GZ3+1>Premissas!$C$72,"-",GZ3+1)) -> - | HB3: =IF(HA3="-","-",IF(HA3+1>Premissas!$C$72,"-",HA3+1)) -> - | HC3: =IF(HB3="-","-",IF(HB3+1>Premissas!$C$72,"-",HB3+1)) -> - | HD3: =IF(HC3="-","-",IF(HC3+1>Premissas!$C$72,"-",HC3+1)) -> - | HE3: =IF(HD3="-","-",IF(HD3+1>Premissas!$C$72,"-",HD3+1)) -> - | HF3: =IF(HE3="-","-",IF(HE3+1>Premissas!$C$72,"-",HE3+1)) -> - | HG3: =IF(HF3="-","-",IF(HF3+1>Premissas!$C$72,"-",HF3+1)) -> - | HH3: =IF(HG3="-","-",IF(HG3+1>Premissas!$C$72,"-",HG3+1)) -> - | HI3: =IF(HH3="-","-",IF(HH3+1>Premissas!$C$72,"-",HH3+1)) -> - | HJ3: =IF(HI3="-","-",IF(HI3+1>Premissas!$C$72,"-",HI3+1)) -> - | HK3: =IF(HJ3="-","-",IF(HJ3+1>Premissas!$C$72,"-",HJ3+1)) -> - | HL3: =IF(HK3="-","-",IF(HK3+1>Premissas!$C$72,"-",HK3+1)) -> - | HM3: =IF(HL3="-","-",IF(HL3+1>Premissas!$C$72,"-",HL3+1)) -> - | HN3: =IF(HM3="-","-",IF(HM3+1>Premissas!$C$72,"-",HM3+1)) -> - | HO3: =IF(HN3="-","-",IF(HN3+1>Premissas!$C$72,"-",HN3+1)) -> - | HP3: =IF(HO3="-","-",IF(HO3+1>Premissas!$C$72,"-",HO3+1)) -> - | HQ3: =IF(HP3="-","-",IF(HP3+1>Premissas!$C$72,"-",HP3+1)) -> - | HR3: =IF(HQ3="-","-",IF(HQ3+1>Premissas!$C$72,"-",HQ3+1)) -> - | HS3: =IF(HR3="-","-",IF(HR3+1>Premissas!$C$72,"-",HR3+1)) -> - | HT3: =IF(HS3="-","-",IF(HS3+1>Premissas!$C$72,"-",HS3+1)) -> - | HU3: =IF(HT3="-","-",IF(HT3+1>Premissas!$C$72,"-",HT3+1)) -> - | HV3: =IF(HU3="-","-",IF(HU3+1>Premissas!$C$72,"-",HU3+1)) -> - | HW3: =IF(HV3="-","-",IF(HV3+1>Premissas!$C$72,"-",HV3+1)) -> - | HX3: =IF(HW3="-","-",IF(HW3+1>Premissas!$C$72,"-",HW3+1)) -> - | HY3: =IF(HX3="-","-",IF(HX3+1>Premissas!$C$72,"-",HX3+1)) -> - | HZ3: =IF(HY3="-","-",IF(HY3+1>Premissas!$C$72,"-",HY3+1)) -> - | IA3: =IF(HZ3="-","-",IF(HZ3+1>Premissas!$C$72,"-",HZ3+1)) -> - | IB3: =IF(IA3="-","-",IF(IA3+1>Premissas!$C$72,"-",IA3+1)) -> - | IC3: =IF(IB3="-","-",IF(IB3+1>Premissas!$C$72,"-",IB3+1)) -> - | ID3: =IF(IC3="-","-",IF(IC3+1>Premissas!$C$72,"-",IC3+1)) -> - | IE3: =IF(ID3="-","-",IF(ID3+1>Premissas!$C$72,"-",ID3+1)) -> - | IF3: =IF(IE3="-","-",IF(IE3+1>Premissas!$C$72,"-",IE3+1)) -> - | IG3: =IF(IF3="-","-",IF(IF3+1>Premissas!$C$72,"-",IF3+1)) -> - | IH3: =IF(IG3="-","-",IF(IG3+1>Premissas!$C$72,"-",IG3+1)) -> - | II3: =IF(IH3="-","-",IF(IH3+1>Premissas!$C$72,"-",IH3+1)) -> - | IJ3: =IF(II3="-","-",IF(II3+1>Premissas!$C$72,"-",II3+1)) -> - | IK3: =IF(IJ3="-","-",IF(IJ3+1>Premissas!$C$72,"-",IJ3+1)) -> - | IL3: =IF(IK3="-","-",IF(IK3+1>Premissas!$C$72,"-",IK3+1)) -> - | IM3: =IF(IL3="-","-",IF(IL3+1>Premissas!$C$72,"-",IL3+1)) -> - | IN3: =IF(IM3="-","-",IF(IM3+1>Premissas!$C$72,"-",IM3+1)) -> - | IO3: =IF(IN3="-","-",IF(IN3+1>Premissas!$C$72,"-",IN3+1)) -> - | IP3: =IF(IO3="-","-",IF(IO3+1>Premissas!$C$72,"-",IO3+1)) -> - | IQ3: =IF(IP3="-","-",IF(IP3+1>Premissas!$C$72,"-",IP3+1)) -> - | IR3: =IF(IQ3="-","-",IF(IQ3+1>Premissas!$C$72,"-",IQ3+1)) -> - | IS3: =IF(IR3="-","-",IF(IR3+1>Premissas!$C$72,"-",IR3+1)) -> - | IT3: =IF(IS3="-","-",IF(IS3+1>Premissas!$C$72,"-",IS3+1)) -> - | IU3: =IF(IT3="-","-",IF(IT3+1>Premissas!$C$72,"-",IT3+1)) -> - | IV3: =IF(IU3="-","-",IF(IU3+1>Premissas!$C$72,"-",IU3+1)) -> - | IW3: =IF(IV3="-","-",IF(IV3+1>Premissas!$C$72,"-",IV3+1)) -> - | IX3: =IF(IW3="-","-",IF(IW3+1>Premissas!$C$72,"-",IW3+1)) -> - | IY3: =IF(IX3="-","-",IF(IX3+1>Premissas!$C$72,"-",IX3+1)) -> - | IZ3: =IF(IY3="-","-",IF(IY3+1>Premissas!$C$72,"-",IY3+1)) -> - | JA3: =IF(IZ3="-","-",IF(IZ3+1>Premissas!$C$72,"-",IZ3+1)) -> - | JB3: =IF(JA3="-","-",IF(JA3+1>Premissas!$C$72,"-",JA3+1)) -> - | JC3: =IF(JB3="-","-",IF(JB3+1>Premissas!$C$72,"-",JB3+1)) -> - | JD3: =IF(JC3="-","-",IF(JC3+1>Premissas!$C$72,"-",JC3+1)) -> - | JE3: =IF(JD3="-","-",IF(JD3+1>Premissas!$C$72,"-",JD3+1)) -> - | JF3: =IF(JE3="-","-",IF(JE3+1>Premissas!$C$72,"-",JE3+1)) -> - | JG3: =IF(JF3="-","-",IF(JF3+1>Premissas!$C$72,"-",JF3+1)) -> - | JH3: =IF(JG3="-","-",IF(JG3+1>Premissas!$C$72,"-",JG3+1)) -> - | JI3: =IF(JH3="-","-",IF(JH3+1>Premissas!$C$72,"-",JH3+1)) -> - | JJ3: =IF(JI3="-","-",IF(JI3+1>Premissas!$C$72,"-",JI3+1)) -> - | JK3: =IF(JJ3="-","-",IF(JJ3+1>Premissas!$C$72,"-",JJ3+1)) -> - | JL3: =IF(JK3="-","-",IF(JK3+1>Premissas!$C$72,"-",JK3+1)) -> - | JM3: =IF(JL3="-","-",IF(JL3+1>Premissas!$C$72,"-",JL3+1)) -> - | JN3: =IF(JM3="-","-",IF(JM3+1>Premissas!$C$72,"-",JM3+1)) -> - | JO3: =IF(JN3="-","-",IF(JN3+1>Premissas!$C$72,"-",JN3+1)) -> - | JP3: =IF(JO3="-","-",IF(JO3+1>Premissas!$C$72,"-",JO3+1)) -> - | JQ3: =IF(JP3="-","-",IF(JP3+1>Premissas!$C$72,"-",JP3+1)) -> - | JR3: =IF(JQ3="-","-",IF(JQ3+1>Premissas!$C$72,"-",JQ3+1)) -> - | JS3: =IF(JR3="-","-",IF(JR3+1>Premissas!$C$72,"-",JR3+1)) -> - | JT3: =IF(JS3="-","-",IF(JS3+1>Premissas!$C$72,"-",JS3+1)) -> - | JU3: =IF(JT3="-","-",IF(JT3+1>Premissas!$C$72,"-",JT3+1)) -> - | JV3: =IF(JU3="-","-",IF(JU3+1>Premissas!$C$72,"-",JU3+1)) -> - | JW3: =IF(JV3="-","-",IF(JV3+1>Premissas!$C$72,"-",JV3+1)) -> - | JX3: =IF(JW3="-","-",IF(JW3+1>Premissas!$C$72,"-",JW3+1)) -> - | JY3: =IF(JX3="-","-",IF(JX3+1>Premissas!$C$72,"-",JX3+1)) -> - | JZ3: =IF(JY3="-","-",IF(JY3+1>Premissas!$C$72,"-",JY3+1)) -> - | KA3: =IF(JZ3="-","-",IF(JZ3+1>Premissas!$C$72,"-",JZ3+1)) -> - | KB3: =IF(KA3="-","-",IF(KA3+1>Premissas!$C$72,"-",KA3+1)) -> - | KC3: =IF(KB3="-","-",IF(KB3+1>Premissas!$C$72,"-",KB3+1)) -> - | KD3: =IF(KC3="-","-",IF(KC3+1>Premissas!$C$72,"-",KC3+1)) -> - | KE3: =IF(KD3="-","-",IF(KD3+1>Premissas!$C$72,"-",KD3+1)) -> - | KF3: =IF(KE3="-","-",IF(KE3+1>Premissas!$C$72,"-",KE3+1)) -> - | KG3: =IF(KF3="-","-",IF(KF3+1>Premissas!$C$72,"-",KF3+1)) -> - | KH3: =IF(KG3="-","-",IF(KG3+1>Premissas!$C$72,"-",KG3+1)) -> - | KI3: =IF(KH3="-","-",IF(KH3+1>Premissas!$C$72,"-",KH3+1)) -> - | KJ3: =IF(KI3="-","-",IF(KI3+1>Premissas!$C$72,"-",KI3+1)) -> - | KK3: =IF(KJ3="-","-",IF(KJ3+1>Premissas!$C$72,"-",KJ3+1)) -> - | KL3: =IF(KK3="-","-",IF(KK3+1>Premissas!$C$72,"-",KK3+1)) -> - | KM3: =IF(KL3="-","-",IF(KL3+1>Premissas!$C$72,"-",KL3+1)) -> - | KN3: =IF(KM3="-","-",IF(KM3+1>Premissas!$C$72,"-",KM3+1)) -> - | KO3: =IF(KN3="-","-",IF(KN3+1>Premissas!$C$72,"-",KN3+1)) -> - | KP3: =IF(KO3="-","-",IF(KO3+1>Premissas!$C$72,"-",KO3+1)) -> - | KQ3: =IF(KP3="-","-",IF(KP3+1>Premissas!$C$72,"-",KP3+1)) -> - | KR3: =IF(KQ3="-","-",IF(KQ3+1>Premissas!$C$72,"-",KQ3+1)) -> - | KS3: =IF(KR3="-","-",IF(KR3+1>Premissas!$C$72,"-",KR3+1)) -> - | KT3: =IF(KS3="-","-",IF(KS3+1>Premissas!$C$72,"-",KS3+1)) -> - | KU3: =IF(KT3="-","-",IF(KT3+1>Premissas!$C$72,"-",KT3+1)) -> - | KV3: =IF(KU3="-","-",IF(KU3+1>Premissas!$C$72,"-",KU3+1)) -> - | KW3: =IF(KV3="-","-",IF(KV3+1>Premissas!$C$72,"-",KV3+1)) -> - | KX3: =IF(KW3="-","-",IF(KW3+1>Premissas!$C$72,"-",KW3+1)) -> - | KY3: =IF(KX3="-","-",IF(KX3+1>Premissas!$C$72,"-",KX3+1)) -> - | KZ3: =IF(KY3="-","-",IF(KY3+1>Premissas!$C$72,"-",KY3+1)) -> - | LA3: =IF(KZ3="-","-",IF(KZ3+1>Premissas!$C$72,"-",KZ3+1)) -> - | LB3: =IF(LA3="-","-",IF(LA3+1>Premissas!$C$72,"-",LA3+1)) -> - | LC3: =IF(LB3="-","-",IF(LB3+1>Premissas!$C$72,"-",LB3+1)) -> - | LD3: =IF(LC3="-","-",IF(LC3+1>Premissas!$C$72,"-",LC3+1)) -> - | LE3: =IF(LD3="-","-",IF(LD3+1>Premissas!$C$72,"-",LD3+1)) -> - | LF3: =IF(LE3="-","-",IF(LE3+1>Premissas!$C$72,"-",LE3+1)) -> - | LG3: =IF(LF3="-","-",IF(LF3+1>Premissas!$C$72,"-",LF3+1)) -> - | LH3: =IF(LG3="-","-",IF(LG3+1>Premissas!$C$72,"-",LG3+1)) -> - | LI3: =IF(LH3="-","-",IF(LH3+1>Premissas!$C$72,"-",LH3+1)) -> - | LJ3: =IF(LI3="-","-",IF(LI3+1>Premissas!$C$72,"-",LI3+1)) -> - | LK3: =IF(LJ3="-","-",IF(LJ3+1>Premissas!$C$72,"-",LJ3+1)) -> - | LL3: =IF(LK3="-","-",IF(LK3+1>Premissas!$C$72,"-",LK3+1)) -> - | LM3: =IF(LL3="-","-",IF(LL3+1>Premissas!$C$72,"-",LL3+1)) -> - | LN3: =IF(LM3="-","-",IF(LM3+1>Premissas!$C$72,"-",LM3+1)) -> - | LO3: =IF(LN3="-","-",IF(LN3+1>Premissas!$C$72,"-",LN3+1)) -> - | LP3: =IF(LO3="-","-",IF(LO3+1>Premissas!$C$72,"-",LO3+1)) -> - | LQ3: =IF(LP3="-","-",IF(LP3+1>Premissas!$C$72,"-",LP3+1)) -> - | LR3: =IF(LQ3="-","-",IF(LQ3+1>Premissas!$C$72,"-",LQ3+1)) -> - | LS3: =IF(LR3="-","-",IF(LR3+1>Premissas!$C$72,"-",LR3+1)) -> - | LT3: =IF(LS3="-","-",IF(LS3+1>Premissas!$C$72,"-",LS3+1)) -> - | LU3: =IF(LT3="-","-",IF(LT3+1>Premissas!$C$72,"-",LT3+1)) -> - | LV3: =IF(LU3="-","-",IF(LU3+1>Premissas!$C$72,"-",LU3+1)) -> - | LW3: =IF(LV3="-","-",IF(LV3+1>Premissas!$C$72,"-",LV3+1)) -> - | LX3: =IF(LW3="-","-",IF(LW3+1>Premissas!$C$72,"-",LW3+1)) -> - | LY3: =IF(LX3="-","-",IF(LX3+1>Premissas!$C$72,"-",LX3+1)) -> - | LZ3: =IF(LY3="-","-",IF(LY3+1>Premissas!$C$72,"-",LY3+1)) -> - | MA3: =IF(LZ3="-","-",IF(LZ3+1>Premissas!$C$72,"-",LZ3+1)) -> - | MB3: =IF(MA3="-","-",IF(MA3+1>Premissas!$C$72,"-",MA3+1)) -> - | MC3: =IF(MB3="-","-",IF(MB3+1>Premissas!$C$72,"-",MB3+1)) -> - | MD3: =IF(MC3="-","-",IF(MC3+1>Premissas!$C$72,"-",MC3+1)) -> - | ME3: =IF(MD3="-","-",IF(MD3+1>Premissas!$C$72,"-",MD3+1)) -> - | MF3: =IF(ME3="-","-",IF(ME3+1>Premissas!$C$72,"-",ME3+1)) -> - | MG3: =IF(MF3="-","-",IF(MF3+1>Premissas!$C$72,"-",MF3+1)) -> - | MH3: =IF(MG3="-","-",IF(MG3+1>Premissas!$C$72,"-",MG3+1)) -> - | MI3: =IF(MH3="-","-",IF(MH3+1>Premissas!$C$72,"-",MH3+1)) -> - | MJ3: =IF(MI3="-","-",IF(MI3+1>Premissas!$C$72,"-",MI3+1)) -> - | MK3: =IF(MJ3="-","-",IF(MJ3+1>Premissas!$C$72,"-",MJ3+1)) -> - | ML3: =IF(MK3="-","-",IF(MK3+1>Premissas!$C$72,"-",MK3+1)) -> - | MM3: =IF(ML3="-","-",IF(ML3+1>Premissas!$C$72,"-",ML3+1)) -> - | MN3: =IF(MM3="-","-",IF(MM3+1>Premissas!$C$72,"-",MM3+1)) -> - | MO3: =IF(MN3="-","-",IF(MN3+1>Premissas!$C$72,"-",MN3+1)) -> - | MP3: =IF(MO3="-","-",IF(MO3+1>Premissas!$C$72,"-",MO3+1)) -> - | MQ3: =IF(MP3="-","-",IF(MP3+1>Premissas!$C$72,"-",MP3+1)) -> - | MR3: =IF(MQ3="-","-",IF(MQ3+1>Premissas!$C$72,"-",MQ3+1)) -> - | MS3: =IF(MR3="-","-",IF(MR3+1>Premissas!$C$72,"-",MR3+1)) -> - | MT3: =IF(MS3="-","-",IF(MS3+1>Premissas!$C$72,"-",MS3+1)) -> - | MU3: =IF(MT3="-","-",IF(MT3+1>Premissas!$C$72,"-",MT3+1)) -> - | MV3: =IF(MU3="-","-",IF(MU3+1>Premissas!$C$72,"-",MU3+1)) -> - | MW3: =IF(MV3="-","-",IF(MV3+1>Premissas!$C$72,"-",MV3+1)) -> - | MX3: =IF(MW3="-","-",IF(MW3+1>Premissas!$C$72,"-",MW3+1)) -> - | MY3: =IF(MX3="-","-",IF(MX3+1>Premissas!$C$72,"-",MX3+1)) -> - | MZ3: =IF(MY3="-","-",IF(MY3+1>Premissas!$C$72,"-",MY3+1)) -> - | NA3: =IF(MZ3="-","-",IF(MZ3+1>Premissas!$C$72,"-",MZ3+1)) -> - | NB3: =IF(NA3="-","-",IF(NA3+1>Premissas!$C$72,"-",NA3+1)) -> - | NC3: =IF(NB3="-","-",IF(NB3+1>Premissas!$C$72,"-",NB3+1)) -> - | ND3: =IF(NC3="-","-",IF(NC3+1>Premissas!$C$72,"-",NC3+1)) -> - | NE3: =IF(ND3="-","-",IF(ND3+1>Premissas!$C$72,"-",ND3+1)) -> - | NF3: =IF(NE3="-","-",IF(NE3+1>Premissas!$C$72,"-",NE3+1)) -> - | NG3: =IF(NF3="-","-",IF(NF3+1>Premissas!$C$72,"-",NF3+1)) -> - | NH3: =IF(NG3="-","-",IF(NG3+1>Premissas!$C$72,"-",NG3+1)) -> - | NI3: =IF(NH3="-","-",IF(NH3+1>Premissas!$C$72,"-",NH3+1)) -> - | NJ3: =IF(NI3="-","-",IF(NI3+1>Premissas!$C$72,"-",NI3+1)) -> - | NK3: =IF(NJ3="-","-",IF(NJ3+1>Premissas!$C$72,"-",NJ3+1)) -> - | NL3: =IF(NK3="-","-",IF(NK3+1>Premissas!$C$72,"-",NK3+1)) -> - | NM3: =IF(NL3="-","-",IF(NL3+1>Premissas!$C$72,"-",NL3+1)) -> - | NN3: =IF(NM3="-","-",IF(NM3+1>Premissas!$C$72,"-",NM3+1)) -> - | NO3: =IF(NN3="-","-",IF(NN3+1>Premissas!$C$72,"-",NN3+1)) -> - | NP3: =IF(NO3="-","-",IF(NO3+1>Premissas!$C$72,"-",NO3+1)) -> - | NQ3: =IF(NP3="-","-",IF(NP3+1>Premissas!$C$72,"-",NP3+1)) -> - | NR3: =IF(NQ3="-","-",IF(NQ3+1>Premissas!$C$72,"-",NQ3+1)) -> - | NS3: =IF(NR3="-","-",IF(NR3+1>Premissas!$C$72,"-",NR3+1)) -> - | NT3: =IF(NS3="-","-",IF(NS3+1>Premissas!$C$72,"-",NS3+1)) -> - | NU3: =IF(NT3="-","-",IF(NT3+1>Premissas!$C$72,"-",NT3+1)) -> - | NV3: =IF(NU3="-","-",IF(NU3+1>Premissas!$C$72,"-",NU3+1)) -> - | NW3: =IF(NV3="-","-",IF(NV3+1>Premissas!$C$72,"-",NV3+1)) -> - | NX3: =IF(NW3="-","-",IF(NW3+1>Premissas!$C$72,"-",NW3+1)) -> - | NY3: =IF(NX3="-","-",IF(NX3+1>Premissas!$C$72,"-",NX3+1)) -> - | NZ3: =IF(NY3="-","-",IF(NY3+1>Premissas!$C$72,"-",NY3+1)) -> - | OA3: =IF(NZ3="-","-",IF(NZ3+1>Premissas!$C$72,"-",NZ3+1)) -> - | OB3: =IF(OA3="-","-",IF(OA3+1>Premissas!$C$72,"-",OA3+1)) -> - | OC3: =IF(OB3="-","-",IF(OB3+1>Premissas!$C$72,"-",OB3+1)) -> - | OD3: =IF(OC3="-","-",IF(OC3+1>Premissas!$C$72,"-",OC3+1)) -> - | OE3: =IF(OD3="-","-",IF(OD3+1>Premissas!$C$72,"-",OD3+1)) -> - | OF3: =IF(OE3="-","-",IF(OE3+1>Premissas!$C$72,"-",OE3+1)) -> - | OG3: =IF(OF3="-","-",IF(OF3+1>Premissas!$C$72,"-",OF3+1)) -> - | OH3: =IF(OG3="-","-",IF(OG3+1>Premissas!$C$72,"-",OG3+1)) -> - | OI3: =IF(OH3="-","-",IF(OH3+1>Premissas!$C$72,"-",OH3+1)) -> - | OJ3: =IF(OI3="-","-",IF(OI3+1>Premissas!$C$72,"-",OI3+1)) -> - | OK3: =IF(OJ3="-","-",IF(OJ3+1>Premissas!$C$72,"-",OJ3+1)) -> - | OL3: =IF(OK3="-","-",IF(OK3+1>Premissas!$C$72,"-",OK3+1)) -> - | OM3: =IF(OL3="-","-",IF(OL3+1>Premissas!$C$72,"-",OL3+1)) -> - | ON3: =IF(OM3="-","-",IF(OM3+1>Premissas!$C$72,"-",OM3+1)) -> - | OO3: =IF(ON3="-","-",IF(ON3+1>Premissas!$C$72,"-",ON3+1)) -> - | OP3: =IF(OO3="-","-",IF(OO3+1>Premissas!$C$72,"-",OO3+1)) -> - | OQ3: =IF(OP3="-","-",IF(OP3+1>Premissas!$C$72,"-",OP3+1)) -> - | OR3: =IF(OQ3="-","-",IF(OQ3+1>Premissas!$C$72,"-",OQ3+1)) -> - | OS3: =IF(OR3="-","-",IF(OR3+1>Premissas!$C$72,"-",OR3+1)) -> - | OT3: =IF(OS3="-","-",IF(OS3+1>Premissas!$C$72,"-",OS3+1)) -> - | OU3: =IF(OT3="-","-",IF(OT3+1>Premissas!$C$72,"-",OT3+1)) -> - | OV3: =IF(OU3="-","-",IF(OU3+1>Premissas!$C$72,"-",OU3+1)) -> - | OW3: =IF(OV3="-","-",IF(OV3+1>Premissas!$C$72,"-",OV3+1)) -> - | OX3: =IF(OW3="-","-",IF(OW3+1>Premissas!$C$72,"-",OW3+1)) -> - | OY3: =IF(OX3="-","-",IF(OX3+1>Premissas!$C$72,"-",OX3+1)) -> - | OZ3: =IF(OY3="-","-",IF(OY3+1>Premissas!$C$72,"-",OY3+1)) -> - | PA3: =IF(OZ3="-","-",IF(OZ3+1>Premissas!$C$72,"-",OZ3+1)) -> - | PB3: =IF(PA3="-","-",IF(PA3+1>Premissas!$C$72,"-",PA3+1)) -> - | PC3: =IF(PB3="-","-",IF(PB3+1>Premissas!$C$72,"-",PB3+1)) -> - | PD3: =IF(PC3="-","-",IF(PC3+1>Premissas!$C$72,"-",PC3+1)) -> - | PE3: =IF(PD3="-","-",IF(PD3+1>Premissas!$C$72,"-",PD3+1)) -> - | PF3: =IF(PE3="-","-",IF(PE3+1>Premissas!$C$72,"-",PE3+1)) -> - | PG3: =IF(PF3="-","-",IF(PF3+1>Premissas!$C$72,"-",PF3+1)) -> - | PH3: =IF(PG3="-","-",IF(PG3+1>Premissas!$C$72,"-",PG3+1)) -> - | PI3: =IF(PH3="-","-",IF(PH3+1>Premissas!$C$72,"-",PH3+1)) -> - | PJ3: =IF(PI3="-","-",IF(PI3+1>Premissas!$C$72,"-",PI3+1)) -> - | PK3: =IF(PJ3="-","-",IF(PJ3+1>Premissas!$C$72,"-",PJ3+1)) -> - | PL3: =IF(PK3="-","-",IF(PK3+1>Premissas!$C$72,"-",PK3+1)) -> - | PM3: =IF(PL3="-","-",IF(PL3+1>Premissas!$C$72,"-",PL3+1)) -> - | PN3: =IF(PM3="-","-",IF(PM3+1>Premissas!$C$72,"-",PM3+1)) -> - | PO3: =IF(PN3="-","-",IF(PN3+1>Premissas!$C$72,"-",PN3+1)) -> - | PP3: =IF(PO3="-","-",IF(PO3+1>Premissas!$C$72,"-",PO3+1)) -> - | PQ3: =IF(PP3="-","-",IF(PP3+1>Premissas!$C$72,"-",PP3+1)) -> - | PR3: =IF(PQ3="-","-",IF(PQ3+1>Premissas!$C$72,"-",PQ3+1)) -> - | PS3: =IF(PR3="-","-",IF(PR3+1>Premissas!$C$72,"-",PR3+1)) -> - | PT3: =IF(PS3="-","-",IF(PS3+1>Premissas!$C$72,"-",PS3+1)) -> - | PU3: =IF(PT3="-","-",IF(PT3+1>Premissas!$C$72,"-",PT3+1)) -> - | PV3: =IF(PU3="-","-",IF(PU3+1>Premissas!$C$72,"-",PU3+1)) -> - | PW3: =IF(PV3="-","-",IF(PV3+1>Premissas!$C$72,"-",PV3+1)) -> - | PX3: =IF(PW3="-","-",IF(PW3+1>Premissas!$C$72,"-",PW3+1)) -> - | PY3: =IF(PX3="-","-",IF(PX3+1>Premissas!$C$72,"-",PX3+1)) -> - | PZ3: =IF(PY3="-","-",IF(PY3+1>Premissas!$C$72,"-",PY3+1)) -> - | QA3: =IF(PZ3="-","-",IF(PZ3+1>Premissas!$C$72,"-",PZ3+1)) -> - | QB3: =IF(QA3="-","-",IF(QA3+1>Premissas!$C$72,"-",QA3+1)) -> - | QC3: =IF(QB3="-","-",IF(QB3+1>Premissas!$C$72,"-",QB3+1)) -> - | QD3: =IF(QC3="-","-",IF(QC3+1>Premissas!$C$72,"-",QC3+1)) -> - | QE3: =IF(QD3="-","-",IF(QD3+1>Premissas!$C$72,"-",QD3+1)) -> - | QF3: =IF(QE3="-","-",IF(QE3+1>Premissas!$C$72,"-",QE3+1)) -> - | QG3: =IF(QF3="-","-",IF(QF3+1>Premissas!$C$72,"-",QF3+1)) -> - | QH3: =IF(QG3="-","-",IF(QG3+1>Premissas!$C$72,"-",QG3+1)) -> - | QI3: =IF(QH3="-","-",IF(QH3+1>Premissas!$C$72,"-",QH3+1)) -> - | QJ3: =IF(QI3="-","-",IF(QI3+1>Premissas!$C$72,"-",QI3+1)) -> - | QK3: =IF(QJ3="-","-",IF(QJ3+1>Premissas!$C$72,"-",QJ3+1)) -> - | QL3: =IF(QK3="-","-",IF(QK3+1>Premissas!$C$72,"-",QK3+1)) -> - | QM3: =IF(QL3="-","-",IF(QL3+1>Premissas!$C$72,"-",QL3+1)) -> - | QN3: =IF(QM3="-","-",IF(QM3+1>Premissas!$C$72,"-",QM3+1)) -> - | QO3: =IF(QN3="-","-",IF(QN3+1>Premissas!$C$72,"-",QN3+1)) -> - | QP3: =IF(QO3="-","-",IF(QO3+1>Premissas!$C$72,"-",QO3+1)) -> - | QQ3: =IF(QP3="-","-",IF(QP3+1>Premissas!$C$72,"-",QP3+1)) -> - | QR3: =IF(QQ3="-","-",IF(QQ3+1>Premissas!$C$72,"-",QQ3+1)) -> - | QS3: =IF(QR3="-","-",IF(QR3+1>Premissas!$C$72,"-",QR3+1)) -> - | QT3: =IF(QS3="-","-",IF(QS3+1>Premissas!$C$72,"-",QS3+1)) -> - | QU3: =IF(QT3="-","-",IF(QT3+1>Premissas!$C$72,"-",QT3+1)) -> - | QV3: =IF(QU3="-","-",IF(QU3+1>Premissas!$C$72,"-",QU3+1)) -> - | QW3: =IF(QV3="-","-",IF(QV3+1>Premissas!$C$72,"-",QV3+1)) -> - | QX3: =IF(QW3="-","-",IF(QW3+1>Premissas!$C$72,"-",QW3+1)) -> - | QY3: =IF(QX3="-","-",IF(QX3+1>Premissas!$C$72,"-",QX3+1)) -> - | QZ3: =IF(QY3="-","-",IF(QY3+1>Premissas!$C$72,"-",QY3+1)) -> - | RA3: =IF(QZ3="-","-",IF(QZ3+1>Premissas!$C$72,"-",QZ3+1)) -> - | RB3: =IF(RA3="-","-",IF(RA3+1>Premissas!$C$72,"-",RA3+1)) -> - | RC3: =IF(RB3="-","-",IF(RB3+1>Premissas!$C$72,"-",RB3+1)) -> - | RD3: =IF(RC3="-","-",IF(RC3+1>Premissas!$C$72,"-",RC3+1)) -> - | RE3: =IF(RD3="-","-",IF(RD3+1>Premissas!$C$72,"-",RD3+1)) -> - | RF3: =IF(RE3="-","-",IF(RE3+1>Premissas!$C$72,"-",RE3+1)) -> - | RG3: =IF(RF3="-","-",IF(RF3+1>Premissas!$C$72,"-",RF3+1)) -> - | RH3: =IF(RG3="-","-",IF(RG3+1>Premissas!$C$72,"-",RG3+1)) -> - | RI3: =IF(RH3="-","-",IF(RH3+1>Premissas!$C$72,"-",RH3+1)) -> - | RJ3: =IF(RI3="-","-",IF(RI3+1>Premissas!$C$72,"-",RI3+1)) -> - | RK3: =IF(RJ3="-","-",IF(RJ3+1>Premissas!$C$72,"-",RJ3+1)) -> - | RL3: =IF(RK3="-","-",IF(RK3+1>Premissas!$C$72,"-",RK3+1)) -> - | RM3: =IF(RL3="-","-",IF(RL3+1>Premissas!$C$72,"-",RL3+1)) -> - | RN3: =IF(RM3="-","-",IF(RM3+1>Premissas!$C$72,"-",RM3+1)) -> - | RO3: =IF(RN3="-","-",IF(RN3+1>Premissas!$C$72,"-",RN3+1)) -> - | RP3: =IF(RO3="-","-",IF(RO3+1>Premissas!$C$72,"-",RO3+1)) -> - | RQ3: =IF(RP3="-","-",IF(RP3+1>Premissas!$C$72,"-",RP3+1)) -> - | RR3: =IF(RQ3="-","-",IF(RQ3+1>Premissas!$C$72,"-",RQ3+1)) -> - | RS3: =IF(RR3="-","-",IF(RR3+1>Premissas!$C$72,"-",RR3+1)) -> - | RT3: =IF(RS3="-","-",IF(RS3+1>Premissas!$C$72,"-",RS3+1)) -> - | RU3: =IF(RT3="-","-",IF(RT3+1>Premissas!$C$72,"-",RT3+1)) -> - | RV3: =IF(RU3="-","-",IF(RU3+1>Premissas!$C$72,"-",RU3+1)) -> - | RW3: =IF(RV3="-","-",IF(RV3+1>Premissas!$C$72,"-",RV3+1)) -> - | RX3: =IF(RW3="-","-",IF(RW3+1>Premissas!$C$72,"-",RW3+1)) -> - | RY3: =IF(RX3="-","-",IF(RX3+1>Premissas!$C$72,"-",RX3+1)) -> - | RZ3: =IF(RY3="-","-",IF(RY3+1>Premissas!$C$72,"-",RY3+1)) -> - | SA3: =IF(RZ3="-","-",IF(RZ3+1>Premissas!$C$72,"-",RZ3+1)) -> - | SB3: =IF(SA3="-","-",IF(SA3+1>Premissas!$C$72,"-",SA3+1)) -> - | SC3: =IF(SB3="-","-",IF(SB3+1>Premissas!$C$72,"-",SB3+1)) -> - | SD3: =IF(SC3="-","-",IF(SC3+1>Premissas!$C$72,"-",SC3+1)) -> - | SE3: =IF(SD3="-","-",IF(SD3+1>Premissas!$C$72,"-",SD3+1)) -> - | SF3: =IF(SE3="-","-",IF(SE3+1>Premissas!$C$72,"-",SE3+1)) -> - | SG3: =IF(SF3="-","-",IF(SF3+1>Premissas!$C$72,"-",SF3+1)) -> - | SH3: =IF(SG3="-","-",IF(SG3+1>Premissas!$C$72,"-",SG3+1)) -> - | SI3: =IF(SH3="-","-",IF(SH3+1>Premissas!$C$72,"-",SH3+1)) -> - | SJ3: =IF(SI3="-","-",IF(SI3+1>Premissas!$C$72,"-",SI3+1)) -> - | SK3: =IF(SJ3="-","-",IF(SJ3+1>Premissas!$C$72,"-",SJ3+1)) -> - | SL3: =IF(SK3="-","-",IF(SK3+1>Premissas!$C$72,"-",SK3+1)) -> - | SM3: =IF(SL3="-","-",IF(SL3+1>Premissas!$C$72,"-",SL3+1)) -> - | SN3: =IF(SM3="-","-",IF(SM3+1>Premissas!$C$72,"-",SM3+1)) -> - | SO3: =IF(SN3="-","-",IF(SN3+1>Premissas!$C$72,"-",SN3+1)) -> - | SP3: =IF(SO3="-","-",IF(SO3+1>Premissas!$C$72,"-",SO3+1)) -> - | SQ3: =IF(SP3="-","-",IF(SP3+1>Premissas!$C$72,"-",SP3+1)) -> - | SR3: =IF(SQ3="-","-",IF(SQ3+1>Premissas!$C$72,"-",SQ3+1)) -> - | SS3: =IF(SR3="-","-",IF(SR3+1>Premissas!$C$72,"-",SR3+1)) -> - | ST3: =IF(SS3="-","-",IF(SS3+1>Premissas!$C$72,"-",SS3+1)) -> - | SU3: =IF(ST3="-","-",IF(ST3+1>Premissas!$C$72,"-",ST3+1)) -> - | SV3: =IF(SU3="-","-",IF(SU3+1>Premissas!$C$72,"-",SU3+1)) -> - | SW3: =IF(SV3="-","-",IF(SV3+1>Premissas!$C$72,"-",SV3+1)) -> - | SX3: =IF(SW3="-","-",IF(SW3+1>Premissas!$C$72,"-",SW3+1)) -> - | SY3: =IF(SX3="-","-",IF(SX3+1>Premissas!$C$72,"-",SX3+1)) -> - | SZ3: =IF(SY3="-","-",IF(SY3+1>Premissas!$C$72,"-",SY3+1)) -> - | TA3: =IF(SZ3="-","-",IF(SZ3+1>Premissas!$C$72,"-",SZ3+1)) -> - | TB3: =IF(TA3="-","-",IF(TA3+1>Premissas!$C$72,"-",TA3+1)) -> - | TC3: =IF(TB3="-","-",IF(TB3+1>Premissas!$C$72,"-",TB3+1)) -> - | TD3: =IF(TC3="-","-",IF(TC3+1>Premissas!$C$72,"-",TC3+1)) -> - | TE3: =IF(TD3="-","-",IF(TD3+1>Premissas!$C$72,"-",TD3+1)) -> - | TF3: =IF(TE3="-","-",IF(TE3+1>Premissas!$C$72,"-",TE3+1)) -> - | TG3: =IF(TF3="-","-",IF(TF3+1>Premissas!$C$72,"-",TF3+1)) -> - | TH3: =IF(TG3="-","-",IF(TG3+1>Premissas!$C$72,"-",TG3+1)) -> - | TI3: =IF(TH3="-","-",IF(TH3+1>Premissas!$C$72,"-",TH3+1)) -> - | TJ3: =IF(TI3="-","-",IF(TI3+1>Premissas!$C$72,"-",TI3+1)) -> - | TK3: =IF(TJ3="-","-",IF(TJ3+1>Premissas!$C$72,"-",TJ3+1)) -> - | TL3: =IF(TK3="-","-",IF(TK3+1>Premissas!$C$72,"-",TK3+1)) -> - | TM3: =IF(TL3="-","-",IF(TL3+1>Premissas!$C$72,"-",TL3+1)) -> - | TN3: =IF(TM3="-","-",IF(TM3+1>Premissas!$C$72,"-",TM3+1)) -> - | TO3: =IF(TN3="-","-",IF(TN3+1>Premissas!$C$72,"-",TN3+1)) -> - | TP3: =IF(TO3="-","-",IF(TO3+1>Premissas!$C$72,"-",TO3+1)) -> - | TQ3: =IF(TP3="-","-",IF(TP3+1>Premissas!$C$72,"-",TP3+1)) -> - | TR3: =IF(TQ3="-","-",IF(TQ3+1>Premissas!$C$72,"-",TQ3+1)) -> - | TS3: =IF(TR3="-","-",IF(TR3+1>Premissas!$C$72,"-",TR3+1)) -> - | TT3: =IF(TS3="-","-",IF(TS3+1>Premissas!$C$72,"-",TS3+1)) -> - | TU3: =IF(TT3="-","-",IF(TT3+1>Premissas!$C$72,"-",TT3+1)) -> - | TV3: =IF(TU3="-","-",IF(TU3+1>Premissas!$C$72,"-",TU3+1)) -> - | TW3: =IF(TV3="-","-",IF(TV3+1>Premissas!$C$72,"-",TV3+1)) -> - | TX3: =IF(TW3="-","-",IF(TW3+1>Premissas!$C$72,"-",TW3+1)) -> - | TY3: =IF(TX3="-","-",IF(TX3+1>Premissas!$C$72,"-",TX3+1)) -> - | TZ3: =IF(TY3="-","-",IF(TY3+1>Premissas!$C$72,"-",TY3+1)) -> - | UA3: =IF(TZ3="-","-",IF(TZ3+1>Premissas!$C$72,"-",TZ3+1)) -> - | UB3: =IF(UA3="-","-",IF(UA3+1>Premissas!$C$72,"-",UA3+1)) -> - | UC3: =IF(UB3="-","-",IF(UB3+1>Premissas!$C$72,"-",UB3+1)) -> - | UD3: =IF(UC3="-","-",IF(UC3+1>Premissas!$C$72,"-",UC3+1)) -> - | UE3: =IF(UD3="-","-",IF(UD3+1>Premissas!$C$72,"-",UD3+1)) -> - | UF3: =IF(UE3="-","-",IF(UE3+1>Premissas!$C$72,"-",UE3+1)) -> - | UG3: =IF(UF3="-","-",IF(UF3+1>Premissas!$C$72,"-",UF3+1)) -> - | UH3: =IF(UG3="-","-",IF(UG3+1>Premissas!$C$72,"-",UG3+1)) -> - | UI3: =IF(UH3="-","-",IF(UH3+1>Premissas!$C$72,"-",UH3+1)) -> - | UJ3: =IF(UI3="-","-",IF(UI3+1>Premissas!$C$72,"-",UI3+1)) -> - | UK3: =IF(UJ3="-","-",IF(UJ3+1>Premissas!$C$72,"-",UJ3+1)) -> - | UL3: =IF(UK3="-","-",IF(UK3+1>Premissas!$C$72,"-",UK3+1)) -> - | UM3: =IF(UL3="-","-",IF(UL3+1>Premissas!$C$72,"-",UL3+1)) -> - | UN3: =IF(UM3="-","-",IF(UM3+1>Premissas!$C$72,"-",UM3+1)) -> - | UO3: =IF(UN3="-","-",IF(UN3+1>Premissas!$C$72,"-",UN3+1)) -> - | UP3: =IF(UO3="-","-",IF(UO3+1>Premissas!$C$72,"-",UO3+1)) -> - | UQ3: =IF(UP3="-","-",IF(UP3+1>Premissas!$C$72,"-",UP3+1)) -> - | UR3: =IF(UQ3="-","-",IF(UQ3+1>Premissas!$C$72,"-",UQ3+1)) -> - | US3: =IF(UR3="-","-",IF(UR3+1>Premissas!$C$72,"-",UR3+1)) -> - | UT3: =IF(US3="-","-",IF(US3+1>Premissas!$C$72,"-",US3+1)) -> - | UU3: =IF(UT3="-","-",IF(UT3+1>Premissas!$C$72,"-",UT3+1)) -> - | UV3: =IF(UU3="-","-",IF(UU3+1>Premissas!$C$72,"-",UU3+1)) -> - | UW3: =IF(UV3="-","-",IF(UV3+1>Premissas!$C$72,"-",UV3+1)) -> - | UX3: =IF(UW3="-","-",IF(UW3+1>Premissas!$C$72,"-",UW3+1)) -> - | UY3: =IF(UX3="-","-",IF(UX3+1>Premissas!$C$72,"-",UX3+1)) -> - | UZ3: =IF(UY3="-","-",IF(UY3+1>Premissas!$C$72,"-",UY3+1)) -> - | VA3: =IF(UZ3="-","-",IF(UZ3+1>Premissas!$C$72,"-",UZ3+1)) -> - | VB3: =IF(VA3="-","-",IF(VA3+1>Premissas!$C$72,"-",VA3+1)) -> - | VC3: =IF(VB3="-","-",IF(VB3+1>Premissas!$C$72,"-",VB3+1)) -> - | VD3: =IF(VC3="-","-",IF(VC3+1>Premissas!$C$72,"-",VC3+1)) -> - | VE3: =IF(VD3="-","-",IF(VD3+1>Premissas!$C$72,"-",VD3+1)) -> - | VF3: =IF(VE3="-","-",IF(VE3+1>Premissas!$C$72,"-",VE3+1)) -> - | VG3: =IF(VF3="-","-",IF(VF3+1>Premissas!$C$72,"-",VF3+1)) -> - | VH3: =IF(VG3="-","-",IF(VG3+1>Premissas!$C$72,"-",VG3+1)) -> - | VI3: =IF(VH3="-","-",IF(VH3+1>Premissas!$C$72,"-",VH3+1)) -> - | VJ3: =IF(VI3="-","-",IF(VI3+1>Premissas!$C$72,"-",VI3+1)) -> - | VK3: =IF(VJ3="-","-",IF(VJ3+1>Premissas!$C$72,"-",VJ3+1)) -> - | VL3: =IF(VK3="-","-",IF(VK3+1>Premissas!$C$72,"-",VK3+1)) -> - | VM3: =IF(VL3="-","-",IF(VL3+1>Premissas!$C$72,"-",VL3+1)) -> - | VN3: =IF(VM3="-","-",IF(VM3+1>Premissas!$C$72,"-",VM3+1)) -> - | VO3: =IF(VN3="-","-",IF(VN3+1>Premissas!$C$72,"-",VN3+1)) -> - | VP3: =IF(VO3="-","-",IF(VO3+1>Premissas!$C$72,"-",VO3+1)) -> - | VQ3: =IF(VP3="-","-",IF(VP3+1>Premissas!$C$72,"-",VP3+1)) -> - | VR3: =IF(VQ3="-","-",IF(VQ3+1>Premissas!$C$72,"-",VQ3+1)) -> - | VS3: =IF(VR3="-","-",IF(VR3+1>Premissas!$C$72,"-",VR3+1)) -> - | VT3: =IF(VS3="-","-",IF(VS3+1>Premissas!$C$72,"-",VS3+1)) -> - | VU3: =IF(VT3="-","-",IF(VT3+1>Premissas!$C$72,"-",VT3+1)) -> - | VV3: =IF(VU3="-","-",IF(VU3+1>Premissas!$C$72,"-",VU3+1)) -> - | VW3: =IF(VV3="-","-",IF(VV3+1>Premissas!$C$72,"-",VV3+1)) -> - | VX3: =IF(VW3="-","-",IF(VW3+1>Premissas!$C$72,"-",VW3+1)) -> - | VY3: =IF(VX3="-","-",IF(VX3+1>Premissas!$C$72,"-",VX3+1)) -> - | VZ3: =IF(VY3="-","-",IF(VY3+1>Premissas!$C$72,"-",VY3+1)) -> - | WA3: =IF(VZ3="-","-",IF(VZ3+1>Premissas!$C$72,"-",VZ3+1)) -> - | WB3: =IF(WA3="-","-",IF(WA3+1>Premissas!$C$72,"-",WA3+1)) -> - | WC3: =IF(WB3="-","-",IF(WB3+1>Premissas!$C$72,"-",WB3+1)) -> - | WD3: =IF(WC3="-","-",IF(WC3+1>Premissas!$C$72,"-",WC3+1)) -> -
B4: ANO | C4: 2024 | D4: =IF(D2="-","-",IF(D5=1,C4+1,C4)) -> 2025 | E4: =IF(E2="-","-",IF(E5=1,D4+1,D4)) -> 2026 | F4: 2027 | G4: 2028 | H4: 2029 | I4: 2030 | J4: 2031 | K4: 2032 | L4: 2033 | M4: 2034 | N4: 2035 | O4: 2036 | P4: 2037 | Q4: 2038 | R4: 2039 | S4: 2040 | T4: 2041 | U4: 2042 | V4: 2043 | W4: 2044 | X4: 2045 | Y4: 2046 | Z4: 2047 | AA4: 2048 | AB4: 2049 | AC4: 2050 | AD4: 2051 | AE4: 2052 | AF4: 2053 | AG4: 2054 | AH4: - | AI4: - | AJ4: - | AK4: - | AL4: - | AM4: - | AN4: - | AO4: - | AP4: - | AQ4: - | AR4: - | AS4: - | AT4: - | AU4: - | AV4: - | AW4: - | AX4: - | AY4: - | AZ4: - | BA4: - | BB4: - | BC4: - | BD4: - | BE4: - | BF4: - | BG4: - | BH4: - | BI4: - | BJ4: - | BK4: - | BL4: - | BM4: - | BN4: - | BO4: - | BP4: - | BQ4: =IF(BQ2="-","-",IF(BQ5=1,BP4+1,BP4)) -> - | BR4: - | BS4: - | BT4: - | BU4: - | BV4: - | BW4: - | BX4: - | BY4: - | BZ4: - | CA4: - | CB4: - | CC4: - | CD4: - | CE4: - | CF4: - | CG4: - | CH4: - | CI4: - | CJ4: - | CK4: - | CL4: - | CM4: - | CN4: - | CO4: - | CP4: - | CQ4: - | CR4: - | CS4: - | CT4: - | CU4: - | CV4: - | CW4: - | CX4: - | CY4: - | CZ4: - | DA4: - | DB4: - | DC4: - | DD4: - | DE4: - | DF4: - | DG4: - | DH4: - | DI4: - | DJ4: - | DK4: - | DL4: - | DM4: - | DN4: - | DO4: - | DP4: - | DQ4: - | DR4: - | DS4: - | DT4: - | DU4: - | DV4: - | DW4: - | DX4: - | DY4: - | DZ4: - | EA4: - | EB4: - | EC4: =IF(EC2="-","-",IF(EC5=1,EB4+1,EB4)) -> - | ED4: - | EE4: - | EF4: - | EG4: - | EH4: - | EI4: - | EJ4: - | EK4: - | EL4: - | EM4: - | EN4: - | EO4: - | EP4: - | EQ4: - | ER4: - | ES4: - | ET4: - | EU4: - | EV4: - | EW4: - | EX4: - | EY4: - | EZ4: - | FA4: - | FB4: - | FC4: - | FD4: - | FE4: - | FF4: - | FG4: - | FH4: - | FI4: - | FJ4: - | FK4: - | FL4: - | FM4: - | FN4: - | FO4: - | FP4: - | FQ4: - | FR4: - | FS4: - | FT4: - | FU4: - | FV4: - | FW4: - | FX4: - | FY4: - | FZ4: - | GA4: - | GB4: - | GC4: - | GD4: - | GE4: - | GF4: - | GG4: - | GH4: - | GI4: - | GJ4: - | GK4: - | GL4: - | GM4: - | GN4: - | GO4: =IF(GO2="-","-",IF(GO5=1,GN4+1,GN4)) -> - | GP4: - | GQ4: - | GR4: - | GS4: - | GT4: - | GU4: - | GV4: - | GW4: - | GX4: - | GY4: - | GZ4: - | HA4: - | HB4: - | HC4: - | HD4: - | HE4: - | HF4: - | HG4: - | HH4: - | HI4: - | HJ4: - | HK4: - | HL4: - | HM4: - | HN4: - | HO4: - | HP4: - | HQ4: - | HR4: - | HS4: - | HT4: - | HU4: - | HV4: - | HW4: - | HX4: - | HY4: - | HZ4: - | IA4: - | IB4: - | IC4: - | ID4: - | IE4: - | IF4: - | IG4: - | IH4: - | II4: - | IJ4: - | IK4: - | IL4: - | IM4: - | IN4: - | IO4: - | IP4: - | IQ4: - | IR4: - | IS4: - | IT4: - | IU4: - | IV4: - | IW4: - | IX4: - | IY4: - | IZ4: - | JA4: =IF(JA2="-","-",IF(JA5=1,IZ4+1,IZ4)) -> - | JB4: - | JC4: - | JD4: - | JE4: - | JF4: - | JG4: - | JH4: - | JI4: - | JJ4: - | JK4: - | JL4: - | JM4: - | JN4: - | JO4: - | JP4: - | JQ4: - | JR4: - | JS4: - | JT4: - | JU4: - | JV4: - | JW4: - | JX4: - | JY4: - | JZ4: - | KA4: - | KB4: - | KC4: - | KD4: - | KE4: - | KF4: - | KG4: - | KH4: - | KI4: - | KJ4: - | KK4: - | KL4: - | KM4: - | KN4: - | KO4: - | KP4: - | KQ4: - | KR4: - | KS4: - | KT4: - | KU4: - | KV4: - | KW4: - | KX4: - | KY4: - | KZ4: - | LA4: - | LB4: - | LC4: - | LD4: - | LE4: - | LF4: - | LG4: - | LH4: - | LI4: - | LJ4: - | LK4: - | LL4: - | LM4: =IF(LM2="-","-",IF(LM5=1,LL4+1,LL4)) -> - | LN4: - | LO4: - | LP4: - | LQ4: - | LR4: - | LS4: - | LT4: - | LU4: - | LV4: - | LW4: - | LX4: - | LY4: - | LZ4: - | MA4: - | MB4: - | MC4: - | MD4: - | ME4: - | MF4: - | MG4: - | MH4: - | MI4: - | MJ4: - | MK4: - | ML4: - | MM4: - | MN4: - | MO4: - | MP4: - | MQ4: - | MR4: - | MS4: - | MT4: - | MU4: - | MV4: - | MW4: - | MX4: - | MY4: - | MZ4: - | NA4: - | NB4: - | NC4: - | ND4: - | NE4: - | NF4: - | NG4: - | NH4: - | NI4: - | NJ4: - | NK4: - | NL4: - | NM4: - | NN4: - | NO4: - | NP4: - | NQ4: - | NR4: - | NS4: - | NT4: - | NU4: - | NV4: - | NW4: - | NX4: - | NY4: =IF(NY2="-","-",IF(NY5=1,NX4+1,NX4)) -> - | NZ4: - | OA4: - | OB4: - | OC4: - | OD4: - | OE4: - | OF4: - | OG4: - | OH4: - | OI4: - | OJ4: - | OK4: - | OL4: - | OM4: - | ON4: - | OO4: - | OP4: - | OQ4: - | OR4: - | OS4: - | OT4: - | OU4: - | OV4: - | OW4: - | OX4: - | OY4: - | OZ4: - | PA4: - | PB4: - | PC4: - | PD4: - | PE4: - | PF4: - | PG4: - | PH4: - | PI4: - | PJ4: - | PK4: - | PL4: - | PM4: - | PN4: - | PO4: - | PP4: - | PQ4: - | PR4: - | PS4: - | PT4: - | PU4: - | PV4: - | PW4: - | PX4: - | PY4: - | PZ4: - | QA4: - | QB4: - | QC4: - | QD4: - | QE4: - | QF4: - | QG4: - | QH4: - | QI4: - | QJ4: - | QK4: =IF(QK2="-","-",IF(QK5=1,QJ4+1,QJ4)) -> - | QL4: - | QM4: - | QN4: - | QO4: - | QP4: - | QQ4: - | QR4: - | QS4: - | QT4: - | QU4: - | QV4: - | QW4: - | QX4: - | QY4: - | QZ4: - | RA4: - | RB4: - | RC4: - | RD4: - | RE4: - | RF4: - | RG4: - | RH4: - | RI4: - | RJ4: - | RK4: - | RL4: - | RM4: - | RN4: - | RO4: - | RP4: - | RQ4: - | RR4: - | RS4: - | RT4: - | RU4: - | RV4: - | RW4: - | RX4: - | RY4: - | RZ4: - | SA4: - | SB4: - | SC4: - | SD4: - | SE4: - | SF4: - | SG4: - | SH4: - | SI4: - | SJ4: - | SK4: - | SL4: - | SM4: - | SN4: - | SO4: - | SP4: - | SQ4: - | SR4: - | SS4: - | ST4: - | SU4: - | SV4: - | SW4: =IF(SW2="-","-",IF(SW5=1,SV4+1,SV4)) -> - | SX4: - | SY4: - | SZ4: - | TA4: - | TB4: - | TC4: - | TD4: - | TE4: - | TF4: - | TG4: - | TH4: - | TI4: - | TJ4: - | TK4: - | TL4: - | TM4: - | TN4: - | TO4: - | TP4: - | TQ4: - | TR4: - | TS4: - | TT4: - | TU4: - | TV4: - | TW4: - | TX4: - | TY4: - | TZ4: - | UA4: - | UB4: - | UC4: - | UD4: - | UE4: - | UF4: - | UG4: - | UH4: - | UI4: - | UJ4: - | UK4: - | UL4: - | UM4: - | UN4: - | UO4: - | UP4: - | UQ4: - | UR4: - | US4: - | UT4: - | UU4: - | UV4: - | UW4: - | UX4: - | UY4: - | UZ4: - | VA4: - | VB4: - | VC4: - | VD4: - | VE4: - | VF4: - | VG4: - | VH4: - | VI4: =IF(VI2="-","-",IF(VI5=1,VH4+1,VH4)) -> - | VJ4: - | VK4: - | VL4: - | VM4: - | VN4: - | VO4: - | VP4: - | VQ4: - | VR4: - | VS4: - | VT4: - | VU4: - | VV4: - | VW4: - | VX4: - | VY4: - | VZ4: - | WA4: - | WB4: - | WC4: - | WD4: -
B5: PERÍODO DO ANO | C5: 1 | D5: 1 | E5: 1 | F5: 1 | G5: 1 | H5: 1 | I5: 1 | J5: 1 | K5: 1 | L5: 1 | M5: 1 | N5: 1 | O5: 1 | P5: 1 | Q5: 1 | R5: 1 | S5: 1 | T5: 1 | U5: 1 | V5: 1 | W5: 1 | X5: 1 | Y5: 1 | Z5: 1 | AA5: 1 | AB5: 1 | AC5: 1 | AD5: 1 | AE5: 1 | AF5: 1 | AG5: 1 | AH5: 1 | AI5: 1 | AJ5: 1 | AK5: 1 | AL5: 1 | AM5: 1 | AN5: 1 | AO5: 1 | AP5: 1 | AQ5: 1 | AR5: 1 | AS5: 1 | AT5: 1 | AU5: 1 | AV5: 1 | AW5: 1 | AX5: 1 | AY5: 1 | AZ5: 1 | BA5: 1 | BB5: 1 | BC5: 1 | BD5: 1 | BE5: 1 | BF5: 1 | BG5: 1 | BH5: 1 | BI5: 1 | BJ5: 1 | BK5: 1 | BL5: 1 | BM5: 1 | BN5: 1 | BO5: 1 | BP5: 1 | BQ5: 1 | BR5: 1 | BS5: 1 | BT5: 1 | BU5: 1 | BV5: 1 | BW5: 1 | BX5: 1 | BY5: 1 | BZ5: 1 | CA5: 1 | CB5: 1 | CC5: 1 | CD5: 1 | CE5: 1 | CF5: 1 | CG5: 1 | CH5: 1 | CI5: 1 | CJ5: 1 | CK5: 1 | CL5: 1 | CM5: 1 | CN5: 1 | CO5: 1 | CP5: 1 | CQ5: 1 | CR5: 1 | CS5: 1 | CT5: 1 | CU5: 1 | CV5: 1 | CW5: 1 | CX5: 1 | CY5: 1 | CZ5: 1 | DA5: 1 | DB5: 1 | DC5: 1 | DD5: 1 | DE5: 1 | DF5: 1 | DG5: 1 | DH5: 1 | DI5: 1 | DJ5: 1 | DK5: 1 | DL5: 1 | DM5: 1 | DN5: 1 | DO5: 1 | DP5: 1 | DQ5: 1 | DR5: 1 | DS5: 1 | DT5: 1 | DU5: 1 | DV5: 1 | DW5: 1 | DX5: 1 | DY5: 1 | DZ5: 1 | EA5: 1 | EB5: 1 | EC5: 1 | ED5: 1 | EE5: 1 | EF5: 1 | EG5: 1 | EH5: 1 | EI5: 1 | EJ5: 1 | EK5: 1 | EL5: 1 | EM5: 1 | EN5: 1 | EO5: 1 | EP5: 1 | EQ5: 1 | ER5: 1 | ES5: 1 | ET5: 1 | EU5: 1 | EV5: 1 | EW5: 1 | EX5: 1 | EY5: 1 | EZ5: 1 | FA5: 1 | FB5: 1 | FC5: 1 | FD5: 1 | FE5: 1 | FF5: 1 | FG5: 1 | FH5: 1 | FI5: 1 | FJ5: 1 | FK5: 1 | FL5: 1 | FM5: 1 | FN5: 1 | FO5: 1 | FP5: 1 | FQ5: 1 | FR5: 1 | FS5: 1 | FT5: 1 | FU5: 1 | FV5: 1 | FW5: 1 | FX5: 1 | FY5: 1 | FZ5: 1 | GA5: 1 | GB5: 1 | GC5: 1 | GD5: 1 | GE5: 1 | GF5: 1 | GG5: 1 | GH5: 1 | GI5: 1 | GJ5: 1 | GK5: 1 | GL5: 1 | GM5: 1 | GN5: 1 | GO5: 1 | GP5: 1 | GQ5: 1 | GR5: 1 | GS5: 1 | GT5: 1 | GU5: 1 | GV5: 1 | GW5: 1 | GX5: 1 | GY5: 1 | GZ5: 1 | HA5: 1 | HB5: 1 | HC5: 1 | HD5: 1 | HE5: 1 | HF5: 1 | HG5: 1 | HH5: 1 | HI5: 1 | HJ5: 1 | HK5: 1 | HL5: 1 | HM5: 1 | HN5: 1 | HO5: 1 | HP5: 1 | HQ5: 1 | HR5: 1 | HS5: 1 | HT5: 1 | HU5: 1 | HV5: 1 | HW5: 1 | HX5: 1 | HY5: 1 | HZ5: 1 | IA5: 1 | IB5: 1 | IC5: 1 | ID5: 1 | IE5: 1 | IF5: 1 | IG5: 1 | IH5: 1 | II5: 1 | IJ5: 1 | IK5: 1 | IL5: 1 | IM5: 1 | IN5: 1 | IO5: 1 | IP5: 1 | IQ5: 1 | IR5: 1 | IS5: 1 | IT5: 1 | IU5: 1 | IV5: 1 | IW5: 1 | IX5: 1 | IY5: 1 | IZ5: 1 | JA5: 1 | JB5: 1 | JC5: 1 | JD5: 1 | JE5: 1 | JF5: 1 | JG5: 1 | JH5: 1 | JI5: 1 | JJ5: 1 | JK5: 1 | JL5: 1 | JM5: 1 | JN5: 1 | JO5: 1 | JP5: 1 | JQ5: 1 | JR5: 1 | JS5: 1 | JT5: 1 | JU5: 1 | JV5: 1 | JW5: 1 | JX5: 1 | JY5: 1 | JZ5: 1 | KA5: 1 | KB5: 1 | KC5: 1 | KD5: 1 | KE5: 1 | KF5: 1 | KG5: 1 | KH5: 1 | KI5: 1 | KJ5: 1 | KK5: 1 | KL5: 1 | KM5: 1 | KN5: 1 | KO5: 1 | KP5: 1 | KQ5: 1 | KR5: 1 | KS5: 1 | KT5: 1 | KU5: 1 | KV5: 1 | KW5: 1 | KX5: 1 | KY5: 1 | KZ5: 1 | LA5: 1 | LB5: 1 | LC5: 1 | LD5: 1 | LE5: 1 | LF5: 1 | LG5: 1 | LH5: 1 | LI5: 1 | LJ5: 1 | LK5: 1 | LL5: 1 | LM5: 1 | LN5: 1 | LO5: 1 | LP5: 1 | LQ5: 1 | LR5: 1 | LS5: 1 | LT5: 1 | LU5: 1 | LV5: 1 | LW5: 1 | LX5: 1 | LY5: 1 | LZ5: 1 | MA5: 1 | MB5: 1 | MC5: 1 | MD5: 1 | ME5: 1 | MF5: 1 | MG5: 1 | MH5: 1 | MI5: 1 | MJ5: 1 | MK5: 1 | ML5: 1 | MM5: 1 | MN5: 1 | MO5: 1 | MP5: 1 | MQ5: 1 | MR5: 1 | MS5: 1 | MT5: 1 | MU5: 1 | MV5: 1 | MW5: 1 | MX5: 1 | MY5: 1 | MZ5: 1 | NA5: 1 | NB5: 1 | NC5: 1 | ND5: 1 | NE5: 1 | NF5: 1 | NG5: 1 | NH5: 1 | NI5: 1 | NJ5: 1 | NK5: 1 | NL5: 1 | NM5: 1 | NN5: 1 | NO5: 1 | NP5: 1 | NQ5: 1 | NR5: 1 | NS5: 1 | NT5: 1 | NU5: 1 | NV5: 1 | NW5: 1 | NX5: 1 | NY5: 1 | NZ5: 1 | OA5: 1 | OB5: 1 | OC5: 1 | OD5: 1 | OE5: 1 | OF5: 1 | OG5: 1 | OH5: 1 | OI5: 1 | OJ5: 1 | OK5: 1 | OL5: 1 | OM5: 1 | ON5: 1 | OO5: 1 | OP5: 1 | OQ5: 1 | OR5: 1 | OS5: 1 | OT5: 1 | OU5: 1 | OV5: 1 | OW5: 1 | OX5: 1 | OY5: 1 | OZ5: 1 | PA5: 1 | PB5: 1 | PC5: 1 | PD5: 1 | PE5: 1 | PF5: 1 | PG5: 1 | PH5: 1 | PI5: 1 | PJ5: 1 | PK5: 1 | PL5: 1 | PM5: 1 | PN5: 1 | PO5: 1 | PP5: 1 | PQ5: 1 | PR5: 1 | PS5: 1 | PT5: 1 | PU5: 1 | PV5: 1 | PW5: 1 | PX5: 1 | PY5: 1 | PZ5: 1 | QA5: 1 | QB5: 1 | QC5: 1 | QD5: 1 | QE5: 1 | QF5: 1 | QG5: 1 | QH5: 1 | QI5: 1 | QJ5: 1 | QK5: 1 | QL5: 1 | QM5: 1 | QN5: 1 | QO5: 1 | QP5: 1 | QQ5: 1 | QR5: 1 | QS5: 1 | QT5: 1 | QU5: 1 | QV5: 1 | QW5: 1 | QX5: 1 | QY5: 1 | QZ5: 1 | RA5: 1 | RB5: 1 | RC5: 1 | RD5: 1 | RE5: 1 | RF5: 1 | RG5: 1 | RH5: 1 | RI5: 1 | RJ5: 1 | RK5: 1 | RL5: 1 | RM5: 1 | RN5: 1 | RO5: 1 | RP5: 1 | RQ5: 1 | RR5: 1 | RS5: 1 | RT5: 1 | RU5: 1 | RV5: 1 | RW5: 1 | RX5: 1 | RY5: 1 | RZ5: 1 | SA5: 1 | SB5: 1 | SC5: 1 | SD5: 1 | SE5: 1 | SF5: 1 | SG5: 1 | SH5: 1 | SI5: 1 | SJ5: 1 | SK5: 1 | SL5: 1 | SM5: 1 | SN5: 1 | SO5: 1 | SP5: 1 | SQ5: 1 | SR5: 1 | SS5: 1 | ST5: 1 | SU5: 1 | SV5: 1 | SW5: 1 | SX5: 1 | SY5: 1 | SZ5: 1 | TA5: 1 | TB5: 1 | TC5: 1 | TD5: 1 | TE5: 1 | TF5: 1 | TG5: 1 | TH5: 1 | TI5: 1 | TJ5: 1 | TK5: 1 | TL5: 1 | TM5: 1 | TN5: 1 | TO5: 1 | TP5: 1 | TQ5: 1 | TR5: 1 | TS5: 1 | TT5: 1 | TU5: 1 | TV5: 1 | TW5: 1 | TX5: 1 | TY5: 1 | TZ5: 1 | UA5: 1 | UB5: 1 | UC5: 1 | UD5: 1 | UE5: 1 | UF5: 1 | UG5: 1 | UH5: 1 | UI5: 1 | UJ5: 1 | UK5: 1 | UL5: 1 | UM5: 1 | UN5: 1 | UO5: 1 | UP5: 1 | UQ5: 1 | UR5: 1 | US5: 1 | UT5: 1 | UU5: 1 | UV5: 1 | UW5: 1 | UX5: 1 | UY5: 1 | UZ5: 1 | VA5: 1 | VB5: 1 | VC5: 1 | VD5: 1 | VE5: 1 | VF5: 1 | VG5: 1 | VH5: 1 | VI5: 1 | VJ5: 1 | VK5: 1 | VL5: 1 | VM5: 1 | VN5: 1 | VO5: 1 | VP5: 1 | VQ5: 1 | VR5: 1 | VS5: 1 | VT5: 1 | VU5: 1 | VV5: 1 | VW5: 1 | VX5: 1 | VY5: 1 | VZ5: 1 | WA5: 1 | WB5: 1 | WC5: 1 | WD5: 1
B7: Tarifa Calculada
D8: 2025 | E8: =D8+1 -> 2026 | F8: =E8+1 -> 2027 | G8: 2028 | H8: 2029 | I8: 2030 | J8: 2031 | K8: 2032 | L8: 2033 | M8: 2034 | N8: 2035 | O8: 2036 | P8: 2037 | Q8: 2038 | R8: 2039 | S8: 2040 | T8: 2041 | U8: 2042 | V8: 2043 | W8: 2044 | X8: 2045 | Y8: 2046 | Z8: 2047 | AA8: 2048 | AB8: 2049 | AC8: 2050 | AD8: 2051 | AE8: 2052 | AF8: 2053 | AG8: 2054 | AH8: 2055 | AI8: 2056 | AJ8: 2057 | AK8: 2058 | AL8: 2059 | AM8: 2060 | AN8: 2061 | AO8: 2062 | AP8: 2063 | AQ8: 2064 | AR8: 2065 | AS8: 2066 | AT8: 2067 | AU8: 2068 | AV8: 2069 | AW8: 2070 | AX8: 2071 | AY8: 2072 | AZ8: 2073 | BA8: 2074 | BB8: 2075 | BC8: 2076 | BD8: 2077 | BE8: 2078 | BF8: 2079 | BG8: 2080 | BH8: 2081 | BI8: 2082 | BJ8: 2083 | BK8: 2084 | BL8: 2085 | BM8: 2086 | BN8: 2087 | BO8: 2088 | BP8: 2089 | BQ8: 2090 | BR8: =BQ8+1 -> 2091 | BS8: 2092 | BT8: 2093 | BU8: 2094 | BV8: 2095 | BW8: 2096 | BX8: 2097 | BY8: 2098 | BZ8: 2099 | CA8: 2100 | CB8: 2101 | CC8: 2102 | CD8: 2103 | CE8: 2104 | CF8: 2105 | CG8: 2106 | CH8: 2107 | CI8: 2108
B9: (US$/MMBtu) | D9: 1 | E9: 2 | F9: 3 | G9: 4 | H9: 5 | I9: 6 | J9: 7 | K9: 8 | L9: 9 | M9: 10 | N9: 11 | O9: 12 | P9: 13 | Q9: 14 | R9: 15 | S9: 16 | T9: 17 | U9: 18 | V9: 19 | W9: 20 | X9: 21 | Y9: 22 | Z9: 23 | AA9: 24 | AB9: 25 | AC9: 26 | AD9: 27 | AE9: 28 | AF9: 29 | AG9: 30 | AH9: 31 | AI9: 32 | AJ9: 33 | AK9: 34 | AL9: 35 | AM9: 36 | AN9: 37 | AO9: 38 | AP9: 39 | AQ9: 40 | AR9: 41 | AS9: 42 | AT9: 43 | AU9: 44 | AV9: 45 | AW9: 46 | AX9: 47 | AY9: 48 | AZ9: 49 | BA9: 50 | BB9: 51 | BC9: 52 | BD9: 53 | BE9: 54 | BF9: 55 | BG9: 56 | BH9: 57 | BI9: 58 | BJ9: 59 | BK9: 60 | BL9: 61 | BM9: 62 | BN9: 63 | BO9: 64 | BP9: 65 | BQ9: 66 | BR9: 67 | BS9: 68 | BT9: 69 | BU9: 70 | BV9: 71 | BW9: 72 | BX9: 73 | BY9: 74 | BZ9: 75 | CA9: 76 | CB9: 77 | CC9: 78 | CD9: 79 | CE9: 80 | CF9: 81 | CG9: 82 | CH9: 83 | CI9: 84
B10: Cálculo Tarifário Real | D10: ='Tarifa Anual_BRA_MarkUp_R'!D64 -> 0.02088397116 | E10: ='Tarifa Anual_BRA_MarkUp_R'!E64 -> 0.02037638134 | F10: ='Tarifa Anual_BRA_MarkUp_R'!F64 -> 0.01986879153 | G10: ='Tarifa Anual_BRA_MarkUp_R'!G64 -> 0.01936120171 | H10: ='Tarifa Anual_BRA_MarkUp_R'!H64 -> 0.01885361189 | I10: ='Tarifa Anual_BRA_MarkUp_R'!I64 -> 0.01834602207 | J10: ='Tarifa Anual_BRA_MarkUp_R'!J64 -> 0.01783843226 | K10: ='Tarifa Anual_BRA_MarkUp_R'!K64 -> 0.01733084244 | L10: ='Tarifa Anual_BRA_MarkUp_R'!L64 -> 0.01682325262 | M10: ='Tarifa Anual_BRA_MarkUp_R'!M64 -> 0.01631566281 | N10: ='Tarifa Anual_BRA_MarkUp_R'!N64 -> 0.01580807299 | O10: ='Tarifa Anual_BRA_MarkUp_R'!O64 -> 0.01530048317 | P10: ='Tarifa Anual_BRA_MarkUp_R'!P64 -> 0.01479289335 | Q10: ='Tarifa Anual_BRA_MarkUp_R'!Q64 -> 0.01428530354 | R10: ='Tarifa Anual_BRA_MarkUp_R'!R64 -> 0.01377771372 | S10: ='Tarifa Anual_BRA_MarkUp_R'!S64 -> 0.0132701239 | T10: ='Tarifa Anual_BRA_MarkUp_R'!T64 -> 0.01276253409 | U10: ='Tarifa Anual_BRA_MarkUp_R'!U64 -> 0.01225494427 | V10: ='Tarifa Anual_BRA_MarkUp_R'!V64 -> 0.01174735445 | W10: ='Tarifa Anual_BRA_MarkUp_R'!W64 -> 0.01123976464 | X10: ='Tarifa Anual_BRA_MarkUp_R'!X64 -> 0.01073217482 | Y10: ='Tarifa Anual_BRA_MarkUp_R'!Y64 -> 0.01015091139 | Z10: ='Tarifa Anual_BRA_MarkUp_R'!Z64 -> 0.009569647967 | AA10: ='Tarifa Anual_BRA_MarkUp_R'!AA64 -> 0.008988384542 | AB10: ='Tarifa Anual_BRA_MarkUp_R'!AB64 -> 0.008407121116 | AC10: ='Tarifa Anual_BRA_MarkUp_R'!AC64 -> 0.007825857691 | AD10: ='Tarifa Anual_BRA_MarkUp_R'!AD64 -> 0.007244594265 | AE10: ='Tarifa Anual_BRA_MarkUp_R'!AE64 -> 0.00666333084 | AF10: ='Tarifa Anual_BRA_MarkUp_R'!AF64 -> 0.006082067414 | AG10: ='Tarifa Anual_BRA_MarkUp_R'!AG64 -> 0.005500803989 | AH10: ='Tarifa Anual_BRA_MarkUp_R'!AH64 -> - | AI10: ='Tarifa Anual_BRA_MarkUp_R'!AI64 -> - | AJ10: ='Tarifa Anual_BRA_MarkUp_R'!AJ64 -> - | AK10: ='Tarifa Anual_BRA_MarkUp_R'!AK64 -> - | AL10: ='Tarifa Anual_BRA_MarkUp_R'!AL64 -> - | AM10: ='Tarifa Anual_BRA_MarkUp_R'!AM64 -> - | AN10: ='Tarifa Anual_BRA_MarkUp_R'!AN64 -> - | AO10: ='Tarifa Anual_BRA_MarkUp_R'!AO64 -> - | AP10: ='Tarifa Anual_BRA_MarkUp_R'!AP64 -> - | AQ10: ='Tarifa Anual_BRA_MarkUp_R'!AQ64 -> - | AR10: ='Tarifa Anual_BRA_MarkUp_R'!AR64 -> - | AS10: ='Tarifa Anual_BRA_MarkUp_R'!AS64 -> - | AT10: ='Tarifa Anual_BRA_MarkUp_R'!AT64 -> - | AU10: ='Tarifa Anual_BRA_MarkUp_R'!AU64 -> - | AV10: ='Tarifa Anual_BRA_MarkUp_R'!AV64 -> - | AW10: ='Tarifa Anual_BRA_MarkUp_R'!AW64 -> - | AX10: ='Tarifa Anual_BRA_MarkUp_R'!AX64 -> - | AY10: ='Tarifa Anual_BRA_MarkUp_R'!AY64 -> - | AZ10: ='Tarifa Anual_BRA_MarkUp_R'!AZ64 -> - | BA10: ='Tarifa Anual_BRA_MarkUp_R'!BA64 -> - | BB10: ='Tarifa Anual_BRA_MarkUp_R'!BB64 -> - | BC10: ='Tarifa Anual_BRA_MarkUp_R'!BC64 -> - | BD10: ='Tarifa Anual_BRA_MarkUp_R'!BD64 -> - | BE10: ='Tarifa Anual_BRA_MarkUp_R'!BE64 -> - | BF10: ='Tarifa Anual_BRA_MarkUp_R'!BF64 -> - | BG10: ='Tarifa Anual_BRA_MarkUp_R'!BG64 -> - | BH10: ='Tarifa Anual_BRA_MarkUp_R'!BH64 -> - | BI10: ='Tarifa Anual_BRA_MarkUp_R'!BI64 -> - | BJ10: ='Tarifa Anual_BRA_MarkUp_R'!BJ64 -> - | BK10: ='Tarifa Anual_BRA_MarkUp_R'!BK64 -> - | BL10: ='Tarifa Anual_BRA_MarkUp_R'!BL64 -> - | BM10: ='Tarifa Anual_BRA_MarkUp_R'!BM64 -> - | BN10: ='Tarifa Anual_BRA_MarkUp_R'!BN64 -> - | BO10: ='Tarifa Anual_BRA_MarkUp_R'!BO64 -> - | BP10: ='Tarifa Anual_BRA_MarkUp_R'!BP64 -> - | BQ10: ='Tarifa Anual_BRA_MarkUp_R'!BQ64 -> - | BR10: ='Tarifa Anual_BRA_MarkUp_R'!BR64 -> - | BS10: ='Tarifa Anual_BRA_MarkUp_R'!BS64 -> - | BT10: ='Tarifa Anual_BRA_MarkUp_R'!BT64 -> - | BU10: ='Tarifa Anual_BRA_MarkUp_R'!BU64 -> - | BV10: ='Tarifa Anual_BRA_MarkUp_R'!BV64 -> - | BW10: ='Tarifa Anual_BRA_MarkUp_R'!BW64 -> - | BX10: ='Tarifa Anual_BRA_MarkUp_R'!BX64 -> - | BY10: ='Tarifa Anual_BRA_MarkUp_R'!BY64 -> - | BZ10: ='Tarifa Anual_BRA_MarkUp_R'!BZ64 -> - | CA10: ='Tarifa Anual_BRA_MarkUp_R'!CA64 -> - | CB10: ='Tarifa Anual_BRA_MarkUp_R'!CB64 -> - | CC10: ='Tarifa Anual_BRA_MarkUp_R'!CC64 -> - | CD10: ='Tarifa Anual_BRA_MarkUp_R'!CD64 -> - | CE10: ='Tarifa Anual_BRA_MarkUp_R'!CE64 -> - | CF10: ='Tarifa Anual_BRA_MarkUp_R'!CF64 -> - | CG10: ='Tarifa Anual_BRA_MarkUp_R'!CG64 -> - | CH10: ='Tarifa Anual_BRA_MarkUp_R'!CH64 -> - | CI10: ='Tarifa Anual_BRA_MarkUp_R'!CI64 -> -
B11: Cálculo Tarifário Nominal | D11: ='Tarifa Anual_BRA_MarkUp_N'!D64 -> 0.0263784798 | E11: ='Tarifa Anual_BRA_MarkUp_N'!E64 -> 0.02570268328 | F11: ='Tarifa Anual_BRA_MarkUp_N'!F64 -> 0.02502688676 | G11: ='Tarifa Anual_BRA_MarkUp_N'!G64 -> 0.02435109025 | H11: ='Tarifa Anual_BRA_MarkUp_N'!H64 -> 0.02367529373 | I11: ='Tarifa Anual_BRA_MarkUp_N'!I64 -> 0.02299949721 | J11: ='Tarifa Anual_BRA_MarkUp_N'!J64 -> 0.0223237007 | K11: ='Tarifa Anual_BRA_MarkUp_N'!K64 -> 0.02164790418 | L11: ='Tarifa Anual_BRA_MarkUp_N'!L64 -> 0.02097210766 | M11: ='Tarifa Anual_BRA_MarkUp_N'!M64 -> 0.02029631115 | N11: ='Tarifa Anual_BRA_MarkUp_N'!N64 -> 0.01962051463 | O11: ='Tarifa Anual_BRA_MarkUp_N'!O64 -> 0.01894471811 | P11: ='Tarifa Anual_BRA_MarkUp_N'!P64 -> 0.0182689216 | Q11: ='Tarifa Anual_BRA_MarkUp_N'!Q64 -> 0.01759312508 | R11: ='Tarifa Anual_BRA_MarkUp_N'!R64 -> 0.01691732856 | S11: ='Tarifa Anual_BRA_MarkUp_N'!S64 -> 0.01624153204 | T11: ='Tarifa Anual_BRA_MarkUp_N'!T64 -> 0.01556573553 | U11: ='Tarifa Anual_BRA_MarkUp_N'!U64 -> 0.01488993901 | V11: ='Tarifa Anual_BRA_MarkUp_N'!V64 -> 0.01421414249 | W11: ='Tarifa Anual_BRA_MarkUp_N'!W64 -> 0.01353834598 | X11: ='Tarifa Anual_BRA_MarkUp_N'!X64 -> 0.01286254946 | Y11: ='Tarifa Anual_BRA_MarkUp_N'!Y64 -> 0.01206824857 | Z11: ='Tarifa Anual_BRA_MarkUp_N'!Z64 -> 0.01127394768 | AA11: ='Tarifa Anual_BRA_MarkUp_N'!AA64 -> 0.01047964679 | AB11: ='Tarifa Anual_BRA_MarkUp_N'!AB64 -> 0.009685345901 | AC11: ='Tarifa Anual_BRA_MarkUp_N'!AC64 -> 0.008891045012 | AD11: ='Tarifa Anual_BRA_MarkUp_N'!AD64 -> 0.008096744122 | AE11: ='Tarifa Anual_BRA_MarkUp_N'!AE64 -> 0.007302443232 | AF11: ='Tarifa Anual_BRA_MarkUp_N'!AF64 -> 0.006508142343 | AG11: ='Tarifa Anual_BRA_MarkUp_N'!AG64 -> 0.005713841453 | AH11: ='Tarifa Anual_BRA_MarkUp_N'!AH64 -> - | AI11: ='Tarifa Anual_BRA_MarkUp_N'!AI64 -> - | AJ11: ='Tarifa Anual_BRA_MarkUp_N'!AJ64 -> - | AK11: ='Tarifa Anual_BRA_MarkUp_N'!AK64 -> - | AL11: ='Tarifa Anual_BRA_MarkUp_N'!AL64 -> - | AM11: ='Tarifa Anual_BRA_MarkUp_N'!AM64 -> - | AN11: ='Tarifa Anual_BRA_MarkUp_N'!AN64 -> - | AO11: ='Tarifa Anual_BRA_MarkUp_N'!AO64 -> - | AP11: ='Tarifa Anual_BRA_MarkUp_N'!AP64 -> - | AQ11: ='Tarifa Anual_BRA_MarkUp_N'!AQ64 -> - | AR11: ='Tarifa Anual_BRA_MarkUp_N'!AR64 -> - | AS11: ='Tarifa Anual_BRA_MarkUp_N'!AS64 -> - | AT11: ='Tarifa Anual_BRA_MarkUp_N'!AT64 -> - | AU11: ='Tarifa Anual_BRA_MarkUp_N'!AU64 -> - | AV11: ='Tarifa Anual_BRA_MarkUp_N'!AV64 -> - | AW11: ='Tarifa Anual_BRA_MarkUp_N'!AW64 -> - | AX11: ='Tarifa Anual_BRA_MarkUp_N'!AX64 -> - | AY11: ='Tarifa Anual_BRA_MarkUp_N'!AY64 -> - | AZ11: ='Tarifa Anual_BRA_MarkUp_N'!AZ64 -> - | BA11: ='Tarifa Anual_BRA_MarkUp_N'!BA64 -> - | BB11: ='Tarifa Anual_BRA_MarkUp_N'!BB64 -> - | BC11: ='Tarifa Anual_BRA_MarkUp_N'!BC64 -> - | BD11: ='Tarifa Anual_BRA_MarkUp_N'!BD64 -> - | BE11: ='Tarifa Anual_BRA_MarkUp_N'!BE64 -> - | BF11: ='Tarifa Anual_BRA_MarkUp_N'!BF64 -> - | BG11: ='Tarifa Anual_BRA_MarkUp_N'!BG64 -> - | BH11: ='Tarifa Anual_BRA_MarkUp_N'!BH64 -> - | BI11: ='Tarifa Anual_BRA_MarkUp_N'!BI64 -> - | BJ11: ='Tarifa Anual_BRA_MarkUp_N'!BJ64 -> - | BK11: ='Tarifa Anual_BRA_MarkUp_N'!BK64 -> - | BL11: ='Tarifa Anual_BRA_MarkUp_N'!BL64 -> - | BM11: ='Tarifa Anual_BRA_MarkUp_N'!BM64 -> - | BN11: ='Tarifa Anual_BRA_MarkUp_N'!BN64 -> - | BO11: ='Tarifa Anual_BRA_MarkUp_N'!BO64 -> - | BP11: ='Tarifa Anual_BRA_MarkUp_N'!BP64 -> - | BQ11: ='Tarifa Anual_BRA_MarkUp_N'!BQ64 -> - | BR11: ='Tarifa Anual_BRA_MarkUp_N'!BR64 -> - | BS11: ='Tarifa Anual_BRA_MarkUp_N'!BS64 -> - | BT11: ='Tarifa Anual_BRA_MarkUp_N'!BT64 -> - | BU11: ='Tarifa Anual_BRA_MarkUp_N'!BU64 -> - | BV11: ='Tarifa Anual_BRA_MarkUp_N'!BV64 -> - | BW11: ='Tarifa Anual_BRA_MarkUp_N'!BW64 -> - | BX11: ='Tarifa Anual_BRA_MarkUp_N'!BX64 -> - | BY11: ='Tarifa Anual_BRA_MarkUp_N'!BY64 -> - | BZ11: ='Tarifa Anual_BRA_MarkUp_N'!BZ64 -> - | CA11: ='Tarifa Anual_BRA_MarkUp_N'!CA64 -> - | CB11: ='Tarifa Anual_BRA_MarkUp_N'!CB64 -> - | CC11: ='Tarifa Anual_BRA_MarkUp_N'!CC64 -> - | CD11: ='Tarifa Anual_BRA_MarkUp_N'!CD64 -> - | CE11: ='Tarifa Anual_BRA_MarkUp_N'!CE64 -> - | CF11: ='Tarifa Anual_BRA_MarkUp_N'!CF64 -> - | CG11: ='Tarifa Anual_BRA_MarkUp_N'!CG64 -> - | CH11: ='Tarifa Anual_BRA_MarkUp_N'!CH64 -> - | CI11: ='Tarifa Anual_BRA_MarkUp_N'!CI64 -> -
B13: Sensibilidade sobre a BRA | C13: 0 | D13: -0.5 | E13: 0 | F13: 1
B14: Sensibilidade sobre a Capacidade | C14: 1 | D14: 1 | E14: 0.8 | F14: 0.6
B16: 1. Premissas Operacionais, Capex e Opex
B17: Investimento
B18: Investimento Inicial
B19: Base Ativos (BA) (US$ mi) | C19: =Inputs!C13 -> 1
B20: Base de Ativos (BA) (US$ mi) com sensibilidade | C20: =C19*(1+C13) -> 1 | D20: ---> | E20: =C13 -> 0 | F20: incerteza sobre Base de Ativos
B21: Base de Ativos (BA) (R$ mi) | C21: =C20*C89*(1-E21) -> 5.84 | E21: =C132 -> 0 | F21: efeito do Reidi
B22: Base de Ativos (BA) (R$ mi + Fator de Localização) | C22: =C21*C23 -> 8.76
B23: Fator de localização dos custos | C23: =Inputs!C14*(1-E23) -> 1.5 | E23: =C134 -> 0 | F23: efeito de redução de tarifas aduaneiras
B25: Capex Sustaining
B26: Capex (US$ mi) | C26: 0 | D26: 0 | E26: 0 | F26: 0 | G26: 0 | H26: 0 | I26: 0 | J26: 0 | K26: 0 | L26: 0 | M26: 0 | N26: 0 | O26: 0 | P26: 0 | Q26: 0 | R26: 0 | S26: 0 | T26: 0 | U26: 0 | V26: 0 | W26: 0 | X26: 0 | Y26: 0 | Z26: 0 | AA26: 0 | AB26: 0 | AC26: 0 | AD26: 0 | AE26: 0 | AF26: 0 | AG26: 0 | AH26: 0 | AI26: 0 | AJ26: 0 | AK26: 0 | AL26: 0 | AM26: 0 | AN26: 0 | AO26: 0 | AP26: 0 | AQ26: 0 | AR26: 0 | AS26: 0 | AT26: 0 | AU26: 0 | AV26: 0 | AW26: 0 | AX26: 0 | AY26: 0 | AZ26: 0 | BA26: 0 | BB26: 0 | BC26: 0 | BD26: 0 | BE26: 0 | BF26: 0 | BG26: 0 | BH26: 0 | BI26: 0 | BJ26: 0 | BK26: 0 | BL26: 0 | BM26: 0 | BN26: 0 | BO26: 0 | BP26: 0 | BQ26: 0 | BR26: 0 | BS26: 0 | BT26: 0 | BU26: 0 | BV26: 0 | BW26: 0 | BX26: 0 | BY26: 0 | BZ26: 0 | CA26: 0 | CB26: 0 | CC26: 0 | CD26: 0 | CE26: 0 | CF26: 0 | CG26: 0 | CH26: 0 | CI26: 0
B27: Capex (R$ mi) | C27: =C26*C$89 -> 0 | D27: =D26*D$89 -> 0 | E27: 0 | F27: 0 | G27: 0 | H27: 0 | I27: 0 | J27: 0 | K27: 0 | L27: 0 | M27: 0 | N27: 0 | O27: 0 | P27: 0 | Q27: 0 | R27: 0 | S27: 0 | T27: 0 | U27: 0 | V27: 0 | W27: 0 | X27: 0 | Y27: 0 | Z27: 0 | AA27: 0 | AB27: 0 | AC27: 0 | AD27: 0 | AE27: 0 | AF27: 0 | AG27: 0 | AH27: 0 | AI27: 0 | AJ27: 0 | AK27: 0 | AL27: 0 | AM27: 0 | AN27: 0 | AO27: 0 | AP27: 0 | AQ27: 0 | AR27: 0 | AS27: 0 | AT27: 0 | AU27: 0 | AV27: 0 | AW27: 0 | AX27: 0 | AY27: 0 | AZ27: 0 | BA27: 0 | BB27: 0 | BC27: 0 | BD27: 0 | BE27: 0 | BF27: 0 | BG27: 0 | BH27: 0 | BI27: 0 | BJ27: 0 | BK27: 0 | BL27: 0 | BM27: 0 | BN27: 0 | BO27: 0 | BP27: =BP26*BP$89 -> 0 | BQ27: 0 | BR27: 0 | BS27: 0 | BT27: 0 | BU27: 0 | BV27: 0 | BW27: 0 | BX27: 0 | BY27: 0 | BZ27: 0 | CA27: 0 | CB27: 0 | CC27: 0 | CD27: 0 | CE27: 0 | CF27: 0 | CG27: 0 | CH27: 0 | CI27: 0
B28: Capex (R$ mi + Fator de Localização) | C28: =C27*$C$23 -> 0 | D28: =D27*$C$23 -> 0 | E28: 0 | F28: 0 | G28: 0 | H28: 0 | I28: 0 | J28: 0 | K28: 0 | L28: 0 | M28: 0 | N28: 0 | O28: 0 | P28: 0 | Q28: 0 | R28: 0 | S28: 0 | T28: 0 | U28: 0 | V28: 0 | W28: 0 | X28: 0 | Y28: 0 | Z28: 0 | AA28: 0 | AB28: 0 | AC28: 0 | AD28: 0 | AE28: 0 | AF28: 0 | AG28: 0 | AH28: 0 | AI28: 0 | AJ28: 0 | AK28: 0 | AL28: 0 | AM28: 0 | AN28: 0 | AO28: 0 | AP28: 0 | AQ28: 0 | AR28: 0 | AS28: 0 | AT28: 0 | AU28: 0 | AV28: 0 | AW28: 0 | AX28: 0 | AY28: 0 | AZ28: 0 | BA28: 0 | BB28: 0 | BC28: 0 | BD28: 0 | BE28: 0 | BF28: 0 | BG28: 0 | BH28: 0 | BI28: 0 | BJ28: 0 | BK28: 0 | BL28: 0 | BM28: 0 | BN28: 0 | BO28: 0 | BP28: =BP27*$C$23 -> 0 | BQ28: 0 | BR28: 0 | BS28: 0 | BT28: 0 | BU28: 0 | BV28: 0 | BW28: 0 | BX28: 0 | BY28: 0 | BZ28: 0 | CA28: 0 | CB28: 0 | CC28: 0 | CD28: 0 | CE28: 0 | CF28: 0 | CG28: 0 | CH28: 0 | CI28: 0
B30: Capex Novos Projetos
B31: Capex (US$ mi) | C31: 0 | D31: 0 | E31: 0 | F31: 0 | G31: 0 | H31: 0 | I31: 0 | J31: 0 | K31: 0 | L31: 0 | M31: 0 | N31: 0 | O31: 0 | P31: 0 | Q31: 0 | R31: 0 | S31: 0 | T31: 0 | U31: 0 | V31: 0 | W31: 0 | X31: 0 | Y31: 0 | Z31: 0 | AA31: 0 | AB31: 0 | AC31: 0 | AD31: 0 | AE31: 0 | AF31: 0 | AG31: 0 | AH31: 0 | AI31: 0 | AJ31: 0 | AK31: 0 | AL31: 0 | AM31: 0 | AN31: 0 | AO31: 0 | AP31: 0 | AQ31: 0 | AR31: 0 | AS31: 0 | AT31: 0 | AU31: 0 | AV31: 0 | AW31: 0 | AX31: 0 | AY31: 0 | AZ31: 0 | BA31: 0 | BB31: 0 | BC31: 0 | BD31: 0 | BE31: 0 | BF31: 0 | BG31: 0 | BH31: 0 | BI31: 0 | BJ31: 0 | BK31: 0 | BL31: 0 | BM31: 0 | BN31: 0 | BO31: 0 | BP31: 0 | BQ31: 0 | BR31: 0 | BS31: 0 | BT31: 0 | BU31: 0 | BV31: 0 | BW31: 0 | BX31: 0 | BY31: 0 | BZ31: 0 | CA31: 0 | CB31: 0 | CC31: 0 | CD31: 0 | CE31: 0 | CF31: 0 | CG31: 0 | CH31: 0 | CI31: 0
B32: Capex (R$ mi) | C32: =C31*C$89 -> 0 | D32: =D31*D$89 -> 0 | E32: 0 | F32: 0 | G32: 0 | H32: 0 | I32: 0 | J32: 0 | K32: 0 | L32: 0 | M32: 0 | N32: 0 | O32: 0 | P32: 0 | Q32: 0 | R32: 0 | S32: 0 | T32: 0 | U32: 0 | V32: 0 | W32: 0 | X32: 0 | Y32: 0 | Z32: 0 | AA32: 0 | AB32: 0 | AC32: 0 | AD32: 0 | AE32: 0 | AF32: 0 | AG32: 0 | AH32: 0 | AI32: 0 | AJ32: 0 | AK32: 0 | AL32: 0 | AM32: 0 | AN32: 0 | AO32: 0 | AP32: 0 | AQ32: 0 | AR32: 0 | AS32: 0 | AT32: 0 | AU32: 0 | AV32: 0 | AW32: 0 | AX32: 0 | AY32: 0 | AZ32: 0 | BA32: 0 | BB32: 0 | BC32: 0 | BD32: 0 | BE32: 0 | BF32: 0 | BG32: 0 | BH32: 0 | BI32: 0 | BJ32: 0 | BK32: 0 | BL32: 0 | BM32: 0 | BN32: 0 | BO32: 0 | BP32: =BP31*BP$89 -> 0 | BQ32: 0 | BR32: 0 | BS32: 0 | BT32: 0 | BU32: 0 | BV32: 0 | BW32: 0 | BX32: 0 | BY32: 0 | BZ32: 0 | CA32: 0 | CB32: 0 | CC32: 0 | CD32: 0 | CE32: 0 | CF32: 0 | CG32: 0 | CH32: 0 | CI32: 0
B33: Capex (R$ mi + Fator de Localização) | C33: =C32*$C$23 -> 0 | D33: =D32*$C$23 -> 0 | E33: 0 | F33: 0 | G33: 0 | H33: 0 | I33: 0 | J33: 0 | K33: 0 | L33: 0 | M33: 0 | N33: 0 | O33: 0 | P33: 0 | Q33: 0 | R33: 0 | S33: 0 | T33: 0 | U33: 0 | V33: 0 | W33: 0 | X33: 0 | Y33: 0 | Z33: 0 | AA33: 0 | AB33: 0 | AC33: 0 | AD33: 0 | AE33: 0 | AF33: 0 | AG33: 0 | AH33: 0 | AI33: 0 | AJ33: 0 | AK33: 0 | AL33: 0 | AM33: 0 | AN33: 0 | AO33: 0 | AP33: 0 | AQ33: 0 | AR33: 0 | AS33: 0 | AT33: 0 | AU33: 0 | AV33: 0 | AW33: 0 | AX33: 0 | AY33: 0 | AZ33: 0 | BA33: 0 | BB33: 0 | BC33: 0 | BD33: 0 | BE33: 0 | BF33: 0 | BG33: 0 | BH33: 0 | BI33: 0 | BJ33: 0 | BK33: 0 | BL33: 0 | BM33: 0 | BN33: 0 | BO33: 0 | BP33: =BP32*$C$23 -> 0 | BQ33: 0 | BR33: 0 | BS33: 0 | BT33: 0 | BU33: 0 | BV33: 0 | BW33: 0 | BX33: 0 | BY33: 0 | BZ33: 0 | CA33: 0 | CB33: 0 | CC33: 0 | CD33: 0 | CE33: 0 | CF33: 0 | CG33: 0 | CH33: 0 | CI33: 0
B41: Aumento na Capacidade
B42: Capacidade Output GNS (Mm3/dia)
B43: Capacidade Input UPGN (Mm3/dia)
B44: Produção GLP (mil m3/dia)
B45: Produção C5+ (mil m3/dia)
B50: Opex
B51: Opex Fixo (US$ mi) | C51: =Inputs!C17 -> 0 | D51: =Inputs!D17 -> 0 | E51: =Inputs!E17 -> 0 | F51: =Inputs!F17 -> 0 | G51: =Inputs!G17 -> 0 | H51: =Inputs!H17 -> 0 | I51: =Inputs!I17 -> 0 | J51: =Inputs!J17 -> 0 | K51: =Inputs!K17 -> 0 | L51: =Inputs!L17 -> 0 | M51: =Inputs!M17 -> 0 | N51: =Inputs!N17 -> 0 | O51: =Inputs!O17 -> 0 | P51: =Inputs!P17 -> 0 | Q51: =Inputs!Q17 -> 0 | R51: =Inputs!R17 -> 0 | S51: =Inputs!S17 -> 0 | T51: =Inputs!T17 -> 0 | U51: =Inputs!U17 -> 0 | V51: =Inputs!V17 -> 0 | W51: =Inputs!W17 -> 0 | X51: =Inputs!X17 -> 0 | Y51: =Inputs!Y17 -> 0 | Z51: =Inputs!Z17 -> 0 | AA51: =Inputs!AA17 -> 0 | AB51: =Inputs!AB17 -> 0 | AC51: =Inputs!AC17 -> 0 | AD51: =Inputs!AD17 -> 0 | AE51: =Inputs!AE17 -> 0 | AF51: =Inputs!AF17 -> 0 | AG51: =Inputs!AG17 -> 0 | AH51: =Inputs!AH17 -> 0 | AI51: =Inputs!AI17 -> 0 | AJ51: =Inputs!AJ17 -> 0 | AK51: =Inputs!AK17 -> 0 | AL51: =Inputs!AL17 -> 0 | AM51: =Inputs!AM17 -> 0 | AN51: =Inputs!AN17 -> 0 | AO51: =Inputs!AO17 -> 0 | AP51: =Inputs!AP17 -> 0 | AQ51: =Inputs!AQ17 -> 0 | AR51: =Inputs!AR17 -> 0 | AS51: =Inputs!AS17 -> 0 | AT51: =Inputs!AT17 -> 0 | AU51: =Inputs!AU17 -> 0 | AV51: =Inputs!AV17 -> 0 | AW51: =Inputs!AW17 -> 0 | AX51: =Inputs!AX17 -> 0 | AY51: =Inputs!AY17 -> 0 | AZ51: =Inputs!AZ17 -> 0 | BA51: =Inputs!BA17 -> 0 | BB51: =Inputs!BB17 -> 0 | BC51: =Inputs!BC17 -> 0 | BD51: =Inputs!BD17 -> 0 | BE51: =Inputs!BE17 -> 0 | BF51: =Inputs!BF17 -> 0 | BG51: =Inputs!BG17 -> 0 | BH51: =Inputs!BH17 -> 0 | BI51: =Inputs!BI17 -> 0 | BJ51: =Inputs!BJ17 -> 0 | BK51: =Inputs!BK17 -> 0 | BL51: =Inputs!BL17 -> 0 | BM51: =Inputs!BM17 -> 0 | BN51: =Inputs!BN17 -> 0 | BO51: =Inputs!BO17 -> 0 | BP51: =Inputs!BP17 -> 0 | BQ51: =Inputs!BQ17 -> 0 | BR51: =Inputs!BR17 -> 0 | BS51: =Inputs!BS17 -> 0 | BT51: =Inputs!BT17 -> 0 | BU51: =Inputs!BU17 -> 0 | BV51: =Inputs!BV17 -> 0 | BW51: =Inputs!BW17 -> 0 | BX51: =Inputs!BX17 -> 0 | BY51: =Inputs!BY17 -> 0 | BZ51: =Inputs!BZ17 -> 0 | CA51: =Inputs!CA17 -> 0 | CB51: =Inputs!CB17 -> 0 | CC51: =Inputs!CC17 -> 0 | CD51: =Inputs!CD17 -> 0 | CE51: =Inputs!CE17 -> 0 | CF51: =Inputs!CF17 -> 0 | CG51: =Inputs!CG17 -> 0 | CH51: =Inputs!CH17 -> 0 | CI51: =Inputs!CI17 -> 0
B52: Opex Variável (US$ mi) | C52: =Inputs!C18 -> 0 | D52: =Inputs!D18 -> 0 | E52: =Inputs!E18 -> 0 | F52: =Inputs!F18 -> 0 | G52: =Inputs!G18 -> 0 | H52: =Inputs!H18 -> 0 | I52: =Inputs!I18 -> 0 | J52: =Inputs!J18 -> 0 | K52: =Inputs!K18 -> 0 | L52: =Inputs!L18 -> 0 | M52: =Inputs!M18 -> 0 | N52: =Inputs!N18 -> 0 | O52: =Inputs!O18 -> 0 | P52: =Inputs!P18 -> 0 | Q52: =Inputs!Q18 -> 0 | R52: =Inputs!R18 -> 0 | S52: =Inputs!S18 -> 0 | T52: =Inputs!T18 -> 0 | U52: =Inputs!U18 -> 0 | V52: =Inputs!V18 -> 0 | W52: =Inputs!W18 -> 0 | X52: =Inputs!X18 -> 0 | Y52: =Inputs!Y18 -> 0 | Z52: =Inputs!Z18 -> 0 | AA52: =Inputs!AA18 -> 0 | AB52: =Inputs!AB18 -> 0 | AC52: =Inputs!AC18 -> 0 | AD52: =Inputs!AD18 -> 0 | AE52: =Inputs!AE18 -> 0 | AF52: =Inputs!AF18 -> 0 | AG52: =Inputs!AG18 -> 0 | AH52: =Inputs!AH18 -> 0 | AI52: =Inputs!AI18 -> 0 | AJ52: =Inputs!AJ18 -> 0 | AK52: =Inputs!AK18 -> 0 | AL52: =Inputs!AL18 -> 0 | AM52: =Inputs!AM18 -> 0 | AN52: =Inputs!AN18 -> 0 | AO52: =Inputs!AO18 -> 0 | AP52: =Inputs!AP18 -> 0 | AQ52: =Inputs!AQ18 -> 0 | AR52: =Inputs!AR18 -> 0 | AS52: =Inputs!AS18 -> 0 | AT52: =Inputs!AT18 -> 0 | AU52: =Inputs!AU18 -> 0 | AV52: =Inputs!AV18 -> 0 | AW52: =Inputs!AW18 -> 0 | AX52: =Inputs!AX18 -> 0 | AY52: =Inputs!AY18 -> 0 | AZ52: =Inputs!AZ18 -> 0 | BA52: =Inputs!BA18 -> 0 | BB52: =Inputs!BB18 -> 0 | BC52: =Inputs!BC18 -> 0 | BD52: =Inputs!BD18 -> 0 | BE52: =Inputs!BE18 -> 0 | BF52: =Inputs!BF18 -> 0 | BG52: =Inputs!BG18 -> 0 | BH52: =Inputs!BH18 -> 0 | BI52: =Inputs!BI18 -> 0 | BJ52: =Inputs!BJ18 -> 0 | BK52: =Inputs!BK18 -> 0 | BL52: =Inputs!BL18 -> 0 | BM52: =Inputs!BM18 -> 0 | BN52: =Inputs!BN18 -> 0 | BO52: =Inputs!BO18 -> 0 | BP52: =Inputs!BP18 -> 0 | BQ52: =Inputs!BQ18 -> 0 | BR52: =Inputs!BR18 -> 0 | BS52: =Inputs!BS18 -> 0 | BT52: =Inputs!BT18 -> 0 | BU52: =Inputs!BU18 -> 0 | BV52: =Inputs!BV18 -> 0 | BW52: =Inputs!BW18 -> 0 | BX52: =Inputs!BX18 -> 0 | BY52: =Inputs!BY18 -> 0 | BZ52: =Inputs!BZ18 -> 0 | CA52: =Inputs!CA18 -> 0 | CB52: =Inputs!CB18 -> 0 | CC52: =Inputs!CC18 -> 0 | CD52: =Inputs!CD18 -> 0 | CE52: =Inputs!CE18 -> 0 | CF52: =Inputs!CF18 -> 0 | CG52: =Inputs!CG18 -> 0 | CH52: =Inputs!CH18 -> 0 | CI52: =Inputs!CI18 -> 0
B53: Opex Fixo (R$ mi) | C53: =C51*$C$23*C89 -> 0 | D53: 0 | E53: 0 | F53: 0 | G53: 0 | H53: 0 | I53: 0 | J53: 0 | K53: 0 | L53: 0 | M53: 0 | N53: 0 | O53: 0 | P53: 0 | Q53: 0 | R53: 0 | S53: 0 | T53: 0 | U53: 0 | V53: 0 | W53: 0 | X53: 0 | Y53: 0 | Z53: 0 | AA53: 0 | AB53: 0 | AC53: 0 | AD53: 0 | AE53: 0 | AF53: 0 | AG53: 0 | AH53: 0 | AI53: =AI51*$C$23*AI89 -> 0 | AJ53: 0 | AK53: 0 | AL53: 0 | AM53: 0 | AN53: 0 | AO53: 0 | AP53: 0 | AQ53: 0 | AR53: 0 | AS53: 0 | AT53: 0 | AU53: 0 | AV53: 0 | AW53: 0 | AX53: 0 | AY53: 0 | AZ53: 0 | BA53: 0 | BB53: 0 | BC53: 0 | BD53: 0 | BE53: 0 | BF53: 0 | BG53: 0 | BH53: 0 | BI53: 0 | BJ53: 0 | BK53: 0 | BL53: 0 | BM53: 0 | BN53: 0 | BO53: =BO51*$C$23*BO89 -> 0 | BP53: 0 | BQ53: 0 | BR53: 0 | BS53: 0 | BT53: 0 | BU53: 0 | BV53: 0 | BW53: 0 | BX53: 0 | BY53: 0 | BZ53: 0 | CA53: 0 | CB53: 0 | CC53: 0 | CD53: 0 | CE53: 0 | CF53: 0 | CG53: 0 | CH53: 0 | CI53: 0
B54: Opex Variável (R$ mi) | C54: =C52*$C$23*C89 -> 0 | D54: =D52*$C$23*D89 -> 0 | E54: 0 | F54: 0 | G54: 0 | H54: 0 | I54: 0 | J54: 0 | K54: 0 | L54: 0 | M54: 0 | N54: 0 | O54: 0 | P54: 0 | Q54: 0 | R54: 0 | S54: 0 | T54: 0 | U54: 0 | V54: 0 | W54: 0 | X54: 0 | Y54: 0 | Z54: 0 | AA54: 0 | AB54: 0 | AC54: 0 | AD54: 0 | AE54: 0 | AF54: 0 | AG54: 0 | AH54: 0 | AI54: 0 | AJ54: 0 | AK54: 0 | AL54: 0 | AM54: 0 | AN54: 0 | AO54: 0 | AP54: 0 | AQ54: 0 | AR54: 0 | AS54: 0 | AT54: 0 | AU54: 0 | AV54: 0 | AW54: 0 | AX54: 0 | AY54: 0 | AZ54: 0 | BA54: 0 | BB54: 0 | BC54: 0 | BD54: 0 | BE54: 0 | BF54: 0 | BG54: 0 | BH54: 0 | BI54: 0 | BJ54: 0 | BK54: 0 | BL54: 0 | BM54: 0 | BN54: 0 | BO54: 0 | BP54: =BP52*$C$23*BP89 -> 0 | BQ54: 0 | BR54: 0 | BS54: 0 | BT54: 0 | BU54: 0 | BV54: 0 | BW54: 0 | BX54: 0 | BY54: 0 | BZ54: 0 | CA54: 0 | CB54: 0 | CC54: 0 | CD54: 0 | CE54: 0 | CF54: 0 | CG54: 0 | CH54: 0 | CI54: 0
B56: Inclui venda de Líquidos? | C56: N | D56: --> célula livre para simular a venda de liquidos (impacto no preço do processamento de GN)
B58: Capacidades
B59: Capacidade Output GNS (Mm3/dia) | C59: =Inputs!C21 -> 1 | D59: =Inputs!D21 -> 1 | E59: =Inputs!E21 -> 1 | F59: =Inputs!F21 -> 1 | G59: =Inputs!G21 -> 1 | H59: =Inputs!H21 -> 1 | I59: =Inputs!I21 -> 1 | J59: =Inputs!J21 -> 1 | K59: =Inputs!K21 -> 1 | L59: =Inputs!L21 -> 1 | M59: =Inputs!M21 -> 1 | N59: =Inputs!N21 -> 1 | O59: =Inputs!O21 -> 1 | P59: =Inputs!P21 -> 1 | Q59: =Inputs!Q21 -> 1 | R59: =Inputs!R21 -> 1 | S59: =Inputs!S21 -> 1 | T59: =Inputs!T21 -> 1 | U59: =Inputs!U21 -> 1 | V59: =Inputs!V21 -> 1 | W59: =Inputs!W21 -> 1 | X59: =Inputs!X21 -> 1 | Y59: =Inputs!Y21 -> 1 | Z59: =Inputs!Z21 -> 1 | AA59: =Inputs!AA21 -> 1 | AB59: =Inputs!AB21 -> 1 | AC59: =Inputs!AC21 -> 1 | AD59: =Inputs!AD21 -> 1 | AE59: =Inputs!AE21 -> 1 | AF59: =Inputs!AF21 -> 1 | AG59: =Inputs!AG21 -> 1 | AH59: =Inputs!AH21 -> 1 | AI59: =Inputs!AI21 -> 1 | AJ59: =Inputs!AJ21 -> 1 | AK59: =Inputs!AK21 -> 1 | AL59: =Inputs!AL21 -> 1 | AM59: =Inputs!AM21 -> 1 | AN59: =Inputs!AN21 -> 1 | AO59: =Inputs!AO21 -> 1 | AP59: =Inputs!AP21 -> 1 | AQ59: =Inputs!AQ21 -> 1 | AR59: =Inputs!AR21 -> 1 | AS59: =Inputs!AS21 -> 1 | AT59: =Inputs!AT21 -> 1 | AU59: =Inputs!AU21 -> 1 | AV59: =Inputs!AV21 -> 1 | AW59: =Inputs!AW21 -> 1 | AX59: =Inputs!AX21 -> 1 | AY59: =Inputs!AY21 -> 1 | AZ59: =Inputs!AZ21 -> 1 | BA59: =Inputs!BA21 -> 1 | BB59: =Inputs!BB21 -> 1 | BC59: =Inputs!BC21 -> 1 | BD59: =Inputs!BD21 -> 1 | BE59: =Inputs!BE21 -> 1 | BF59: =Inputs!BF21 -> 1 | BG59: =Inputs!BG21 -> 1 | BH59: =Inputs!BH21 -> 1 | BI59: =Inputs!BI21 -> 1 | BJ59: =Inputs!BJ21 -> 1 | BK59: =Inputs!BK21 -> 1 | BL59: =Inputs!BL21 -> 1 | BM59: =Inputs!BM21 -> 1 | BN59: =Inputs!BN21 -> 1 | BO59: =Inputs!BO21 -> 1 | BP59: =Inputs!BP21 -> 1 | BQ59: =Inputs!BQ21 -> 1 | BR59: =Inputs!BR21 -> 1 | BS59: =Inputs!BS21 -> 1 | BT59: =Inputs!BT21 -> 1 | BU59: =Inputs!BU21 -> 1 | BV59: =Inputs!BV21 -> 1 | BW59: =Inputs!BW21 -> 1 | BX59: =Inputs!BX21 -> 1 | BY59: =Inputs!BY21 -> 1 | BZ59: =Inputs!BZ21 -> 1 | CA59: =Inputs!CA21 -> 1 | CB59: =Inputs!CB21 -> 1 | CC59: =Inputs!CC21 -> 1 | CD59: =Inputs!CD21 -> 1 | CE59: =Inputs!CE21 -> 1 | CF59: =Inputs!CF21 -> 1 | CG59: =Inputs!CG21 -> 1 | CH59: =Inputs!CH21 -> 1 | CI59: =Inputs!CI21 -> 1
B60: Capacidade Output GNS (Mm3/dia) | C60: =C$59*$C$14+C42 -> 1 | D60: 1 | E60: 1 | F60: 1 | G60: 1 | H60: 1 | I60: 1 | J60: 1 | K60: 1 | L60: 1 | M60: 1 | N60: 1 | O60: 1 | P60: 1 | Q60: 1 | R60: 1 | S60: 1 | T60: 1 | U60: 1 | V60: 1 | W60: 1 | X60: 1 | Y60: 1 | Z60: 1 | AA60: 1 | AB60: 1 | AC60: 1 | AD60: 1 | AE60: 1 | AF60: 1 | AG60: 1 | AH60: 1 | AI60: =AI$59*$C$14+AI42 -> 1 | AJ60: 1 | AK60: 1 | AL60: 1 | AM60: 1 | AN60: 1 | AO60: 1 | AP60: 1 | AQ60: 1 | AR60: 1 | AS60: 1 | AT60: 1 | AU60: 1 | AV60: 1 | AW60: 1 | AX60: 1 | AY60: 1 | AZ60: 1 | BA60: 1 | BB60: 1 | BC60: 1 | BD60: 1 | BE60: 1 | BF60: 1 | BG60: 1 | BH60: 1 | BI60: 1 | BJ60: 1 | BK60: 1 | BL60: 1 | BM60: 1 | BN60: 1 | BO60: =BO$59*$C$14+BO42 -> 1 | BP60: 1 | BQ60: 1 | BR60: 1 | BS60: 1 | BT60: 1 | BU60: 1 | BV60: 1 | BW60: 1 | BX60: 1 | BY60: 1 | BZ60: 1 | CA60: 1 | CB60: 1 | CC60: 1 | CD60: 1 | CE60: 1 | CF60: 1 | CG60: 1 | CH60: 1 | CI60: 1
B61: Capacidade Input UPGN (Mm3/dia) | C61: =Inputs!C22 -> 1.1 | D61: =Inputs!D22 -> 1.1 | E61: =Inputs!E22 -> 1.1 | F61: =Inputs!F22 -> 1.1 | G61: =Inputs!G22 -> 1.1 | H61: =Inputs!H22 -> 1.1 | I61: =Inputs!I22 -> 1.1 | J61: =Inputs!J22 -> 1.1 | K61: =Inputs!K22 -> 1.1 | L61: =Inputs!L22 -> 1.1 | M61: =Inputs!M22 -> 1.1 | N61: =Inputs!N22 -> 1.1 | O61: =Inputs!O22 -> 1.1 | P61: =Inputs!P22 -> 1.1 | Q61: =Inputs!Q22 -> 1.1 | R61: =Inputs!R22 -> 1.1 | S61: =Inputs!S22 -> 1.1 | T61: =Inputs!T22 -> 1.1 | U61: =Inputs!U22 -> 1.1 | V61: =Inputs!V22 -> 1.1 | W61: =Inputs!W22 -> 1.1 | X61: =Inputs!X22 -> 1.1 | Y61: =Inputs!Y22 -> 1.1 | Z61: =Inputs!Z22 -> 1.1 | AA61: =Inputs!AA22 -> 1.1 | AB61: =Inputs!AB22 -> 1.1 | AC61: =Inputs!AC22 -> 1.1 | AD61: =Inputs!AD22 -> 1.1 | AE61: =Inputs!AE22 -> 1.1 | AF61: =Inputs!AF22 -> 1.1 | AG61: =Inputs!AG22 -> 1.1 | AH61: =Inputs!AH22 -> 1.1 | AI61: =Inputs!AI22 -> 1.1 | AJ61: =Inputs!AJ22 -> 1.1 | AK61: =Inputs!AK22 -> 1.1 | AL61: =Inputs!AL22 -> 1.1 | AM61: =Inputs!AM22 -> 1.1 | AN61: =Inputs!AN22 -> 1.1 | AO61: =Inputs!AO22 -> 1.1 | AP61: =Inputs!AP22 -> 1.1 | AQ61: =Inputs!AQ22 -> 1.1 | AR61: =Inputs!AR22 -> 1.1 | AS61: =Inputs!AS22 -> 1.1 | AT61: =Inputs!AT22 -> 1.1 | AU61: =Inputs!AU22 -> 1.1 | AV61: =Inputs!AV22 -> 1.1 | AW61: =Inputs!AW22 -> 1.1 | AX61: =Inputs!AX22 -> 1.1 | AY61: =Inputs!AY22 -> 1.1 | AZ61: =Inputs!AZ22 -> 1.1 | BA61: =Inputs!BA22 -> 1.1 | BB61: =Inputs!BB22 -> 1.1 | BC61: =Inputs!BC22 -> 1.1 | BD61: =Inputs!BD22 -> 1.1 | BE61: =Inputs!BE22 -> 1.1 | BF61: =Inputs!BF22 -> 1.1 | BG61: =Inputs!BG22 -> 1.1 | BH61: =Inputs!BH22 -> 1.1 | BI61: =Inputs!BI22 -> 1.1 | BJ61: =Inputs!BJ22 -> 1.1 | BK61: =Inputs!BK22 -> 1.1 | BL61: =Inputs!BL22 -> 1.1 | BM61: =Inputs!BM22 -> 1.1 | BN61: =Inputs!BN22 -> 1.1 | BO61: =Inputs!BO22 -> 1.1 | BP61: =Inputs!BP22 -> 1.1 | BQ61: =Inputs!BQ22 -> 1.1 | BR61: =Inputs!BR22 -> 1.1 | BS61: =Inputs!BS22 -> 1.1 | BT61: =Inputs!BT22 -> 1.1 | BU61: =Inputs!BU22 -> 1.1 | BV61: =Inputs!BV22 -> 1.1 | BW61: =Inputs!BW22 -> 1.1 | BX61: =Inputs!BX22 -> 1.1 | BY61: =Inputs!BY22 -> 1.1 | BZ61: =Inputs!BZ22 -> 1.1 | CA61: =Inputs!CA22 -> 1.1 | CB61: =Inputs!CB22 -> 1.1 | CC61: =Inputs!CC22 -> 1.1 | CD61: =Inputs!CD22 -> 1.1 | CE61: =Inputs!CE22 -> 1.1 | CF61: =Inputs!CF22 -> 1.1 | CG61: =Inputs!CG22 -> 1.1 | CH61: =Inputs!CH22 -> 1.1 | CI61: =Inputs!CI22 -> 1.1
B62: Capacidade Input UPGN (Mm3/dia) | C62: =C$61*$C$14+C43 -> 1.1 | D62: 1.1 | E62: 1.1 | F62: 1.1 | G62: 1.1 | H62: 1.1 | I62: 1.1 | J62: 1.1 | K62: 1.1 | L62: 1.1 | M62: 1.1 | N62: 1.1 | O62: 1.1 | P62: 1.1 | Q62: 1.1 | R62: 1.1 | S62: 1.1 | T62: 1.1 | U62: 1.1 | V62: 1.1 | W62: 1.1 | X62: 1.1 | Y62: 1.1 | Z62: 1.1 | AA62: 1.1 | AB62: 1.1 | AC62: 1.1 | AD62: 1.1 | AE62: 1.1 | AF62: 1.1 | AG62: 1.1 | AH62: 1.1 | AI62: =AI$61*$C$14+AI43 -> 1.1 | AJ62: 1.1 | AK62: 1.1 | AL62: 1.1 | AM62: 1.1 | AN62: 1.1 | AO62: 1.1 | AP62: 1.1 | AQ62: 1.1 | AR62: 1.1 | AS62: 1.1 | AT62: 1.1 | AU62: 1.1 | AV62: 1.1 | AW62: 1.1 | AX62: 1.1 | AY62: 1.1 | AZ62: 1.1 | BA62: 1.1 | BB62: 1.1 | BC62: 1.1 | BD62: 1.1 | BE62: 1.1 | BF62: 1.1 | BG62: 1.1 | BH62: 1.1 | BI62: 1.1 | BJ62: 1.1 | BK62: 1.1 | BL62: 1.1 | BM62: 1.1 | BN62: 1.1 | BO62: =BO$61*$C$14+BO43 -> 1.1 | BP62: 1.1 | BQ62: 1.1 | BR62: 1.1 | BS62: 1.1 | BT62: 1.1 | BU62: 1.1 | BV62: 1.1 | BW62: 1.1 | BX62: 1.1 | BY62: 1.1 | BZ62: 1.1 | CA62: 1.1 | CB62: 1.1 | CC62: 1.1 | CD62: 1.1 | CE62: 1.1 | CF62: 1.1 | CG62: 1.1 | CH62: 1.1 | CI62: 1.1
B63: Produção GLP (mil m3/dia) | C63: =Inputs!C23 -> 0 | D63: =Inputs!D23 -> 0 | E63: =Inputs!E23 -> 0 | F63: =Inputs!F23 -> 0 | G63: =Inputs!G23 -> 0 | H63: =Inputs!H23 -> 0 | I63: =Inputs!I23 -> 0 | J63: =Inputs!J23 -> 0 | K63: =Inputs!K23 -> 0 | L63: =Inputs!L23 -> 0 | M63: =Inputs!M23 -> 0 | N63: =Inputs!N23 -> 0 | O63: =Inputs!O23 -> 0 | P63: =Inputs!P23 -> 0 | Q63: =Inputs!Q23 -> 0 | R63: =Inputs!R23 -> 0 | S63: =Inputs!S23 -> 0 | T63: =Inputs!T23 -> 0 | U63: =Inputs!U23 -> 0 | V63: =Inputs!V23 -> 0 | W63: =Inputs!W23 -> 0 | X63: =Inputs!X23 -> 0 | Y63: =Inputs!Y23 -> 0 | Z63: =Inputs!Z23 -> 0 | AA63: =Inputs!AA23 -> 0 | AB63: =Inputs!AB23 -> 0 | AC63: =Inputs!AC23 -> 0 | AD63: =Inputs!AD23 -> 0 | AE63: =Inputs!AE23 -> 0 | AF63: =Inputs!AF23 -> 0 | AG63: =Inputs!AG23 -> 0 | AH63: =Inputs!AH23 -> 0 | AI63: =Inputs!AI23 -> 0 | AJ63: =Inputs!AJ23 -> 0 | AK63: =Inputs!AK23 -> 0 | AL63: =Inputs!AL23 -> 0 | AM63: =Inputs!AM23 -> 0 | AN63: =Inputs!AN23 -> 0 | AO63: =Inputs!AO23 -> 0 | AP63: =Inputs!AP23 -> 0 | AQ63: =Inputs!AQ23 -> 0 | AR63: =Inputs!AR23 -> 0 | AS63: =Inputs!AS23 -> 0 | AT63: =Inputs!AT23 -> 0 | AU63: =Inputs!AU23 -> 0 | AV63: =Inputs!AV23 -> 0 | AW63: =Inputs!AW23 -> 0 | AX63: =Inputs!AX23 -> 0 | AY63: =Inputs!AY23 -> 0 | AZ63: =Inputs!AZ23 -> 0 | BA63: =Inputs!BA23 -> 0 | BB63: =Inputs!BB23 -> 0 | BC63: =Inputs!BC23 -> 0 | BD63: =Inputs!BD23 -> 0 | BE63: =Inputs!BE23 -> 0 | BF63: =Inputs!BF23 -> 0 | BG63: =Inputs!BG23 -> 0 | BH63: =Inputs!BH23 -> 0 | BI63: =Inputs!BI23 -> 0 | BJ63: =Inputs!BJ23 -> 0 | BK63: =Inputs!BK23 -> 0 | BL63: =Inputs!BL23 -> 0 | BM63: =Inputs!BM23 -> 0 | BN63: =Inputs!BN23 -> 0 | BO63: =Inputs!BO23 -> 0 | BP63: =Inputs!BP23 -> 0 | BQ63: =Inputs!BQ23 -> 0 | BR63: =Inputs!BR23 -> 0 | BS63: =Inputs!BS23 -> 0 | BT63: =Inputs!BT23 -> 0 | BU63: =Inputs!BU23 -> 0 | BV63: =Inputs!BV23 -> 0 | BW63: =Inputs!BW23 -> 0 | BX63: =Inputs!BX23 -> 0 | BY63: =Inputs!BY23 -> 0 | BZ63: =Inputs!BZ23 -> 0 | CA63: =Inputs!CA23 -> 0 | CB63: =Inputs!CB23 -> 0 | CC63: =Inputs!CC23 -> 0 | CD63: =Inputs!CD23 -> 0 | CE63: =Inputs!CE23 -> 0 | CF63: =Inputs!CF23 -> 0 | CG63: =Inputs!CG23 -> 0 | CH63: =Inputs!CH23 -> 0 | CI63: =Inputs!CI23 -> 0
B64: Produção GLP (mil m3/dia) | C64: =C$63*$C$14+C44 -> 0 | D64: 0 | E64: 0 | F64: 0 | G64: 0 | H64: 0 | I64: 0 | J64: 0 | K64: 0 | L64: 0 | M64: 0 | N64: 0 | O64: 0 | P64: 0 | Q64: 0 | R64: 0 | S64: 0 | T64: 0 | U64: 0 | V64: 0 | W64: 0 | X64: 0 | Y64: 0 | Z64: 0 | AA64: 0 | AB64: 0 | AC64: 0 | AD64: 0 | AE64: 0 | AF64: 0 | AG64: 0 | AH64: 0 | AI64: =AI$63*$C$14+AI44 -> 0 | AJ64: 0 | AK64: 0 | AL64: 0 | AM64: 0 | AN64: 0 | AO64: 0 | AP64: 0 | AQ64: 0 | AR64: 0 | AS64: 0 | AT64: 0 | AU64: 0 | AV64: 0 | AW64: 0 | AX64: 0 | AY64: 0 | AZ64: 0 | BA64: 0 | BB64: 0 | BC64: 0 | BD64: 0 | BE64: 0 | BF64: 0 | BG64: 0 | BH64: 0 | BI64: 0 | BJ64: 0 | BK64: 0 | BL64: 0 | BM64: 0 | BN64: 0 | BO64: =BO$63*$C$14+BO44 -> 0 | BP64: 0 | BQ64: 0 | BR64: 0 | BS64: 0 | BT64: 0 | BU64: 0 | BV64: 0 | BW64: 0 | BX64: 0 | BY64: 0 | BZ64: 0 | CA64: 0 | CB64: 0 | CC64: 0 | CD64: 0 | CE64: 0 | CF64: 0 | CG64: 0 | CH64: 0 | CI64: 0
B65: Produção C5+ (mil m3/dia) | C65: =Inputs!C24 -> 0 | D65: =Inputs!D24 -> 0 | E65: =Inputs!E24 -> 0 | F65: =Inputs!F24 -> 0 | G65: =Inputs!G24 -> 0 | H65: =Inputs!H24 -> 0 | I65: =Inputs!I24 -> 0 | J65: =Inputs!J24 -> 0 | K65: =Inputs!K24 -> 0 | L65: =Inputs!L24 -> 0 | M65: =Inputs!M24 -> 0 | N65: =Inputs!N24 -> 0 | O65: =Inputs!O24 -> 0 | P65: =Inputs!P24 -> 0 | Q65: =Inputs!Q24 -> 0 | R65: =Inputs!R24 -> 0 | S65: =Inputs!S24 -> 0 | T65: =Inputs!T24 -> 0 | U65: =Inputs!U24 -> 0 | V65: =Inputs!V24 -> 0 | W65: =Inputs!W24 -> 0 | X65: =Inputs!X24 -> 0 | Y65: =Inputs!Y24 -> 0 | Z65: =Inputs!Z24 -> 0 | AA65: =Inputs!AA24 -> 0 | AB65: =Inputs!AB24 -> 0 | AC65: =Inputs!AC24 -> 0 | AD65: =Inputs!AD24 -> 0 | AE65: =Inputs!AE24 -> 0 | AF65: =Inputs!AF24 -> 0 | AG65: =Inputs!AG24 -> 0 | AH65: =Inputs!AH24 -> 0 | AI65: =Inputs!AI24 -> 0 | AJ65: =Inputs!AJ24 -> 0 | AK65: =Inputs!AK24 -> 0 | AL65: =Inputs!AL24 -> 0 | AM65: =Inputs!AM24 -> 0 | AN65: =Inputs!AN24 -> 0 | AO65: =Inputs!AO24 -> 0 | AP65: =Inputs!AP24 -> 0 | AQ65: =Inputs!AQ24 -> 0 | AR65: =Inputs!AR24 -> 0 | AS65: =Inputs!AS24 -> 0 | AT65: =Inputs!AT24 -> 0 | AU65: =Inputs!AU24 -> 0 | AV65: =Inputs!AV24 -> 0 | AW65: =Inputs!AW24 -> 0 | AX65: =Inputs!AX24 -> 0 | AY65: =Inputs!AY24 -> 0 | AZ65: =Inputs!AZ24 -> 0 | BA65: =Inputs!BA24 -> 0 | BB65: =Inputs!BB24 -> 0 | BC65: =Inputs!BC24 -> 0 | BD65: =Inputs!BD24 -> 0 | BE65: =Inputs!BE24 -> 0 | BF65: =Inputs!BF24 -> 0 | BG65: =Inputs!BG24 -> 0 | BH65: =Inputs!BH24 -> 0 | BI65: =Inputs!BI24 -> 0 | BJ65: =Inputs!BJ24 -> 0 | BK65: =Inputs!BK24 -> 0 | BL65: =Inputs!BL24 -> 0 | BM65: =Inputs!BM24 -> 0 | BN65: =Inputs!BN24 -> 0 | BO65: =Inputs!BO24 -> 0 | BP65: =Inputs!BP24 -> 0 | BQ65: =Inputs!BQ24 -> 0 | BR65: =Inputs!BR24 -> 0 | BS65: =Inputs!BS24 -> 0 | BT65: =Inputs!BT24 -> 0 | BU65: =Inputs!BU24 -> 0 | BV65: =Inputs!BV24 -> 0 | BW65: =Inputs!BW24 -> 0 | BX65: =Inputs!BX24 -> 0 | BY65: =Inputs!BY24 -> 0 | BZ65: =Inputs!BZ24 -> 0 | CA65: =Inputs!CA24 -> 0 | CB65: =Inputs!CB24 -> 0 | CC65: =Inputs!CC24 -> 0 | CD65: =Inputs!CD24 -> 0 | CE65: =Inputs!CE24 -> 0 | CF65: =Inputs!CF24 -> 0 | CG65: =Inputs!CG24 -> 0 | CH65: =Inputs!CH24 -> 0 | CI65: =Inputs!CI24 -> 0
B66: Produção C5+ (mil m3/dia) | C66: =C$65*$C$14+C45 -> 0 | D66: 0 | E66: 0 | F66: 0 | G66: 0 | H66: 0 | I66: 0 | J66: 0 | K66: 0 | L66: 0 | M66: 0 | N66: 0 | O66: 0 | P66: 0 | Q66: 0 | R66: 0 | S66: 0 | T66: 0 | U66: 0 | V66: 0 | W66: 0 | X66: 0 | Y66: 0 | Z66: 0 | AA66: 0 | AB66: 0 | AC66: 0 | AD66: 0 | AE66: 0 | AF66: 0 | AG66: 0 | AH66: 0 | AI66: =AI$65*$C$14+AI45 -> 0 | AJ66: 0 | AK66: 0 | AL66: 0 | AM66: 0 | AN66: 0 | AO66: 0 | AP66: 0 | AQ66: 0 | AR66: 0 | AS66: 0 | AT66: 0 | AU66: 0 | AV66: 0 | AW66: 0 | AX66: 0 | AY66: 0 | AZ66: 0 | BA66: 0 | BB66: 0 | BC66: 0 | BD66: 0 | BE66: 0 | BF66: 0 | BG66: 0 | BH66: 0 | BI66: 0 | BJ66: 0 | BK66: 0 | BL66: 0 | BM66: 0 | BN66: 0 | BO66: =BO$65*$C$14+BO45 -> 0 | BP66: 0 | BQ66: 0 | BR66: 0 | BS66: 0 | BT66: 0 | BU66: 0 | BV66: 0 | BW66: 0 | BX66: 0 | BY66: 0 | BZ66: 0 | CA66: 0 | CB66: 0 | CC66: 0 | CD66: 0 | CE66: 0 | CF66: 0 | CG66: 0 | CH66: 0 | CI66: 0
B68: % Fator de Capacidade | C68: =C14 -> 1 | D68: --->
B70: Prazos Operação
B71: Vida Útil + Ano Base (anos) | C71: =Inputs!C29 -> 31 | D71: --> célula livre para simular a vida útil do projeto
B72: Vida Útil + Ano Base (anos) | C72: =C71+C73 -> 31
B73: Adicional | D73: --> célula livre para simular a vida útil do projeto
B74: Ano Base da BRA (anos) | C74: =Inputs!C28 -> 1
B80: 2. Fator de conversão, inflação e câmbio
B82: Poder Calorífico de Referência (kcal/m3) | C82: 9400 | D82: 9400 | E82: 9400 | F82: =+E82 -> 9400 | G82: =+F82 -> 9400 | H82: =+G82 -> 9400 | I82: 9400 | J82: 9400 | K82: 9400 | L82: 9400 | M82: 9400 | N82: 9400 | O82: 9400 | P82: 9400 | Q82: 9400 | R82: 9400 | S82: 9400 | T82: 9400 | U82: 9400 | V82: 9400 | W82: 9400 | X82: 9400 | Y82: 9400 | Z82: 9400 | AA82: =+Z82 -> 9400 | AB82: =+AA82 -> 9400 | AC82: =+AB82 -> 9400 | AD82: =+AC82 -> 9400 | AE82: =+AD82 -> 9400 | AF82: =+AE82 -> 9400 | AG82: =+AF82 -> 9400 | AH82: =+AG82 -> 9400 | AI82: =+AH82 -> 9400 | AJ82: =+AI82 -> 9400 | AK82: =+AJ82 -> 9400 | AL82: =+AK82 -> 9400 | AM82: =+AL82 -> 9400 | AN82: =+AM82 -> 9400 | AO82: =+AN82 -> 9400 | AP82: =+AO82 -> 9400 | AQ82: =+AP82 -> 9400 | AR82: =+AQ82 -> 9400 | AS82: =+AR82 -> 9400 | AT82: =+AS82 -> 9400 | AU82: =+AT82 -> 9400 | AV82: =+AU82 -> 9400 | AW82: =+AV82 -> 9400 | AX82: =+AW82 -> 9400 | AY82: =+AX82 -> 9400 | AZ82: =+AY82 -> 9400 | BA82: =+AZ82 -> 9400 | BB82: =+BA82 -> 9400 | BC82: =+BB82 -> 9400 | BD82: =+BC82 -> 9400 | BE82: =+BD82 -> 9400 | BF82: =+BE82 -> 9400 | BG82: =+BF82 -> 9400 | BH82: =+BG82 -> 9400 | BI82: =+BH82 -> 9400 | BJ82: =+BI82 -> 9400 | BK82: =+BJ82 -> 9400 | BL82: =+BK82 -> 9400 | BM82: =+BL82 -> 9400 | BN82: =+BM82 -> 9400 | BO82: =+BN82 -> 9400 | BP82: =+BO82 -> 9400 | BQ82: =+BP82 -> 9400 | BR82: =+BQ82 -> 9400 | BS82: =+BR82 -> 9400 | BT82: =+BS82 -> 9400 | BU82: =+BT82 -> 9400 | BV82: =+BU82 -> 9400 | BW82: =+BV82 -> 9400 | BX82: =+BW82 -> 9400 | BY82: =+BX82 -> 9400 | BZ82: =+BY82 -> 9400 | CA82: =+BZ82 -> 9400 | CB82: =+CA82 -> 9400 | CC82: =+CB82 -> 9400 | CD82: =+CC82 -> 9400 | CE82: =+CD82 -> 9400 | CF82: =+CE82 -> 9400 | CG82: =+CF82 -> 9400 | CH82: =+CG82 -> 9400 | CI82: =+CH82 -> 9400
B83: Fator de conversão (MMBtu/m³) | C83: 34920 | D83: 34920 | E83: 34920 | F83: 34920 | G83: 34920 | H83: 34920 | I83: 34920 | J83: 34920 | K83: 34920 | L83: 34920 | M83: 34920 | N83: 34920 | O83: 34920 | P83: 34920 | Q83: 34920 | R83: 34920 | S83: 34920 | T83: 34920 | U83: 34920 | V83: 34920 | W83: 34920 | X83: 34920 | Y83: 34920 | Z83: 34920 | AA83: 34920 | AB83: 34920 | AC83: 34920 | AD83: 34920 | AE83: 34920 | AF83: 34920 | AG83: 34920 | AH83: 34920 | AI83: 34920 | AJ83: 34920 | AK83: 34920 | AL83: 34920 | AM83: 34920 | AN83: 34920 | AO83: 34920 | AP83: 34920 | AQ83: 34920 | AR83: 34920 | AS83: 34920 | AT83: 34920 | AU83: 34920 | AV83: 34920 | AW83: 34920 | AX83: 34920 | AY83: 34920 | AZ83: 34920 | BA83: 34920 | BB83: 34920 | BC83: 34920 | BD83: 34920 | BE83: 34920 | BF83: 34920 | BG83: 34920 | BH83: 34920 | BI83: 34920 | BJ83: 34920 | BK83: 34920 | BL83: 34920 | BM83: 34920 | BN83: 34920 | BO83: 34920 | BP83: 34920 | BQ83: 34920 | BR83: 34920 | BS83: 34920 | BT83: 34920 | BU83: 34920 | BV83: 34920 | BW83: 34920 | BX83: 34920 | BY83: 34920 | BZ83: 34920 | CA83: 34920 | CB83: 34920 | CC83: 34920 | CD83: 34920 | CE83: 34920 | CF83: 34920 | CG83: 34920 | CH83: 34920 | CI83: 34920
B84: Duração do Ano (dias) | C84: 365 | D84: 365 | E84: 365 | F84: 365 | G84: 365 | H84: 365 | I84: 365 | J84: 365 | K84: 365 | L84: 365 | M84: 365 | N84: 365 | O84: 365 | P84: 365 | Q84: 365 | R84: 365 | S84: 365 | T84: 365 | U84: 365 | V84: 365 | W84: 365 | X84: 365 | Y84: 365 | Z84: 365 | AA84: 365 | AB84: 365 | AC84: 365 | AD84: 365 | AE84: 365 | AF84: 365 | AG84: 365 | AH84: 365 | AI84: 365 | AJ84: 365 | AK84: 365 | AL84: 365 | AM84: 365 | AN84: 365 | AO84: 365 | AP84: 365 | AQ84: 365 | AR84: 365 | AS84: 365 | AT84: 365 | AU84: 365 | AV84: 365 | AW84: 365 | AX84: 365 | AY84: 365 | AZ84: 365 | BA84: 365 | BB84: 365 | BC84: 365 | BD84: 365 | BE84: 365 | BF84: 365 | BG84: 365 | BH84: 365 | BI84: 365 | BJ84: 365 | BK84: 365 | BL84: 365 | BM84: 365 | BN84: 365 | BO84: 365 | BP84: 365 | BQ84: 365 | BR84: 365 | BS84: 365 | BT84: 365 | BU84: 365 | BV84: 365 | BW84: 365 | BX84: 365 | BY84: 365 | BZ84: 365 | CA84: 365 | CB84: 365 | CC84: 365 | CD84: 365 | CE84: 365 | CF84: 365 | CG84: 365 | CH84: 365 | CI84: 365
B85: Dias Operacionais (dias) | C85: 365 | D85: 365 | E85: 365 | F85: 365 | G85: 365 | H85: 365 | I85: 365 | J85: 365 | K85: 365 | L85: 365 | M85: 365 | N85: 365 | O85: 365 | P85: 365 | Q85: 365 | R85: 365 | S85: 365 | T85: 365 | U85: 365 | V85: 365 | W85: 365 | X85: 365 | Y85: 365 | Z85: 365 | AA85: 365 | AB85: 365 | AC85: 365 | AD85: 365 | AE85: 365 | AF85: 365 | AG85: 365 | AH85: 365 | AI85: 365 | AJ85: 365 | AK85: 365 | AL85: 365 | AM85: 365 | AN85: 365 | AO85: 365 | AP85: 365 | AQ85: 365 | AR85: 365 | AS85: 365 | AT85: 365 | AU85: 365 | AV85: 365 | AW85: 365 | AX85: 365 | AY85: 365 | AZ85: 365 | BA85: 365 | BB85: 365 | BC85: 365 | BD85: 365 | BE85: 365 | BF85: 365 | BG85: 365 | BH85: 365 | BI85: 365 | BJ85: 365 | BK85: 365 | BL85: 365 | BM85: 365 | BN85: 365 | BO85: 365 | BP85: 365 | BQ85: 365 | BR85: 365 | BS85: 365 | BT85: 365 | BU85: 365 | BV85: 365 | BW85: 365 | BX85: 365 | BY85: 365 | BZ85: 365 | CA85: 365 | CB85: 365 | CC85: 365 | CD85: 365 | CE85: 365 | CF85: 365 | CG85: 365 | CH85: 365 | CI85: 365
B87: TJLP (a.a.) | C87: 0.0631 | D87: 0.0631 | E87: 0.0631 | F87: 0.0631 | G87: 0.0631 | H87: 0.0631 | I87: 0.0631 | J87: 0.0631 | K87: 0.0631 | L87: 0.0631 | M87: 0.0631 | N87: 0.0631 | O87: 0.0631 | P87: 0.0631 | Q87: 0.0631 | R87: 0.0631 | S87: 0.0631 | T87: 0.0631 | U87: 0.0631 | V87: 0.0631 | W87: 0.0631 | X87: 0.0631 | Y87: 0.0631 | Z87: 0.0631 | AA87: 0.0631 | AB87: 0.0631 | AC87: 0.0631 | AD87: 0.0631 | AE87: 0.0631 | AF87: 0.0631 | AG87: 0.0631 | AH87: 0.0631 | AI87: 0.0631 | AJ87: 0.0631 | AK87: 0.0631 | AL87: 0.0631 | AM87: 0.0631 | AN87: 0.0631 | AO87: 0.0631 | AP87: 0.0631 | AQ87: 0.0631 | AR87: 0.0631 | AS87: 0.0631 | AT87: 0.0631 | AU87: 0.0631 | AV87: 0.0631 | AW87: 0.0631 | AX87: 0.0631 | AY87: 0.0631 | AZ87: 0.0631 | BA87: 0.0631 | BB87: 0.0631 | BC87: 0.0631 | BD87: 0.0631 | BE87: 0.0631 | BF87: 0.0631 | BG87: 0.0631 | BH87: 0.0631 | BI87: 0.0631 | BJ87: 0.0631 | BK87: 0.0631 | BL87: 0.0631 | BM87: 0.0631 | BN87: 0.0631 | BO87: 0.0631 | BP87: 0.0631 | BQ87: 0.0631 | BR87: 0.0631 | BS87: 0.0631 | BT87: 0.0631 | BU87: 0.0631 | BV87: 0.0631 | BW87: 0.0631 | BX87: 0.0631 | BY87: 0.0631 | BZ87: 0.0631 | CA87: 0.0631 | CB87: 0.0631 | CC87: 0.0631 | CD87: 0.0631 | CE87: 0.0631 | CF87: 0.0631 | CG87: 0.0631 | CH87: 0.0631 | CI87: 0.0631
B88: Taxa de Inflação EUA (a.a.) | C88: 0.02 | D88: 0.02 | E88: 0.02 | F88: 0.02 | G88: 0.02 | H88: 0.02 | I88: 0.02 | J88: 0.02 | K88: 0.02 | L88: 0.02 | M88: 0.02 | N88: 0.02 | O88: 0.02 | P88: 0.02 | Q88: 0.02 | R88: 0.02 | S88: 0.02 | T88: 0.02 | U88: 0.02 | V88: 0.02 | W88: 0.02 | X88: 0.02 | Y88: 0.02 | Z88: 0.02 | AA88: 0.02 | AB88: 0.02 | AC88: 0.02 | AD88: 0.02 | AE88: 0.02 | AF88: 0.02 | AG88: 0.02 | AH88: 0.02 | AI88: 0.02 | AJ88: 0.02 | AK88: 0.02 | AL88: 0.02 | AM88: 0.02 | AN88: 0.02 | AO88: 0.02 | AP88: 0.02 | AQ88: 0.02 | AR88: 0.02 | AS88: 0.02 | AT88: 0.02 | AU88: 0.02 | AV88: 0.02 | AW88: 0.02 | AX88: 0.02 | AY88: 0.02 | AZ88: 0.02 | BA88: 0.02 | BB88: 0.02 | BC88: 0.02 | BD88: 0.02 | BE88: 0.02 | BF88: 0.02 | BG88: 0.02 | BH88: 0.02 | BI88: 0.02 | BJ88: 0.02 | BK88: 0.02 | BL88: 0.02 | BM88: 0.02 | BN88: 0.02 | BO88: 0.02 | BP88: 0.02 | BQ88: 0.02 | BR88: 0.02 | BS88: 0.02 | BT88: 0.02 | BU88: 0.02 | BV88: 0.02 | BW88: 0.02 | BX88: 0.02 | BY88: 0.02 | BZ88: 0.02 | CA88: 0.02 | CB88: 0.02 | CC88: 0.02 | CD88: 0.02 | CE88: 0.02 | CF88: 0.02 | CG88: 0.02 | CH88: 0.02 | CI88: 0.02
B89: Taxa de câmbio R$/US$ | C89: 5.84 | D89: =C89 -> 5.84 | E89: =D89 -> 5.84 | F89: 5.84 | G89: 5.84 | H89: 5.84 | I89: 5.84 | J89: 5.84 | K89: 5.84 | L89: 5.84 | M89: 5.84 | N89: 5.84 | O89: 5.84 | P89: 5.84 | Q89: 5.84 | R89: 5.84 | S89: 5.84 | T89: 5.84 | U89: 5.84 | V89: 5.84 | W89: 5.84 | X89: 5.84 | Y89: 5.84 | Z89: 5.84 | AA89: 5.84 | AB89: 5.84 | AC89: 5.84 | AD89: 5.84 | AE89: 5.84 | AF89: 5.84 | AG89: 5.84 | AH89: 5.84 | AI89: 5.84 | AJ89: 5.84 | AK89: 5.84 | AL89: 5.84 | AM89: 5.84 | AN89: 5.84 | AO89: 5.84 | AP89: 5.84 | AQ89: 5.84 | AR89: 5.84 | AS89: 5.84 | AT89: 5.84 | AU89: 5.84 | AV89: 5.84 | AW89: 5.84 | AX89: 5.84 | AY89: 5.84 | AZ89: 5.84 | BA89: 5.84 | BB89: 5.84 | BC89: 5.84 | BD89: 5.84 | BE89: 5.84 | BF89: 5.84 | BG89: 5.84 | BH89: 5.84 | BI89: 5.84 | BJ89: 5.84 | BK89: 5.84 | BL89: 5.84 | BM89: 5.84 | BN89: 5.84 | BO89: 5.84 | BP89: 5.84 | BQ89: =BP89 -> 5.84 | BR89: 5.84 | BS89: 5.84 | BT89: 5.84 | BU89: 5.84 | BV89: 5.84 | BW89: 5.84 | BX89: 5.84 | BY89: 5.84 | BZ89: 5.84 | CA89: 5.84 | CB89: 5.84 | CC89: 5.84 | CD89: 5.84 | CE89: 5.84 | CF89: 5.84 | CG89: 5.84 | CH89: 5.84 | CI89: 5.84
B91: Modelo Real (R) ou Nominal (N) | C91: N
B92: Taxa de Inflação Brasil (a.a.) | C92: 0.0445 | D92: =C92 -> 0.0445 | E92: =D92 -> 0.0445 | F92: 0.0445 | G92: 0.0445 | H92: 0.0445 | I92: 0.0445 | J92: 0.0445 | K92: 0.0445 | L92: 0.0445 | M92: 0.0445 | N92: 0.0445 | O92: 0.0445 | P92: 0.0445 | Q92: 0.0445 | R92: 0.0445 | S92: 0.0445 | T92: 0.0445 | U92: 0.0445 | V92: 0.0445 | W92: 0.0445 | X92: 0.0445 | Y92: 0.0445 | Z92: 0.0445 | AA92: 0.0445 | AB92: 0.0445 | AC92: 0.0445 | AD92: 0.0445 | AE92: 0.0445 | AF92: 0.0445 | AG92: 0.0445 | AH92: 0.0445 | AI92: 0.0445 | AJ92: 0.0445 | AK92: 0.0445 | AL92: 0.0445 | AM92: 0.0445 | AN92: 0.0445 | AO92: 0.0445 | AP92: 0.0445 | AQ92: 0.0445 | AR92: 0.0445 | AS92: 0.0445 | AT92: 0.0445 | AU92: 0.0445 | AV92: 0.0445 | AW92: 0.0445 | AX92: 0.0445 | AY92: 0.0445 | AZ92: 0.0445 | BA92: 0.0445 | BB92: 0.0445 | BC92: 0.0445 | BD92: 0.0445 | BE92: 0.0445 | BF92: 0.0445 | BG92: 0.0445 | BH92: 0.0445 | BI92: 0.0445 | BJ92: 0.0445 | BK92: 0.0445 | BL92: 0.0445 | BM92: 0.0445 | BN92: 0.0445 | BO92: 0.0445 | BP92: 0.0445 | BQ92: =BP92 -> 0.0445 | BR92: 0.0445 | BS92: 0.0445 | BT92: 0.0445 | BU92: 0.0445 | BV92: 0.0445 | BW92: 0.0445 | BX92: 0.0445 | BY92: 0.0445 | BZ92: 0.0445 | CA92: 0.0445 | CB92: 0.0445 | CC92: 0.0445 | CD92: 0.0445 | CE92: 0.0445 | CF92: 0.0445 | CG92: 0.0445 | CH92: 0.0445 | CI92: 0.0445
B93: Fator de Inflação Brasil (a.a.) | C93: =1*(1+C92) -> 1.0445 | D93: =C93*(1+D92) -> 1.09098025 | E93: =D93*(1+E92) -> 1.139528871 | F93: 1.190237906 | G93: 1.243203493 | H93: 1.298526048 | I93: 1.356310457 | J93: 1.416666273 | K93: 1.479707922 | L93: 1.545554924 | M93: 1.614332118 | N93: 1.686169898 | O93: 1.761204458 | P93: 1.839578056 | Q93: 1.92143928 | R93: 2.006943328 | S93: 2.096252306 | T93: 2.189535534 | U93: 2.286969865 | V93: 2.388740024 | W93: 2.495038955 | X93: 2.606068188 | Y93: 2.722038223 | Z93: 2.843168924 | AA93: =Z93*(1+AA92) -> 2.969689941 | AB93: =AA93*(1+AB92) -> 3.101841143 | AC93: =AB93*(1+AC92) -> 3.239873074 | AD93: =AC93*(1+AD92) -> 3.384047426 | AE93: =AD93*(1+AE92) -> 3.534637536 | AF93: =AE93*(1+AF92) -> 3.691928907 | AG93: =AF93*(1+AG92) -> 3.856219743 | AH93: =AG93*(1+AH92) -> 4.027821522 | AI93: =AH93*(1+AI92) -> 4.207059579 | AJ93: =AI93*(1+AJ92) -> 4.394273731 | AK93: =AJ93*(1+AK92) -> 4.589818912 | AL93: =AK93*(1+AL92) -> 4.794065853 | AM93: =AL93*(1+AM92) -> 5.007401784 | AN93: =AM93*(1+AN92) -> 5.230231163 | AO93: =AN93*(1+AO92) -> 5.46297645 | AP93: =AO93*(1+AP92) -> 5.706078902 | AQ93: =AP93*(1+AQ92) -> 5.959999413 | AR93: =AQ93*(1+AR92) -> 6.225219387 | AS93: =AR93*(1+AS92) -> 6.50224165 | AT93: =AS93*(1+AT92) -> 6.791591403 | AU93: =AT93*(1+AU92) -> 7.09381722 | AV93: =AU93*(1+AV92) -> 7.409492087 | AW93: =AV93*(1+AW92) -> 7.739214485 | AX93: =AW93*(1+AX92) -> 8.083609529 | AY93: =AX93*(1+AY92) -> 8.443330153 | AZ93: =AY93*(1+AZ92) -> 8.819058345 | BA93: =AZ93*(1+BA92) -> 9.211506441 | BB93: =BA93*(1+BB92) -> 9.621418478 | BC93: =BB93*(1+BC92) -> 10.0495716 | BD93: =BC93*(1+BD92) -> 10.49677754 | BE93: =BD93*(1+BE92) -> 10.96388414 | BF93: =BE93*(1+BF92) -> 11.45177698 | BG93: =BF93*(1+BG92) -> 11.96138106 | BH93: =BG93*(1+BH92) -> 12.49366251 | BI93: =BH93*(1+BI92) -> 13.0496305 | BJ93: =BI93*(1+BJ92) -> 13.63033905 | BK93: =BJ93*(1+BK92) -> 14.23688914 | BL93: =BK93*(1+BL92) -> 14.87043071 | BM93: =BL93*(1+BM92) -> 15.53216487 | BN93: =BM93*(1+BN92) -> 16.22334621 | BO93: =BN93*(1+BO92) -> 16.94528512 | BP93: =BO93*(1+BP92) -> 17.6993503 | BQ93: =BP93*(1+BQ92) -> 18.48697139 | BR93: =BQ93*(1+BR92) -> 19.30964162 | BS93: =BR93*(1+BS92) -> 20.16892067 | BT93: =BS93*(1+BT92) -> 21.06643764 | BU93: =BT93*(1+BU92) -> 22.00389412 | BV93: =BU93*(1+BV92) -> 22.98306741 | BW93: =BV93*(1+BW92) -> 24.00581391 | BX93: =BW93*(1+BX92) -> 25.07407262 | BY93: =BX93*(1+BY92) -> 26.18986886 | BZ93: =BY93*(1+BZ92) -> 27.35531802 | CA93: =BZ93*(1+CA92) -> 28.57262967 | CB93: =CA93*(1+CB92) -> 29.84411169 | CC93: =CB93*(1+CC92) -> 31.17217466 | CD93: =CC93*(1+CD92) -> 32.55933643 | CE93: =CD93*(1+CE92) -> 34.00822691 | CF93: =CE93*(1+CF92) -> 35.521593 | CG93: =CF93*(1+CG92) -> 37.10230389 | CH93: =CG93*(1+CH92) -> 38.75335642 | CI93: =CH93*(1+CI92) -> 40.47788078
B96: 3. Custo de Capital Próprio, Custo de Capital de Terceiros e Custo Médio Ponderado de Capital
B98: Total da Dívida/Capital Total [D/(D+E)] | C98: 0.3 | D98: --> 0% para simular estrutura com 100% de capital próprio
B99: Capital Próprio/Capital Total [E/(D+E)] | C99: =1-C98 -> 0.7
B101: Modelo Real (R) ou Nominal (N) | C101: =C91 -> N | D101: R | E101: N
B102: Custo da Divida | C102: =IF($C$101="R",D102,E102) -> 0.12691105 | D102: =Inputs!C36 -> 0.0789 | E102: =(1+D102)*(1+$C$92)-1 -> 0.12691105
B103: Custo do Capital Próprio | C103: =IF($C$101="R",D103,E103) -> 0.1451898 | D103: =Inputs!C37 -> 0.0964 | E103: =(1+D103)*(1+$C$92)-1 -> 0.1451898
B104: Custo Médio Ponderado de Capital, em termos reais (% a.a.) | C104: 0.1267612479 | D104: =(C99*D103)+(C98*D102*(1-D113-D114-D117)) -> 0.0831022 | E104: =(C99*E103)+(C98*E102*(1-E113-E114-E117)) -> 0.1267612479
B105: Prazos Dívida
B106: Prazo para amortização | C106: =MIN(C76,20) -> 20 | D106: --> menor valor entre prazo da concessão e 20 anos
B107: Carência para início da amortização | C107: 1
B108: Carência para início do pagamento de juros | C108: 1
B109: Sistema de amortização | C109: SAC
B111: 4. Alíquotas de Tributos (%)
B113: IRPJ Aliquota Básica | C113: 0.15 | D113: 0.15 | E113: 0.15 | F113: 0.15 | G113: 0.15 | H113: 0.15 | I113: 0.15 | J113: 0.15 | K113: 0.15 | L113: 0.15 | M113: 0.15 | N113: 0.15 | O113: 0.15 | P113: 0.15 | Q113: 0.15 | R113: 0.15 | S113: 0.15 | T113: 0.15 | U113: 0.15 | V113: 0.15 | W113: 0.15 | X113: 0.15 | Y113: 0.15 | Z113: 0.15 | AA113: 0.15 | AB113: 0.15 | AC113: 0.15 | AD113: 0.15 | AE113: 0.15 | AF113: 0.15 | AG113: 0.15 | AH113: 0.15 | AI113: 0.15 | AJ113: 0.15 | AK113: 0.15 | AL113: 0.15 | AM113: 0.15 | AN113: 0.15 | AO113: 0.15 | AP113: 0.15 | AQ113: 0.15 | AR113: 0.15 | AS113: 0.15 | AT113: 0.15 | AU113: 0.15 | AV113: 0.15 | AW113: 0.15 | AX113: 0.15 | AY113: 0.15 | AZ113: 0.15 | BA113: 0.15 | BB113: 0.15 | BC113: 0.15 | BD113: 0.15 | BE113: 0.15 | BF113: 0.15 | BG113: 0.15 | BH113: 0.15 | BI113: 0.15 | BJ113: 0.15 | BK113: 0.15 | BL113: 0.15 | BM113: 0.15 | BN113: 0.15 | BO113: 0.15 | BP113: 0.15 | BQ113: 0.15 | BR113: 0.15 | BS113: 0.15 | BT113: 0.15 | BU113: 0.15 | BV113: 0.15 | BW113: 0.15 | BX113: 0.15 | BY113: 0.15 | BZ113: 0.15 | CA113: 0.15 | CB113: 0.15 | CC113: 0.15 | CD113: 0.15 | CE113: 0.15 | CF113: 0.15 | CG113: 0.15 | CH113: 0.15 | CI113: 0.15
B114: IRPJ Aliquota Adicional | C114: 0.1 | D114: 0.1 | E114: 0.1 | F114: 0.1 | G114: 0.1 | H114: 0.1 | I114: 0.1 | J114: 0.1 | K114: 0.1 | L114: 0.1 | M114: 0.1 | N114: 0.1 | O114: 0.1 | P114: 0.1 | Q114: 0.1 | R114: 0.1 | S114: 0.1 | T114: 0.1 | U114: 0.1 | V114: 0.1 | W114: 0.1 | X114: 0.1 | Y114: 0.1 | Z114: 0.1 | AA114: 0.1 | AB114: 0.1 | AC114: 0.1 | AD114: 0.1 | AE114: 0.1 | AF114: 0.1 | AG114: 0.1 | AH114: 0.1 | AI114: 0.1 | AJ114: 0.1 | AK114: 0.1 | AL114: 0.1 | AM114: 0.1 | AN114: 0.1 | AO114: 0.1 | AP114: 0.1 | AQ114: 0.1 | AR114: 0.1 | AS114: 0.1 | AT114: 0.1 | AU114: 0.1 | AV114: 0.1 | AW114: 0.1 | AX114: 0.1 | AY114: 0.1 | AZ114: 0.1 | BA114: 0.1 | BB114: 0.1 | BC114: 0.1 | BD114: 0.1 | BE114: 0.1 | BF114: 0.1 | BG114: 0.1 | BH114: 0.1 | BI114: 0.1 | BJ114: 0.1 | BK114: 0.1 | BL114: 0.1 | BM114: 0.1 | BN114: 0.1 | BO114: 0.1 | BP114: 0.1 | BQ114: 0.1 | BR114: 0.1 | BS114: 0.1 | BT114: 0.1 | BU114: 0.1 | BV114: 0.1 | BW114: 0.1 | BX114: 0.1 | BY114: 0.1 | BZ114: 0.1 | CA114: 0.1 | CB114: 0.1 | CC114: 0.1 | CD114: 0.1 | CE114: 0.1 | CF114: 0.1 | CG114: 0.1 | CH114: 0.1 | CI114: 0.1
B115: Teto para isenção do adicional (R$ mil) | C115: 240
B117: CSLL | C117: 0.09 | D117: 0.09 | E117: 0.09 | F117: 0.09 | G117: 0.09 | H117: 0.09 | I117: 0.09 | J117: 0.09 | K117: 0.09 | L117: 0.09 | M117: 0.09 | N117: 0.09 | O117: 0.09 | P117: 0.09 | Q117: 0.09 | R117: 0.09 | S117: 0.09 | T117: 0.09 | U117: 0.09 | V117: 0.09 | W117: 0.09 | X117: 0.09 | Y117: 0.09 | Z117: 0.09 | AA117: 0.09 | AB117: 0.09 | AC117: 0.09 | AD117: 0.09 | AE117: 0.09 | AF117: 0.09 | AG117: 0.09 | AH117: 0.09 | AI117: 0.09 | AJ117: 0.09 | AK117: 0.09 | AL117: 0.09 | AM117: 0.09 | AN117: 0.09 | AO117: 0.09 | AP117: 0.09 | AQ117: 0.09 | AR117: 0.09 | AS117: 0.09 | AT117: 0.09 | AU117: 0.09 | AV117: 0.09 | AW117: 0.09 | AX117: 0.09 | AY117: 0.09 | AZ117: 0.09 | BA117: 0.09 | BB117: 0.09 | BC117: 0.09 | BD117: 0.09 | BE117: 0.09 | BF117: 0.09 | BG117: 0.09 | BH117: 0.09 | BI117: 0.09 | BJ117: 0.09 | BK117: 0.09 | BL117: 0.09 | BM117: 0.09 | BN117: 0.09 | BO117: 0.09 | BP117: 0.09 | BQ117: 0.09 | BR117: 0.09 | BS117: 0.09 | BT117: 0.09 | BU117: 0.09 | BV117: 0.09 | BW117: 0.09 | BX117: 0.09 | BY117: 0.09 | BZ117: 0.09 | CA117: 0.09 | CB117: 0.09 | CC117: 0.09 | CD117: 0.09 | CE117: 0.09 | CF117: 0.09 | CG117: 0.09 | CH117: 0.09 | CI117: 0.09
B119: ICMS | C119: 0.12 | D119: =C119 -> 0.12 | E119: =D119 -> 0.12 | F119: 0.12 | G119: 0.12 | H119: 0.12 | I119: 0.12 | J119: 0.12 | K119: 0.12 | L119: 0.12 | M119: 0.12 | N119: 0.12 | O119: 0.12 | P119: 0.12 | Q119: 0.12 | R119: 0.12 | S119: 0.12 | T119: 0.12 | U119: 0.12 | V119: 0.12 | W119: 0.12 | X119: 0.12 | Y119: 0.12 | Z119: 0.12 | AA119: 0.12 | AB119: 0.12 | AC119: 0.12 | AD119: 0.12 | AE119: 0.12 | AF119: 0.12 | AG119: 0.12 | AH119: 0.12 | AI119: 0.12 | AJ119: 0.12 | AK119: 0.12 | AL119: 0.12 | AM119: 0.12 | AN119: 0.12 | AO119: 0.12 | AP119: 0.12 | AQ119: 0.12 | AR119: 0.12 | AS119: 0.12 | AT119: 0.12 | AU119: 0.12 | AV119: 0.12 | AW119: 0.12 | AX119: 0.12 | AY119: 0.12 | AZ119: 0.12 | BA119: 0.12 | BB119: 0.12 | BC119: 0.12 | BD119: 0.12 | BE119: 0.12 | BF119: 0.12 | BG119: 0.12 | BH119: 0.12 | BI119: 0.12 | BJ119: 0.12 | BK119: 0.12 | BL119: 0.12 | BM119: 0.12 | BN119: 0.12 | BO119: 0.12 | BP119: 0.12 | BQ119: =BP119 -> 0.12 | BR119: 0.12 | BS119: 0.12 | BT119: 0.12 | BU119: 0.12 | BV119: 0.12 | BW119: 0.12 | BX119: 0.12 | BY119: 0.12 | BZ119: 0.12 | CA119: 0.12 | CB119: 0.12 | CC119: 0.12 | CD119: 0.12 | CE119: 0.12 | CF119: 0.12 | CG119: 0.12 | CH119: 0.12 | CI119: 0.12
B120: PIS | C120: 0.0165 | D120: 0.0165 | E120: 0.0165 | F120: 0.0165 | G120: 0.0165 | H120: 0.0165 | I120: 0.0165 | J120: 0.0165 | K120: 0.0165 | L120: 0.0165 | M120: 0.0165 | N120: 0.0165 | O120: 0.0165 | P120: 0.0165 | Q120: 0.0165 | R120: 0.0165 | S120: 0.0165 | T120: 0.0165 | U120: 0.0165 | V120: 0.0165 | W120: 0.0165 | X120: 0.0165 | Y120: 0.0165 | Z120: 0.0165 | AA120: 0.0165 | AB120: 0.0165 | AC120: 0.0165 | AD120: 0.0165 | AE120: 0.0165 | AF120: 0.0165 | AG120: 0.0165 | AH120: 0.0165 | AI120: 0.0165 | AJ120: 0.0165 | AK120: 0.0165 | AL120: 0.0165 | AM120: 0.0165 | AN120: 0.0165 | AO120: 0.0165 | AP120: 0.0165 | AQ120: 0.0165 | AR120: 0.0165 | AS120: 0.0165 | AT120: 0.0165 | AU120: 0.0165 | AV120: 0.0165 | AW120: 0.0165 | AX120: 0.0165 | AY120: 0.0165 | AZ120: 0.0165 | BA120: 0.0165 | BB120: 0.0165 | BC120: 0.0165 | BD120: 0.0165 | BE120: 0.0165 | BF120: 0.0165 | BG120: 0.0165 | BH120: 0.0165 | BI120: 0.0165 | BJ120: 0.0165 | BK120: 0.0165 | BL120: 0.0165 | BM120: 0.0165 | BN120: 0.0165 | BO120: 0.0165 | BP120: 0.0165 | BQ120: 0.0165 | BR120: 0.0165 | BS120: 0.0165 | BT120: 0.0165 | BU120: 0.0165 | BV120: 0.0165 | BW120: 0.0165 | BX120: 0.0165 | BY120: 0.0165 | BZ120: 0.0165 | CA120: 0.0165 | CB120: 0.0165 | CC120: 0.0165 | CD120: 0.0165 | CE120: 0.0165 | CF120: 0.0165 | CG120: 0.0165 | CH120: 0.0165 | CI120: 0.0165
B121: COFINS | C121: 0.076 | D121: 0.076 | E121: 0.076 | F121: 0.076 | G121: 0.076 | H121: 0.076 | I121: 0.076 | J121: 0.076 | K121: 0.076 | L121: 0.076 | M121: 0.076 | N121: 0.076 | O121: 0.076 | P121: 0.076 | Q121: 0.076 | R121: 0.076 | S121: 0.076 | T121: 0.076 | U121: 0.076 | V121: 0.076 | W121: 0.076 | X121: 0.076 | Y121: 0.076 | Z121: 0.076 | AA121: 0.076 | AB121: 0.076 | AC121: 0.076 | AD121: 0.076 | AE121: 0.076 | AF121: 0.076 | AG121: 0.076 | AH121: 0.076 | AI121: 0.076 | AJ121: 0.076 | AK121: 0.076 | AL121: 0.076 | AM121: 0.076 | AN121: 0.076 | AO121: 0.076 | AP121: 0.076 | AQ121: 0.076 | AR121: 0.076 | AS121: 0.076 | AT121: 0.076 | AU121: 0.076 | AV121: 0.076 | AW121: 0.076 | AX121: 0.076 | AY121: 0.076 | AZ121: 0.076 | BA121: 0.076 | BB121: 0.076 | BC121: 0.076 | BD121: 0.076 | BE121: 0.076 | BF121: 0.076 | BG121: 0.076 | BH121: 0.076 | BI121: 0.076 | BJ121: 0.076 | BK121: 0.076 | BL121: 0.076 | BM121: 0.076 | BN121: 0.076 | BO121: 0.076 | BP121: 0.076 | BQ121: 0.076 | BR121: 0.076 | BS121: 0.076 | BT121: 0.076 | BU121: 0.076 | BV121: 0.076 | BW121: 0.076 | BX121: 0.076 | BY121: 0.076 | BZ121: 0.076 | CA121: 0.076 | CB121: 0.076 | CC121: 0.076 | CD121: 0.076 | CE121: 0.076 | CF121: 0.076 | CG121: 0.076 | CH121: 0.076 | CI121: 0.076
B122: CPMF | C122: 0 | D122: 0 | E122: 0 | F122: 0 | G122: 0 | H122: 0 | I122: 0 | J122: 0 | K122: 0 | L122: 0 | M122: 0 | N122: 0 | O122: 0 | P122: 0 | Q122: 0 | R122: 0 | S122: 0 | T122: 0 | U122: 0 | V122: 0 | W122: 0 | X122: 0 | Y122: 0 | Z122: 0 | AA122: 0 | AB122: 0 | AC122: 0 | AD122: 0 | AE122: 0 | AF122: 0 | AG122: 0 | AH122: 0 | AI122: 0 | AJ122: 0 | AK122: 0 | AL122: 0 | AM122: 0 | AN122: 0 | AO122: 0 | AP122: 0 | AQ122: 0 | AR122: 0 | AS122: 0 | AT122: 0 | AU122: 0 | AV122: 0 | AW122: 0 | AX122: 0 | AY122: 0 | AZ122: 0 | BA122: 0 | BB122: 0 | BC122: 0 | BD122: 0 | BE122: 0 | BF122: 0 | BG122: 0 | BH122: 0 | BI122: 0 | BJ122: 0 | BK122: 0 | BL122: 0 | BM122: 0 | BN122: 0 | BO122: 0 | BP122: 0 | BQ122: 0 | BR122: 0 | BS122: 0 | BT122: 0 | BU122: 0 | BV122: 0 | BW122: 0 | BX122: 0 | BY122: 0 | BZ122: 0 | CA122: 0 | CB122: 0 | CC122: 0 | CD122: 0 | CE122: 0 | CF122: 0 | CG122: 0 | CH122: 0 | CI122: 0
B124: BA gera crédito de PIS/Cofins? | C124: N | D124: --> "S" BA reduz a base de cálculo do PIS/Cofins
B125: Períodos de parcelamento do crédito | C125: 5
B126: Parcela do investimento sujeita a créd. de PIS/COFINS | C126: 1
B127: Depreciação inclui PIS/COFINS? | C127: N | D127: --> "S": a depreciação reduz a base de cálculo do PIS/Cofins
B128: Opex fixo inclui PIS/COFINS? | C128: N | D128: --> "S": o opex reduz a base de cálculo do PIS/Cofins
B129: Opex variavel inclui PIS/COFINS? | C129: N | D129: --> "S": o opex reduz a base de cálculo do PIS/Cofins
B131: Reidi | C131: N
C132: =IF(C131="S",C120+C121,0) -> 0 | D132: --> isenção de PIS/Cofins na aquisição de capex
B133: Redução de Tarifas Aduaneiras | C133: N
C134: =IF(C133="S",5%,0) -> 0 | D134: --> isenção de tarifas aduaneiras na importação de equipamentos (o percentual é livre para simulações)
B136: 5. Variação de Capital de Giro
B138: Prazo de Recebimento (dias) | C138: 60
B139: Prazo de Pagamento (dias) | C139: 30
B141: 6. Ajustes na Receita
B143: Penalidades
B145: Conta Ajuste

Sheet Investimento e Depreciação
B1: =Premissas!$B$1 -> Processamento | F1: Input | G1: Fórmulas | H1: Sensibilidade
B2: Fase (C = Construção; O = Operação) | C2: =IF(C3<=Premissas!$C$74,"C",IF(C3="-","-","O")) -> C | D2: =IF(D3<=Premissas!$C$74,"C",IF(D3="-","-","O")) -> O | E2: =IF(E3<=Premissas!$C$74,"C",IF(E3="-","-","O")) -> O | F2: =IF(F3<=Premissas!$C$74,"C",IF(F3="-","-","O")) -> O | G2: =IF(G3<=Premissas!$C$74,"C",IF(G3="-","-","O")) -> O | H2: =IF(H3<=Premissas!$C$74,"C",IF(H3="-","-","O")) -> O | I2: =IF(I3<=Premissas!$C$74,"C",IF(I3="-","-","O")) -> O | J2: =IF(J3<=Premissas!$C$74,"C",IF(J3="-","-","O")) -> O | K2: =IF(K3<=Premissas!$C$74,"C",IF(K3="-","-","O")) -> O | L2: =IF(L3<=Premissas!$C$74,"C",IF(L3="-","-","O")) -> O | M2: =IF(M3<=Premissas!$C$74,"C",IF(M3="-","-","O")) -> O | N2: =IF(N3<=Premissas!$C$74,"C",IF(N3="-","-","O")) -> O | O2: =IF(O3<=Premissas!$C$74,"C",IF(O3="-","-","O")) -> O | P2: =IF(P3<=Premissas!$C$74,"C",IF(P3="-","-","O")) -> O | Q2: =IF(Q3<=Premissas!$C$74,"C",IF(Q3="-","-","O")) -> O | R2: =IF(R3<=Premissas!$C$74,"C",IF(R3="-","-","O")) -> O | S2: =IF(S3<=Premissas!$C$74,"C",IF(S3="-","-","O")) -> O | T2: =IF(T3<=Premissas!$C$74,"C",IF(T3="-","-","O")) -> O | U2: =IF(U3<=Premissas!$C$74,"C",IF(U3="-","-","O")) -> O | V2: =IF(V3<=Premissas!$C$74,"C",IF(V3="-","-","O")) -> O | W2: =IF(W3<=Premissas!$C$74,"C",IF(W3="-","-","O")) -> O | X2: =IF(X3<=Premissas!$C$74,"C",IF(X3="-","-","O")) -> O | Y2: =IF(Y3<=Premissas!$C$74,"C",IF(Y3="-","-","O")) -> O | Z2: =IF(Z3<=Premissas!$C$74,"C",IF(Z3="-","-","O")) -> O | AA2: =IF(AA3<=Premissas!$C$74,"C",IF(AA3="-","-","O")) -> O | AB2: =IF(AB3<=Premissas!$C$74,"C",IF(AB3="-","-","O")) -> O | AC2: =IF(AC3<=Premissas!$C$74,"C",IF(AC3="-","-","O")) -> O | AD2: =IF(AD3<=Premissas!$C$74,"C",IF(AD3="-","-","O")) -> O | AE2: =IF(AE3<=Premissas!$C$74,"C",IF(AE3="-","-","O")) -> O | AF2: =IF(AF3<=Premissas!$C$74,"C",IF(AF3="-","-","O")) -> O | AG2: =IF(AG3<=Premissas!$C$74,"C",IF(AG3="-","-","O")) -> O | AH2: =IF(AH3<=Premissas!$C$74,"C",IF(AH3="-","-","O")) -> - | AI2: =IF(AI3<=Premissas!$C$74,"C",IF(AI3="-","-","O")) -> - | AJ2: =IF(AJ3<=Premissas!$C$74,"C",IF(AJ3="-","-","O")) -> - | AK2: =IF(AK3<=Premissas!$C$74,"C",IF(AK3="-","-","O")) -> - | AL2: =IF(AL3<=Premissas!$C$74,"C",IF(AL3="-","-","O")) -> - | AM2: =IF(AM3<=Premissas!$C$74,"C",IF(AM3="-","-","O")) -> - | AN2: =IF(AN3<=Premissas!$C$74,"C",IF(AN3="-","-","O")) -> - | AO2: =IF(AO3<=Premissas!$C$74,"C",IF(AO3="-","-","O")) -> - | AP2: =IF(AP3<=Premissas!$C$74,"C",IF(AP3="-","-","O")) -> - | AQ2: =IF(AQ3<=Premissas!$C$74,"C",IF(AQ3="-","-","O")) -> - | AR2: =IF(AR3<=Premissas!$C$74,"C",IF(AR3="-","-","O")) -> - | AS2: =IF(AS3<=Premissas!$C$74,"C",IF(AS3="-","-","O")) -> - | AT2: =IF(AT3<=Premissas!$C$74,"C",IF(AT3="-","-","O")) -> - | AU2: =IF(AU3<=Premissas!$C$74,"C",IF(AU3="-","-","O")) -> - | AV2: =IF(AV3<=Premissas!$C$74,"C",IF(AV3="-","-","O")) -> - | AW2: =IF(AW3<=Premissas!$C$74,"C",IF(AW3="-","-","O")) -> - | AX2: =IF(AX3<=Premissas!$C$74,"C",IF(AX3="-","-","O")) -> - | AY2: =IF(AY3<=Premissas!$C$74,"C",IF(AY3="-","-","O")) -> - | AZ2: =IF(AZ3<=Premissas!$C$74,"C",IF(AZ3="-","-","O")) -> - | BA2: =IF(BA3<=Premissas!$C$74,"C",IF(BA3="-","-","O")) -> - | BB2: =IF(BB3<=Premissas!$C$74,"C",IF(BB3="-","-","O")) -> - | BC2: =IF(BC3<=Premissas!$C$74,"C",IF(BC3="-","-","O")) -> - | BD2: =IF(BD3<=Premissas!$C$74,"C",IF(BD3="-","-","O")) -> - | BE2: =IF(BE3<=Premissas!$C$74,"C",IF(BE3="-","-","O")) -> - | BF2: =IF(BF3<=Premissas!$C$74,"C",IF(BF3="-","-","O")) -> - | BG2: =IF(BG3<=Premissas!$C$74,"C",IF(BG3="-","-","O")) -> - | BH2: =IF(BH3<=Premissas!$C$74,"C",IF(BH3="-","-","O")) -> - | BI2: =IF(BI3<=Premissas!$C$74,"C",IF(BI3="-","-","O")) -> - | BJ2: =IF(BJ3<=Premissas!$C$74,"C",IF(BJ3="-","-","O")) -> - | BK2: =IF(BK3<=Premissas!$C$74,"C",IF(BK3="-","-","O")) -> - | BL2: =IF(BL3<=Premissas!$C$74,"C",IF(BL3="-","-","O")) -> - | BM2: =IF(BM3<=Premissas!$C$74,"C",IF(BM3="-","-","O")) -> - | BN2: =IF(BN3<=Premissas!$C$74,"C",IF(BN3="-","-","O")) -> - | BO2: =IF(BO3<=Premissas!$C$74,"C",IF(BO3="-","-","O")) -> - | BP2: =IF(BP3<=Premissas!$C$74,"C",IF(BP3="-","-","O")) -> - | BQ2: =IF(BQ3<=Premissas!$C$74,"C",IF(BQ3="-","-","O")) -> - | BR2: =IF(BR3<=Premissas!$C$74,"C",IF(BR3="-","-","O")) -> - | BS2: =IF(BS3<=Premissas!$C$74,"C",IF(BS3="-","-","O")) -> - | BT2: =IF(BT3<=Premissas!$C$74,"C",IF(BT3="-","-","O")) -> - | BU2: =IF(BU3<=Premissas!$C$74,"C",IF(BU3="-","-","O")) -> - | BV2: =IF(BV3<=Premissas!$C$74,"C",IF(BV3="-","-","O")) -> - | BW2: =IF(BW3<=Premissas!$C$74,"C",IF(BW3="-","-","O")) -> - | BX2: =IF(BX3<=Premissas!$C$74,"C",IF(BX3="-","-","O")) -> - | BY2: =IF(BY3<=Premissas!$C$74,"C",IF(BY3="-","-","O")) -> - | BZ2: =IF(BZ3<=Premissas!$C$74,"C",IF(BZ3="-","-","O")) -> - | CA2: =IF(CA3<=Premissas!$C$74,"C",IF(CA3="-","-","O")) -> - | CB2: =IF(CB3<=Premissas!$C$74,"C",IF(CB3="-","-","O")) -> - | CC2: =IF(CC3<=Premissas!$C$74,"C",IF(CC3="-","-","O")) -> - | CD2: =IF(CD3<=Premissas!$C$74,"C",IF(CD3="-","-","O")) -> - | CE2: =IF(CE3<=Premissas!$C$74,"C",IF(CE3="-","-","O")) -> - | CF2: =IF(CF3<=Premissas!$C$74,"C",IF(CF3="-","-","O")) -> - | CG2: =IF(CG3<=Premissas!$C$74,"C",IF(CG3="-","-","O")) -> - | CH2: =IF(CH3<=Premissas!$C$74,"C",IF(CH3="-","-","O")) -> - | CI2: =IF(CI3<=Premissas!$C$74,"C",IF(CI3="-","-","O")) -> - | CJ2: =IF(CJ3<=Premissas!$C$74,"C",IF(CJ3="-","-","O")) -> - | CK2: =IF(CK3<=Premissas!$C$74,"C",IF(CK3="-","-","O")) -> - | CL2: =IF(CL3<=Premissas!$C$74,"C",IF(CL3="-","-","O")) -> - | CM2: =IF(CM3<=Premissas!$C$74,"C",IF(CM3="-","-","O")) -> - | CN2: =IF(CN3<=Premissas!$C$74,"C",IF(CN3="-","-","O")) -> - | CO2: =IF(CO3<=Premissas!$C$74,"C",IF(CO3="-","-","O")) -> - | CP2: =IF(CP3<=Premissas!$C$74,"C",IF(CP3="-","-","O")) -> - | CQ2: =IF(CQ3<=Premissas!$C$74,"C",IF(CQ3="-","-","O")) -> - | CR2: =IF(CR3<=Premissas!$C$74,"C",IF(CR3="-","-","O")) -> - | CS2: =IF(CS3<=Premissas!$C$74,"C",IF(CS3="-","-","O")) -> - | CT2: =IF(CT3<=Premissas!$C$74,"C",IF(CT3="-","-","O")) -> - | CU2: =IF(CU3<=Premissas!$C$74,"C",IF(CU3="-","-","O")) -> - | CV2: =IF(CV3<=Premissas!$C$74,"C",IF(CV3="-","-","O")) -> - | CW2: =IF(CW3<=Premissas!$C$74,"C",IF(CW3="-","-","O")) -> - | CX2: =IF(CX3<=Premissas!$C$74,"C",IF(CX3="-","-","O")) -> - | CY2: =IF(CY3<=Premissas!$C$74,"C",IF(CY3="-","-","O")) -> - | CZ2: =IF(CZ3<=Premissas!$C$74,"C",IF(CZ3="-","-","O")) -> - | DA2: =IF(DA3<=Premissas!$C$74,"C",IF(DA3="-","-","O")) -> - | DB2: =IF(DB3<=Premissas!$C$74,"C",IF(DB3="-","-","O")) -> - | DC2: =IF(DC3<=Premissas!$C$74,"C",IF(DC3="-","-","O")) -> - | DD2: =IF(DD3<=Premissas!$C$74,"C",IF(DD3="-","-","O")) -> - | DE2: =IF(DE3<=Premissas!$C$74,"C",IF(DE3="-","-","O")) -> - | DF2: =IF(DF3<=Premissas!$C$74,"C",IF(DF3="-","-","O")) -> - | DG2: =IF(DG3<=Premissas!$C$74,"C",IF(DG3="-","-","O")) -> - | DH2: =IF(DH3<=Premissas!$C$74,"C",IF(DH3="-","-","O")) -> - | DI2: =IF(DI3<=Premissas!$C$74,"C",IF(DI3="-","-","O")) -> - | DJ2: =IF(DJ3<=Premissas!$C$74,"C",IF(DJ3="-","-","O")) -> - | DK2: =IF(DK3<=Premissas!$C$74,"C",IF(DK3="-","-","O")) -> - | DL2: =IF(DL3<=Premissas!$C$74,"C",IF(DL3="-","-","O")) -> - | DM2: =IF(DM3<=Premissas!$C$74,"C",IF(DM3="-","-","O")) -> - | DN2: =IF(DN3<=Premissas!$C$74,"C",IF(DN3="-","-","O")) -> - | DO2: =IF(DO3<=Premissas!$C$74,"C",IF(DO3="-","-","O")) -> - | DP2: =IF(DP3<=Premissas!$C$74,"C",IF(DP3="-","-","O")) -> - | DQ2: =IF(DQ3<=Premissas!$C$74,"C",IF(DQ3="-","-","O")) -> - | DR2: =IF(DR3<=Premissas!$C$74,"C",IF(DR3="-","-","O")) -> - | DS2: =IF(DS3<=Premissas!$C$74,"C",IF(DS3="-","-","O")) -> - | DT2: =IF(DT3<=Premissas!$C$74,"C",IF(DT3="-","-","O")) -> - | DU2: =IF(DU3<=Premissas!$C$74,"C",IF(DU3="-","-","O")) -> - | DV2: =IF(DV3<=Premissas!$C$74,"C",IF(DV3="-","-","O")) -> - | DW2: =IF(DW3<=Premissas!$C$74,"C",IF(DW3="-","-","O")) -> - | DX2: =IF(DX3<=Premissas!$C$74,"C",IF(DX3="-","-","O")) -> - | DY2: =IF(DY3<=Premissas!$C$74,"C",IF(DY3="-","-","O")) -> - | DZ2: =IF(DZ3<=Premissas!$C$74,"C",IF(DZ3="-","-","O")) -> - | EA2: =IF(EA3<=Premissas!$C$74,"C",IF(EA3="-","-","O")) -> - | EB2: =IF(EB3<=Premissas!$C$74,"C",IF(EB3="-","-","O")) -> - | EC2: =IF(EC3<=Premissas!$C$74,"C",IF(EC3="-","-","O")) -> - | ED2: =IF(ED3<=Premissas!$C$74,"C",IF(ED3="-","-","O")) -> - | EE2: =IF(EE3<=Premissas!$C$74,"C",IF(EE3="-","-","O")) -> - | EF2: =IF(EF3<=Premissas!$C$74,"C",IF(EF3="-","-","O")) -> - | EG2: =IF(EG3<=Premissas!$C$74,"C",IF(EG3="-","-","O")) -> - | EH2: =IF(EH3<=Premissas!$C$74,"C",IF(EH3="-","-","O")) -> - | EI2: =IF(EI3<=Premissas!$C$74,"C",IF(EI3="-","-","O")) -> - | EJ2: =IF(EJ3<=Premissas!$C$74,"C",IF(EJ3="-","-","O")) -> - | EK2: =IF(EK3<=Premissas!$C$74,"C",IF(EK3="-","-","O")) -> - | EL2: =IF(EL3<=Premissas!$C$74,"C",IF(EL3="-","-","O")) -> - | EM2: =IF(EM3<=Premissas!$C$74,"C",IF(EM3="-","-","O")) -> - | EN2: =IF(EN3<=Premissas!$C$74,"C",IF(EN3="-","-","O")) -> - | EO2: =IF(EO3<=Premissas!$C$74,"C",IF(EO3="-","-","O")) -> - | EP2: =IF(EP3<=Premissas!$C$74,"C",IF(EP3="-","-","O")) -> - | EQ2: =IF(EQ3<=Premissas!$C$74,"C",IF(EQ3="-","-","O")) -> - | ER2: =IF(ER3<=Premissas!$C$74,"C",IF(ER3="-","-","O")) -> - | ES2: =IF(ES3<=Premissas!$C$74,"C",IF(ES3="-","-","O")) -> - | ET2: =IF(ET3<=Premissas!$C$74,"C",IF(ET3="-","-","O")) -> - | EU2: =IF(EU3<=Premissas!$C$74,"C",IF(EU3="-","-","O")) -> - | EV2: =IF(EV3<=Premissas!$C$74,"C",IF(EV3="-","-","O")) -> - | EW2: =IF(EW3<=Premissas!$C$74,"C",IF(EW3="-","-","O")) -> - | EX2: =IF(EX3<=Premissas!$C$74,"C",IF(EX3="-","-","O")) -> - | EY2: =IF(EY3<=Premissas!$C$74,"C",IF(EY3="-","-","O")) -> - | EZ2: =IF(EZ3<=Premissas!$C$74,"C",IF(EZ3="-","-","O")) -> - | FA2: =IF(FA3<=Premissas!$C$74,"C",IF(FA3="-","-","O")) -> - | FB2: =IF(FB3<=Premissas!$C$74,"C",IF(FB3="-","-","O")) -> - | FC2: =IF(FC3<=Premissas!$C$74,"C",IF(FC3="-","-","O")) -> - | FD2: =IF(FD3<=Premissas!$C$74,"C",IF(FD3="-","-","O")) -> - | FE2: =IF(FE3<=Premissas!$C$74,"C",IF(FE3="-","-","O")) -> - | FF2: =IF(FF3<=Premissas!$C$74,"C",IF(FF3="-","-","O")) -> - | FG2: =IF(FG3<=Premissas!$C$74,"C",IF(FG3="-","-","O")) -> - | FH2: =IF(FH3<=Premissas!$C$74,"C",IF(FH3="-","-","O")) -> - | FI2: =IF(FI3<=Premissas!$C$74,"C",IF(FI3="-","-","O")) -> - | FJ2: =IF(FJ3<=Premissas!$C$74,"C",IF(FJ3="-","-","O")) -> - | FK2: =IF(FK3<=Premissas!$C$74,"C",IF(FK3="-","-","O")) -> - | FL2: =IF(FL3<=Premissas!$C$74,"C",IF(FL3="-","-","O")) -> - | FM2: =IF(FM3<=Premissas!$C$74,"C",IF(FM3="-","-","O")) -> - | FN2: =IF(FN3<=Premissas!$C$74,"C",IF(FN3="-","-","O")) -> - | FO2: =IF(FO3<=Premissas!$C$74,"C",IF(FO3="-","-","O")) -> - | FP2: =IF(FP3<=Premissas!$C$74,"C",IF(FP3="-","-","O")) -> - | FQ2: =IF(FQ3<=Premissas!$C$74,"C",IF(FQ3="-","-","O")) -> - | FR2: =IF(FR3<=Premissas!$C$74,"C",IF(FR3="-","-","O")) -> - | FS2: =IF(FS3<=Premissas!$C$74,"C",IF(FS3="-","-","O")) -> - | FT2: =IF(FT3<=Premissas!$C$74,"C",IF(FT3="-","-","O")) -> - | FU2: =IF(FU3<=Premissas!$C$74,"C",IF(FU3="-","-","O")) -> - | FV2: =IF(FV3<=Premissas!$C$74,"C",IF(FV3="-","-","O")) -> - | FW2: =IF(FW3<=Premissas!$C$74,"C",IF(FW3="-","-","O")) -> - | FX2: =IF(FX3<=Premissas!$C$74,"C",IF(FX3="-","-","O")) -> - | FY2: =IF(FY3<=Premissas!$C$74,"C",IF(FY3="-","-","O")) -> - | FZ2: =IF(FZ3<=Premissas!$C$74,"C",IF(FZ3="-","-","O")) -> - | GA2: =IF(GA3<=Premissas!$C$74,"C",IF(GA3="-","-","O")) -> - | GB2: =IF(GB3<=Premissas!$C$74,"C",IF(GB3="-","-","O")) -> - | GC2: =IF(GC3<=Premissas!$C$74,"C",IF(GC3="-","-","O")) -> - | GD2: =IF(GD3<=Premissas!$C$74,"C",IF(GD3="-","-","O")) -> - | GE2: =IF(GE3<=Premissas!$C$74,"C",IF(GE3="-","-","O")) -> - | GF2: =IF(GF3<=Premissas!$C$74,"C",IF(GF3="-","-","O")) -> - | GG2: =IF(GG3<=Premissas!$C$74,"C",IF(GG3="-","-","O")) -> - | GH2: =IF(GH3<=Premissas!$C$74,"C",IF(GH3="-","-","O")) -> - | GI2: =IF(GI3<=Premissas!$C$74,"C",IF(GI3="-","-","O")) -> - | GJ2: =IF(GJ3<=Premissas!$C$74,"C",IF(GJ3="-","-","O")) -> - | GK2: =IF(GK3<=Premissas!$C$74,"C",IF(GK3="-","-","O")) -> - | GL2: =IF(GL3<=Premissas!$C$74,"C",IF(GL3="-","-","O")) -> - | GM2: =IF(GM3<=Premissas!$C$74,"C",IF(GM3="-","-","O")) -> - | GN2: =IF(GN3<=Premissas!$C$74,"C",IF(GN3="-","-","O")) -> - | GO2: =IF(GO3<=Premissas!$C$74,"C",IF(GO3="-","-","O")) -> - | GP2: =IF(GP3<=Premissas!$C$74,"C",IF(GP3="-","-","O")) -> - | GQ2: =IF(GQ3<=Premissas!$C$74,"C",IF(GQ3="-","-","O")) -> - | GR2: =IF(GR3<=Premissas!$C$74,"C",IF(GR3="-","-","O")) -> - | GS2: =IF(GS3<=Premissas!$C$74,"C",IF(GS3="-","-","O")) -> - | GT2: =IF(GT3<=Premissas!$C$74,"C",IF(GT3="-","-","O")) -> - | GU2: =IF(GU3<=Premissas!$C$74,"C",IF(GU3="-","-","O")) -> - | GV2: =IF(GV3<=Premissas!$C$74,"C",IF(GV3="-","-","O")) -> - | GW2: =IF(GW3<=Premissas!$C$74,"C",IF(GW3="-","-","O")) -> - | GX2: =IF(GX3<=Premissas!$C$74,"C",IF(GX3="-","-","O")) -> - | GY2: =IF(GY3<=Premissas!$C$74,"C",IF(GY3="-","-","O")) -> - | GZ2: =IF(GZ3<=Premissas!$C$74,"C",IF(GZ3="-","-","O")) -> - | HA2: =IF(HA3<=Premissas!$C$74,"C",IF(HA3="-","-","O")) -> - | HB2: =IF(HB3<=Premissas!$C$74,"C",IF(HB3="-","-","O")) -> - | HC2: =IF(HC3<=Premissas!$C$74,"C",IF(HC3="-","-","O")) -> - | HD2: =IF(HD3<=Premissas!$C$74,"C",IF(HD3="-","-","O")) -> - | HE2: =IF(HE3<=Premissas!$C$74,"C",IF(HE3="-","-","O")) -> - | HF2: =IF(HF3<=Premissas!$C$74,"C",IF(HF3="-","-","O")) -> - | HG2: =IF(HG3<=Premissas!$C$74,"C",IF(HG3="-","-","O")) -> - | HH2: =IF(HH3<=Premissas!$C$74,"C",IF(HH3="-","-","O")) -> - | HI2: =IF(HI3<=Premissas!$C$74,"C",IF(HI3="-","-","O")) -> - | HJ2: =IF(HJ3<=Premissas!$C$74,"C",IF(HJ3="-","-","O")) -> - | HK2: =IF(HK3<=Premissas!$C$74,"C",IF(HK3="-","-","O")) -> - | HL2: =IF(HL3<=Premissas!$C$74,"C",IF(HL3="-","-","O")) -> - | HM2: =IF(HM3<=Premissas!$C$74,"C",IF(HM3="-","-","O")) -> - | HN2: =IF(HN3<=Premissas!$C$74,"C",IF(HN3="-","-","O")) -> - | HO2: =IF(HO3<=Premissas!$C$74,"C",IF(HO3="-","-","O")) -> - | HP2: =IF(HP3<=Premissas!$C$74,"C",IF(HP3="-","-","O")) -> - | HQ2: =IF(HQ3<=Premissas!$C$74,"C",IF(HQ3="-","-","O")) -> - | HR2: =IF(HR3<=Premissas!$C$74,"C",IF(HR3="-","-","O")) -> - | HS2: =IF(HS3<=Premissas!$C$74,"C",IF(HS3="-","-","O")) -> - | HT2: =IF(HT3<=Premissas!$C$74,"C",IF(HT3="-","-","O")) -> - | HU2: =IF(HU3<=Premissas!$C$74,"C",IF(HU3="-","-","O")) -> - | HV2: =IF(HV3<=Premissas!$C$74,"C",IF(HV3="-","-","O")) -> - | HW2: =IF(HW3<=Premissas!$C$74,"C",IF(HW3="-","-","O")) -> - | HX2: =IF(HX3<=Premissas!$C$74,"C",IF(HX3="-","-","O")) -> - | HY2: =IF(HY3<=Premissas!$C$74,"C",IF(HY3="-","-","O")) -> - | HZ2: =IF(HZ3<=Premissas!$C$74,"C",IF(HZ3="-","-","O")) -> - | IA2: =IF(IA3<=Premissas!$C$74,"C",IF(IA3="-","-","O")) -> - | IB2: =IF(IB3<=Premissas!$C$74,"C",IF(IB3="-","-","O")) -> - | IC2: =IF(IC3<=Premissas!$C$74,"C",IF(IC3="-","-","O")) -> - | ID2: =IF(ID3<=Premissas!$C$74,"C",IF(ID3="-","-","O")) -> - | IE2: =IF(IE3<=Premissas!$C$74,"C",IF(IE3="-","-","O")) -> - | IF2: =IF(IF3<=Premissas!$C$74,"C",IF(IF3="-","-","O")) -> - | IG2: =IF(IG3<=Premissas!$C$74,"C",IF(IG3="-","-","O")) -> - | IH2: =IF(IH3<=Premissas!$C$74,"C",IF(IH3="-","-","O")) -> - | II2: =IF(II3<=Premissas!$C$74,"C",IF(II3="-","-","O")) -> - | IJ2: =IF(IJ3<=Premissas!$C$74,"C",IF(IJ3="-","-","O")) -> - | IK2: =IF(IK3<=Premissas!$C$74,"C",IF(IK3="-","-","O")) -> - | IL2: =IF(IL3<=Premissas!$C$74,"C",IF(IL3="-","-","O")) -> - | IM2: =IF(IM3<=Premissas!$C$74,"C",IF(IM3="-","-","O")) -> - | IN2: =IF(IN3<=Premissas!$C$74,"C",IF(IN3="-","-","O")) -> - | IO2: =IF(IO3<=Premissas!$C$74,"C",IF(IO3="-","-","O")) -> - | IP2: =IF(IP3<=Premissas!$C$74,"C",IF(IP3="-","-","O")) -> - | IQ2: =IF(IQ3<=Premissas!$C$74,"C",IF(IQ3="-","-","O")) -> - | IR2: =IF(IR3<=Premissas!$C$74,"C",IF(IR3="-","-","O")) -> - | IS2: =IF(IS3<=Premissas!$C$74,"C",IF(IS3="-","-","O")) -> - | IT2: =IF(IT3<=Premissas!$C$74,"C",IF(IT3="-","-","O")) -> - | IU2: =IF(IU3<=Premissas!$C$74,"C",IF(IU3="-","-","O")) -> - | IV2: =IF(IV3<=Premissas!$C$74,"C",IF(IV3="-","-","O")) -> - | IW2: =IF(IW3<=Premissas!$C$74,"C",IF(IW3="-","-","O")) -> - | IX2: =IF(IX3<=Premissas!$C$74,"C",IF(IX3="-","-","O")) -> - | IY2: =IF(IY3<=Premissas!$C$74,"C",IF(IY3="-","-","O")) -> - | IZ2: =IF(IZ3<=Premissas!$C$74,"C",IF(IZ3="-","-","O")) -> - | JA2: =IF(JA3<=Premissas!$C$74,"C",IF(JA3="-","-","O")) -> - | JB2: =IF(JB3<=Premissas!$C$74,"C",IF(JB3="-","-","O")) -> - | JC2: =IF(JC3<=Premissas!$C$74,"C",IF(JC3="-","-","O")) -> - | JD2: =IF(JD3<=Premissas!$C$74,"C",IF(JD3="-","-","O")) -> - | JE2: =IF(JE3<=Premissas!$C$74,"C",IF(JE3="-","-","O")) -> - | JF2: =IF(JF3<=Premissas!$C$74,"C",IF(JF3="-","-","O")) -> - | JG2: =IF(JG3<=Premissas!$C$74,"C",IF(JG3="-","-","O")) -> - | JH2: =IF(JH3<=Premissas!$C$74,"C",IF(JH3="-","-","O")) -> - | JI2: =IF(JI3<=Premissas!$C$74,"C",IF(JI3="-","-","O")) -> - | JJ2: =IF(JJ3<=Premissas!$C$74,"C",IF(JJ3="-","-","O")) -> - | JK2: =IF(JK3<=Premissas!$C$74,"C",IF(JK3="-","-","O")) -> - | JL2: =IF(JL3<=Premissas!$C$74,"C",IF(JL3="-","-","O")) -> - | JM2: =IF(JM3<=Premissas!$C$74,"C",IF(JM3="-","-","O")) -> - | JN2: =IF(JN3<=Premissas!$C$74,"C",IF(JN3="-","-","O")) -> - | JO2: =IF(JO3<=Premissas!$C$74,"C",IF(JO3="-","-","O")) -> - | JP2: =IF(JP3<=Premissas!$C$74,"C",IF(JP3="-","-","O")) -> - | JQ2: =IF(JQ3<=Premissas!$C$74,"C",IF(JQ3="-","-","O")) -> - | JR2: =IF(JR3<=Premissas!$C$74,"C",IF(JR3="-","-","O")) -> - | JS2: =IF(JS3<=Premissas!$C$74,"C",IF(JS3="-","-","O")) -> - | JT2: =IF(JT3<=Premissas!$C$74,"C",IF(JT3="-","-","O")) -> - | JU2: =IF(JU3<=Premissas!$C$74,"C",IF(JU3="-","-","O")) -> - | JV2: =IF(JV3<=Premissas!$C$74,"C",IF(JV3="-","-","O")) -> - | JW2: =IF(JW3<=Premissas!$C$74,"C",IF(JW3="-","-","O")) -> - | JX2: =IF(JX3<=Premissas!$C$74,"C",IF(JX3="-","-","O")) -> - | JY2: =IF(JY3<=Premissas!$C$74,"C",IF(JY3="-","-","O")) -> - | JZ2: =IF(JZ3<=Premissas!$C$74,"C",IF(JZ3="-","-","O")) -> - | KA2: =IF(KA3<=Premissas!$C$74,"C",IF(KA3="-","-","O")) -> - | KB2: =IF(KB3<=Premissas!$C$74,"C",IF(KB3="-","-","O")) -> - | KC2: =IF(KC3<=Premissas!$C$74,"C",IF(KC3="-","-","O")) -> - | KD2: =IF(KD3<=Premissas!$C$74,"C",IF(KD3="-","-","O")) -> - | KE2: =IF(KE3<=Premissas!$C$74,"C",IF(KE3="-","-","O")) -> - | KF2: =IF(KF3<=Premissas!$C$74,"C",IF(KF3="-","-","O")) -> - | KG2: =IF(KG3<=Premissas!$C$74,"C",IF(KG3="-","-","O")) -> - | KH2: =IF(KH3<=Premissas!$C$74,"C",IF(KH3="-","-","O")) -> - | KI2: =IF(KI3<=Premissas!$C$74,"C",IF(KI3="-","-","O")) -> - | KJ2: =IF(KJ3<=Premissas!$C$74,"C",IF(KJ3="-","-","O")) -> - | KK2: =IF(KK3<=Premissas!$C$74,"C",IF(KK3="-","-","O")) -> - | KL2: =IF(KL3<=Premissas!$C$74,"C",IF(KL3="-","-","O")) -> - | KM2: =IF(KM3<=Premissas!$C$74,"C",IF(KM3="-","-","O")) -> - | KN2: =IF(KN3<=Premissas!$C$74,"C",IF(KN3="-","-","O")) -> - | KO2: =IF(KO3<=Premissas!$C$74,"C",IF(KO3="-","-","O")) -> - | KP2: =IF(KP3<=Premissas!$C$74,"C",IF(KP3="-","-","O")) -> - | KQ2: =IF(KQ3<=Premissas!$C$74,"C",IF(KQ3="-","-","O")) -> - | KR2: =IF(KR3<=Premissas!$C$74,"C",IF(KR3="-","-","O")) -> - | KS2: =IF(KS3<=Premissas!$C$74,"C",IF(KS3="-","-","O")) -> - | KT2: =IF(KT3<=Premissas!$C$74,"C",IF(KT3="-","-","O")) -> - | KU2: =IF(KU3<=Premissas!$C$74,"C",IF(KU3="-","-","O")) -> - | KV2: =IF(KV3<=Premissas!$C$74,"C",IF(KV3="-","-","O")) -> - | KW2: =IF(KW3<=Premissas!$C$74,"C",IF(KW3="-","-","O")) -> - | KX2: =IF(KX3<=Premissas!$C$74,"C",IF(KX3="-","-","O")) -> - | KY2: =IF(KY3<=Premissas!$C$74,"C",IF(KY3="-","-","O")) -> - | KZ2: =IF(KZ3<=Premissas!$C$74,"C",IF(KZ3="-","-","O")) -> - | LA2: =IF(LA3<=Premissas!$C$74,"C",IF(LA3="-","-","O")) -> - | LB2: =IF(LB3<=Premissas!$C$74,"C",IF(LB3="-","-","O")) -> - | LC2: =IF(LC3<=Premissas!$C$74,"C",IF(LC3="-","-","O")) -> - | LD2: =IF(LD3<=Premissas!$C$74,"C",IF(LD3="-","-","O")) -> - | LE2: =IF(LE3<=Premissas!$C$74,"C",IF(LE3="-","-","O")) -> - | LF2: =IF(LF3<=Premissas!$C$74,"C",IF(LF3="-","-","O")) -> - | LG2: =IF(LG3<=Premissas!$C$74,"C",IF(LG3="-","-","O")) -> - | LH2: =IF(LH3<=Premissas!$C$74,"C",IF(LH3="-","-","O")) -> - | LI2: =IF(LI3<=Premissas!$C$74,"C",IF(LI3="-","-","O")) -> - | LJ2: =IF(LJ3<=Premissas!$C$74,"C",IF(LJ3="-","-","O")) -> - | LK2: =IF(LK3<=Premissas!$C$74,"C",IF(LK3="-","-","O")) -> - | LL2: =IF(LL3<=Premissas!$C$74,"C",IF(LL3="-","-","O")) -> - | LM2: =IF(LM3<=Premissas!$C$74,"C",IF(LM3="-","-","O")) -> - | LN2: =IF(LN3<=Premissas!$C$74,"C",IF(LN3="-","-","O")) -> - | LO2: =IF(LO3<=Premissas!$C$74,"C",IF(LO3="-","-","O")) -> - | LP2: =IF(LP3<=Premissas!$C$74,"C",IF(LP3="-","-","O")) -> - | LQ2: =IF(LQ3<=Premissas!$C$74,"C",IF(LQ3="-","-","O")) -> - | LR2: =IF(LR3<=Premissas!$C$74,"C",IF(LR3="-","-","O")) -> - | LS2: =IF(LS3<=Premissas!$C$74,"C",IF(LS3="-","-","O")) -> - | LT2: =IF(LT3<=Premissas!$C$74,"C",IF(LT3="-","-","O")) -> - | LU2: =IF(LU3<=Premissas!$C$74,"C",IF(LU3="-","-","O")) -> - | LV2: =IF(LV3<=Premissas!$C$74,"C",IF(LV3="-","-","O")) -> - | LW2: =IF(LW3<=Premissas!$C$74,"C",IF(LW3="-","-","O")) -> - | LX2: =IF(LX3<=Premissas!$C$74,"C",IF(LX3="-","-","O")) -> - | LY2: =IF(LY3<=Premissas!$C$74,"C",IF(LY3="-","-","O")) -> - | LZ2: =IF(LZ3<=Premissas!$C$74,"C",IF(LZ3="-","-","O")) -> - | MA2: =IF(MA3<=Premissas!$C$74,"C",IF(MA3="-","-","O")) -> - | MB2: =IF(MB3<=Premissas!$C$74,"C",IF(MB3="-","-","O")) -> - | MC2: =IF(MC3<=Premissas!$C$74,"C",IF(MC3="-","-","O")) -> - | MD2: =IF(MD3<=Premissas!$C$74,"C",IF(MD3="-","-","O")) -> - | ME2: =IF(ME3<=Premissas!$C$74,"C",IF(ME3="-","-","O")) -> - | MF2: =IF(MF3<=Premissas!$C$74,"C",IF(MF3="-","-","O")) -> - | MG2: =IF(MG3<=Premissas!$C$74,"C",IF(MG3="-","-","O")) -> - | MH2: =IF(MH3<=Premissas!$C$74,"C",IF(MH3="-","-","O")) -> - | MI2: =IF(MI3<=Premissas!$C$74,"C",IF(MI3="-","-","O")) -> - | MJ2: =IF(MJ3<=Premissas!$C$74,"C",IF(MJ3="-","-","O")) -> - | MK2: =IF(MK3<=Premissas!$C$74,"C",IF(MK3="-","-","O")) -> - | ML2: =IF(ML3<=Premissas!$C$74,"C",IF(ML3="-","-","O")) -> - | MM2: =IF(MM3<=Premissas!$C$74,"C",IF(MM3="-","-","O")) -> - | MN2: =IF(MN3<=Premissas!$C$74,"C",IF(MN3="-","-","O")) -> - | MO2: =IF(MO3<=Premissas!$C$74,"C",IF(MO3="-","-","O")) -> - | MP2: =IF(MP3<=Premissas!$C$74,"C",IF(MP3="-","-","O")) -> - | MQ2: =IF(MQ3<=Premissas!$C$74,"C",IF(MQ3="-","-","O")) -> - | MR2: =IF(MR3<=Premissas!$C$74,"C",IF(MR3="-","-","O")) -> - | MS2: =IF(MS3<=Premissas!$C$74,"C",IF(MS3="-","-","O")) -> - | MT2: =IF(MT3<=Premissas!$C$74,"C",IF(MT3="-","-","O")) -> - | MU2: =IF(MU3<=Premissas!$C$74,"C",IF(MU3="-","-","O")) -> - | MV2: =IF(MV3<=Premissas!$C$74,"C",IF(MV3="-","-","O")) -> - | MW2: =IF(MW3<=Premissas!$C$74,"C",IF(MW3="-","-","O")) -> - | MX2: =IF(MX3<=Premissas!$C$74,"C",IF(MX3="-","-","O")) -> - | MY2: =IF(MY3<=Premissas!$C$74,"C",IF(MY3="-","-","O")) -> - | MZ2: =IF(MZ3<=Premissas!$C$74,"C",IF(MZ3="-","-","O")) -> - | NA2: =IF(NA3<=Premissas!$C$74,"C",IF(NA3="-","-","O")) -> - | NB2: =IF(NB3<=Premissas!$C$74,"C",IF(NB3="-","-","O")) -> - | NC2: =IF(NC3<=Premissas!$C$74,"C",IF(NC3="-","-","O")) -> - | ND2: =IF(ND3<=Premissas!$C$74,"C",IF(ND3="-","-","O")) -> - | NE2: =IF(NE3<=Premissas!$C$74,"C",IF(NE3="-","-","O")) -> - | NF2: =IF(NF3<=Premissas!$C$74,"C",IF(NF3="-","-","O")) -> - | NG2: =IF(NG3<=Premissas!$C$74,"C",IF(NG3="-","-","O")) -> - | NH2: =IF(NH3<=Premissas!$C$74,"C",IF(NH3="-","-","O")) -> - | NI2: =IF(NI3<=Premissas!$C$74,"C",IF(NI3="-","-","O")) -> - | NJ2: =IF(NJ3<=Premissas!$C$74,"C",IF(NJ3="-","-","O")) -> - | NK2: =IF(NK3<=Premissas!$C$74,"C",IF(NK3="-","-","O")) -> - | NL2: =IF(NL3<=Premissas!$C$74,"C",IF(NL3="-","-","O")) -> - | NM2: =IF(NM3<=Premissas!$C$74,"C",IF(NM3="-","-","O")) -> - | NN2: =IF(NN3<=Premissas!$C$74,"C",IF(NN3="-","-","O")) -> - | NO2: =IF(NO3<=Premissas!$C$74,"C",IF(NO3="-","-","O")) -> - | NP2: =IF(NP3<=Premissas!$C$74,"C",IF(NP3="-","-","O")) -> - | NQ2: =IF(NQ3<=Premissas!$C$74,"C",IF(NQ3="-","-","O")) -> - | NR2: =IF(NR3<=Premissas!$C$74,"C",IF(NR3="-","-","O")) -> - | NS2: =IF(NS3<=Premissas!$C$74,"C",IF(NS3="-","-","O")) -> - | NT2: =IF(NT3<=Premissas!$C$74,"C",IF(NT3="-","-","O")) -> - | NU2: =IF(NU3<=Premissas!$C$74,"C",IF(NU3="-","-","O")) -> - | NV2: =IF(NV3<=Premissas!$C$74,"C",IF(NV3="-","-","O")) -> - | NW2: =IF(NW3<=Premissas!$C$74,"C",IF(NW3="-","-","O")) -> - | NX2: =IF(NX3<=Premissas!$C$74,"C",IF(NX3="-","-","O")) -> - | NY2: =IF(NY3<=Premissas!$C$74,"C",IF(NY3="-","-","O")) -> - | NZ2: =IF(NZ3<=Premissas!$C$74,"C",IF(NZ3="-","-","O")) -> - | OA2: =IF(OA3<=Premissas!$C$74,"C",IF(OA3="-","-","O")) -> - | OB2: =IF(OB3<=Premissas!$C$74,"C",IF(OB3="-","-","O")) -> - | OC2: =IF(OC3<=Premissas!$C$74,"C",IF(OC3="-","-","O")) -> - | OD2: =IF(OD3<=Premissas!$C$74,"C",IF(OD3="-","-","O")) -> - | OE2: =IF(OE3<=Premissas!$C$74,"C",IF(OE3="-","-","O")) -> - | OF2: =IF(OF3<=Premissas!$C$74,"C",IF(OF3="-","-","O")) -> - | OG2: =IF(OG3<=Premissas!$C$74,"C",IF(OG3="-","-","O")) -> - | OH2: =IF(OH3<=Premissas!$C$74,"C",IF(OH3="-","-","O")) -> - | OI2: =IF(OI3<=Premissas!$C$74,"C",IF(OI3="-","-","O")) -> - | OJ2: =IF(OJ3<=Premissas!$C$74,"C",IF(OJ3="-","-","O")) -> - | OK2: =IF(OK3<=Premissas!$C$74,"C",IF(OK3="-","-","O")) -> - | OL2: =IF(OL3<=Premissas!$C$74,"C",IF(OL3="-","-","O")) -> - | OM2: =IF(OM3<=Premissas!$C$74,"C",IF(OM3="-","-","O")) -> - | ON2: =IF(ON3<=Premissas!$C$74,"C",IF(ON3="-","-","O")) -> - | OO2: =IF(OO3<=Premissas!$C$74,"C",IF(OO3="-","-","O")) -> - | OP2: =IF(OP3<=Premissas!$C$74,"C",IF(OP3="-","-","O")) -> - | OQ2: =IF(OQ3<=Premissas!$C$74,"C",IF(OQ3="-","-","O")) -> - | OR2: =IF(OR3<=Premissas!$C$74,"C",IF(OR3="-","-","O")) -> - | OS2: =IF(OS3<=Premissas!$C$74,"C",IF(OS3="-","-","O")) -> - | OT2: =IF(OT3<=Premissas!$C$74,"C",IF(OT3="-","-","O")) -> - | OU2: =IF(OU3<=Premissas!$C$74,"C",IF(OU3="-","-","O")) -> - | OV2: =IF(OV3<=Premissas!$C$74,"C",IF(OV3="-","-","O")) -> - | OW2: =IF(OW3<=Premissas!$C$74,"C",IF(OW3="-","-","O")) -> - | OX2: =IF(OX3<=Premissas!$C$74,"C",IF(OX3="-","-","O")) -> - | OY2: =IF(OY3<=Premissas!$C$74,"C",IF(OY3="-","-","O")) -> - | OZ2: =IF(OZ3<=Premissas!$C$74,"C",IF(OZ3="-","-","O")) -> - | PA2: =IF(PA3<=Premissas!$C$74,"C",IF(PA3="-","-","O")) -> - | PB2: =IF(PB3<=Premissas!$C$74,"C",IF(PB3="-","-","O")) -> - | PC2: =IF(PC3<=Premissas!$C$74,"C",IF(PC3="-","-","O")) -> - | PD2: =IF(PD3<=Premissas!$C$74,"C",IF(PD3="-","-","O")) -> - | PE2: =IF(PE3<=Premissas!$C$74,"C",IF(PE3="-","-","O")) -> - | PF2: =IF(PF3<=Premissas!$C$74,"C",IF(PF3="-","-","O")) -> - | PG2: =IF(PG3<=Premissas!$C$74,"C",IF(PG3="-","-","O")) -> - | PH2: =IF(PH3<=Premissas!$C$74,"C",IF(PH3="-","-","O")) -> - | PI2: =IF(PI3<=Premissas!$C$74,"C",IF(PI3="-","-","O")) -> - | PJ2: =IF(PJ3<=Premissas!$C$74,"C",IF(PJ3="-","-","O")) -> - | PK2: =IF(PK3<=Premissas!$C$74,"C",IF(PK3="-","-","O")) -> - | PL2: =IF(PL3<=Premissas!$C$74,"C",IF(PL3="-","-","O")) -> - | PM2: =IF(PM3<=Premissas!$C$74,"C",IF(PM3="-","-","O")) -> - | PN2: =IF(PN3<=Premissas!$C$74,"C",IF(PN3="-","-","O")) -> - | PO2: =IF(PO3<=Premissas!$C$74,"C",IF(PO3="-","-","O")) -> - | PP2: =IF(PP3<=Premissas!$C$74,"C",IF(PP3="-","-","O")) -> - | PQ2: =IF(PQ3<=Premissas!$C$74,"C",IF(PQ3="-","-","O")) -> - | PR2: =IF(PR3<=Premissas!$C$74,"C",IF(PR3="-","-","O")) -> - | PS2: =IF(PS3<=Premissas!$C$74,"C",IF(PS3="-","-","O")) -> - | PT2: =IF(PT3<=Premissas!$C$74,"C",IF(PT3="-","-","O")) -> - | PU2: =IF(PU3<=Premissas!$C$74,"C",IF(PU3="-","-","O")) -> - | PV2: =IF(PV3<=Premissas!$C$74,"C",IF(PV3="-","-","O")) -> - | PW2: =IF(PW3<=Premissas!$C$74,"C",IF(PW3="-","-","O")) -> - | PX2: =IF(PX3<=Premissas!$C$74,"C",IF(PX3="-","-","O")) -> - | PY2: =IF(PY3<=Premissas!$C$74,"C",IF(PY3="-","-","O")) -> - | PZ2: =IF(PZ3<=Premissas!$C$74,"C",IF(PZ3="-","-","O")) -> - | QA2: =IF(QA3<=Premissas!$C$74,"C",IF(QA3="-","-","O")) -> - | QB2: =IF(QB3<=Premissas!$C$74,"C",IF(QB3="-","-","O")) -> - | QC2: =IF(QC3<=Premissas!$C$74,"C",IF(QC3="-","-","O")) -> - | QD2: =IF(QD3<=Premissas!$C$74,"C",IF(QD3="-","-","O")) -> - | QE2: =IF(QE3<=Premissas!$C$74,"C",IF(QE3="-","-","O")) -> - | QF2: =IF(QF3<=Premissas!$C$74,"C",IF(QF3="-","-","O")) -> - | QG2: =IF(QG3<=Premissas!$C$74,"C",IF(QG3="-","-","O")) -> - | QH2: =IF(QH3<=Premissas!$C$74,"C",IF(QH3="-","-","O")) -> - | QI2: =IF(QI3<=Premissas!$C$74,"C",IF(QI3="-","-","O")) -> - | QJ2: =IF(QJ3<=Premissas!$C$74,"C",IF(QJ3="-","-","O")) -> - | QK2: =IF(QK3<=Premissas!$C$74,"C",IF(QK3="-","-","O")) -> - | QL2: =IF(QL3<=Premissas!$C$74,"C",IF(QL3="-","-","O")) -> - | QM2: =IF(QM3<=Premissas!$C$74,"C",IF(QM3="-","-","O")) -> - | QN2: =IF(QN3<=Premissas!$C$74,"C",IF(QN3="-","-","O")) -> - | QO2: =IF(QO3<=Premissas!$C$74,"C",IF(QO3="-","-","O")) -> - | QP2: =IF(QP3<=Premissas!$C$74,"C",IF(QP3="-","-","O")) -> - | QQ2: =IF(QQ3<=Premissas!$C$74,"C",IF(QQ3="-","-","O")) -> - | QR2: =IF(QR3<=Premissas!$C$74,"C",IF(QR3="-","-","O")) -> - | QS2: =IF(QS3<=Premissas!$C$74,"C",IF(QS3="-","-","O")) -> - | QT2: =IF(QT3<=Premissas!$C$74,"C",IF(QT3="-","-","O")) -> - | QU2: =IF(QU3<=Premissas!$C$74,"C",IF(QU3="-","-","O")) -> - | QV2: =IF(QV3<=Premissas!$C$74,"C",IF(QV3="-","-","O")) -> - | QW2: =IF(QW3<=Premissas!$C$74,"C",IF(QW3="-","-","O")) -> - | QX2: =IF(QX3<=Premissas!$C$74,"C",IF(QX3="-","-","O")) -> - | QY2: =IF(QY3<=Premissas!$C$74,"C",IF(QY3="-","-","O")) -> - | QZ2: =IF(QZ3<=Premissas!$C$74,"C",IF(QZ3="-","-","O")) -> - | RA2: =IF(RA3<=Premissas!$C$74,"C",IF(RA3="-","-","O")) -> - | RB2: =IF(RB3<=Premissas!$C$74,"C",IF(RB3="-","-","O")) -> - | RC2: =IF(RC3<=Premissas!$C$74,"C",IF(RC3="-","-","O")) -> - | RD2: =IF(RD3<=Premissas!$C$74,"C",IF(RD3="-","-","O")) -> - | RE2: =IF(RE3<=Premissas!$C$74,"C",IF(RE3="-","-","O")) -> - | RF2: =IF(RF3<=Premissas!$C$74,"C",IF(RF3="-","-","O")) -> - | RG2: =IF(RG3<=Premissas!$C$74,"C",IF(RG3="-","-","O")) -> - | RH2: =IF(RH3<=Premissas!$C$74,"C",IF(RH3="-","-","O")) -> - | RI2: =IF(RI3<=Premissas!$C$74,"C",IF(RI3="-","-","O")) -> - | RJ2: =IF(RJ3<=Premissas!$C$74,"C",IF(RJ3="-","-","O")) -> - | RK2: =IF(RK3<=Premissas!$C$74,"C",IF(RK3="-","-","O")) -> - | RL2: =IF(RL3<=Premissas!$C$74,"C",IF(RL3="-","-","O")) -> - | RM2: =IF(RM3<=Premissas!$C$74,"C",IF(RM3="-","-","O")) -> - | RN2: =IF(RN3<=Premissas!$C$74,"C",IF(RN3="-","-","O")) -> - | RO2: =IF(RO3<=Premissas!$C$74,"C",IF(RO3="-","-","O")) -> - | RP2: =IF(RP3<=Premissas!$C$74,"C",IF(RP3="-","-","O")) -> - | RQ2: =IF(RQ3<=Premissas!$C$74,"C",IF(RQ3="-","-","O")) -> - | RR2: =IF(RR3<=Premissas!$C$74,"C",IF(RR3="-","-","O")) -> - | RS2: =IF(RS3<=Premissas!$C$74,"C",IF(RS3="-","-","O")) -> - | RT2: =IF(RT3<=Premissas!$C$74,"C",IF(RT3="-","-","O")) -> - | RU2: =IF(RU3<=Premissas!$C$74,"C",IF(RU3="-","-","O")) -> - | RV2: =IF(RV3<=Premissas!$C$74,"C",IF(RV3="-","-","O")) -> - | RW2: =IF(RW3<=Premissas!$C$74,"C",IF(RW3="-","-","O")) -> - | RX2: =IF(RX3<=Premissas!$C$74,"C",IF(RX3="-","-","O")) -> - | RY2: =IF(RY3<=Premissas!$C$74,"C",IF(RY3="-","-","O")) -> - | RZ2: =IF(RZ3<=Premissas!$C$74,"C",IF(RZ3="-","-","O")) -> - | SA2: =IF(SA3<=Premissas!$C$74,"C",IF(SA3="-","-","O")) -> - | SB2: =IF(SB3<=Premissas!$C$74,"C",IF(SB3="-","-","O")) -> - | SC2: =IF(SC3<=Premissas!$C$74,"C",IF(SC3="-","-","O")) -> - | SD2: =IF(SD3<=Premissas!$C$74,"C",IF(SD3="-","-","O")) -> - | SE2: =IF(SE3<=Premissas!$C$74,"C",IF(SE3="-","-","O")) -> - | SF2: =IF(SF3<=Premissas!$C$74,"C",IF(SF3="-","-","O")) -> - | SG2: =IF(SG3<=Premissas!$C$74,"C",IF(SG3="-","-","O")) -> - | SH2: =IF(SH3<=Premissas!$C$74,"C",IF(SH3="-","-","O")) -> - | SI2: =IF(SI3<=Premissas!$C$74,"C",IF(SI3="-","-","O")) -> - | SJ2: =IF(SJ3<=Premissas!$C$74,"C",IF(SJ3="-","-","O")) -> - | SK2: =IF(SK3<=Premissas!$C$74,"C",IF(SK3="-","-","O")) -> - | SL2: =IF(SL3<=Premissas!$C$74,"C",IF(SL3="-","-","O")) -> - | SM2: =IF(SM3<=Premissas!$C$74,"C",IF(SM3="-","-","O")) -> - | SN2: =IF(SN3<=Premissas!$C$74,"C",IF(SN3="-","-","O")) -> - | SO2: =IF(SO3<=Premissas!$C$74,"C",IF(SO3="-","-","O")) -> - | SP2: =IF(SP3<=Premissas!$C$74,"C",IF(SP3="-","-","O")) -> - | SQ2: =IF(SQ3<=Premissas!$C$74,"C",IF(SQ3="-","-","O")) -> - | SR2: =IF(SR3<=Premissas!$C$74,"C",IF(SR3="-","-","O")) -> - | SS2: =IF(SS3<=Premissas!$C$74,"C",IF(SS3="-","-","O")) -> - | ST2: =IF(ST3<=Premissas!$C$74,"C",IF(ST3="-","-","O")) -> - | SU2: =IF(SU3<=Premissas!$C$74,"C",IF(SU3="-","-","O")) -> - | SV2: =IF(SV3<=Premissas!$C$74,"C",IF(SV3="-","-","O")) -> - | SW2: =IF(SW3<=Premissas!$C$74,"C",IF(SW3="-","-","O")) -> - | SX2: =IF(SX3<=Premissas!$C$74,"C",IF(SX3="-","-","O")) -> - | SY2: =IF(SY3<=Premissas!$C$74,"C",IF(SY3="-","-","O")) -> - | SZ2: =IF(SZ3<=Premissas!$C$74,"C",IF(SZ3="-","-","O")) -> - | TA2: =IF(TA3<=Premissas!$C$74,"C",IF(TA3="-","-","O")) -> - | TB2: =IF(TB3<=Premissas!$C$74,"C",IF(TB3="-","-","O")) -> - | TC2: =IF(TC3<=Premissas!$C$74,"C",IF(TC3="-","-","O")) -> - | TD2: =IF(TD3<=Premissas!$C$74,"C",IF(TD3="-","-","O")) -> - | TE2: =IF(TE3<=Premissas!$C$74,"C",IF(TE3="-","-","O")) -> - | TF2: =IF(TF3<=Premissas!$C$74,"C",IF(TF3="-","-","O")) -> - | TG2: =IF(TG3<=Premissas!$C$74,"C",IF(TG3="-","-","O")) -> - | TH2: =IF(TH3<=Premissas!$C$74,"C",IF(TH3="-","-","O")) -> - | TI2: =IF(TI3<=Premissas!$C$74,"C",IF(TI3="-","-","O")) -> - | TJ2: =IF(TJ3<=Premissas!$C$74,"C",IF(TJ3="-","-","O")) -> - | TK2: =IF(TK3<=Premissas!$C$74,"C",IF(TK3="-","-","O")) -> - | TL2: =IF(TL3<=Premissas!$C$74,"C",IF(TL3="-","-","O")) -> - | TM2: =IF(TM3<=Premissas!$C$74,"C",IF(TM3="-","-","O")) -> - | TN2: =IF(TN3<=Premissas!$C$74,"C",IF(TN3="-","-","O")) -> - | TO2: =IF(TO3<=Premissas!$C$74,"C",IF(TO3="-","-","O")) -> - | TP2: =IF(TP3<=Premissas!$C$74,"C",IF(TP3="-","-","O")) -> - | TQ2: =IF(TQ3<=Premissas!$C$74,"C",IF(TQ3="-","-","O")) -> - | TR2: =IF(TR3<=Premissas!$C$74,"C",IF(TR3="-","-","O")) -> - | TS2: =IF(TS3<=Premissas!$C$74,"C",IF(TS3="-","-","O")) -> - | TT2: =IF(TT3<=Premissas!$C$74,"C",IF(TT3="-","-","O")) -> - | TU2: =IF(TU3<=Premissas!$C$74,"C",IF(TU3="-","-","O")) -> - | TV2: =IF(TV3<=Premissas!$C$74,"C",IF(TV3="-","-","O")) -> - | TW2: =IF(TW3<=Premissas!$C$74,"C",IF(TW3="-","-","O")) -> - | TX2: =IF(TX3<=Premissas!$C$74,"C",IF(TX3="-","-","O")) -> - | TY2: =IF(TY3<=Premissas!$C$74,"C",IF(TY3="-","-","O")) -> - | TZ2: =IF(TZ3<=Premissas!$C$74,"C",IF(TZ3="-","-","O")) -> - | UA2: =IF(UA3<=Premissas!$C$74,"C",IF(UA3="-","-","O")) -> - | UB2: =IF(UB3<=Premissas!$C$74,"C",IF(UB3="-","-","O")) -> - | UC2: =IF(UC3<=Premissas!$C$74,"C",IF(UC3="-","-","O")) -> - | UD2: =IF(UD3<=Premissas!$C$74,"C",IF(UD3="-","-","O")) -> - | UE2: =IF(UE3<=Premissas!$C$74,"C",IF(UE3="-","-","O")) -> - | UF2: =IF(UF3<=Premissas!$C$74,"C",IF(UF3="-","-","O")) -> - | UG2: =IF(UG3<=Premissas!$C$74,"C",IF(UG3="-","-","O")) -> - | UH2: =IF(UH3<=Premissas!$C$74,"C",IF(UH3="-","-","O")) -> - | UI2: =IF(UI3<=Premissas!$C$74,"C",IF(UI3="-","-","O")) -> - | UJ2: =IF(UJ3<=Premissas!$C$74,"C",IF(UJ3="-","-","O")) -> - | UK2: =IF(UK3<=Premissas!$C$74,"C",IF(UK3="-","-","O")) -> - | UL2: =IF(UL3<=Premissas!$C$74,"C",IF(UL3="-","-","O")) -> - | UM2: =IF(UM3<=Premissas!$C$74,"C",IF(UM3="-","-","O")) -> - | UN2: =IF(UN3<=Premissas!$C$74,"C",IF(UN3="-","-","O")) -> - | UO2: =IF(UO3<=Premissas!$C$74,"C",IF(UO3="-","-","O")) -> - | UP2: =IF(UP3<=Premissas!$C$74,"C",IF(UP3="-","-","O")) -> - | UQ2: =IF(UQ3<=Premissas!$C$74,"C",IF(UQ3="-","-","O")) -> - | UR2: =IF(UR3<=Premissas!$C$74,"C",IF(UR3="-","-","O")) -> - | US2: =IF(US3<=Premissas!$C$74,"C",IF(US3="-","-","O")) -> - | UT2: =IF(UT3<=Premissas!$C$74,"C",IF(UT3="-","-","O")) -> - | UU2: =IF(UU3<=Premissas!$C$74,"C",IF(UU3="-","-","O")) -> - | UV2: =IF(UV3<=Premissas!$C$74,"C",IF(UV3="-","-","O")) -> - | UW2: =IF(UW3<=Premissas!$C$74,"C",IF(UW3="-","-","O")) -> - | UX2: =IF(UX3<=Premissas!$C$74,"C",IF(UX3="-","-","O")) -> - | UY2: =IF(UY3<=Premissas!$C$74,"C",IF(UY3="-","-","O")) -> - | UZ2: =IF(UZ3<=Premissas!$C$74,"C",IF(UZ3="-","-","O")) -> - | VA2: =IF(VA3<=Premissas!$C$74,"C",IF(VA3="-","-","O")) -> - | VB2: =IF(VB3<=Premissas!$C$74,"C",IF(VB3="-","-","O")) -> - | VC2: =IF(VC3<=Premissas!$C$74,"C",IF(VC3="-","-","O")) -> - | VD2: =IF(VD3<=Premissas!$C$74,"C",IF(VD3="-","-","O")) -> - | VE2: =IF(VE3<=Premissas!$C$74,"C",IF(VE3="-","-","O")) -> - | VF2: =IF(VF3<=Premissas!$C$74,"C",IF(VF3="-","-","O")) -> - | VG2: =IF(VG3<=Premissas!$C$74,"C",IF(VG3="-","-","O")) -> - | VH2: =IF(VH3<=Premissas!$C$74,"C",IF(VH3="-","-","O")) -> - | VI2: =IF(VI3<=Premissas!$C$74,"C",IF(VI3="-","-","O")) -> - | VJ2: =IF(VJ3<=Premissas!$C$74,"C",IF(VJ3="-","-","O")) -> - | VK2: =IF(VK3<=Premissas!$C$74,"C",IF(VK3="-","-","O")) -> - | VL2: =IF(VL3<=Premissas!$C$74,"C",IF(VL3="-","-","O")) -> - | VM2: =IF(VM3<=Premissas!$C$74,"C",IF(VM3="-","-","O")) -> - | VN2: =IF(VN3<=Premissas!$C$74,"C",IF(VN3="-","-","O")) -> - | VO2: =IF(VO3<=Premissas!$C$74,"C",IF(VO3="-","-","O")) -> - | VP2: =IF(VP3<=Premissas!$C$74,"C",IF(VP3="-","-","O")) -> - | VQ2: =IF(VQ3<=Premissas!$C$74,"C",IF(VQ3="-","-","O")) -> - | VR2: =IF(VR3<=Premissas!$C$74,"C",IF(VR3="-","-","O")) -> - | VS2: =IF(VS3<=Premissas!$C$74,"C",IF(VS3="-","-","O")) -> - | VT2: =IF(VT3<=Premissas!$C$74,"C",IF(VT3="-","-","O")) -> - | VU2: =IF(VU3<=Premissas!$C$74,"C",IF(VU3="-","-","O")) -> - | VV2: =IF(VV3<=Premissas!$C$74,"C",IF(VV3="-","-","O")) -> - | VW2: =IF(VW3<=Premissas!$C$74,"C",IF(VW3="-","-","O")) -> - | VX2: =IF(VX3<=Premissas!$C$74,"C",IF(VX3="-","-","O")) -> - | VY2: =IF(VY3<=Premissas!$C$74,"C",IF(VY3="-","-","O")) -> - | VZ2: =IF(VZ3<=Premissas!$C$74,"C",IF(VZ3="-","-","O")) -> - | WA2: =IF(WA3<=Premissas!$C$74,"C",IF(WA3="-","-","O")) -> - | WB2: =IF(WB3<=Premissas!$C$74,"C",IF(WB3="-","-","O")) -> - | WC2: =IF(WC3<=Premissas!$C$74,"C",IF(WC3="-","-","O")) -> - | WD2: =IF(WD3<=Premissas!$C$74,"C",IF(WD3="-","-","O")) -> -
